Workbook

Sheet Model Structure
I2: Unless otherwise stated all real dollars are in real $ December 2019
I4: AGA Input tab
I5: data | K5: Linked cell to external input prior to deleting links
A7: Worksheets | I7: data | K7: Calculation
B8: All worksheets are password (ATCO) protected to prevent inadvertent altering of inputs.
B9: Worksheet | C9: Description | I9: data | K9: Hard coded
B10: PTRM tariff tables | C10: Tariffs forecast in real and nominal dollars
B11: Main | C11: Summary of outputs | K11: Data not used
B12: Input | C12: Contains inputs inflation, asset lives, capital expenditures, operating expenditures, UAFG expense, approved depreciation, stand alone and avoidable costs
B13: WACC | C13: Contains the relevant parameters related to computing the WACC | K13: Red used for NPV checks zero in CoS tab
B14: Load_Tariffs | C14: Contains inputs of gas volumes, customer connections and other relevant information required to compute the reference tariffs
B15: Price path AA5 | C15: Calculated forecast tariffs based on a summary of cost of service and volume contained in revenue tab
B16: CoS | C16: Computations of total revenue building block (cost of service), inflationary gain and Credit Foncier Check | I16: Tariff model method: Principles
B17: Revenue | C17: Contains calculation of revenue and rule 94 tests | I17: End of year cashflow assumption
B18: Working Capital | C18: Contains calculation of working capital
B19: Tax_CoRE | C19: Contains calculation of tax, imputation credit and cost of raising equity | I19: Depreciation
B20: Asset | C20: Contains regulatory asset base. Includes initial capital base, capital expenditure account, Vines and Westnet. Computations in Real 31 December-2019 $m | I20: For AA1 period depreciation began in the year of acquisition but the ERA has modified the asset life in subsequent AA periods to assume asset depreciation began in the year after acquisition effectively adding one year to asset life for capex 2000 to 2004
B21: Tax_Asset | C21: Contains tax asset base. Includes Initial Capital Base per E&Y, capital expenditure account, Vines and West net. Computations in nominal $m | I21: For all subsequent AA periods depreciation began in the year after acquisition
I22: Regulatory depreciation is rolled forward on forecast basis
I23: ICB tax assets as at 30 June 2000 ( not 1 Jan 2000)
I24: Taxation
I25: Depreciation and Capex is rolled forward on an actual basis
I27: Other
I28: AA4 Equity raising costs per last ERA tariff variation model ( 1 January 2019)
I30: Actual data to December 2018. 2019 data is forecast.

Sheet Output >>

Sheet PTRM_tariff tables
A5: Charging parameter ($ real at 31 December 2019) | B5: Units | C5: 2020 | D5: 2021 | E5: 2022 | F5: 2023 | G5: 2024
A6: Reference tariff A1
A7: Standing charge | B7: $/year | C7: =Price_path_AA5!F117 -> 35889.75 | D7: =Price_path_AA5!G117 -> 36715.21 | E7: =Price_path_AA5!H117 -> 37559.66 | F7: =Price_path_AA5!I117 -> 38423.53 | G7: =Price_path_AA5!J117 -> 39307.27
A8: Demand charge
A9: First 10 km | B9: $/GJ km | C9: =Price_path_AA5!F119 -> 151.27 | D9: =Price_path_AA5!G119 -> 154.75 | E9: =Price_path_AA5!H119 -> 158.31 | F9: =Price_path_AA5!I119 -> 161.95 | G9: =Price_path_AA5!J119 -> 165.67
A10: Distance > 10 km | B10: $/GJ km | C10: =Price_path_AA5!F120 -> 79.62 | D10: =Price_path_AA5!G120 -> 81.45 | E10: =Price_path_AA5!H120 -> 83.32 | F10: =Price_path_AA5!I120 -> 85.24 | G10: =Price_path_AA5!J120 -> 87.2
A11: Usage charge
A12: First 10 km | B12: $/GJ km | C12: =Price_path_AA5!F122 -> 0.032 | D12: =Price_path_AA5!G122 -> 0.03274 | E12: =Price_path_AA5!H122 -> 0.03349 | F12: =Price_path_AA5!I122 -> 0.03426 | G12: =Price_path_AA5!J122 -> 0.03505
A13: Distance > 10 km | B13: $/GJ km | C13: =Price_path_AA5!F123 -> 0.01613 | D13: =Price_path_AA5!G123 -> 0.0165 | E13: =Price_path_AA5!H123 -> 0.01688 | F13: =Price_path_AA5!I123 -> 0.01727 | G13: =Price_path_AA5!J123 -> 0.01767
A14: Reference tariff A2
A15: Standing charge | B15: $/Year | C15: =Price_path_AA5!F125 -> 19858.09 | D15: =Price_path_AA5!G125 -> 20314.83 | E15: =Price_path_AA5!H125 -> 20782.07 | F15: =Price_path_AA5!I125 -> 21260.06 | G15: =Price_path_AA5!J125 -> 21749.04
A16: First 10 TJ | B16: $/GJ | C16: =Price_path_AA5!F126 -> 1.92 | D16: =Price_path_AA5!G126 -> 1.96 | E16: =Price_path_AA5!H126 -> 2.01 | F16: =Price_path_AA5!I126 -> 2.06 | G16: =Price_path_AA5!J126 -> 2.11
A17: Volume > 10 TJ | B17: $/GJ | C17: =Price_path_AA5!F127 -> 1.03 | D17: =Price_path_AA5!G127 -> 1.05 | E17: =Price_path_AA5!H127 -> 1.07 | F17: =Price_path_AA5!I127 -> 1.09 | G17: =Price_path_AA5!J127 -> 1.12
A18: Reference tariff B1
A19: Standing charge | B19: $/Year | C19: =Price_path_AA5!F129 -> 1003.91 | D19: =Price_path_AA5!G129 -> 1027 | E19: =Price_path_AA5!H129 -> 1050.62 | F19: =Price_path_AA5!I129 -> 1074.78 | G19: =Price_path_AA5!J129 -> 1099.5
A20: First 5 TJ | B20: $/GJ | C20: =Price_path_AA5!F130 -> 3.82 | D20: =Price_path_AA5!G130 -> 3.91 | E20: =Price_path_AA5!H130 -> 4 | F20: =Price_path_AA5!I130 -> 4.09 | G20: =Price_path_AA5!J130 -> 4.18
A21: Volume > 5 TJ | B21: $/GJ | C21: =Price_path_AA5!F131 -> 3.29 | D21: =Price_path_AA5!G131 -> 3.37 | E21: =Price_path_AA5!H131 -> 3.45 | F21: =Price_path_AA5!I131 -> 3.53 | G21: =Price_path_AA5!J131 -> 3.61
A22: Reference tariff B2
A23: Standing charge | B23: $/Year | C23: =Price_path_AA5!F133 -> 250.59 | D23: =Price_path_AA5!G133 -> 256.35 | E23: =Price_path_AA5!H133 -> 262.25 | F23: =Price_path_AA5!I133 -> 268.28 | G23: =Price_path_AA5!J133 -> 274.45
A24: First 100 GJ | B24: $/GJ | C24: =Price_path_AA5!F134 -> 6.35 | D24: =Price_path_AA5!G134 -> 6.5 | E24: =Price_path_AA5!H134 -> 6.65 | F24: =Price_path_AA5!I134 -> 6.8 | G24: =Price_path_AA5!J134 -> 6.96
A25: Volume > 100 GJ | B25: $/GJ | C25: =Price_path_AA5!F135 -> 3.81 | D25: =Price_path_AA5!G135 -> 3.9 | E25: =Price_path_AA5!H135 -> 3.99 | F25: =Price_path_AA5!I135 -> 4.08 | G25: =Price_path_AA5!J135 -> 4.17
A26: Reference tariff B3
A27: Standing charge | B27: $/Year | C27: =Price_path_AA5!F137 -> 116.84 | D27: =Price_path_AA5!G137 -> 116.84 | E27: =Price_path_AA5!H137 -> 116.84 | F27: =Price_path_AA5!I137 -> 116.84 | G27: =Price_path_AA5!J137 -> 116.84
A28: First 1.825 GJ | B28: $/GJ | C28: =Price_path_AA5!F138 -> 0 | D28: =Price_path_AA5!G138 -> 0 | E28: =Price_path_AA5!H138 -> 0 | F28: =Price_path_AA5!I138 -> 0 | G28: =Price_path_AA5!J138 -> 0
A29: Volume > 1.825 <9.855 GJ | B29: $/GJ | C29: =Price_path_AA5!F139 -> 7.16 | D29: =Price_path_AA5!G139 -> 7.32 | E29: =Price_path_AA5!H139 -> 7.49 | F29: =Price_path_AA5!I139 -> 7.66 | G29: =Price_path_AA5!J139 -> 7.84
A30: Volume > 9.855 GJ | B30: $/GJ | C30: =Price_path_AA5!F140 -> 5.11 | D30: =Price_path_AA5!G140 -> 5.23 | E30: =Price_path_AA5!H140 -> 5.35 | F30: =Price_path_AA5!I140 -> 5.47 | G30: =Price_path_AA5!J140 -> 5.6
A32: Inflator | C32: =Input!AI35 -> 1.012774451 | D32: =Input!AJ35 -> 1.025712089 | E32: =Input!AK35 -> 1.038814998 | F32: =Input!AL35 -> 1.052085289 | G32: =Input!AM35 -> 1.065525101
A34: Charging parameter ($ Nominal as at year end) | B34: Units | C34: 2020 | D34: 2021 | E34: 2022 | F34: 2023 | G34: 2024
A35: Reference tariff A1
A36: Standing charge | B36: $/year | C36: =C7*C$32 -> 36348.22186 | D36: 37659.23474 | E36: 39017.53812 | F36: 40424.83067 | G36: 41882.88284
A37: Demand charge
A38: First 10 km | B38: $/GJ km | C38: =C9*C$32 -> 153.2023912 | D38: 158.7289457 | E38: 164.4548023 | F38: 170.3852126 | G38: 176.5255435
A39: Distance > 10 km | B39: $/GJ km | C39: =C10*C$32 -> 80.6371018 | D39: 83.54424963 | E39: 86.55406561 | F39: 89.67975004 | G39: 92.91378882
A40: Usage charge
A41: First 10 km | B41: $/GJ km | C41: =C12*C$32 -> 0.03240878244 | D41: 0.03358181379 | E41: 0.03478991427 | F41: 0.036044442 | G41: 0.0373466548
A42: Distance > 10 km | B42: $/GJ km | C42: =C13*C$32 -> 0.0163360519 | D42: 0.01692424947 | E42: 0.01753519716 | F42: 0.01816951294 | G42: 0.01882782854
A43: Reference tariff A2
A44: Standing charge | B44: $/Year | C44: =C15*C$32 -> 20111.7662 | D44: 20837.16671 | E44: 21588.726 | F44: 22367.39637 | G44: 23174.14805
A45: First 10 TJ | B45: $/GJ | C45: =C16*C$32 -> 1.944526946 | D45: 2.010395694 | E45: 2.088018145 | F45: 2.167295696 | G45: 2.248257963
A46: Volume > 10 TJ | B46: $/GJ | C46: =C17*C$32 -> 1.043157685 | D46: 1.076997693 | E46: 1.111532048 | F46: 1.146772965 | G46: 1.193388113
A47: Reference tariff B1
A48: Standing charge | B48: $/Year | C48: =C19*C$32 -> 1016.734399 | D48: 1053.406315 | E48: 1091.399813 | F48: 1130.760227 | G48: 1171.544849
A49: First 5 TJ | B49: $/GJ | C49: =C20*C$32 -> 3.868798403 | D49: 4.010534267 | E49: 4.155259991 | F49: 4.303028832 | G49: 4.453894923
A50: Volume > 5 TJ | B50: $/GJ | C50: =C21*C$32 -> 3.332027944 | D50: 3.456649739 | E50: 3.583911742 | F50: 3.713861071 | G50: 3.846545615
A51: Reference tariff B2
A52: Standing charge | B52: $/Year | C52: =C23*C$32 -> 253.7911497 | D52: 262.941294 | E52: 272.4292332 | F52: 282.2534414 | G52: 292.433364
A53: First 100 GJ | B53: $/GJ | C53: =C24*C$32 -> 6.431117764 | D53: 6.667128577 | E53: 6.908119735 | F53: 7.154179966 | G53: 7.416054704
A54: Volume > 100 GJ | B54: $/GJ | C54: =C25*C$32 -> 3.858670659 | D54: 4.000277146 | E54: 4.144871841 | F54: 4.29250798 | G54: 4.443239672
A55: Reference tariff B3
A56: Standing charge | B56: $/Year | C56: =C27*C$32 -> 118.3325669 | D56: 119.8442005 | E56: 121.3751443 | F56: 122.9256452 | G56: 124.4959528
A57: First 1.825 GJ | B57: $/GJ | C57: =C28*C$32 -> 0 | D57: 0 | E57: 0 | F57: 0 | G57: 0
A58: Volume > 1.825 <9.855 GJ | B58: $/GJ | C58: =C29*C$32 -> 7.25146507 | D58: 7.50821249 | E58: 7.780724333 | F58: 8.058973315 | G58: 8.353716793
A59: Volume > 9.855 GJ | B59: $/GJ | C59: =C30*C$32 -> 5.175277445 | D59: 5.364474224 | E59: 5.557660238 | F59: 5.754906531 | G59: 5.966940567

Sheet Main
A2: Main Summary
A3: Ref | C3: =COLUMN() -> 3 | D3: =COLUMN() -> 4 | E3: =COLUMN() -> 5 | F3: =COLUMN() -> 6 | G3: =COLUMN() -> 7 | H3: =COLUMN() -> 8
A4: WACC
A5: =ROW() -> 5 | E5: ="Real at "&Input!$G$34 -> Real at 31/12/2019 | F5: Nominal
A6: =ROW() -> 6 | D6: Post-tax WACC | E6: =WACC!$AI$36 -> 0.03546549665 | F6: =WACC!$AI$35 -> 0.048693
A7: =ROW() -> 7
A8: Closing Regulated Asset Base
A9: =ROW() -> 9 | E9: 30/6/2014 | F9: December 2019
A10: =ROW() -> 10 | D10: Closing Asset Value [Real $m 31/12/2019] | E10: =Asset!$Z$25 -> 1102.57939 | F10: =Asset!$AH$25 -> 1333.87084
A11: =ROW() -> 11
A12: Revenue Building Block
A13: =ROW() -> 13 | E13: ="Real at "&Input!$G$34&" [m$]" -> Real at 31/12/2019 [m$] | F13: Nominal [m$] | G13: Real % | H13: Nominal %
A14: =ROW() -> 14 | C14: PV of Cost of Service
A15: =ROW() -> 15 | D15: Operating Expenditure | E15: =CoS!$F65 -> 310.6858044 | F15: =CoS!$F38 -> 310.6858044 | G15: =E15/E$22 -> 0.3855092826 | H15: 0.3855092826
A16: =ROW() -> 16 | D16: Return on Asset | E16: =CoS!$F68 -> 224.4920354 | F16: =CoS!$F42 -> 304.3327476 | G16: 0.2785571864 | H16: 0.3776261984
A17: =ROW() -> 17 | D17: Depreciation | E17: =CoS!$F66 -> 257.3316177 | F17: =CoS!$F39 -> 257.3316177 | G17: 0.3193056327 | H17: 0.3193056327
A18: =ROW() -> 18 | D18: Inflationary Gain | F18: =CoS!$F40 -> -79.84071225 | H18: =F18/F$22 -> -0.09906901208
A19: =ROW() -> 19 | D19: Tax | E19: =CoS!$F70 -> 16.97478121 | F19: =CoS!$F44 -> 16.97478121 | G19: =E19/E$22 -> 0.02106287328 | H19: =F19/F$22 -> 0.02106287328
A20: =ROW() -> 20 | D20: Imputation Credits | E20: =CoS!$F71 -> -8.487390604 | F20: =CoS!$F45 -> -8.487390604 | G20: =E20/E$22 -> -0.01053143664 | H20: =F20/F$22 -> -0.01053143664
A21: =ROW() -> 21 | D21: Return on Working Capital | E21: =CoS!$F69 -> 4.91319971 | F21: =CoS!$F43 -> 4.91319971 | G21: =E21/E$22 -> 0.006096461663 | H21: =F21/F$22 -> 0.006096461663
A22: =ROW() -> 22 | D22: Cost of Service (Total Revenue Required) | E22: =SUM(E15:E21) -> 805.9100477 | F22: =SUM(F15:F21) -> 805.9100477 | G22: =E22/E$22 -> 1 | H22: =F22/F$22 -> 1
A23: =ROW() -> 23
A24: =ROW() -> 24
A25: =ROW() -> 25
A26: PV of Forecast Revenue
A27: =ROW() -> 27 | E27: ="Real at "&Input!$G$34&" [m$]" -> Real at 31/12/2019 [m$] | F27: Nominal [m$] | G27: % of Total Forecast Revenue
A28: =ROW() -> 28 | D28: A1 | E28: =Revenue!$F$140 -> 33.81544523 | F28: =Revenue!$F$231 -> 33.81544523 | G28: =E28/$E$36 -> 0.04195931363
A29: =ROW() -> 29 | D29: A2 | E29: =Revenue!$F$141 -> 21.83949736 | F29: =Revenue!$F$232 -> 21.83949736 | G29: 0.02709916468
A30: =ROW() -> 30 | D30: B1 | E30: =Revenue!$F$142 -> 47.65545113 | F30: =Revenue!$F$233 -> 47.65545113 | G30: 0.05913244691
A31: =ROW() -> 31 | D31: B2 | E31: =Revenue!$F$143 -> 46.74362808 | F31: =Revenue!$F$234 -> 46.74362808 | G31: 0.05800102695
A32: =ROW() -> 32 | D32: B3 | E32: =Revenue!$F$144 -> 640.0039731 | F32: =Revenue!$F$235 -> 640.0039731 | G32: 0.7941379227
A33: =ROW() -> 33 | D33: Total Tariff Revenue | E33: =SUM(E28:E32) -> 790.0579949 | F33: =SUM(F28:F32) -> 790.0579949 | G33: 0.9803298748
A34: =ROW() -> 34 | D34: Revenue from Prudent Discounts | E34: =Revenue!F$146 -> 1.054079191 | F34: =Revenue!F$237 -> 1.054079191 | G34: 0.001307936035
A35: =ROW() -> 35 | D35: Revenue from Ancillary Services | E35: =Revenue!$F$147 -> 14.79827831 | F35: =Revenue!$F$238 -> 14.79827831 | G35: 0.01836218912
A36: =ROW() -> 36 | D36: Total Forecast Revenue | E36: =SUM(E33:E35) -> 805.9103524 | F36: =SUM(F33:F35) -> 805.9103524 | G36: 1
A37: =ROW() -> 37
A38: =ROW() -> 38 | D38: Check: PV CoS = PV Total Forecast Revenue | E38: =IF(ROUND(E22-E36,3)=0,"OK","Wrong") -> OK | F38: =IF(ROUND(F22-F36,3)=0,"OK","Wrong") -> OK

Sheet Input >>

Sheet Input
A2: Inputs
C3: =COLUMN() -> 3 | D3: =COLUMN() -> 4 | E3: =COLUMN() -> 5 | F3: =COLUMN() -> 6 | G3: =COLUMN() -> 7 | H3: =COLUMN() -> 8 | I3: =COLUMN() -> 9 | J3: =COLUMN() -> 10 | K3: =COLUMN() -> 11 | L3: =COLUMN() -> 12 | M3: =COLUMN() -> 13 | N3: =COLUMN() -> 14 | O3: =COLUMN() -> 15 | P3: =COLUMN() -> 16 | Q3: =COLUMN() -> 17 | R3: =COLUMN() -> 18 | S3: =COLUMN() -> 19 | T3: =COLUMN() -> 20 | U3: =COLUMN() -> 21 | V3: =COLUMN() -> 22 | W3: =COLUMN() -> 23 | X3: =COLUMN() -> 24 | Y3: =COLUMN() -> 25 | Z3: =COLUMN() -> 26 | AA3: =COLUMN() -> 27 | AD3: =COLUMN() -> 30 | AE3: =COLUMN() -> 31 | AF3: =COLUMN() -> 32 | AG3: =COLUMN() -> 33 | AH3: =COLUMN() -> 34 | AI3: =COLUMN() -> 35 | AJ3: =COLUMN() -> 36 | AK3: =COLUMN() -> 37 | AL3: =COLUMN() -> 38 | AM3: =COLUMN() -> 39
A4: =ROW() -> 4 | J4: Year ending 31 December | O4: Year ending 31 December | T4: Year Ending 30 June | AA4: Year Ending 31 December
A5: Regulatory Period | J5: 1 | K5: 1 | L5: 1 | M5: 1 | N5: 1 | O5: 2 | P5: 2 | Q5: 2 | R5: 2 | S5: 2 | T5: 3 | U5: 3 | V5: 3 | W5: 3 | X5: 3 | Y5: 3 | Z5: 3 | AA5: 4 | AB5: 4 | AC5: 4 | AD5: 4 | AE5: 4 | AF5: 4 | AG5: 4 | AH5: 4 | AI5: 5 | AJ5: 5 | AK5: 5 | AL5: 5 | AM5: 5
A6: Year ending | I6: 1999 | J6: 2000 | K6: 2001 | L6: 2002 | M6: 2003 | N6: 2004 | O6: 2005 | P6: 2006 | Q6: 2007 | R6: 2008 | S6: =1+R6 -> 2009 | T6: =1+S6 -> 2010 | U6: 2010 | V6: 2011 | W6: =T6+1 -> 2011 | X6: =W6+1 -> 2012 | Y6: =X6+1 -> 2013 | Z6: =Y6+1 -> 2014 | AA6: 2014 | AB6: 2015 | AC6: 2015 | AD6: =AA6+1 -> 2015 | AE6: =AD6+1 -> 2016 | AF6: 2017 | AG6: 2018 | AH6: 2019 | AI6: 2020 | AJ6: 2021 | AK6: 2022 | AL6: 2023 | AM6: 2024
A7: Months | I7: 1 to 12 | J7: 1 to 12 | K7: 1 to 12 | L7: 1 to 12 | M7: 1 to 12 | N7: 1 to 12 | O7: 1 to 12 | P7: 1 to 12 | Q7: 1 to 12 | R7: 1 to 12 | S7: 1 to 12 | T7: 1 to 6 | U7: 7 to 12 | V7: 1 to 6 | W7: 7 to 6 | X7: 7 to 6 | Y7: 7 to 6 | Z7: 7 to 6 | AA7: 7 to 12 | AB7: 1 to 9 | AC7: 10 to 12 | AD7: 1 to 12 | AE7: 1 to 12 | AF7: 1 to 12 | AG7: 1 to 12 | AH7: 1 to 12 | AI7: 1 to 12 | AJ7: 1 to 12 | AK7: 1 to 12 | AL7: 1 to 12 | AM7: 1 to 12
A8: Days | I8: 365 | J8: 366 | K8: 365 | L8: 365 | M8: 365 | N8: 366 | O8: 365 | P8: 365 | Q8: 365 | R8: 366 | S8: 365 | T8: 181 | U8: 184 | V8: 181 | W8: 365 | X8: 366 | Y8: 365 | Z8: 365 | AA8: =DATEVALUE("31/12/2014")-DATEVALUE("30/6/2014") -> 184 | AB8: =DATEVALUE("30/9/2015")-DATEVALUE("31/12/2014") -> 273 | AC8: =DATEVALUE("31/12/2015")-DATEVALUE("30/9/2015") -> 92 | AD8: 365 | AE8: 366 | AF8: 365 | AG8: 365 | AH8: 365 | AI8: 366 | AJ8: 365 | AK8: 365 | AL8: 365 | AM8: 365
A9: Year portion | I9: 1 | J9: =I9 -> 1 | K9: 1 | L9: 1 | M9: 1 | N9: 1 | O9: 1 | P9: 1 | Q9: 1 | R9: 1 | S9: 1 | T9: =T8/365 -> 0.495890411 | U9: 0.5 | V9: 0.5 | W9: 1 | X9: =W9 -> 1 | Y9: =X9 -> 1 | Z9: =Y9 -> 1 | AA9: =AA8/365 -> 0.504109589 | AB9: =AB8/365 -> 0.7479452055 | AC9: =1-AB9 -> 0.2520547945 | AD9: 1 | AE9: =AD9 -> 1 | AF9: 1 | AG9: 1 | AH9: 1 | AI9: 1 | AJ9: 1 | AK9: 1 | AL9: 1 | AM9: 1
A10: 8 Cities Inflation
A11: =ROW() -> 11 | I11: Actual | J11: Actual | K11: Actual | L11: Actual | M11: Actual | N11: Actual | O11: Actual | P11: Actual | Q11: Actual | R11: Actual | S11: Actual | T11: Actual | V11: Actual | W11: Actual | X11: Actual | Y11: Actual | Z11: Actual | AA11: Actual | AD11: Actual | AE11: Actual | AF11: Actual | AG11: Actual | AH11: Forecast | AI11: Forecast | AJ11: Forecast | AK11: Forecast | AL11: Forecast | AM11: Forecast
A12: =ROW() -> 12 | C12: Actual June and Forecast Inflation | I12: 1999-06-30 | J12: 2000-06-30 | K12: 2001-06-30 | L12: 2002-06-30 | M12: 2003-06-30 | N12: 2004-06-30 | O12: 2005-06-30 | P12: 2006-06-30 | Q12: 2007-06-30 | R12: 2008-06-30 | S12: 2009-06-30 | T12: 2010-06-30 | V12: 2011-06-30 | W12: 2011-06-30 | X12: 2012-06-30 | Y12: 2013-06-30 | Z12: 2014-06-30 | AA12: =Z12 -> 2014-06-30
A13: =ROW() -> 13 | D13: June CPI All Groups, 8 Capital Cities - (Pre-2012 index) | I13: =J13/(1+J14) -> 122.3 | J13: 126.2 | K13: 133.8 | L13: 137.6 | M13: 141.3 | N13: 144.8 | O13: 148.4 | P13: 154.3 | Q13: 157.5 | R13: 164.6 | S13: 167 | T13: 172.1 | V13: 178.3 | W13: 178.3 | X13: 180.4
A14: =ROW() -> 14 | D14: June inflation All Groups, 8 Capital Cities - (Pre-2012 index) | J14: 0.03188879804 | K14: 0.06022187005 | L14: 0.02840059791 | M14: 0.02688953488 | N14: 0.02476999292 | O14: 0.02486187845 | P14: 0.0397574124 | Q14: 0.02073882048 | R14: 0.04507936508 | S14: 0.01458080194 | T14: =T13/S13-1 -> 0.03053892216 | V14: =V13/T13-1 -> 0.03602556653 | W14: =W13/T13-1 -> 0.03602556653 | X14: =X13/W13-1 -> 0.01177790241
A15: =ROW() -> 15 | D15: June CPI All Groups, 8 Capital Cities - published Mar-2014 | I15: =J15/(1+J14) -> 68.03058637 | J15: 70.2 | K15: 74.5 | L15: 76.6 | M15: 78.6 | N15: 80.6 | O15: 82.6 | P15: 85.9 | Q15: 87.7 | R15: 91.6 | S15: 92.9 | T15: 95.8 | V15: 99.2 | W15: 99.2 | X15: 100.4 | Y15: 102.8 | Z15: 105.9
A16: =ROW() -> 16 | D16: June inflation All Groups, 8 Capital Cities - (Sep-2012 base index) | J16: =J15/I15-1 -> 0.03188879804 | K16: 0.06125356125 | L16: 0.02818791946 | M16: 0.02610966057 | N16: 0.02544529262 | O16: 0.02481389578 | P16: 0.03995157385 | Q16: 0.02095459837 | R16: 0.04446978335 | S16: 0.01419213974 | T16: 0.03121636168 | V16: =V15/T15-1 -> 0.03549060543 | W16: =W15/T15-1 -> 0.03549060543 | X16: 0.01209677419 | Y16: 0.02390438247 | Z16: 0.03015564202
A17: =ROW() -> 17
A18: =ROW() -> 18 | I18: Actual | J18: Actual | K18: Actual | L18: Actual | M18: Actual | N18: Actual | O18: Actual | P18: Actual | Q18: Actual | R18: Actual | S18: Actual | T18: Actual | U18: Actual | V18: Actual | W18: Actual | X18: Actual | Y18: Actual | Z18: Actual | AA18: Actual | AB18: Actual | AC18: Actual | AD18: Actual | AE18: Actual | AF18: Actual | AG18: Actual | AH18: Forecast | AI18: Forecast | AJ18: Forecast | AK18: Forecast | AL18: Forecast | AM18: Forecast
A19: =ROW() -> 19 | C19: Actual December and Forecast Inflation | I19: 1999-12-31 | J19: 2000-12-31 | K19: 2001-12-31 | L19: 2002-12-31 | M19: 2003-12-31 | N19: 2004-12-31 | O19: 2005-12-31 | P19: 2006-12-31 | Q19: 2007-12-31 | R19: 2008-12-31 | S19: 2009-12-31 | U19: 2010-12-31 | W19: 2011-12-31 | X19: 2012-12-31 | Y19: 2013-12-31 | Z19: 2014-12-31 | AA19: =Z19 -> 2014-12-31 | AB19: 2015-12-31 | AC19: 2015-12-31 | AD19: 2015-12-31 | AE19: 2016-12-31 | AF19: 2017-12-31 | AG19: 2018-12-31 | AH19: 2019-12-03 | AI19: 2020-12-31 | AJ19: 2021-12-31 | AK19: 2022-12-31 | AL19: 2023-12-31 | AM19: 2024-12-03
A20: =ROW() -> 20 | D20: December CPI All Groups, 8 Capital Cities - (Pre-2012 index) | I20: 124.1 | J20: 131.3 | K20: 135.4 | L20: 139.5 | M20: 142.8 | N20: 146.5 | O20: 150.6 | P20: 155.5 | Q20: 160.1 | R20: 166 | S20: 169.5 | U20: 174 | W20: 179.4
A21: =ROW() -> 21 | D21: December inflation All Groups, 8 Capital Cities - (Pre-2012 index) | J21: 0.05801772764 | K21: 0.03122619954 | L21: 0.03028064993 | M21: 0.02365591398 | N21: 0.02591036415 | O21: 0.02798634812 | P21: 0.03253652058 | Q21: 0.02958199357 | R21: 0.03685196752 | S21: 0.02108433735 | U21: =U20/T13-1 -> 0.01104009297 | W21: =W20/U20-1 -> 0.03103448276
A22: =ROW() -> 22 | D22: December CPI All Groups, 8 Capital Cities - published Mar-2014 | I22: 69.1 | J22: 73.1 | K22: 75.4 | L22: 77.6 | M22: 79.5 | N22: 81.5 | O22: 83.8 | P22: 86.6 | Q22: 89.1 | R22: 92.4 | S22: 94.3 | U22: 96.9 | W22: 99.8 | X22: 102 | Y22: 104.8 | Z22: 106.6 | AA22: 106.6 | AB22: =$AD22 -> 108.4 | AC22: 108.4 | AD22: 108.4 | AE22: 110 | AF22: 112.1 | AG22: 114.1 | AH22: =AG22*(1+AH23) -> 116.1356824 | AI22: 117.619252 | AJ22: 119.1217734 | AK22: 120.6434887 | AL22: 122.184643 | AM22: 123.7454848
A23: =ROW() -> 23 | D23: December inflation All Groups , 8 Capital Cities - (Sep-2012 base index) | J23: =J22/I22-1 -> 0.05788712012 | K23: 0.03146374829 | L23: 0.02917771883 | M23: 0.02448453608 | N23: 0.0251572327 | O23: 0.0282208589 | P23: 0.03341288783 | Q23: 0.02886836028 | R23: 0.03703703704 | S23: 0.02056277056 | U23: =U22/T15-1 -> 0.0114822547 | W23: =W22/U22-1 -> 0.02992776058 | X23: 0.02204408818 | Y23: 0.02745098039 | Z23: =(Z22/Y22-1) -> 0.01717557252 | AA23: =Z23 -> 0.01717557252 | AB23: 0.01688555347 | AC23: 0.01688555347 | AD23: =AD22/AA22-1 -> 0.01688555347 | AE23: =AE22/AD22-1 -> 0.0147601476 | AF23: 0.01909090909 | AG23: =AG22/AF22-1 -> 0.0178412132 | AH23: 0.0178412132 | AI23: 0.0127744511 | AJ23: 0.0127744511 | AK23: 0.0127744511 | AL23: 0.0127744511 | AM23: 0.0127744511
C25: WAGN Inflation from 2005 to 2009 OD to 31/12/09 | O25: 1.159945318 | P25: 1.10770235 | Q25: 1.074050633 | R25: 1.027861902 | S25: 1.013739546
C26: Using Perth Inflation and (Estim Dec)/(Actual Jun) Adjustment
A27: =ROW() -> 27
A28: =ROW() -> 28 | C28: Modelled Inflation
A29: =ROW() -> 29 | D29: Selected CPI period | F29: Base period: | G29: 2019-12-31 | I29: =I19 -> 1999-12-31 | J29: 2000-12-31 | K29: 2001-12-31 | L29: 2002-12-31 | M29: 2003-12-31 | N29: 2004-12-31 | O29: 2005-12-31 | P29: 2006-12-31 | Q29: 2007-12-31 | R29: 2008-12-31 | S29: 2009-12-31 | T29: =T12 -> 2010-06-30 | U29: 2010-12-31 | V29: =V12 -> 2011-06-30 | W29: =W12 -> 2011-06-30 | X29: =X12 -> 2012-06-30 | Y29: =Y12 -> 2013-06-30 | Z29: =Z12 -> 2014-06-30 | AA29: =AA19 -> 2014-12-31 | AB29: =AD29 -> 2015-12-31 | AC29: 2016-12-31 | AD29: =AD19 -> 2015-12-31 | AE29: =AE19 -> 2016-12-31 | AF29: =AF19 -> 2017-12-31 | AG29: =AG19 -> 2018-12-31 | AH29: 2019-12-31 | AI29: =AI19 -> 2020-12-31 | AJ29: 2021-12-31 | AK29: 2022-12-31 | AL29: 2023-12-31 | AM29: 2024-12-03
A30: =ROW() -> 30 | D30: CPI | I30: =J30/(J31+1) -> 69.06674058 | J30: 73.07383592 | K30: 75.3556541 | L30: 77.63747228 | M30: 79.47405765 | N30: 81.53325942 | O30: 83.81507761 | P30: 86.5421286 | Q30: 89.10221729 | R30: 92.38580931 | S30: 94.33370288 | T30: =W30/(W31+1) -> 95.78070953 | U30: =T30*(U31+1) -> 96.83813747 | V30: =X30/(X31+1) -> 99.23126386 | W30: 99.23126386 | X30: =X15 -> 100.4 | Y30: =Y15 -> 102.8 | Z30: =Z15 -> 105.9 | AA30: =AA22 -> 106.6 | AB30: =AD30 -> 108.4 | AC30: =AD30 -> 108.4 | AD30: =AD22 -> 108.4 | AE30: =AE22 -> 110 | AF30: =AF22 -> 112.1 | AG30: =AG22 -> 114.1 | AH30: =AH22 -> 116.1356824 | AI30: =AI22 -> 117.619252 | AJ30: 119.1217734 | AK30: 120.6434887 | AL30: 122.184643 | AM30: 123.7454848
A31: =ROW() -> 31 | D31: Inflation | J31: =J$21 -> 0.05801772764 | K31: 0.03122619954 | L31: 0.03028064993 | M31: 0.02365591398 | N31: 0.02591036415 | O31: 0.02798634812 | P31: 0.03253652058 | Q31: 0.02958199357 | R31: 0.03685196752 | S31: 0.02108433735 | T31: =(T$13/S$20-1) -> 0.01533923304 | U31: =U21 -> 0.01104009297 | V31: =V$14 -> 0.03602556653 | W31: =W$14 -> 0.03602556653 | X31: =X$14 -> 0.01177790241 | Y31: =Y30/X30-1 -> 0.02390438247 | Z31: =Z30/Y30-1 -> 0.03015564202 | AA31: =AA30/Z30-1 -> 0.006610009443 | AB31: =AD31 -> 0.01688555347 | AC31: =AD31 -> 0.01688555347 | AD31: =AD30/AA30-1 -> 0.01688555347 | AE31: =AE30/AD30-1 -> 0.0147601476 | AF31: =AF30/AE30-1 -> 0.01909090909 | AG31: =AG30/AF30-1 -> 0.0178412132 | AH31: =AH30/AG30-1 -> 0.0178412132 | AI31: =AI30/AH30-1 -> 0.0127744511 | AJ31: 0.0127744511 | AK31: 0.0127744511 | AL31: 0.0127744511 | AM31: 0.0127744511
A32: Financial Parameters
A33: =ROW() -> 33 | C33: Inflation factor | J33: Actual 1 | O33: Actual 2 | T33: Actual 3 | AA33: Forecast
A34: =ROW() -> 34 | D34: ="Inflation Factor (convert to real "&$G$34&" $)" -> Inflation Factor (convert to real 31/12/2019 $) | F34: Real $ at | G34: =TEXT($G$29,"dd/mm/yyyy") -> 31/12/2019 | I34: =HLOOKUP($G$29,$I$29:$AH$30,2,FALSE)/I$30 -> 1.681499394 | J34: 1.589292268 | K34: 1.541167465 | L34: 1.495871504 | M34: 1.461303045 | N34: 1.424396415 | O34: 1.385618027 | P34: 1.341955465 | Q34: 1.303398344 | R34: 1.25707274 | S34: 1.231115486 | T34: 1.212516414 | U34: =HLOOKUP($G$29,$I$29:$AH$30,2,FALSE)/U$30 -> 1.199276292 | V34: 1.170353757 | W34: =HLOOKUP($G$29,$I$29:$AH$30,2,FALSE)/W$30 -> 1.170353757 | X34: =HLOOKUP($G$29,$I$29:$AH$30,2,FALSE)/X$30 -> 1.156729905 | Y34: =HLOOKUP($G$29,$I$29:$AH$30,2,FALSE)/Y$30 -> 1.129724537 | Z34: =HLOOKUP($G$29,$I$29:$AH$30,2,FALSE)/Z$30 -> 1.096654225 | AA34: =HLOOKUP($G$29,$I$29:$AH$30,2,FALSE)/AA$30 -> 1.089452931 | AB34: =HLOOKUP($G$29,$I$29:$AH$30,2,FALSE)/AB$30 -> 1.071362384 | AC34: 1.071362384 | AD34: =HLOOKUP($G$29,$I$29:$AH$30,2,FALSE)/AD$30 -> 1.071362384 | AE34: 1.055778931 | AF34: 1.036000735 | AG34: 1.017841213 | AH34: 1 | AI34: 0.9873866772 | AJ34: 0.9749324503 | AK34: 0.9626353125 | AL34: 0.9504932826 | AM34: 0.938504404
A35: =ROW() -> 35 | D35: ="Inflation Factor (convert " &$G$34& " $ to nominal $)" -> Inflation Factor (convert 31/12/2019 $ to nominal $) | I35: =1/I34 -> 0.5947073211 | J35: 0.6292108884 | K35: 0.6488587532 | L35: 0.668506618 | M35: 0.684320753 | N35: 0.7020517529 | O35: 0.7216996177 | P35: 0.7451812121 | Q35: 0.767225158 | R35: 0.7954989146 | S35: 0.812271482 | T35: =1/T34 -> 0.8247311036 | U35: =1/U34 -> 0.8338362117 | V35: 0.8544425088 | W35: =1/W34 -> 0.8544425088 | X35: 0.8645060493 | Y35: 0.8851715326 | Z35: 0.9118644484 | AA35: 0.9178918811 | AB35: =1/AB34 -> 0.9333909935 | AC35: 0.9333909935 | AD35: 0.9333909935 | AE35: 0.9471679823 | AF35: 0.9652502802 | AG35: 0.9824715162 | AH35: 1 | AI35: =1/AI34 -> 1.012774451 | AJ35: 1.025712089 | AK35: 1.038814998 | AL35: 1.052085289 | AM35: 1.065525101
A36: =ROW() -> 36 | J36: Approved 1 | O36: Approved 2 | T36: Actual 3 | AA36: Forecast
A37: =ROW() -> 37 | C37: Real Post Tax WACC
A38: =ROW() -> 38 | D38: WACC | T38: =(1+W41)^(T$8/365)-1 -> 0 | W38: =WACC!$S$36 -> 0 | X38: =W38 -> 0 | Y38: =X38 -> 0 | Z38: =Y38 -> 0 | AA38: =(1+WACC!AA$36)^AA$9-1 -> 0.0198101078 | AD38: =WACC!AD$36 -> 0.04010991168 | AE38: =WACC!AE$36 -> 0.04113444553 | AF38: =WACC!AF$36 -> 0.04177625123 | AG38: =WACC!AG$36 -> 0.04071638862 | AH38: =WACC!AH$36 -> 0.03897350343 | AI38: =WACC!AI$36 -> 0.03546549665 | AJ38: =WACC!AJ$36 -> 0.03546549665 | AK38: =WACC!AK$36 -> 0.03546549665 | AL38: =WACC!AL$36 -> 0.03546549665 | AM38: =WACC!AM$36 -> 0.03546549665
A39: =ROW() -> 39 | D39: Discounting Factor | T39: =1/(1+T38) -> 1 | W39: =T39/(1+W38) -> 1 | X39: =W39/(1+X38) -> 1 | Y39: =X39/(1+Y38) -> 1 | Z39: =Y39/(1+Z38) -> 1 | AA39: =1/(1+AA38) -> 0.9805747093 | AD39: =AA39/(1+AD38) -> 0.9427606624 | AE39: =AD39/(1+AE38) -> 0.9055128917 | AF39: =AE39/(1+AF38) -> 0.869200935 | AG39: =AF39/(1+AG38) -> 0.8351948183 | AH39: =AG39/(1+AH38) -> 0.8038653686 | AI39: =1/(1+AI38) -> 0.9657492241 | AJ39: =AI39/(1+AJ38) -> 0.9326715639 | AK39: 0.9007268392 | AL39: 0.8698762461 | AM39: 0.8400823098
A40: =ROW() -> 40 | C40: Nominal Post Tax WACC
A41: =ROW() -> 41 | D41: WACC | T41: =(1+W41)^(T$8/365)-1 -> 0 | W41: =WACC!$S$35 -> 0 | X41: =W41 -> 0 | Y41: =X41 -> 0 | Z41: =Y41 -> 0 | AA41: =(1+WACC!AA$35)^AA$9-1 -> 0.02953234787 | AD41: =WACC!AD$35 -> 0.059872 | AE41: =WACC!AE$35 -> 0.060916 | AF41: =WACC!AF$35 -> 0.06157 | AG41: =WACC!AG$35 -> 0.06049 | AH41: =WACC!AH$35 -> 0.058714 | AI41: =WACC!AI$35 -> 0.048693 | AJ41: =WACC!AJ$35 -> 0.048693 | AK41: =WACC!AK$35 -> 0.048693 | AL41: =WACC!AL$35 -> 0.048693 | AM41: =WACC!AM$35 -> 0.048693
A42: =ROW() -> 42 | D42: Discounting Factor | T42: =1/(1+T41) -> 1 | W42: =T42/(1+W41) -> 1 | X42: =W42/(1+X41) -> 1 | Y42: =X42/(1+Y41) -> 1 | Z42: =Y42/(1+Z41) -> 1 | AA42: =1/(1+AA41) -> 0.9713147936 | AD42: =AA42/(1+AD41) -> 0.9164453761 | AE42: =AD42/(1+AE41) -> 0.8638246346 | AF42: =AE42/(1+AF41) -> 0.8137236684 | AG42: =AF42/(1+AG41) -> 0.7673091386 | AH42: =AG42/(1+AH41) -> 0.7247558251 | AI42: =1/(1+AI41) -> 0.9535679174 | AJ42: =AI42/(1+AJ41) -> 0.9092917731 | AK42: =AJ42/(1+AK41) -> 0.8670714624 | AL42: =AK42/(1+AL41) -> 0.8268115286 | AM42: =AL42/(1+AM41) -> 0.7884209474
A43: =ROW() -> 43
A44: Assets Life
A45: =ROW() -> 45 | J45: 1999-2013/14 | AA45: Jun-2014 onwards | AB45: 2020 onwards
A46: =ROW() -> 46 | C46: Asset Life for new Capex (years) | J46: Economic Life | AA46: Economic Life | AB46: Economic Life | AD46: Tax Asset Life (to Dec 2007) | AE46: Tax Asset Life (from Jan 2008 onwards) | AF46: Tax Asset Life (from Jan 2020 onwards)
A47: =ROW() -> 47 | D47: High Pressure Mains - Steel | J47: 120 | AA47: 80 | AB47: 80 | AD47: 20 | AE47: 20 | AF47: 20
A48: =ROW() -> 48 | D48: High Pressure Mains - PE | J48: 120 | AA48: 60 | AB48: 60 | AD48: 20 | AE48: 20 | AF48: 20
A49: =ROW() -> 49 | D49: Medium Pressure Mains | J49: 60 | AA49: 60 | AB49: 60 | AD49: 20 | AE49: 20 | AF49: 20
A50: =ROW() -> 50 | D50: Medium / Low Pressure Mains | J50: 60 | AA50: 60 | AB50: 60 | AD50: 20 | AE50: 20 | AF50: 20
A51: =ROW() -> 51 | D51: Low Pressure Mains | J51: 60 | AA51: 60 | AB51: 60 | AD51: 20 | AE51: 20 | AF51: 20
A52: =ROW() -> 52 | D52: Regulators | J52: 40 | AA52: 40 | AB52: 40 | AD52: 40 | AE52: 40 | AF52: 20
A53: =ROW() -> 53 | D53: Secondary Gate Stations | J53: 40 | AA53: 40 | AB53: 40 | AD53: 40 | AE53: 40 | AF53: 20
A54: =ROW() -> 54 | D54: Buildings | J54: 40 | AA54: 40 | AB54: 40 | AD54: 40 | AE54: 40 | AF54: 40
A55: =ROW() -> 55 | D55: Meter and Services Pipes | J55: 25 | AA55: 25 | AB55: 25 | AD55: 25 | AE55: 15 | AF55: 15
A56: =ROW() -> 56 | D56: Equipment & Vehicles | J56: 10 | AA56: 10 | AB56: 10 | AD56: 10 | AE56: 10 | AF56: 10
A57: =ROW() -> 57 | D57: Vehicle | J57: 10 | AA57: 10 | AB57: 10 | AD57: 10 | AE57: 10 | AF57: 10
A58: =ROW() -> 58 | D58: Information Technology | J58: 5 | AA58: 5 | AB58: 5 | AD58: 4 | AE58: 4 | AF58: 5
D59: Miscellaneous IT equipment | J59: 5 | AA59: 5 | AB59: 5 | AD59: 4 | AE59: 4 | AF59: 4
D60: Telemetry and monitoring | J60: 10 | AA60: 10 | AB60: 10 | AD60: 10 | AE60: 10 | AF60: 10
A61: =ROW() -> 61 | D61: FRC | J61: 5 | AA61: 5 | AB61: 5 | AD61: 4 | AE61: 4 | AF61: 4
A62: =ROW() -> 62 | D62: Land | J62: 0 | AA62: 0 | AB62: 0 | AD62: 0 | AE62: 0 | AF62: 0
A63: =ROW() -> 63 | D63: Equity Raising Cost | J63: 65.8 | AA63: 65.84239709 | AB63: =SUMPRODUCT(Input!$AB$47:$AB$61,Asset!$AI$58:$AI$72)/SUM(Asset!$AI$58:$AI$72) -> 53.21698119 | AD63: 5 | AE63: 5 | AF63: 5
A64: Initial Capital Base | N64: ICB as at 31/12/2004 | S64: ICB as at 31/12/2009 | AH64: ICB as at 31/12/2019
A65: =ROW() -> 65 | C65: Initial Capital Base | F65: Life 31/12/1998 | I65: Initial Value at 1999 m$ 31/12/99 | M65: ="Initial Value at 1999 m$ 31/12/04" -> Initial Value at 1999 m$ 31/12/04 | N65: WDV in 2004 m$ 31/12/04 | O65: Over depreciation correction | R65: ="Initial Value at 1999 m$ 31/12/09" -> Initial Value at 1999 m$ 31/12/09 | S65: WDV in 2004 m$ 31/12/09 | T65: Over depreciation correction | AG65: ="Initial Value at 1999 m$ "&$G$34 -> Initial Value at 1999 m$ 31/12/2019 | AH65: ="WDV in 2004 m$ "&$G$34 -> WDV in 2004 m$ 31/12/2019 | AI65: Over depreciation correction $m 31/12/2019
A66: =ROW() -> 66 | D66: High Pressure Mains - Steel | F66: 106 | I66: 149.0525001 | M66: =I66*$I$34/$N$34 -> 175.9564163 | N66: 167.7680127 | O66: 0 | R66: =M66*$N$34/$S$34 -> 203.5809732 | S66: 194.1070181 | T66: 0 | AG66: =R66*$S$34/$Z$34 -> 228.5421265 | AH66: =N66*$N$34 -> 238.9681559 | AI66: =O66*$N$34 -> 0
A67: =ROW() -> 67 | D67: High Pressure Mains - PE | F67: 106 | M67: =I67*$I$34/$N$34 -> 0 | R67: =M67*$N$34/$S$34 -> 0 | T67: 0 | AG67: 0 | AH67: 0 | AI67: 0
A68: =ROW() -> 68 | D68: Medium Pressure Mains | F68: 51 | I68: 176.9970506 | M68: 208.944947 | N68: 188.6930491 | O68: 0 | R68: 241.7485905 | S68: 218.3172139 | T68: 0 | AG68: 271.3894924 | AH68: 268.7737027 | AI68: 0
A69: =ROW() -> 69 | D69: Medium / Low Pressure Mains | F69: 41 | I69: 96.15873274 | M69: 113.5153453 | N69: 99.14965429 | O69: 0 | R69: 131.336867 | S69: 114.7158116 | T69: 0 | AG69: 147.4401385 | AH69: 141.2284121 | AI69: 0
A70: =ROW() -> 70 | D70: Low Pressure Mains | F70: 33 | I70: 27.7917523 | M70: 32.80815239 | N70: 27.64155259 | O70: -0.5911241171 | R70: 37.95892035 | S70: 31.98118201 | T70: -0.683928586 | AG70: 42.61308039 | AH70: 39.37252842 | AI70: -0.8419950732
A71: =ROW() -> 71 | D71: Regulators | F71: 28 | I71: 9.716025086 | M71: 11.4697637 | N71: 9.535022566 | O71: 0 | R71: 13.27047745 | S71: 11.03198857 | T71: 0 | AG71: 14.89757658 | AH71: 13.58165196 | AI71: 0
A72: =ROW() -> 72 | D72: Secondary Gate Stations | F72: 25 | I72: 1.972158078 | M72: 2.328131817 | N72: 1.837078987 | O72: -0.04208879663 | R72: 2.693640566 | S72: 2.125494118 | T72: -0.04869659406 | AG72: 3.02390903 | AH72: 2.616728723 | AI72: -0.05995113104
A73: =ROW() -> 73 | D73: Buildings | F73: 24 | I73: 1.739642739 | M73: 2.053647553 | N73: 1.601656344 | O73: 0 | R73: 2.376063209 | S73: 1.853110923 | T73: 0 | AG73: 2.667393373 | AH73: 2.281393554 | AI73: 0
A74: =ROW() -> 74 | D74: Meter and Services Pipes | F74: 11 | I74: 52.79515012 | M74: 62.32465345 | N74: 35.72045608 | O74: 0 | R74: 72.10941132 | S74: 41.32844578 | T74: 0 | AG74: 80.9507782 | AH74: 50.88008959 | AI74: 0
A75: =ROW() -> 75 | D75: Equipment & Vehicles | F75: 11 | I75: 15.06392605 | M75: 17.78295863 | N75: 2.494216868 | O75: -5.384402837 | R75: 20.57482245 | S75: 2.885800404 | T75: -6.229735706 | AG75: 23.09751054 | AH75: 3.552753565 | AI75: -7.669524098
A76: =ROW() -> 76 | D76: Vehicle | F76: 11 | M76: 0 | R76: 0 | S76: 0 | T76: 0 | AG76: 0 | AH76: 0 | AI76: 0
A77: =ROW() -> 77 | D77: Information Technology | F77: 6 | I77: 0 | M77: 0 | N77: 0 | O77: 0 | R77: 0 | S77: 0 | T77: 0 | AG77: 0 | AH77: 0 | AI77: 0
D78: Miscellaneous IT equipment | F78: 0 | I78: - | N78: - | O78: - | S78: 0 | T78: 0 | AG78: 0 | AH78: 0 | AI78: 0
D79: Telemetry and Monitoring | F79: 0 | R79: 0 | S79: 0 | T79: 0 | AG79: 0 | AH79: 0 | AI79: 0
A80: =ROW() -> 80 | D80: FRC | F80: 6 | I80: 0 | M80: 0 | N80: 0 | O80: 0 | R80: 0 | S80: 0 | T80: 0 | AG80: =R80*$S$34/$Z$34 -> 0 | AH80: =N80*$N$34 -> 0 | AI80: 0
A81: =ROW() -> 81 | D81: Land | I81: 4.470241902 | M81: =I81*$I$34/$N$34 -> 5.277118764 | N81: 5.277118764 | O81: 0 | R81: =M81*$N$34/$S$34 -> 6.105608399 | S81: 6.105608399 | T81: 0 | AG81: =R81*$S$34/$Z$34 -> 6.854219751 | AH81: 7.516709049 | AI81: 0
A82: =ROW() -> 82 | D82: Equity Raising Cost | F82: 66.84239709 | M82: 0 | O82: 0 | R82: 0 | T82: 0 | AG82: =R82*$S$34/$Z$34 -> 0 | AH82: 0 | AI82: 0
A83: =ROW() -> 83 | D83: Total | I83: =SUM(I66:I82) -> 535.7571798 | M83: =SUM(M66:M82) -> 632.4611349 | N83: =SUM(N66:N82) -> 539.7178184 | O83: =SUM(O66:O82) -> -6.017615751 | R83: =SUM(R66:R82) -> 731.7553745 | S83: =SUM(S66:S82) -> 624.4516738 | T83: =SUM(T66:T82) -> -6.962360886 | AG83: =SUM(AG66:AG82) -> 821.4762253 | AH83: =SUM(AH66:AH82) -> 768.7721256 | AI83: =SUM(AI66:AI82) -> -8.571470303
A84: =ROW() -> 84
A85: Vines, New Assets
A86: =ROW() -> 86 | C86: CAPEX | P86: Life at 31/12/09 | Q86: Tax Asset Life at 31/12/09 | R86: m$ 31/12/09 | S86: ="m$ "&TEXT($G$34,"d/m/yyyy") -> m$ 31/12/2019
A87: =ROW() -> 87 | D87: High Pressure Mains - Steel | P87: 0 | Q87: 0 | R87: 0 | S87: =R87*$S$34 -> 0
A88: =ROW() -> 88 | D88: High Pressure Mains - PE | P88: 0 | Q88: 0 | R88: 0 | S88: 0
A89: =ROW() -> 89 | D89: Medium Pressure Mains | P89: 0 | Q89: 0 | R89: 0 | S89: 0
A90: =ROW() -> 90 | D90: Medium / Low Pressure Mains | P90: 50.34 | Q90: =$AE50-($J50-P90)-1 -> 9.34 | R90: 0.426991 | S90: 0.5256752323
A91: =ROW() -> 91 | D91: Low Pressure Mains | P91: 0 | Q91: 0 | R91: 0 | S91: 0
A92: =ROW() -> 92 | D92: Regulators | P92: 0 | Q92: 0 | R92: 0 | S92: 0
A93: =ROW() -> 93 | D93: Secondary Gate Stations | P93: 0 | Q93: 0 | R93: 0 | S93: 0
A94: =ROW() -> 94 | D94: Buildings | P94: 0 | Q94: 0 | R94: 0 | S94: =R94*$S$34 -> 0
A95: =ROW() -> 95 | D95: Meter and Services Pipes | P95: 15.34 | Q95: =$AE55-($J55-P95)-1 -> 4.34 | R95: 0.152832 | S95: 0.1881538419
A96: =ROW() -> 96 | D96: Equipment & Vehicles | P96: 0 | Q96: 0 | R96: 0 | S96: 0
A97: =ROW() -> 97 | D97: Vehicle | P97: 0 | Q97: 0 | S97: 0
A98: =ROW() -> 98 | D98: Information Technology | P98: 0 | Q98: 0 | R98: 0 | S98: 0
D99: Miscellaneous IT equipment
D100: Telemetry and Monitoring | P100: 0 | Q100: 0 | R100: 0 | S100: 0
A101: =ROW() -> 101 | D101: FRC | P101: 0 | Q101: 0 | R101: 0 | S101: 0
A102: =ROW() -> 102 | D102: Land | P102: 0 | Q102: 0 | R102: 0 | S102: 0
A103: =ROW() -> 103 | D103: Equity Raising Cost | P103: 0 | Q103: 0 | R103: 0 | S103: =R103*$S$34 -> 0
A104: =ROW() -> 104 | D104: Total | R104: =SUM(R87:R103) -> 0.579823 | S104: =SUM(S87:S103) -> 0.7138290742 | Z104: =SUM(Z87:Z103) -> 0
A105: West Net Energy, New Assets
A106: =ROW() -> 106 | C106: CAPEX | Q106: Life 30/06/10 | R106: Tax Asset Life at 30/6/10 | S106: m$ 30/6/2010 | T106: ="m$ "&TEXT($G$34,"d/m/yyyy") -> m$ 31/12/2019
A107: =ROW() -> 107 | D107: High Pressure Mains - Steel | Q107: 0 | R107: 0 | S107: 0
A108: =ROW() -> 108 | D108: High Pressure Mains - PE | Q108: 0 | R108: 0 | S108: 0
A109: =ROW() -> 109 | D109: Medium Pressure Mains | Q109: 0 | R109: 0 | S109: 0
A110: =ROW() -> 110 | D110: Medium / Low Pressure Mains | Q110: 0 | R110: 0 | S110: 0
A111: =ROW() -> 111 | D111: Low Pressure Mains | Q111: 0 | R111: 0 | S111: 0
A112: =ROW() -> 112 | D112: Regulators | Q112: 0 | R112: 0 | S112: 0
A113: =ROW() -> 113 | D113: Secondary Gate Stations | Q113: 0 | R113: 0 | S113: 0
A114: =ROW() -> 114 | D114: Buildings | Q114: 35.09881279 | R114: =$AE54-($J54-Q114)-0.5 -> 34.59881279 | S114: =0.0130522132542073 -> 0.01305221325 | T114: =S114*$T$34 -> 0.01582602281
A115: =ROW() -> 115 | D115: Meter and Services Pipes | Q115: 0 | R115: 0 | S115: 0
A116: =ROW() -> 116 | D116: Equipment & Vehicles | Q116: 6.536661454 | R116: =$AE56-($J56-Q116)-0.5 -> 6.036661454 | S116: =2.88462274182994 -> 2.884622742 | T116: =S116*$T$34 -> 3.497652422
A117: =ROW() -> 117 | D117: Vehicle | Q117: 0 | R117: 0 | S117: 0
A118: =ROW() -> 118 | D118: Information Technology | Q118: 4.021920327 | R118: =$AE58-($J58-Q118)-0.5 -> 2.521920327 | S118: =0.104081321679867 -> 0.1040813217 | T118: =S118*$T$34 -> 0.1262003109
D119: Miscellaneous IT equipment
D120: Telemetry and Monitoring
A121: =ROW() -> 121 | D121: FRC | Q121: 0 | R121: 0 | S121: 0
A122: =ROW() -> 122 | D122: Land | Q122: 0 | R122: 0 | S122: 0
A123: =ROW() -> 123 | D123: Equity Raising Cost | Q123: 0 | R123: 0 | S123: 0
A124: =ROW() -> 124 | D124: Total | S124: =SUM(S107:S123) -> 3.001756277 | T124: =SUM(T107:T123) -> 3.639678756 | AA124: =SUM(AA107:AA123) -> 0
A125: Redundant Assets (ICB)
A126: =ROW() -> 126 | C126: Redundant Asset | O126: Actual 2 [m$ 30/06/2019] | T126: Actual 2 [m$ 30/06/2019] | AA126: Actual [m$ 2019] | AH126: Forecast [m$ 2019] | AI126: Forecast [m$ 2019]
A127: =ROW() -> 127 | D127: High Pressure Mains - Steel | F127: $M 2019 | O127: 0 | P127: 0 | Q127: 0 | R127: 0 | S127: 0 | T127: 0 | W127: 0 | X127: 0 | Y127: 0 | Z127: 0 | AA127: 0 | AD127: 0 | AE127: 0 | AF127: 0 | AG127: 0 | AH127: 0 | AI127: 0 | AJ127: 0 | AK127: 0 | AL127: 0 | AM127: 0
A128: =ROW() -> 128 | D128: High Pressure Mains - PE | F128: $M 2019 | O128: 0 | P128: 0 | Q128: 0 | R128: 0 | S128: 0 | T128: 0 | W128: 0 | X128: 0 | Y128: 0 | Z128: 0 | AA128: 0 | AD128: 0 | AE128: 0 | AF128: 0 | AG128: 0 | AH128: 0 | AI128: 0 | AJ128: 0 | AK128: 0 | AL128: 0 | AM128: 0
A129: =ROW() -> 129 | D129: Medium Pressure Mains | F129: $M 2019 | O129: 0 | P129: 0 | Q129: 0 | R129: 0 | S129: 0 | T129: 0 | W129: 0 | X129: 0 | Y129: 0 | Z129: 0 | AA129: 0 | AD129: 0 | AE129: 0 | AF129: 0 | AG129: 0 | AH129: 0 | AI129: 0 | AJ129: 0 | AK129: 0 | AL129: 0 | AM129: 0
A130: =ROW() -> 130 | D130: Medium / Low Pressure Mains | F130: $M 2019 | O130: 0 | P130: 0 | Q130: 0 | R130: 0 | S130: 0 | T130: 0 | W130: 0 | X130: 0 | Y130: 0 | Z130: 0 | AA130: 0 | AD130: 0 | AE130: 0 | AF130: 0 | AG130: 0 | AH130: 0 | AI130: 0 | AJ130: 0 | AK130: 0 | AL130: 0 | AM130: 0
A131: =ROW() -> 131 | D131: Low Pressure Mains | F131: $M 2019 | O131: 0 | P131: 0 | Q131: 0 | R131: 0 | S131: 0 | T131: 0 | W131: 0 | X131: 0 | Y131: 0 | Z131: 0 | AA131: 0 | AD131: 0 | AE131: 0 | AF131: 0 | AG131: 0 | AH131: 0 | AI131: 0 | AJ131: 0 | AK131: 0 | AL131: 0 | AM131: 0
A132: =ROW() -> 132 | D132: Regulators | F132: $M 2019 | O132: 0 | P132: 0 | Q132: 0 | R132: 0 | S132: 0 | T132: 0 | W132: 0 | X132: 0 | Y132: 0 | Z132: 0 | AA132: 0 | AD132: 0 | AE132: 0 | AF132: 0 | AG132: 0 | AH132: 0 | AI132: 0 | AJ132: 0 | AK132: 0 | AL132: 0 | AM132: 0
A133: =ROW() -> 133 | D133: Secondary Gate Stations | F133: $M 2019 | O133: 0 | P133: 0 | Q133: 0 | R133: 0 | S133: 0 | T133: 0 | W133: 0 | X133: 0 | Y133: 0 | Z133: 0 | AA133: 0 | AD133: 0 | AE133: 0 | AF133: 0 | AG133: 0 | AH133: 0 | AI133: 0 | AJ133: 0 | AK133: 0 | AL133: 0 | AM133: 0
A134: =ROW() -> 134 | D134: Buildings | F134: $M 2019 | O134: 0 | P134: 0 | Q134: 0 | R134: 0 | S134: 0 | T134: 0 | W134: 0 | X134: 0 | Y134: 0 | Z134: 0 | AA134: 0 | AD134: 0 | AE134: 0 | AF134: 0 | AG134: 0 | AH134: 0 | AI134: 0 | AJ134: 0 | AK134: 0 | AL134: 0 | AM134: 0
A135: =ROW() -> 135 | D135: Meter and Services Pipes | F135: $M 2019 | O135: 0 | P135: 0 | Q135: 0 | R135: 0 | S135: 0 | T135: 0 | W135: 0 | X135: 0 | Y135: 0 | Z135: 0 | AA135: 0 | AD135: 0 | AE135: 0 | AF135: 0 | AG135: 0 | AH135: 0 | AI135: 0 | AJ135: 0 | AK135: 0 | AL135: 0 | AM135: 0
A136: =ROW() -> 136 | D136: Equipment & Vehicles | F136: $M 2019 | O136: 0 | P136: 0 | Q136: 0 | R136: 0 | S136: 0 | T136: 0 | W136: 0 | X136: 0 | Y136: 0 | Z136: 0 | AA136: 0 | AD136: 0 | AE136: 0 | AF136: 0 | AG136: 0 | AH136: 0 | AI136: 0 | AJ136: 0 | AK136: 0 | AL136: 0 | AM136: 0
A137: =ROW() -> 137 | D137: Vehicle | F137: $M 2019 | O137: 0 | P137: 0 | Q137: 0 | R137: 0 | S137: 0 | T137: 0 | W137: 0 | X137: 0 | Y137: 0 | Z137: 0 | AA137: 0 | AD137: 0 | AE137: 0 | AF137: 0 | AG137: 0 | AH137: 0 | AI137: 0 | AJ137: 0 | AK137: 0 | AL137: 0 | AM137: 0
A138: =ROW() -> 138 | D138: Information Technology | F138: $M 2019 | O138: 0 | P138: 0 | Q138: 0 | R138: 0 | S138: 0 | T138: 0 | W138: 0 | X138: 0 | Y138: 0 | Z138: 0 | AA138: 0 | AD138: 0 | AE138: 0 | AF138: 0 | AG138: 0 | AH138: 0 | AI138: 0 | AJ138: 0 | AK138: 0 | AL138: 0 | AM138: 0
D139: Miscellaneous IT equipment | F139: $M 2020
D140: Telemetry and Monitoring | F140: $M 2019 | O140: 0 | P140: 0 | Q140: 0 | R140: 0 | S140: 0 | T140: 0 | W140: 0 | X140: 0 | Y140: 0 | Z140: 0 | AA140: 0 | AD140: 0 | AE140: 0 | AF140: 0 | AG140: 0 | AH140: 0 | AI140: 0 | AJ140: 0 | AK140: 0 | AL140: 0 | AM140: 0
A141: =ROW() -> 141 | D141: FRC | F141: $M 2019 | O141: 0 | P141: 0 | Q141: 0 | R141: 0 | S141: 0 | T141: 0 | W141: 0 | X141: 0 | Y141: 0 | Z141: 0 | AA141: 0 | AD141: 0 | AE141: 0 | AF141: 0 | AG141: 0 | AH141: 0 | AI141: 0 | AJ141: 0 | AK141: 0 | AL141: 0 | AM141: 0
A142: =ROW() -> 142 | D142: Land | F142: $M 2019 | O142: 0 | P142: 0 | Q142: 0 | R142: 0 | S142: 0 | T142: 0 | W142: 0 | X142: 0 | Y142: 0 | Z142: 0 | AA142: 0 | AD142: 0 | AE142: 0 | AF142: 0 | AG142: 0 | AH142: 0 | AI142: 0 | AJ142: 0 | AK142: 0 | AL142: 0 | AM142: 0
A143: =ROW() -> 143 | D143: Equity Raising Cost | F143: $M 2019 | O143: 0 | P143: 0 | Q143: 0 | R143: 0 | S143: 0 | T143: 0 | W143: 0 | X143: 0 | Y143: 0 | Z143: 0 | AA143: 0 | AD143: 0 | AE143: 0 | AF143: 0 | AG143: 0 | AH143: 0 | AI143: 0 | AJ143: 0 | AK143: 0 | AL143: 0 | AM143: 0
A144: =ROW() -> 144 | D144: Total | O144: =SUM(O127:O143) -> 0 | P144: 0 | Q144: 0 | R144: 0 | S144: 0 | T144: 0 | W144: 0 | X144: 0 | Y144: 0 | Z144: 0 | AA144: =SUM(AA127:AA143) -> 0 | AD144: 0 | AE144: 0 | AF144: 0 | AG144: 0 | AH144: 0 | AI144: =SUM(AI127:AI143) -> 0 | AJ144: 0 | AK144: 0 | AL144: 0 | AM144: 0
A145: Asset Disposal (ICB)
A146: =ROW() -> 146
A147: =ROW() -> 147 | C147: Disposal | O147: Post DD3 - WAGN Actual 2 [m$ 31/12/2009] | T147: Actual 3 [m$ 30/06/2014] | AA147: Actual [m$ OD] | AH147: Forecast [m$ OD] | AI147: Forecast [m$ OD]
A148: =ROW() -> 148 | D148: High Pressure Mains - Steel | O148: 0 | P148: 0 | Q148: 0 | R148: 0 | S148: 0 | T148: 0 | W148: 0 | X148: 0 | Y148: 0 | Z148: 0 | AA148: 0 | AD148: 0 | AE148: 0 | AF148: 0 | AG148: 0 | AH148: 0 | AI148: 0 | AJ148: 0 | AK148: 0 | AL148: 0 | AM148: 0
A149: =ROW() -> 149 | D149: High Pressure Mains - PE | O149: 0 | P149: 0 | Q149: 0 | R149: 0 | S149: 0 | T149: 0 | W149: 0 | X149: 0 | Y149: 0 | Z149: 0 | AA149: 0 | AD149: 0 | AE149: 0 | AF149: 0 | AG149: 0 | AH149: 0 | AI149: 0 | AJ149: 0 | AK149: 0 | AL149: 0 | AM149: 0
A150: =ROW() -> 150 | D150: Medium Pressure Mains | O150: 0 | P150: 0 | Q150: 0 | R150: 0 | S150: 0 | T150: 0 | W150: 0 | X150: 0 | Y150: 0 | Z150: 0 | AA150: 0 | AD150: 0 | AE150: 0 | AF150: 0 | AG150: 0 | AH150: 0 | AI150: 0 | AJ150: 0 | AK150: 0 | AL150: 0 | AM150: 0
A151: =ROW() -> 151 | D151: Medium / Low Pressure Mains | O151: 0 | P151: 0 | Q151: 0 | R151: 0 | S151: 0 | T151: 0 | W151: 0 | X151: 0 | Y151: 0 | Z151: 0 | AA151: 0 | AD151: 0 | AE151: 0 | AF151: 0 | AG151: 0 | AH151: 0 | AI151: 0 | AJ151: 0 | AK151: 0 | AL151: 0 | AM151: 0
A152: =ROW() -> 152 | D152: Low Pressure Mains | O152: 0 | P152: 0 | Q152: 0 | R152: 0 | S152: 0 | T152: 0 | W152: 0 | X152: 0 | Y152: 0 | Z152: 0 | AA152: 0 | AD152: 0 | AE152: 0 | AF152: 0 | AG152: 0 | AH152: 0 | AI152: 0 | AJ152: 0 | AK152: 0 | AL152: 0 | AM152: 0
A153: =ROW() -> 153 | D153: Regulators | O153: 0 | P153: 0 | Q153: 0 | R153: 0 | S153: 0 | T153: 0 | W153: 0 | X153: 0 | Y153: 0 | Z153: 0 | AA153: 0 | AD153: 0 | AE153: 0 | AF153: 0 | AG153: 0 | AH153: 0 | AI153: 0 | AJ153: 0 | AK153: 0 | AL153: 0 | AM153: 0
A154: =ROW() -> 154 | D154: Secondary Gate Stations | O154: 0 | P154: 0 | Q154: 0 | R154: 0 | S154: 0 | T154: 0 | W154: 0 | X154: 0 | Y154: 0 | Z154: 0 | AA154: 0 | AD154: 0 | AE154: 0 | AF154: 0 | AG154: 0 | AH154: 0 | AI154: 0 | AJ154: 0 | AK154: 0 | AL154: 0 | AM154: 0
A155: =ROW() -> 155 | D155: Buildings | O155: 0 | P155: 0 | Q155: 0 | R155: 0 | S155: =-1.042 -> -1.042 | T155: 0 | W155: 0 | X155: 0 | Y155: 0 | Z155: 0 | AA155: 0 | AD155: 0 | AE155: 0 | AF155: 0 | AG155: 0 | AH155: 0 | AI155: 0 | AJ155: 0 | AK155: 0 | AL155: 0 | AM155: 0
A156: =ROW() -> 156 | D156: Meter and Services Pipes | O156: 0 | P156: 0 | Q156: 0 | R156: 0 | S156: 0 | T156: 0 | W156: 0 | X156: 0 | Y156: 0 | Z156: 0 | AA156: 0 | AD156: 0 | AE156: 0 | AF156: 0 | AG156: 0 | AH156: 0 | AI156: 0 | AJ156: 0 | AK156: 0 | AL156: 0 | AM156: 0
A157: =ROW() -> 157 | D157: Equipment & Vehicles | O157: 0 | P157: 0 | Q157: 0 | R157: 0 | S157: 0 | T157: 0 | W157: 0 | X157: 0 | Y157: 0 | Z157: 0 | AA157: 0 | AD157: 0 | AE157: 0 | AF157: 0 | AG157: 0 | AH157: 0 | AI157: 0 | AJ157: 0 | AK157: 0 | AL157: 0 | AM157: 0
A158: =ROW() -> 158 | D158: Vehicle | O158: 0 | P158: 0 | Q158: 0 | R158: 0 | S158: 0 | T158: 0 | W158: 0 | X158: 0 | Y158: 0 | Z158: 0 | AA158: 0 | AD158: 0 | AE158: 0 | AF158: 0 | AG158: 0 | AH158: 0 | AI158: 0 | AJ158: 0 | AK158: 0 | AL158: 0 | AM158: 0
A159: =ROW() -> 159 | D159: Information Technology | O159: 0 | P159: 0 | Q159: 0 | R159: 0 | S159: 0 | T159: 0 | W159: 0 | X159: 0 | Y159: 0 | Z159: 0 | AA159: 0 | AD159: 0 | AE159: 0 | AF159: 0 | AG159: 0 | AH159: 0 | AI159: 0 | AJ159: 0 | AK159: 0 | AL159: 0 | AM159: 0
D160: Miscellaneous IT equipment | O160: 0 | P160: 0 | Q160: 0 | R160: 0 | S160: 0 | T160: 0 | W160: 0 | X160: 0 | Y160: 0 | Z160: 0 | AA160: 0 | AD160: 0 | AE160: 0 | AF160: 0 | AG160: 0 | AH160: 0 | AI160: 0 | AJ160: 0 | AK160: 0 | AL160: 0 | AM160: 0
D161: Telemetry and Monitoring | O161: 0 | P161: 0 | Q161: 0 | R161: 0 | S161: 0 | T161: 0 | W161: 0 | X161: 0 | Y161: 0 | Z161: 0 | AA161: 0 | AD161: 0 | AE161: 0 | AF161: 0 | AG161: 0 | AH161: 0 | AI161: 0 | AJ161: 0 | AK161: 0 | AL161: 0 | AM161: 0
A162: =ROW() -> 162 | D162: FRC | O162: 0 | P162: 0 | Q162: 0 | R162: 0 | S162: 0 | T162: 0 | W162: 0 | X162: 0 | Y162: 0 | Z162: 0 | AA162: 0 | AD162: 0 | AE162: 0 | AF162: 0 | AG162: 0 | AH162: 0 | AI162: 0 | AJ162: 0 | AK162: 0 | AL162: 0 | AM162: 0
A163: =ROW() -> 163 | D163: Land | O163: 0 | P163: 0 | Q163: 0 | R163: 0 | S163: =-3.428 -> -3.428 | T163: 0 | W163: 0 | X163: 0 | Y163: 0 | Z163: 0 | AA163: 0 | AD163: 0 | AE163: 0 | AF163: 0 | AG163: 0 | AH163: 0 | AI163: 0 | AJ163: 0 | AK163: 0 | AL163: 0 | AM163: 0
A164: =ROW() -> 164 | D164: Equity Raising Cost | O164: 0 | P164: 0 | Q164: 0 | R164: 0 | S164: 0 | T164: 0 | W164: 0 | X164: 0 | Y164: 0 | Z164: 0 | AA164: 0 | AD164: 0 | AE164: 0 | AF164: 0 | AG164: 0 | AH164: 0 | AI164: 0 | AJ164: 0 | AK164: 0 | AL164: 0 | AM164: 0
A165: =ROW() -> 165 | D165: Total | O165: =SUM(O148:O164) -> 0 | P165: =SUM(P148:P164) -> 0 | Q165: =SUM(Q148:Q164) -> 0 | R165: =SUM(R148:R164) -> 0 | S165: =SUM(S148:S164) -> -4.47 | T165: =SUM(T148:T164) -> 0 | W165: 0 | X165: 0 | Y165: 0 | Z165: 0 | AA165: 0 | AD165: 0 | AE165: 0 | AF165: 0 | AG165: 0 | AH165: 0 | AI165: =SUM(AI148:AI164) -> 0 | AJ165: 0 | AK165: 0 | AL165: 0 | AM165: 0
A166: =ROW() -> 166 | C166: Disposal | O166: ="Actual 3 [m$ "&$G$34&"]" -> Actual 3 [m$ 31/12/2019] | T166: ="Actual 3 [m$ "&$G$34&"]" -> Actual 3 [m$ 31/12/2019] | AA166: ="Actual [m$ "&$G$34&"]" -> Actual [m$ 31/12/2019] | AH166: ="Forecast [m$ "&$G$34&"]" -> Forecast [m$ 31/12/2019] | AI166: ="Forecast [m$ "&$G$34&"]" -> Forecast [m$ 31/12/2019]
A167: =ROW() -> 167 | D167: High Pressure Mains - Steel | O167: =O148/$S$25*$S$34 -> 0 | P167: 0 | Q167: 0 | R167: 0 | S167: 0 | T167: =T148*$Z$34 -> 0 | W167: =W148*$Z$34 -> 0 | X167: 0 | Y167: 0 | Z167: 0 | AA167: =AA148*AA$34 -> 0 | AD167: 0 | AE167: 0 | AF167: 0 | AG167: 0 | AH167: 0 | AI167: 0 | AJ167: 0 | AK167: 0 | AL167: 0 | AM167: 0
A168: =ROW() -> 168 | D168: High Pressure Mains - PE | O168: 0 | P168: 0 | Q168: 0 | R168: 0 | S168: 0 | T168: 0 | W168: 0 | X168: 0 | Y168: 0 | Z168: 0 | AA168: =AA149*AA$34 -> 0 | AD168: 0 | AE168: 0 | AF168: 0 | AG168: 0 | AH168: 0 | AI168: 0 | AJ168: 0 | AK168: 0 | AL168: 0 | AM168: 0
A169: =ROW() -> 169 | D169: Medium Pressure Mains | O169: 0 | P169: 0 | Q169: 0 | R169: 0 | S169: 0 | T169: 0 | W169: 0 | X169: 0 | Y169: 0 | Z169: 0 | AA169: =AA150*AA$34 -> 0 | AD169: 0 | AE169: 0 | AF169: 0 | AG169: 0 | AH169: 0 | AI169: 0 | AJ169: 0 | AK169: 0 | AL169: 0 | AM169: 0
A170: =ROW() -> 170 | D170: Medium / Low Pressure Mains | O170: 0 | P170: 0 | Q170: 0 | R170: 0 | S170: 0 | T170: 0 | W170: 0 | X170: 0 | Y170: 0 | Z170: 0 | AA170: =AA151*AA$34 -> 0 | AD170: 0 | AE170: 0 | AF170: 0 | AG170: 0 | AH170: 0 | AI170: 0 | AJ170: 0 | AK170: 0 | AL170: 0 | AM170: 0
A171: =ROW() -> 171 | D171: Low Pressure Mains | O171: 0 | P171: 0 | Q171: 0 | R171: 0 | S171: 0 | T171: 0 | W171: 0 | X171: 0 | Y171: 0 | Z171: 0 | AA171: =AA152*AA$34 -> 0 | AD171: 0 | AE171: 0 | AF171: 0 | AG171: 0 | AH171: 0 | AI171: 0 | AJ171: 0 | AK171: 0 | AL171: 0 | AM171: 0
A172: =ROW() -> 172 | D172: Regulators | O172: 0 | P172: 0 | Q172: 0 | R172: 0 | S172: 0 | T172: 0 | W172: 0 | X172: 0 | Y172: 0 | Z172: 0 | AA172: =AA153*AA$34 -> 0 | AD172: 0 | AE172: 0 | AF172: 0 | AG172: 0 | AH172: 0 | AI172: 0 | AJ172: 0 | AK172: 0 | AL172: 0 | AM172: 0
A173: =ROW() -> 173 | D173: Secondary Gate Stations | O173: 0 | P173: 0 | Q173: 0 | R173: 0 | S173: 0 | T173: 0 | W173: 0 | X173: 0 | Y173: 0 | Z173: 0 | AA173: =AA154*AA$34 -> 0 | AD173: 0 | AE173: 0 | AF173: 0 | AG173: 0 | AH173: 0 | AI173: 0 | AJ173: 0 | AK173: 0 | AL173: 0 | AM173: 0
A174: =ROW() -> 174 | D174: Buildings | O174: 0 | P174: 0 | Q174: 0 | R174: 0 | S174: -1.265435822 | T174: 0 | W174: 0 | X174: 0 | Y174: 0 | Z174: 0 | AA174: =AA155*AA$34 -> 0 | AD174: 0 | AE174: 0 | AF174: 0 | AG174: 0 | AH174: 0 | AI174: 0 | AJ174: 0 | AK174: 0 | AL174: 0 | AM174: 0
A175: =ROW() -> 175 | D175: Meter and Services Pipes | O175: 0 | P175: 0 | Q175: 0 | R175: 0 | S175: 0 | T175: 0 | W175: 0 | X175: 0 | Y175: 0 | Z175: 0 | AA175: =AA156*AA$34 -> 0 | AD175: 0 | AE175: 0 | AF175: 0 | AG175: 0 | AH175: 0 | AI175: 0 | AJ175: 0 | AK175: 0 | AL175: 0 | AM175: 0
A176: =ROW() -> 176 | D176: Equipment & Vehicles | O176: 0 | P176: 0 | Q176: 0 | R176: 0 | S176: 0 | T176: 0 | W176: 0 | X176: 0 | Y176: 0 | Z176: 0 | AA176: =AA157*AA$34 -> 0 | AD176: 0 | AE176: 0 | AF176: 0 | AG176: 0 | AH176: 0 | AI176: 0 | AJ176: 0 | AK176: 0 | AL176: 0 | AM176: 0
A177: =ROW() -> 177 | D177: Vehicle | O177: 0 | P177: 0 | Q177: 0 | R177: 0 | S177: 0 | T177: 0 | W177: 0 | X177: 0 | Y177: 0 | Z177: 0 | AA177: =AA158*AA$34 -> 0 | AD177: 0 | AE177: 0 | AF177: 0 | AG177: 0 | AH177: 0 | AI177: 0 | AJ177: 0 | AK177: 0 | AL177: 0 | AM177: 0
A178: =ROW() -> 178 | D178: Information Technology | O178: 0 | P178: 0 | Q178: 0 | R178: 0 | S178: 0 | T178: 0 | W178: 0 | X178: 0 | Y178: 0 | Z178: 0 | AA178: =AA159*AA$34 -> 0 | AD178: =AD159*AD$34 -> 0 | AE178: 0 | AF178: 0 | AG178: 0 | AH178: 0 | AI178: 0 | AJ178: 0 | AK178: 0 | AL178: 0 | AM178: 0
D179: Miscellaneous IT equipment | O179: 0 | P179: 0 | Q179: 0 | R179: 0 | S179: 0 | T179: 0 | W179: 0 | X179: 0 | Y179: 0 | Z179: 0 | AA179: =AA160*AA$34 -> 0 | AD179: 0 | AE179: 0 | AF179: 0 | AG179: 0 | AH179: 0 | AI179: 0 | AJ179: 0 | AK179: 0 | AL179: 0 | AM179: 0
D180: Telemetry and Monitoring | O180: =O161/$S$25*$S$34 -> 0 | P180: 0 | Q180: 0 | R180: 0 | S180: 0 | T180: =T161*$Z$34 -> 0 | W180: =W161*$Z$34 -> 0 | X180: 0 | Y180: 0 | Z180: 0 | AA180: =AA161*AA$34 -> 0 | AD180: 0 | AE180: 0 | AF180: 0 | AG180: 0 | AH180: 0 | AI180: 0 | AJ180: 0 | AK180: 0 | AL180: 0 | AM180: 0
A181: =ROW() -> 181 | D181: FRC | O181: 0 | P181: 0 | Q181: 0 | R181: 0 | S181: 0 | T181: =T162*$Z$34 -> 0 | W181: 0 | X181: 0 | Y181: 0 | Z181: 0 | AA181: =AA162*AA$34 -> 0 | AD181: 0 | AE181: 0 | AF181: 0 | AG181: 0 | AH181: 0 | AI181: 0 | AJ181: 0 | AK181: 0 | AL181: 0 | AM181: 0
A182: =ROW() -> 182 | D182: Land | O182: 0 | P182: 0 | Q182: 0 | R182: 0 | S182: -4.163065258 | T182: =T163*$Z$34 -> 0 | W182: 0 | X182: 0 | Y182: 0 | Z182: 0 | AA182: =AA163*AA$34 -> 0 | AD182: 0 | AE182: 0 | AF182: 0 | AG182: 0 | AH182: 0 | AI182: 0 | AJ182: 0 | AK182: 0 | AL182: 0 | AM182: 0
A183: =ROW() -> 183 | D183: Equity Raising Cost | O183: 0 | P183: 0 | Q183: 0 | R183: 0 | S183: 0 | T183: =T164*$Z$34 -> 0 | W183: 0 | X183: 0 | Y183: 0 | Z183: 0 | AA183: =AA164*AA$34 -> 0 | AD183: 0 | AE183: 0 | AF183: 0 | AG183: 0 | AH183: 0 | AI183: 0 | AJ183: 0 | AK183: 0 | AL183: 0 | AM183: 0
A184: =ROW() -> 184 | D184: Total | O184: =SUM(O167:O183) -> 0 | P184: 0 | Q184: 0 | R184: 0 | S184: -5.42850108 | T184: 0 | W184: 0 | X184: 0 | Y184: 0 | Z184: 0 | AA184: =SUM(AA167:AA183) -> 0 | AD184: 0 | AE184: 0 | AF184: 0 | AG184: 0 | AH184: 0 | AI184: =SUM(AI167:AI183) -> 0 | AJ184: 0 | AK184: 0 | AL184: 0 | AM184: 0
A185: AA2 Asset Adjustment(ICB), Redundant Assets(ICB) & Asset Disposal (ICB)
A186: =ROW() -> 186 | C186: Redundant Asset | O186: =O$166 -> Actual 3 [m$ 31/12/2019] | T186: =T$166 -> Actual 3 [m$ 31/12/2019] | AA186: ="Actual [m$ "&$G$34&"]" -> Actual [m$ 31/12/2019] | AH186: ="Forecast [m$ "&$G$34&"]" -> Forecast [m$ 31/12/2019] | AI186: ="Forecast [m$ "&$G$34&"]" -> Forecast [m$ 31/12/2019]
A187: =ROW() -> 187 | D187: High Pressure Mains - Steel | O187: =O127+O167 -> 0 | P187: 0 | Q187: 0 | R187: 0 | S187: 0 | T187: 0 | W187: 0 | X187: 0 | Y187: 0 | Z187: 0 | AA187: 0 | AB187: 0 | AC187: 0 | AD187: 0 | AE187: 0 | AF187: 0 | AG187: 0 | AH187: 0 | AI187: 0 | AJ187: 0 | AK187: 0 | AL187: 0 | AM187: 0
A188: =ROW() -> 188 | D188: High Pressure Mains - PE | O188: =O128+O168 -> 0 | P188: 0 | Q188: 0 | R188: 0 | S188: 0 | T188: 0 | W188: 0 | X188: 0 | Y188: 0 | Z188: 0 | AA188: 0 | AB188: 0 | AC188: 0 | AD188: 0 | AE188: 0 | AF188: 0 | AG188: 0 | AH188: 0 | AI188: 0 | AJ188: 0 | AK188: 0 | AL188: 0 | AM188: 0
A189: =ROW() -> 189 | D189: Medium Pressure Mains | O189: =O129+O169 -> 0 | P189: 0 | Q189: 0 | R189: 0 | S189: 0 | T189: 0 | W189: 0 | X189: 0 | Y189: 0 | Z189: 0 | AA189: 0 | AB189: 0 | AC189: 0 | AD189: 0 | AE189: 0 | AF189: 0 | AG189: 0 | AH189: 0 | AI189: 0 | AJ189: 0 | AK189: 0 | AL189: 0 | AM189: 0
A190: =ROW() -> 190 | D190: Medium / Low Pressure Mains | O190: =O130+O170 -> 0 | P190: 0 | Q190: 0 | R190: 0 | S190: 0 | T190: 0 | W190: 0 | X190: 0 | Y190: 0 | Z190: 0 | AA190: 0 | AB190: 0 | AC190: 0 | AD190: 0 | AE190: 0 | AF190: 0 | AG190: 0 | AH190: 0 | AI190: 0 | AJ190: 0 | AK190: 0 | AL190: 0 | AM190: 0
A191: =ROW() -> 191 | D191: Low Pressure Mains | O191: =O131+O171 -> 0 | P191: 0 | Q191: 0 | R191: 0 | S191: 0 | T191: 0 | W191: 0 | X191: 0 | Y191: 0 | Z191: 0 | AA191: 0 | AB191: 0 | AC191: 0 | AD191: 0 | AE191: 0 | AF191: 0 | AG191: 0 | AH191: 0 | AI191: 0 | AJ191: 0 | AK191: 0 | AL191: 0 | AM191: 0
A192: =ROW() -> 192 | D192: Regulators | O192: =O132+O172 -> 0 | P192: 0 | Q192: 0 | R192: 0 | S192: 0 | T192: 0 | W192: 0 | X192: 0 | Y192: 0 | Z192: 0 | AA192: 0 | AB192: 0 | AC192: 0 | AD192: 0 | AE192: 0 | AF192: 0 | AG192: 0 | AH192: 0 | AI192: 0 | AJ192: 0 | AK192: 0 | AL192: 0 | AM192: 0
A193: =ROW() -> 193 | D193: Secondary Gate Stations | O193: =O133+O173 -> 0 | P193: 0 | Q193: 0 | R193: 0 | S193: 0 | T193: 0 | W193: 0 | X193: 0 | Y193: 0 | Z193: 0 | AA193: 0 | AB193: 0 | AC193: 0 | AD193: 0 | AE193: 0 | AF193: 0 | AG193: 0 | AH193: 0 | AI193: 0 | AJ193: 0 | AK193: 0 | AL193: 0 | AM193: 0
A194: =ROW() -> 194 | D194: Buildings | O194: =O134+O174 -> 0 | P194: 0 | Q194: 0 | R194: 0 | S194: -1.265435822 | T194: 0 | W194: 0 | X194: 0 | Y194: 0 | Z194: 0 | AA194: 0 | AB194: 0 | AC194: 0 | AD194: 0 | AE194: 0 | AF194: 0 | AG194: 0 | AH194: 0 | AI194: 0 | AJ194: 0 | AK194: 0 | AL194: 0 | AM194: 0
A195: =ROW() -> 195 | D195: Meter and Services Pipes | O195: =O135+O175 -> 0 | P195: 0 | Q195: 0 | R195: 0 | S195: 0 | T195: 0 | W195: 0 | X195: 0 | Y195: 0 | Z195: 0 | AA195: 0 | AB195: 0 | AC195: 0 | AD195: 0 | AE195: 0 | AF195: 0 | AG195: 0 | AH195: 0 | AI195: 0 | AJ195: 0 | AK195: 0 | AL195: 0 | AM195: 0
A196: =ROW() -> 196 | D196: Equipment & Vehicles | O196: =O136+O176 -> 0 | P196: 0 | Q196: 0 | R196: 0 | S196: 0 | T196: 0 | W196: 0 | X196: 0 | Y196: 0 | Z196: 0 | AA196: 0 | AB196: 0 | AC196: 0 | AD196: 0 | AE196: 0 | AF196: 0 | AG196: 0 | AH196: 0 | AI196: 0 | AJ196: 0 | AK196: 0 | AL196: 0 | AM196: 0
A197: =ROW() -> 197 | D197: Vehicle | O197: =O137+O177 -> 0 | P197: 0 | Q197: 0 | R197: 0 | S197: 0 | T197: 0 | W197: 0 | X197: 0 | Y197: 0 | Z197: 0 | AA197: 0 | AB197: 0 | AC197: 0 | AD197: 0 | AE197: 0 | AF197: 0 | AG197: 0 | AH197: 0 | AI197: 0 | AJ197: 0 | AK197: 0 | AL197: 0 | AM197: 0
A198: =ROW() -> 198 | D198: Information Technology | O198: =O138+O178 -> 0 | P198: 0 | Q198: 0 | R198: 0 | S198: 0 | T198: 0 | W198: 0 | X198: 0 | Y198: 0 | Z198: 0 | AA198: 0 | AB198: 0 | AC198: 0 | AD198: 0 | AE198: 0 | AF198: 0 | AG198: 0 | AH198: 0 | AI198: 0 | AJ198: 0 | AK198: 0 | AL198: 0 | AM198: 0
D199: Miscellaneous IT equipment | O199: 0 | P199: 0 | Q199: 0 | R199: 0 | S199: 0 | T199: 0 | W199: 0 | X199: 0 | Y199: 0 | Z199: 0 | AA199: 0 | AB199: 0 | AC199: 0 | AD199: 0 | AE199: 0 | AF199: 0 | AG199: 0 | AH199: 0 | AI199: 0 | AJ199: 0 | AK199: 0 | AL199: 0 | AM199: 0
D200: Telemetry and Monitoring | O200: =O140+O180 -> 0 | P200: 0 | Q200: 0 | R200: 0 | S200: 0 | T200: 0 | W200: 0 | X200: 0 | Y200: 0 | Z200: 0 | AA200: 0 | AB200: 0 | AC200: 0 | AD200: 0 | AE200: 0 | AF200: 0 | AG200: 0 | AH200: 0 | AI200: 0 | AJ200: 0 | AK200: 0 | AL200: 0 | AM200: 0
A201: =ROW() -> 201 | D201: FRC | O201: =O141+O181 -> 0 | P201: 0 | Q201: 0 | R201: 0 | S201: 0 | T201: 0 | W201: 0 | X201: 0 | Y201: 0 | Z201: 0 | AA201: 0 | AB201: 0 | AC201: 0 | AD201: 0 | AE201: 0 | AF201: 0 | AG201: 0 | AH201: 0 | AI201: 0 | AJ201: 0 | AK201: 0 | AL201: 0 | AM201: 0
A202: =ROW() -> 202 | D202: Land | O202: =O142+O182 -> 0 | P202: 0 | Q202: 0 | R202: 0 | S202: -4.163065258 | T202: 0 | W202: 0 | X202: 0 | Y202: 0 | Z202: 0 | AA202: 0 | AB202: 0 | AC202: 0 | AD202: 0 | AE202: 0 | AF202: 0 | AG202: 0 | AH202: 0 | AI202: 0 | AJ202: 0 | AK202: 0 | AL202: 0 | AM202: 0
... 1450 more rows

Sheet WACC
A3: =Main!A1 -> 0
A4: Determination of the Weighted Average Cost of Capital (WACC)
A5: Ref | B5: =COLUMN() -> 2 | C5: =COLUMN() -> 3 | AA5: =COLUMN() -> 27 | AD5: =COLUMN() -> 30 | AE5: =COLUMN() -> 31 | AF5: =COLUMN() -> 32 | AG5: =COLUMN() -> 33 | AH5: =COLUMN() -> 34 | AI5: =COLUMN() -> 35 | AJ5: =COLUMN() -> 36 | AK5: =COLUMN() -> 37 | AL5: =COLUMN() -> 38 | AM5: =COLUMN() -> 39
A6: =ROW() -> 6 | AA6: ERA | AD6: ERA | AE6: ERA | AF6: ERA | AG6: ERA | AH6: ERA | AI6: ERA | AJ6: ERA | AK6: ERA | AL6: ERA | AM6: ERA
A7: =ROW() -> 7 | AA7: AA4 Jul - Dec 2014 | AD7: AA4 2015 | AE7: AA4 2016 | AF7: AA4 2017 | AG7: AA4 2018 | AH7: AA4 2019 | AI7: AA4 2020 | AJ7: AA4 2021 | AK7: AA4 2022 | AL7: AA4 2023 | AM7: AA4 2024
A8: =ROW() -> 8
A9: =ROW() -> 9 | C9: Debt: Nominal Risk Free Rate (DRfn) | AA9: 0.0196 | AD9: 0.0196 | AE9: 0.0196 | AF9: 0.0196 | AG9: 0.0196 | AH9: 0.0196 | AI9: 0.0148 | AJ9: 0.0148 | AK9: 0.0148 | AL9: 0.0148 | AM9: 0.0148
A10: =ROW() -> 10 | C10: Debt: Real Risk Free Rate (DRfr) | AA10: =(1+AA9)/(1+AA13)-1 -> 0.0005888125613 | AD10: =(1+AD9)/(1+AD13)-1 -> 0.0005888125613 | AE10: =(1+AE9)/(1+AE13)-1 -> 0.0005888125613 | AF10: =(1+AF9)/(1+AF13)-1 -> 0.0005888125613 | AG10: =(1+AG9)/(1+AG13)-1 -> 0.0005888125613 | AH10: =(1+AH9)/(1+AH13)-1 -> 0.0005888125613 | AI10: 0.002 | AJ10: 0.002 | AK10: 0.002 | AL10: 0.002 | AM10: 0.002
A11: =ROW() -> 11 | C11: Equity: Nominal Risk Free Rate (ERfn) | AA11: 0.0196 | AD11: 0.0196 | AE11: 0.0196 | AF11: 0.0196 | AG11: 0.0196 | AH11: 0.0196 | AI11: 0.0148 | AJ11: 0.0148 | AK11: 0.0148 | AL11: 0.0148 | AM11: 0.0148
A12: =ROW() -> 12 | C12: Equity: Real Risk Free Rate (ERfr) | AA12: =(1+AA11)/(1+AA13)-1 -> 0.0005888125613 | AD12: =(1+AD11)/(1+AD13)-1 -> 0.0005888125613 | AE12: =(1+AE11)/(1+AE13)-1 -> 0.0005888125613 | AF12: =(1+AF11)/(1+AF13)-1 -> 0.0005888125613 | AG12: =(1+AG11)/(1+AG13)-1 -> 0.0005888125613 | AH12: =(1+AH11)/(1+AH13)-1 -> 0.0005888125613 | AI12: 0.002 | AJ12: 0.002 | AK12: 0.002 | AL12: 0.002 | AM12: 0.002
A13: =ROW() -> 13 | C13: Inflation Rate for WACC (I) | AA13: 0.019 | AD13: 0.019 | AE13: 0.019 | AF13: 0.019 | AG13: 0.019 | AH13: 0.019 | AI13: =Input!AI23 -> 0.0127744511 | AJ13: =Input!AJ23 -> 0.0127744511 | AK13: =Input!AK23 -> 0.0127744511 | AL13: =Input!AL23 -> 0.0127744511 | AM13: =Input!AM23 -> 0.0127744511
A14: =ROW() -> 14 | C14: Debt Proportion (D) | AA14: 0.6 | AD14: 0.6 | AE14: 0.6 | AF14: 0.6 | AG14: 0.6 | AH14: 0.6 | AI14: 0.55 | AJ14: 0.55 | AK14: 0.55 | AL14: 0.55 | AM14: 0.55
A15: =ROW() -> 15 | C15: Equity Proportion (E) | AA15: =1-AA14 -> 0.4 | AD15: =1-AD14 -> 0.4 | AE15: =1-AE14 -> 0.4 | AF15: =1-AF14 -> 0.4 | AG15: =1-AG14 -> 0.4 | AH15: =1-AH14 -> 0.4 | AI15: 0.45 | AJ15: 0.45 | AK15: 0.45 | AL15: 0.45 | AM15: 0.45
A16: =ROW() -> 16 | C16: Cost of Debt; Debt Risk Premium (Drp) | AA16: 0.02429 | AD16: 0.02502 | AE16: 0.02676 | AF16: 0.02785 | AG16: 0.02605 | AH16: 0.02309 | AI16: 0.02254 | AJ16: 0.02254 | AK16: 0.02254 | AL16: 0.02254 | AM16: 0.02254
A17: =ROW() -> 17 | C17: Cost of Debt; Debt Issuing Cost (Disc) | AA17: 0.00125 | AD17: =AA17 -> 0.00125 | AE17: =AD17 -> 0.00125 | AF17: 0.00125 | AG17: 0.00125 | AH17: 0.00125 | AI17: 0.001 | AJ17: 0.001 | AK17: 0.001 | AL17: 0.001 | AM17: 0.001
A18: =ROW() -> 18 | C18: Cost of Debt; Hedging Cost | AA18: 0.00114 | AD18: =AA18 -> 0.00114 | AE18: 0.00114 | AF18: 0.00114 | AG18: 0.00114 | AH18: 0.00114 | AI18: 0.00114 | AJ18: 0.00114 | AK18: 0.00114 | AL18: 0.00114 | AM18: 0.00114
A19: =ROW() -> 19 | C19: Cost of Debt; 5 year Interest Rate Swap Spread | AA19: 0.00471 | AD19: 0.00471 | AE19: =AD19 -> 0.00471 | AF19: =AE19 -> 0.00471 | AG19: =AF19 -> 0.00471 | AH19: =AG19 -> 0.00471 | AI19: 0.00258 | AJ19: 0.00258 | AK19: 0.00258 | AL19: 0.00258 | AM19: 0.00258
A20: =ROW() -> 20 | C20: Cost of Debt; Risk Margin (Rm) | AA20: =SUM(AA16:AA19) -> 0.03139 | AD20: 0.03212 | AE20: 0.03386 | AF20: 0.03495 | AG20: 0.03315 | AH20: 0.03019 | AI20: 0.02726 | AJ20: 0.02726 | AK20: 0.02726 | AL20: 0.02726 | AM20: 0.02726
A21: =ROW() -> 21 | C21: Australian Market Risk Premium (Rp) | AA21: 0.075 | AD21: 0.075 | AE21: 0.075 | AF21: 0.075 | AG21: 0.075 | AH21: 0.075 | AI21: 0.06 | AJ21: 0.06 | AK21: 0.06 | AL21: 0.06 | AM21: 0.06
A22: =ROW() -> 22 | C22: Equity Beta (Be) | AA22: 0.7 | AD22: =AA22 -> 0.7 | AE22: =AD22 -> 0.7 | AF22: 0.7 | AG22: 0.7 | AH22: 0.7 | AI22: 0.7 | AJ22: 0.7 | AK22: 0.7 | AL22: 0.7 | AM22: 0.7
A23: =ROW() -> 23 | C23: Corporate Tax Rate (T) | AA23: 0.3 | AD23: 0.3 | AE23: 0.3 | AF23: 0.3 | AG23: 0.3 | AH23: 0.3 | AI23: 0.3 | AJ23: 0.3 | AK23: 0.3 | AL23: 0.3 | AM23: 0.3
A24: =ROW() -> 24 | C24: Franking Credit (g) | AA24: =40%*0 + 25% -> 0.25 | AD24: =AA24 -> 0.25 | AE24: 0.25 | AF24: 0.25 | AG24: 0.25 | AH24: 0.25 | AI24: 0.5 | AJ24: 0.5 | AK24: 0.5 | AL24: 0.5 | AM24: 0.5
A25: =ROW() -> 25 | C25: Imputation Adj (G) | AA25: =(1-AA23)/(1-AA23*(1-AA24)) -> 0.9032258065 | AD25: 0.9032258065 | AE25: 0.9032258065 | AF25: 0.9032258065 | AG25: 0.9032258065 | AH25: 0.9032258065 | AI25: 0.8235294118 | AJ25: 0.8235294118 | AK25: 0.8235294118 | AL25: 0.8235294118 | AM25: 0.8235294118
A26: =ROW() -> 26 | B26: Debt
A27: =ROW() -> 27 | C27: Nominal Cost of Debt (DPn) | AA27: =AA9+AA20 -> 0.05099 | AD27: 0.05172 | AE27: 0.05346 | AF27: 0.05455 | AG27: 0.05275 | AH27: 0.04979 | AI27: 0.04206 | AJ27: 0.04206 | AK27: 0.04206 | AL27: 0.04206 | AM27: 0.04206
A28: =ROW() -> 28 | B28: Equity
A29: =ROW() -> 29 | C29: Nominal Pre Tax Cost of Equity (EPn) | AA29: =AA30/(1-AA23*(1-AA24)) -> 0.09303225806 | AD29: 0.09303225806 | AE29: 0.09303225806 | AF29: 0.09303225806 | AG29: 0.09303225806 | AH29: 0.09303225806 | AI29: =AI30/(1-AI23*(1-AI24)) -> 0.06682352941 | AJ29: 0.06682352941 | AK29: 0.06682352941 | AL29: 0.06682352941 | AM29: 0.06682352941
A30: =ROW() -> 30 | C30: Nominal After Tax Cost of Equity (EAn) | AA30: =AA11+(AA21*AA22) -> 0.0721 | AD30: 0.0721 | AE30: 0.0721 | AF30: 0.0721 | AG30: 0.0721 | AH30: 0.0721 | AI30: =AI11+(AI21*AI22) -> 0.0568 | AJ30: 0.0568 | AK30: 0.0568 | AL30: 0.0568 | AM30: 0.0568
A31: =ROW() -> 31 | B31: WACC; Pre-tax Officer (Market Practise or Forward Transformation)
A32: =ROW() -> 32 | C32: Nominal Pre Tax WACC (WPn) | AA32: =AA29*AA15+AA27*AA14 -> 0.06780690323 | AD32: 0.06824490323 | AE32: 0.06928890323 | AF32: 0.06994290323 | AG32: 0.06886290323 | AH32: 0.06708690323 | AI32: =AI29*AI15+AI27*AI14 -> 0.05320358824 | AJ32: 0.05320358824 | AK32: 0.05320358824 | AL32: 0.05320358824 | AM32: 0.05320358824
A33: =ROW() -> 33 | C33: Real Pre Tax WACC (WPr) | AA33: =(1+AA32)/(1+AA13)-1 -> 0.04789686283 | AD33: 0.048326696 | AE33: 0.04935122986 | AF33: 0.04999303555 | AG33: 0.04893317294 | AH33: 0.04719028776 | AI33: =(1+AI32)/(1+AI13)-1 -> 0.03991919138 | AJ33: 0.03991919138 | AK33: 0.03991919138 | AL33: 0.03991919138 | AM33: 0.03991919138
A34: =ROW() -> 34 | B34: WACC: Vanilla
A35: =ROW() -> 35 | C35: Nominal After Tax WACC | AA35: =AA14*AA27+AA15*AA30 -> 0.059434 | AD35: 0.059872 | AE35: 0.060916 | AF35: 0.06157 | AG35: 0.06049 | AH35: 0.058714 | AI35: =AI14*AI27+AI15*AI30 -> 0.048693 | AJ35: 0.048693 | AK35: 0.048693 | AL35: 0.048693 | AM35: 0.048693
A36: =ROW() -> 36 | C36: Real After Tax WACC | AA36: =(1+AA35)/(1+AA13)-1 -> 0.03968007851 | AD36: 0.04010991168 | AE36: 0.04113444553 | AF36: 0.04177625123 | AG36: 0.04071638862 | AH36: 0.03897350343 | AI36: =(1+AI35)/(1+AI13)-1 -> 0.03546549665 | AJ36: 0.03546549665 | AK36: 0.03546549665 | AL36: 0.03546549665 | AM36: 0.03546549665
A37: =ROW() -> 37

Sheet Load_Tariffs
A2: Inputs for Tariff Revenue
C3: =COLUMN() -> 3 | D3: =COLUMN() -> 4 | E3: =COLUMN() -> 5 | F3: =COLUMN() -> 6 | G3: =COLUMN() -> 7 | H3: =COLUMN() -> 8 | I3: =COLUMN() -> 9 | J3: =COLUMN() -> 10 | K3: =COLUMN() -> 11 | L3: =COLUMN() -> 12 | M3: =COLUMN() -> 13 | N3: =COLUMN() -> 14 | O3: =COLUMN() -> 15 | P3: =COLUMN() -> 16 | Q3: =COLUMN() -> 17 | R3: =COLUMN() -> 18 | S3: =COLUMN() -> 19 | T3: =COLUMN() -> 20 | U3: =COLUMN() -> 21 | V3: =COLUMN() -> 22 | W3: =COLUMN() -> 23 | X3: =COLUMN() -> 24 | Y3: =COLUMN() -> 25 | Z3: =COLUMN() -> 26 | AA3: =COLUMN() -> 27 | AB3: =COLUMN() -> 28 | AC3: =COLUMN() -> 29 | AD3: =COLUMN() -> 30 | AE3: =COLUMN() -> 31 | AF3: =COLUMN() -> 32 | AG3: =COLUMN() -> 33 | AH3: =COLUMN() -> 34
A4: =ROW() -> 4 | J4: Year ending 31 December | O4: Year ending 31 December | W4: Year Ending 30 June | AD4: Year ending 31 December | AI4: Year ending 31 December
A5: Regulatory Period | J5: 1 | K5: 1 | L5: 1 | M5: 1 | N5: 1 | O5: 2 | P5: 2 | Q5: 2 | R5: 2 | S5: 2 | T5: 3 | U5: 3 | V5: 3 | W5: 3 | X5: 3 | Y5: 3 | Z5: 3 | AA5: 4 | AB5: 4 | AC5: 4 | AD5: 4 | AE5: 4 | AF5: 4 | AG5: 4 | AH5: 4 | AI5: 5 | AJ5: 6 | AK5: 7 | AL5: 8 | AM5: 9
A6: Year ending | I6: 1999 | J6: 2000 | K6: 2001 | L6: 2002 | M6: 2003 | N6: 2004 | O6: 2005 | P6: 2006 | Q6: 2007 | R6: 2008 | S6: =1+R6 -> 2009 | T6: =1+S6 -> 2010 | U6: 2010 | V6: =1+U6 -> 2011 | W6: =T6+1 -> 2011 | X6: =1+V6 -> 2012 | Y6: =1+X6 -> 2013 | Z6: =1+Y6 -> 2014 | AA6: 2014 | AB6: 2015 | AC6: 2015 | AD6: 2015 | AE6: =1+AD6 -> 2016 | AF6: 2017 | AG6: 2018 | AH6: 2019 | AI6: 2020 | AJ6: 2021 | AK6: 2022 | AL6: 2023 | AM6: 2024
A7: Months | I7: 1 to 12 | J7: 1 to 12 | K7: 1 to 12 | L7: 1 to 12 | M7: 1 to 12 | N7: 1 to 12 | O7: 1 to 12 | P7: 1 to 12 | Q7: 1 to 12 | R7: 1 to 12 | S7: 1 to 12 | T7: 1 to 6 | U7: 7 to 12 | V7: 1 to 6 | W7: 7 to 6 | X7: 7 to 6 | Y7: 7 to 6 | Z7: 7 to 6 | AA7: 7 to 12 | AB7: 1 to 9 | AC7: 10 to 12 | AD7: 1 to 12 | AE7: 1 to 12 | AF7: 1 to 12 | AG7: 1 to 12 | AH7: 1 to 12 | AI7: 1 to 12 | AJ7: 1 to 12 | AK7: 1 to 12 | AL7: 1 to 12 | AM7: 1 to 12
A8: Days | I8: =Input!I8 -> 365 | J8: =Input!J8 -> 366 | K8: =Input!K8 -> 365 | L8: =Input!L8 -> 365 | M8: =Input!M8 -> 365 | N8: =Input!N8 -> 366 | O8: =Input!O8 -> 365 | P8: =Input!P8 -> 365 | Q8: =Input!Q8 -> 365 | R8: =Input!R8 -> 366 | S8: =Input!S8 -> 365 | T8: =Input!T8 -> 181 | U8: 184 | V8: 181 | W8: =Input!W8 -> 365 | X8: =Input!X8 -> 366 | Y8: =Input!Y8 -> 365 | Z8: =Input!Z8 -> 365 | AA8: =DATEVALUE("31/12/2014")-DATEVALUE("30/6/2014") -> 184 | AB8: =DATEVALUE("30/9/2015")-DATEVALUE("31/12/2014") -> 273 | AC8: =DATEVALUE("31/12/2015")-DATEVALUE("30/9/2015") -> 92 | AD8: =Input!AD8 -> 365 | AE8: =Input!AE8 -> 366 | AF8: =Input!AF8 -> 365 | AG8: =Input!AG8 -> 365 | AH8: =Input!AH8 -> 365 | AI8: =Input!AI8 -> 366 | AJ8: =Input!AJ8 -> 365 | AK8: =Input!AK8 -> 365 | AL8: =Input!AL8 -> 365 | AM8: =Input!AM8 -> 365
A9: Year portion | I9: =Input!I9 -> 1 | J9: =Input!J9 -> 1 | K9: =Input!K9 -> 1 | L9: =Input!L9 -> 1 | M9: =Input!M9 -> 1 | N9: =Input!N9 -> 1 | O9: =Input!O9 -> 1 | P9: =Input!P9 -> 1 | Q9: =Input!Q9 -> 1 | R9: =Input!R9 -> 1 | S9: =Input!S9 -> 1 | T9: =Input!T9 -> 0.495890411 | U9: =ROUND(U8/365,2) -> 0.5 | V9: =1-U9 -> 0.5 | W9: =Input!W9 -> 1 | X9: =Input!X9 -> 1 | Y9: =Input!Y9 -> 1 | Z9: =Input!Z9 -> 1 | AA9: =Input!AA9 -> 0.504109589 | AB9: =AB8/365 -> 0.7479452055 | AC9: =1-AB9 -> 0.2520547945 | AD9: =Input!AD9 -> 1 | AE9: =Input!AE9 -> 1 | AF9: =Input!AF9 -> 1 | AG9: =Input!AG9 -> 1 | AH9: =Input!AH9 -> 1 | AI9: =Input!AI9 -> 1 | AJ9: =Input!AJ9 -> 1 | AK9: =Input!AK9 -> 1 | AL9: =Input!AL9 -> 1 | AM9: =Input!AM9 -> 1
A10: Financial Parameters
A11: =ROW() -> 11 | C11: Inflation to Convert from the end of the period
A12: =ROW() -> 12 | D12: ="Inflation Factor (convert to real "&Input!$G$34&" $)" -> Inflation Factor (convert to real 31/12/2019 $) | G12: Base period | H12: =Input!G29 -> 2019-12-31 | I12: =Input!I34 -> 1.681499394 | J12: =Input!J34 -> 1.589292268 | K12: =Input!K34 -> 1.541167465 | L12: =Input!L34 -> 1.495871504 | M12: =Input!M34 -> 1.461303045 | N12: =Input!N34 -> 1.424396415 | O12: =Input!O34 -> 1.385618027 | P12: =Input!P34 -> 1.341955465 | Q12: =Input!Q34 -> 1.303398344 | R12: =Input!R34 -> 1.25707274 | S12: =Input!S34 -> 1.231115486 | T12: =Input!T34 -> 1.212516414 | U12: =Input!U34 -> 1.199276292 | V12: =Input!V34 -> 1.170353757 | W12: =Input!W34 -> 1.170353757 | X12: =Input!X34 -> 1.156729905 | Y12: =Input!Y34 -> 1.129724537 | Z12: =Input!Z34 -> 1.096654225 | AA12: =Input!AA34 -> 1.089452931 | AB12: =Input!AB34 -> 1.071362384 | AC12: =Input!AC34 -> 1.071362384 | AD12: =Input!AD34 -> 1.071362384 | AE12: =Input!AE34 -> 1.055778931 | AF12: =Input!AF34 -> 1.036000735 | AG12: =Input!AG34 -> 1.017841213 | AH12: =Input!AH34 -> 1 | AI12: =Input!AI34 -> 0.9873866772 | AJ12: =Input!AJ34 -> 0.9749324503 | AK12: =Input!AK34 -> 0.9626353125 | AL12: =Input!AL34 -> 0.9504932826 | AM12: =Input!AM34 -> 0.938504404
A13: =ROW() -> 13 | D13: ="Inflation Factor (convert " &Input!$G$34& " $ to nominal $)" -> Inflation Factor (convert 31/12/2019 $ to nominal $) | I13: =Input!I35 -> 0.5947073211 | J13: =Input!J35 -> 0.6292108884 | K13: =Input!K35 -> 0.6488587532 | L13: =Input!L35 -> 0.668506618 | M13: =Input!M35 -> 0.684320753 | N13: =Input!N35 -> 0.7020517529 | O13: =Input!O35 -> 0.7216996177 | P13: =Input!P35 -> 0.7451812121 | Q13: =Input!Q35 -> 0.767225158 | R13: =Input!R35 -> 0.7954989146 | S13: =Input!S35 -> 0.812271482 | T13: =Input!T35 -> 0.8247311036 | U13: =Input!U35 -> 0.8338362117 | V13: =Input!V35 -> 0.8544425088 | W13: =Input!W35 -> 0.8544425088 | X13: =Input!X35 -> 0.8645060493 | Y13: =Input!Y35 -> 0.8851715326 | Z13: =Input!Z35 -> 0.9118644484 | AA13: =Input!AA35 -> 0.9178918811 | AB13: =Input!AB35 -> 0.9333909935 | AC13: =Input!AC35 -> 0.9333909935 | AD13: =Input!AD35 -> 0.9333909935 | AE13: =Input!AE35 -> 0.9471679823 | AF13: =Input!AF35 -> 0.9652502802 | AG13: =Input!AG35 -> 0.9824715162 | AH13: =Input!AH35 -> 1 | AI13: =Input!AI35 -> 1.012774451 | AJ13: =Input!AJ35 -> 1.025712089 | AK13: =Input!AK35 -> 1.038814998 | AL13: =Input!AL35 -> 1.052085289 | AM13: =Input!AM35 -> 1.065525101
A14: =ROW() -> 14
A15: Volume & Customer # by Tariff Class
A16: =ROW() -> 16 | O16: Actual 2 | T16: Actual 3 | AA16: Actual | AG16: Forecast | AI16: Forecast
A17: =ROW() -> 17 | C17: Customers Including Prudent Discounts
A18: =ROW() -> 18 | D18: Tariff class A1 | O18: =O25+O39 -> 70.5 | P18: 72.5 | Q18: 72 | R18: 73 | S18: 75.5 | T18: =T25+T32 -> 75.33333333 | U18: 75 | V18: 75.16666667 | W18: 75.16666667 | X18: 72.91666667 | Y18: 75.66666667 | Z18: 74.5 | AA18: 72.5 | AD18: =AD25+AD32 -> 73.5 | AE18: 76 | AF18: 75.5 | AG18: 74.5 | AH18: 75 | AI18: 75 | AJ18: 75 | AK18: 74.5 | AL18: 74 | AM18: 74
A19: =ROW() -> 19 | D19: Tariff class A2 | O19: 93 | P19: 96 | Q19: 97 | R19: 98 | S19: 99 | T19: 102.1666667 | U19: 100.5 | V19: 105 | W19: 105 | X19: 112.5 | Y19: 109.0833333 | Z19: 107.5 | AA19: 107 | AD19: =AD26+AD33 -> 106.5 | AE19: 102 | AF19: 99 | AG19: 103 | AH19: 105 | AI19: 105.5 | AJ19: 106 | AK19: 106.5 | AL19: 107 | AM19: 107.5
A20: =ROW() -> 20 | D20: Tariff class B1 | O20: 1074 | P20: 1084.5 | Q20: 1106.5 | R20: 1136.5 | S20: 1184.5 | T20: 1225.166667 | U20: 1244.5 | V20: 1258.833333 | W20: 1258.833333 | X20: 1298.916667 | Y20: 1335.416667 | Z20: 1365 | AA20: 1400 | AD20: =AD27+AD34 -> 1445 | AE20: 1519.5 | AF20: 1600 | AG20: 1670.5 | AH20: 1728.409426 | AI20: 1780.006732 | AJ20: 1834.193575 | AK20: 1888.489968 | AL20: 1943.392253 | AM20: 1998.918607
A21: =ROW() -> 21 | D21: Tariff class B2 | O21: 5988 | P21: 5810 | Q21: 6218 | R21: 6677 | S21: 7248.505679 | T21: 7702.5 | U21: 7898 | V21: 8110.083333 | W21: 8110.083333 | X21: 8713.75 | Y21: 9267.25 | Z21: 9801.5 | AA21: 10224.5 | AD21: =AD28+AD35 -> 10624.5 | AE21: 11114.5 | AF21: 11496.5 | AG21: 11740 | AH21: 11957.43869 | AI21: 12238.84289 | AJ21: 12519.27429 | AK21: 12795.99349 | AL21: 13095.75427 | AM21: 13402.12108
A22: =ROW() -> 22 | D22: Tariff class B3 | O22: 515677.5 | P22: 536107.5 | Q22: 556115.5 | R22: 573808.5 | S22: 589563.5 | T22: 601247 | U22: 609163.8988 | V22: 614525 | W22: 614525 | X22: 629900.5833 | Y22: 642710.8333 | Z22: 657672.5 | AA22: 671182 | AD22: =AD29+AD36 -> 686910.5 | AE22: 705512.5 | AF22: 718910.5 | AG22: 728627 | AH22: 735064.5288 | AI22: 741392.1042 | AJ22: 750024.0076 | AK22: 760301.6426 | AL22: 771444.031 | AM22: 782696.0952
A23: =ROW() -> 23 | D23: Total | O23: =SUM(O18:O22) -> 522903 | P23: =SUM(P18:P22) -> 543170.5 | Q23: =SUM(Q18:Q22) -> 563609 | R23: =SUM(R18:R22) -> 581793 | S23: =SUM(S18:S22) -> 598171.0057 | T23: =SUM(T18:T22) -> 610352.1667 | U23: 618481.8988 | V23: 624074.0833 | W23: 624074.0833 | X23: 640098.6667 | Y23: 653498.25 | Z23: 669021 | AA23: 682986 | AD23: =SUM(AD18:AD22) -> 699160 | AE23: 718324.5 | AF23: 732181.5 | AG23: 742215 | AH23: 748930.3769 | AI23: 755591.4538 | AJ23: 764558.4755 | AK23: 775167.1261 | AL23: 786664.1775 | AM23: 798278.6349
A24: =ROW() -> 24 | C24: FD - Customers Receiving Prudent Discounts | AF24: 732181.5 | AG24: 742215 | AH24: 748930.3769
A25: =ROW() -> 25 | D25: Tariff class A1 | O25: 29 | P25: 30.5 | Q25: 29.5 | R25: 28 | S25: 27 | T25: 25 | U25: =W25 -> 22 | V25: =W25 -> 22 | W25: 22 | X25: 17 | Y25: 13 | Z25: 10 | AA25: 8 | AD25: 7 | AE25: 4 | AF25: 3 | AG25: 2 | AH25: 2 | AI25: 2 | AJ25: 2 | AK25: 2 | AL25: 2 | AM25: 2
A26: =ROW() -> 26 | D26: Tariff class A2 | O26: 12 | P26: 11.5 | Q26: 10 | R26: 7.5 | S26: 5 | T26: 5 | U26: =W26 -> 4 | V26: =W26 -> 4 | W26: 4 | X26: 3 | Y26: 2.5 | Z26: 3 | AA26: 4 | AD26: 4 | AE26: 3.5 | AF26: 2 | AG26: 1 | AH26: 0 | AI26: 0 | AJ26: 0 | AK26: 0 | AL26: 0 | AM26: 0
A27: =ROW() -> 27 | D27: Tariff class B1 | O27: 4 | P27: 4 | Q27: 4 | R27: 4 | S27: 3.5 | T27: 3 | U27: =W27 -> 2.5 | V27: =W27 -> 2.5 | W27: 2.5 | X27: 1.5 | Y27: 1 | Z27: 1 | AA27: 1 | AD27: 1 | AE27: 1 | AF27: 0.5 | AG27: 0 | AH27: 0 | AI27: 0 | AJ27: 0 | AK27: 0 | AL27: 0 | AM27: 0
A28: =ROW() -> 28 | D28: Tariff class B2 | O28: 5 | P28: 5 | Q28: 5 | R28: 5 | S28: 5.005679466 | T28: 5 | U28: =W28 -> 5 | V28: =W28 -> 5 | W28: 5 | X28: 5 | Y28: 5 | Z28: 4.5 | AA28: 3 | AD28: 2 | AE28: 2 | AF28: 2 | AG28: 1.5 | AH28: 0 | AI28: 0 | AJ28: 0 | AK28: 0 | AL28: 0 | AM28: 0
A29: =ROW() -> 29 | D29: Tariff class B3 | O29: 1 | P29: 1 | Q29: 1 | R29: 1 | S29: 1 | T29: 1 | U29: =W29 -> 1 | V29: =W29 -> 1 | W29: 1 | X29: 1 | Y29: 1 | Z29: 1 | AA29: 1 | AD29: 1 | AE29: 0.5 | AF29: 0 | AG29: 0 | AH29: 0 | AI29: 0 | AJ29: 0 | AK29: 0 | AL29: 0 | AM29: 0
A30: =ROW() -> 30 | D30: Total | O30: =SUM(O25:O29) -> 51 | P30: =SUM(P25:P29) -> 52 | Q30: =SUM(Q25:Q29) -> 49.5 | R30: =SUM(R25:R29) -> 45.5 | S30: =SUM(S25:S29) -> 41.50567947 | T30: =SUM(T25:T29) -> 39 | U30: 34.5 | V30: 34.5 | W30: 34.5 | X30: 27.5 | Y30: 22.5 | Z30: 19.5 | AA30: =SUM(AA25:AA29) -> 17 | AD30: 15 | AE30: 11 | AF30: 7.5 | AG30: 4.5 | AH30: 2 | AI30: =SUM(AI25:AI29) -> 2 | AJ30: 2 | AK30: 2 | AL30: 2 | AM30: 2
A31: =ROW() -> 31 | C31: FD - Customers (Excluding Prudent Discounts)
A32: =ROW() -> 32 | D32: Tariff class A1 | O32: 41.5 | P32: 42 | Q32: 42.5 | R32: 45 | S32: 48.5 | T32: 50.33333333 | U32: 53 | V32: =W32 -> 53.16666667 | W32: 53.16666667 | X32: 55.91666667 | Y32: 62.66666667 | Z32: 64.5 | AA32: 64.5 | AD32: 66.5 | AE32: 72 | AF32: 72.5 | AG32: 72.5 | AH32: 73 | AI32: 73 | AJ32: 73 | AK32: 72.5 | AL32: 72 | AM32: 72
A33: =ROW() -> 33 | D33: Tariff class A2 | O33: 81 | P33: 84.5 | Q33: 87 | R33: 90.5 | S33: 94 | T33: 97.16666667 | U33: 96.5 | V33: =W33 -> 101 | W33: 101 | X33: 109.5 | Y33: 106.5833333 | Z33: 104.5 | AA33: 103 | AD33: 102.5 | AE33: 98.5 | AF33: 97 | AG33: 102 | AH33: 105 | AI33: 105.5 | AJ33: 106 | AK33: 106.5 | AL33: 107 | AM33: 107.5
A34: =ROW() -> 34 | D34: Tariff class B1 | O34: 1070 | P34: 1080.5 | Q34: 1102.5 | R34: 1132.5 | S34: 1181 | T34: 1222.166667 | U34: 1242 | V34: =W34 -> 1256.333333 | W34: 1256.333333 | X34: 1297.416667 | Y34: 1334.416667 | Z34: 1364 | AA34: 1399 | AD34: 1444 | AE34: 1518.5 | AF34: 1599.5 | AG34: 1670.5 | AH34: 1728.409426 | AI34: 1780.006732 | AJ34: 1834.193575 | AK34: 1888.489968 | AL34: 1943.392253 | AM34: 1998.918607
A35: =ROW() -> 35 | D35: Tariff class B2 | O35: 5983 | P35: 5805 | Q35: 6213 | R35: 6672 | S35: 7243.5 | T35: 7697.5 | U35: 7893 | V35: =W35 -> 8105.083333 | W35: 8105.083333 | X35: 8708.75 | Y35: 9262.25 | Z35: 9797 | AA35: 10221.5 | AD35: 10622.5 | AE35: 11112.5 | AF35: 11494.5 | AG35: 11738.5 | AH35: 11957.43869 | AI35: 12238.84289 | AJ35: 12519.27429 | AK35: 12795.99349 | AL35: 13095.75427 | AM35: 13402.12108
A36: =ROW() -> 36 | D36: Tariff class B3 | O36: 515676.5 | P36: 536106.5 | Q36: 556114.5 | R36: 573807.5 | S36: 589562.5 | T36: 601246 | U36: 609162.8988 | V36: =W36 -> 614524 | W36: 614524 | X36: 629899.5833 | Y36: 642709.8333 | Z36: 657671.5 | AA36: 671181 | AD36: 686909.5 | AE36: 705512 | AF36: 718910.5 | AG36: 728627 | AH36: 735064.5288 | AI36: 741392.1042 | AJ36: 750024.0076 | AK36: 760301.6426 | AL36: 771444.031 | AM36: 782696.0952
A37: =ROW() -> 37 | D37: Total | O37: =SUM(O32:O36) -> 522852 | P37: =SUM(P32:P36) -> 543118.5 | Q37: =SUM(Q32:Q36) -> 563559.5 | R37: =SUM(R32:R36) -> 581747.5 | S37: =SUM(S32:S36) -> 598129.5 | T37: 610313.1667 | U37: 618447.3988 | V37: 624039.5833 | W37: 624039.5833 | X37: 640071.1667 | Y37: 653475.75 | Z37: 669001.5 | AA37: =SUM(AA32:AA36) -> 682969 | AD37: 699145 | AE37: 718313.5 | AF37: 732174 | AG37: 742210.5 | AH37: 748928.3769 | AI37: =SUM(AI32:AI36) -> 755589.4538 | AJ37: 764556.4755 | AK37: 775165.1261 | AL37: 786662.1775 | AM37: 798276.6349
A38: =ROW() -> 38 | C38: Customers (Excluding Prudent Discounts) | AI38: 755589.4538
A39: =ROW() -> 39 | D39: Tariff class A1 | O39: =O32 -> 41.5 | P39: 42 | Q39: 42.5 | R39: 45 | S39: 48.5 | T39: 50.33333333 | U39: 53 | V39: 53.16666667 | W39: 53.16666667 | X39: 55.91666667 | Y39: 62.66666667 | Z39: 64.5 | AA39: 64.5 | AD39: =AD32 -> 66.5 | AE39: 72 | AF39: 72.5 | AG39: 72.5 | AH39: 73 | AI39: 73 | AJ39: 73 | AK39: 72.5 | AL39: 72 | AM39: 72
A40: =ROW() -> 40 | D40: Tariff class A2 | O40: 81 | P40: 84.5 | Q40: 87 | R40: 90.5 | S40: 94 | T40: 97.16666667 | U40: 96.5 | V40: 101 | W40: 101 | X40: =X33 -> 109.5 | Y40: 106.5833333 | Z40: 104.5 | AA40: 103 | AD40: =AD33 -> 102.5 | AE40: 98.5 | AF40: 97 | AG40: 102 | AH40: 105 | AI40: 105.5 | AJ40: 106 | AK40: 106.5 | AL40: 107 | AM40: 107.5
A41: =ROW() -> 41 | D41: Tariff class B1 | O41: 1070 | P41: 1080.5 | Q41: 1102.5 | R41: 1132.5 | S41: 1181 | T41: 1222.166667 | U41: 1242 | V41: 1256.333333 | W41: 1256.333333 | X41: 1297.416667 | Y41: 1334.416667 | Z41: 1364 | AA41: 1399 | AD41: =AD34 -> 1444 | AE41: 1518.5 | AF41: 1599.5 | AG41: 1670.5 | AH41: 1728.409426 | AI41: 1780.006732 | AJ41: 1834.193575 | AK41: 1888.489968 | AL41: 1943.392253 | AM41: 1998.918607
A42: =ROW() -> 42 | D42: Tariff class B2 | O42: 5983 | P42: 5805 | Q42: 6213 | R42: 6672 | S42: 7243.5 | T42: 7697.5 | U42: 7893 | V42: 8105.083333 | W42: 8105.083333 | X42: 8708.75 | Y42: 9262.25 | Z42: 9797 | AA42: 10221.5 | AD42: =AD35 -> 10622.5 | AE42: 11112.5 | AF42: 11494.5 | AG42: 11738.5 | AH42: 11957.43869 | AI42: 12238.84289 | AJ42: 12519.27429 | AK42: 12795.99349 | AL42: 13095.75427 | AM42: 13402.12108
A43: =ROW() -> 43 | D43: Tariff class B3 | O43: 515676.5 | P43: 536106.5 | Q43: 556114.5 | R43: 573807.5 | S43: 589562.5 | T43: 601246 | U43: 609162.8988 | V43: 614524 | W43: 614524 | X43: 629899.5833 | Y43: 642709.8333 | Z43: 657671.5 | AA43: 671181 | AD43: =AD36 -> 686909.5 | AE43: 705512 | AF43: 718910.5 | AG43: 728627 | AH43: 735064.5288 | AI43: 741392.1042 | AJ43: 750024.0076 | AK43: 760301.6426 | AL43: 771444.031 | AM43: 782696.0952
A44: =ROW() -> 44 | D44: Total | O44: =SUM(O39:O43) -> 522852 | P44: 543118.5 | Q44: 563559.5 | R44: 581747.5 | S44: 598129.5 | T44: 610313.1667 | U44: 618447.3988 | V44: 624039.5833 | W44: 624039.5833 | X44: 640071.1667 | Y44: 653475.75 | Z44: 669001.5 | AA44: =SUM(AA39:AA43) -> 682969 | AD44: =SUM(AD39:AD43) -> 699145 | AE44: 718313.5 | AF44: 732174 | AG44: 742210.5 | AH44: 748928.3769 | AI44: 755589.4538 | AJ44: 764556.4755 | AK44: 775165.1261 | AL44: 786662.1775 | AM44: 798276.6349
A45: =ROW() -> 45 | C45: FD - Volume (Including Prudent Discounts) [TJ]
A46: =ROW() -> 46 | D46: Tariff class A1 | O46: 16191.68504 | P46: 15869.0038 | Q46: 15601.67466 | R46: 12400.4278 | S46: 12209.3604 | T46: 6031.337349 | U46: 6214.313395 | V46: =W46-U46 -> 6292.668281 | W46: 12506.98168 | X46: 12071.65486 | Y46: 11296.60722 | Z46: 11362.13068 | AA46: 6025.896565 | AD46: 11398.21581 | AE46: 10777.96142 | AF46: 10338.17915 | AG46: 11225.07152 | AH46: 11611.95361 | AI46: 11537.73739 | AJ46: 11850.73891 | AK46: 11509.45386 | AL46: 11200.53691 | AM46: 11140.72914
A47: =ROW() -> 47 | D47: Tariff class A2 | O47: 2239.295585 | P47: 2067.887482 | Q47: 2111.61597 | R47: 1945.340459 | S47: 1956.817742 | T47: 936.9033746 | U47: 1052.735121 | V47: =W47-U47 -> 870.5179483 | W47: 1923.253069 | X47: 2092.299763 | Y47: 2040.058109 | Z47: 1927.568029 | AA47: 971.99815 | AD47: 1854.028603 | AE47: 1819.923627 | AF47: 1814.45347 | AG47: 1787.967278 | AH47: 1837.033731 | AI47: 1818.993685 | AJ47: 1801.24529 | AK47: 1783.783703 | AL47: 1766.604158 | AM47: 1749.701965
A48: =ROW() -> 48 | D48: Tariff class B1 | O48: 1890.602 | P48: 1703.088083 | Q48: 1717.715314 | R48: 1649.406131 | S48: 1636.164865 | T48: 745.5632319 | U48: 910.7456253 | V48: =W48-U48 -> 683.8857193 | W48: 1594.631345 | X48: 1553.663922 | Y48: 1640.269951 | Z48: 1629.429407 | AA48: 889.2586427 | AD48: 1720.802873 | AE48: 1930.425315 | AF48: 1874.796319 | AG48: 2004.555894 | AH48: 2062.435359 | AI48: 2111.5876 | AJ48: 2150.393291 | AK48: 2190.620271 | AL48: 2224.660071 | AM48: 2247.163994
A49: =ROW() -> 49 | D49: Tariff class B2 | O49: 1068.909 | P49: 1109.032828 | Q49: 1134.902225 | R49: 1196.891861 | S49: 1158.582311 | T49: 552.7825543 | U49: 646.6664185 | V49: =W49-U49 -> 522.0128637 | W49: 1168.679282 | X49: 1189.664699 | Y49: 1232.063588 | Z49: 1255.113315 | AA49: 663.227406 | AD49: 1292.02506 | AE49: 1368.908476 | AF49: 1343.140615 | AG49: 1353.684433 | AH49: 1349.535143 | AI49: 1373.368721 | AJ49: 1386.833188 | AK49: 1404.33802 | AL49: 1418.240316 | AM49: 1425.212431
A50: =ROW() -> 50 | D50: Tariff class B3 | O50: 10302.854 | P50: 9974.977966 | Q50: 10147.42947 | R50: 10602.50509 | S50: 10434.25466 | T50: 4589.274683 | U50: 6078.261289 | V50: =W50-U50 -> 3691.503785 | W50: 9769.765074 | X50: 9645.962254 | Y50: 9905.950696 | Z50: 9840.84139 | AA50: 5226.947008 | AD50: 9796.899664 | AE50: 10874.77906 | AF50: 9932.181873 | AG50: 10077.69828 | AH50: 9989.969718 | AI50: 9774.486904 | AJ50: 9634.208261 | AK50: 9533.510555 | AL50: 9405.602362 | AM50: 9320.694589
A51: =ROW() -> 51 | D51: Total | O51: =SUM(O46:O50) -> 31693.34562 | P51: =SUM(P46:P50) -> 30723.99016 | Q51: =SUM(Q46:Q50) -> 30713.33764 | R51: =SUM(R46:R50) -> 27794.57134 | S51: =SUM(S46:S50) -> 27395.17998 | T51: 12855.86119 | U51: 14902.72185 | V51: 12060.5886 | W51: 26963.31045 | X51: 26553.2455 | Y51: 26114.94957 | Z51: 26015.08283 | AA51: =SUM(AA46:AA50) -> 13777.32777 | AD51: 26061.97201 | AE51: 26771.99789 | AF51: 25302.75142 | AG51: 26448.9774 | AH51: 26850.92756 | AI51: =SUM(AI46:AI50) -> 26616.1743 | AJ51: 26823.41894 | AK51: 26421.70641 | AL51: 26015.64381 | AM51: 25883.50212
A52: =ROW() -> 52 | C52: Authority adjustments to volume (Including Prudent Discounts) [TJ] | O52: Actual 2 | T52: Estimate
A53: =ROW() -> 53 | D53: Tariff class A1
A54: =ROW() -> 54 | D54: Tariff class A2
A55: =ROW() -> 55 | D55: Tariff class B1
A56: =ROW() -> 56 | D56: Tariff class B2
A57: =ROW() -> 57 | D57: Tariff class B3 | N57: WAGN submission 24/12/2010 | T57: =4589.27118678824-T50 -> -0.003496266674 | U57: =5806-U50 -> -272.2612895 | V57: =W57-U57 -> 272.2612895
A58: =ROW() -> 58 | D58: Total | O58: =SUM(O53:O57) -> 0 | P58: 0 | Q58: 0 | R58: 0 | S58: 0 | T58: -0.003496266674 | U58: -272.2612895 | V58: 272.2612895 | W58: 0 | X58: 0 | Y58: 0 | Z58: 0 | AC58: =SUM(AC53:AC57) -> 0 | AD58: 0 | AE58: 0 | AF58: 0 | AG58: 0 | AH58: 0 | AI58: =SUM(AI53:AI57) -> 0 | AJ58: 0 | AK58: 0 | AL58: 0 | AM58: 0
A59: =ROW() -> 59 | C59: Modelled Volume (Including Prudent Discounts) [TJ] | O59: Actual 2 | T59: Actual 3 and Est for 2013/14 | AA59: Actual | AG59: Forecast | AI59: Forecast
A60: =ROW() -> 60 | D60: Tariff class A1 | O60: =O46+O53 -> 16191.68504 | P60: =P46+P53 -> 15869.0038 | Q60: =Q46+Q53 -> 15601.67466 | R60: =R46+R53 -> 12400.4278 | S60: =S46+S53 -> 12209.3604 | T60: =T46+T53 -> 6031.337349 | U60: 6214.313395 | V60: 6292.668281 | W60: 12506.98168 | X60: 12071.65486 | Y60: 11296.60722 | Z60: =Z46+Z53 -> 11362.13068 | AA60: 6025.896565 | AD60: =AD46+AD53 -> 11398.21581 | AE60: 10777.96142 | AF60: 10338.17915 | AG60: 11225.07152 | AH60: 11611.95361 | AI60: 11537.73739 | AJ60: 11850.73891 | AK60: 11509.45386 | AL60: 11200.53691 | AM60: 11140.72914
A61: =ROW() -> 61 | D61: Tariff class A2 | O61: =O47+O54 -> 2239.295585 | P61: 2067.887482 | Q61: 2111.61597 | R61: 1945.340459 | S61: 1956.817742 | T61: 936.9033746 | U61: 1052.735121 | V61: 870.5179483 | W61: 1923.253069 | X61: 2092.299763 | Y61: 2040.058109 | Z61: 1927.568029 | AA61: 971.99815 | AD61: =AD47+AD54 -> 1854.028603 | AE61: 1819.923627 | AF61: 1814.45347 | AG61: 1787.967278 | AH61: 1837.033731 | AI61: 1818.993685 | AJ61: 1801.24529 | AK61: 1783.783703 | AL61: 1766.604158 | AM61: 1749.701965
A62: =ROW() -> 62 | D62: Tariff class B1 | O62: 1890.602 | P62: 1703.088083 | Q62: 1717.715314 | R62: 1649.406131 | S62: 1636.164865 | T62: 745.5632319 | U62: 910.7456253 | V62: 683.8857193 | W62: 1594.631345 | X62: 1553.663922 | Y62: 1640.269951 | Z62: 1629.429407 | AA62: 889.2586427 | AD62: =AD48+AD55 -> 1720.802873 | AE62: 1930.425315 | AF62: 1874.796319 | AG62: 2004.555894 | AH62: 2062.435359 | AI62: 2111.5876 | AJ62: 2150.393291 | AK62: 2190.620271 | AL62: 2224.660071 | AM62: 2247.163994
A63: =ROW() -> 63 | D63: Tariff class B2 | O63: 1068.909 | P63: 1109.032828 | Q63: 1134.902225 | R63: 1196.891861 | S63: 1158.582311 | T63: 552.7825543 | U63: 646.6664185 | V63: 522.0128637 | W63: 1168.679282 | X63: 1189.664699 | Y63: 1232.063588 | Z63: 1255.113315 | AA63: 663.227406 | AD63: =AD49+AD56 -> 1292.02506 | AE63: 1368.908476 | AF63: 1343.140615 | AG63: 1353.684433 | AH63: 1349.535143 | AI63: 1373.368721 | AJ63: 1386.833188 | AK63: 1404.33802 | AL63: 1418.240316 | AM63: 1425.212431
A64: =ROW() -> 64 | D64: Tariff class B3 | O64: 10302.854 | P64: 9974.977966 | Q64: 10147.42947 | R64: 10602.50509 | S64: 10434.25466 | T64: 4589.271187 | U64: 5806 | V64: 3963.765074 | W64: 9769.765074 | X64: 9645.962254 | Y64: 9905.950696 | Z64: 9840.84139 | AA64: 5226.947008 | AD64: =AD50+AD57 -> 9796.899664 | AE64: 10874.77906 | AF64: 9932.181873 | AG64: 10077.69828 | AH64: 9989.969718 | AI64: 9774.486904 | AJ64: 9634.208261 | AK64: 9533.510555 | AL64: 9405.602362 | AM64: 9320.694589
A65: =ROW() -> 65 | D65: Total | O65: =SUM(O60:O64) -> 31693.34562 | P65: 30723.99016 | Q65: 30713.33764 | R65: 27794.57134 | S65: 27395.17998 | T65: 12855.8577 | U65: 14630.46056 | V65: 12332.84989 | W65: 26963.31045 | X65: 26553.2455 | Y65: 26114.94957 | Z65: =SUM(Z60:Z64) -> 26015.08283 | AA65: =SUM(AA60:AA64) -> 13777.32777 | AD65: =SUM(AD60:AD64) -> 26061.97201 | AE65: 26771.99789 | AF65: 25302.75142 | AG65: 26448.9774 | AH65: 26850.92756 | AI65: 26616.1743 | AJ65: 26823.41894 | AK65: 26421.70641 | AL65: 26015.64381 | AM65: 25883.50212
A66: =ROW() -> 66 | C66: FD - Volume of Prudent Discounts [TJ]
A67: =ROW() -> 67 | D67: Tariff class A1 | O67: 11296.79104 | P67: 10770.79694 | Q67: 10049.11316 | R67: 6739.789882 | S67: 6558.942626 | T67: 3042.31029 | U67: 2828.607685 | V67: =W67-U67 -> 2616.601033 | W67: 5445.208718 | X67: 3509.122373 | Y67: 2818.078397 | Z67: 2692.272436 | AA67: 1365.485083 | AD67: 2555.292333 | AE67: 1303.226657 | AF67: 1045.562486 | AG67: 1300.164276 | AH67: 2000 | AI67: 2000 | AJ67: 2000 | AK67: 2000 | AL67: 2000 | AM67: 2000
A68: =ROW() -> 68 | D68: Tariff class A2 | O68: 365.01537 | P68: 329.50928 | Q68: 350.493518 | R68: 243.118371 | S68: 175.3598537 | T68: 49.906037 | U68: 60.16105509 | V68: =W68-U68 -> 46.87684991 | W68: 107.037905 | X68: 72.247343 | Y68: 56.564383 | Z68: 43.053627 | AA68: 23.578265 | AD68: 49.569611 | AE68: 49.199402 | AF68: 20.702943 | AG68: 0 | AH68: 0 | AI68: 0 | AJ68: 0 | AK68: 0 | AL68: 0 | AM68: 0
A69: =ROW() -> 69 | D69: Tariff class B1 | O69: 10.517 | P69: 10.376937 | Q69: 10.00596632 | R69: 8.315351313 | S69: 9.59728022 | T69: 1.809206 | U69: 1.970497382 | V69: =W69-U69 -> 0.4672086183 | W69: 2.437706 | X69: 7.6e-05 | Y69: 0 | Z69: 0 | AA69: 0 | AD69: 0 | AE69: 0 | AF69: 0 | AG69: 0 | AH69: 0 | AI69: 0 | AJ69: 0 | AK69: 0 | AL69: 0 | AM69: 0
A70: =ROW() -> 70 | D70: Tariff class B2 | O70: =5.169-0.86 -> 4.309 | P70: =3.131383-0.95 -> 2.181383 | Q70: =1.74440634963386-0.02 -> 1.72440635 | R70: 1.797894512 | S70: 1.741422764 | T70: 0.6762485319 | U70: 1.19580294 | V70: =W70-U70 -> 0.3562082316 | W70: 1.552011171 | X70: 1.196401906 | Y70: 0.4597468801 | Z70: 0.4452877621 | AA70: 0.2171567033 | AD70: 0.3885947692 | AE70: 0.3911495833 | AF70: 0.3908289794 | AG70: 0 | AH70: 0 | AI70: 0 | AJ70: 0 | AK70: 0 | AL70: 0 | AM70: 0
A71: =ROW() -> 71 | D71: Tariff class B3 | O71: 0.5 | P71: 0 | Q71: 0.0066 | R71: 0.0047 | S71: 0.007345700984 | T71: 0 | U71: 0 | V71: =W71-U71 -> 0 | W71: 0 | X71: 0.001401 | Y71: 0.000307 | Z71: 0.000113 | AA71: 0 | AD71: 0 | AE71: 0 | AF71: 0 | AG71: 0 | AH71: 0 | AI71: 0 | AJ71: 0 | AK71: 0 | AL71: 0 | AM71: 0
A72: =ROW() -> 72 | D72: Total | O72: =SUM(O67:O71) -> 11677.13241 | P72: =SUM(P67:P71) -> 11112.86454 | Q72: =SUM(Q67:Q71) -> 10411.34365 | R72: =SUM(R67:R71) -> 6993.026199 | S72: =SUM(S67:S71) -> 6745.648528 | T72: =SUM(T67:T71) -> 3094.701782 | U72: 2891.935041 | V72: 2664.301299 | W72: 5556.23634 | X72: 3582.567595 | Y72: 2875.102834 | Z72: 2735.771464 | AA72: =SUM(AA67:AA71) -> 1389.280505 | AD72: =SUM(AD67:AD71) -> 2605.250539 | AE72: 1352.817209 | AF72: 1066.656258 | AG72: 1300.164276 | AH72: 2000 | AI72: =SUM(AI67:AI71) -> 2000 | AJ72: 2000 | AK72: 2000 | AL72: 2000 | AM72: 2000
A73: =ROW() -> 73 | C73: Volume Excluding Prudent Discounts [TJ]
A74: =ROW() -> 74 | D74: Tariff class A1 | O74: =O60-O67 -> 4894.893999 | P74: 5098.206856 | Q74: 5552.561498 | R74: 5660.63792 | S74: 5650.417774 | T74: 2989.027059 | U74: 3385.705709 | V74: 3676.067249 | W74: 7061.772958 | X74: 8562.532485 | Y74: 8478.528824 | Z74: =Z60-Z67 -> 8669.858249 | AA74: =AA60-AA67 -> 4660.411482 | AD74: 8842.923473 | AE74: 9474.73476 | AF74: 9292.61666 | AG74: 9924.907241 | AH74: 9611.953607 | AI74: 9537.737393 | AJ74: 9850.738909 | AK74: 9509.45386 | AL74: 9200.536907 | AM74: 9140.72914
A75: =ROW() -> 75 | D75: Tariff class A2 | O75: 1874.280215 | P75: 1738.378202 | Q75: 1761.122452 | R75: 1702.222088 | S75: 1781.457888 | T75: 886.9973376 | U75: 992.574066 | V75: 823.6410984 | W75: 1816.215164 | X75: 2020.05242 | Y75: 1983.493726 | Z75: =Z61-Z68 -> 1884.514402 | AA75: =AA61-AA68 -> 948.419885 | AD75: 1804.458992 | AE75: 1770.724225 | AF75: 1793.750527 | AG75: 1787.967278 | AH75: 1837.033731 | AI75: 1818.993685 | AJ75: 1801.24529 | AK75: 1783.783703 | AL75: 1766.604158 | AM75: 1749.701965
A76: =ROW() -> 76 | D76: Tariff class B1 | O76: 1880.085 | P76: 1692.711146 | Q76: 1707.709348 | R76: 1641.09078 | S76: 1626.567585 | T76: 743.7540259 | U76: 908.7751279 | V76: 683.4185106 | W76: 1592.193639 | X76: 1553.663846 | Y76: 1640.269951 | Z76: =Z62-Z69 -> 1629.429407 | AA76: =AA62-AA69 -> 889.2586427 | AD76: 1720.802873 | AE76: 1930.425315 | AF76: 1874.796319 | AG76: 2004.555894 | AH76: 2062.435359 | AI76: 2111.5876 | AJ76: 2150.393291 | AK76: 2190.620271 | AL76: 2224.660071 | AM76: 2247.163994
A77: =ROW() -> 77 | D77: Tariff class B2 | O77: 1064.6 | P77: 1106.851445 | Q77: 1133.177818 | R77: 1195.093966 | S77: 1156.840888 | T77: 552.1063057 | U77: 645.4706156 | V77: 521.6566555 | W77: 1167.127271 | X77: 1188.468297 | Y77: 1231.603841 | Z77: =Z63-Z70 -> 1254.668028 | AA77: =AA63-AA70 -> 663.0102493 | AD77: 1291.636465 | AE77: 1368.517326 | AF77: 1342.749786 | AG77: 1353.684433 | AH77: 1349.535143 | AI77: 1373.368721 | AJ77: 1386.833188 | AK77: 1404.33802 | AL77: 1418.240316 | AM77: 1425.212431
A78: =ROW() -> 78 | D78: Tariff class B3 | O78: 10302.354 | P78: 9974.977966 | Q78: 10147.42287 | R78: 10602.50039 | S78: 10434.24731 | T78: 4589.271187 | U78: 5806 | V78: 3963.765074 | W78: =W64-W71 -> 9769.765074 | X78: 9645.960853 | Y78: 9905.950389 | Z78: =Z64-Z71 -> 9840.841277 | AA78: =AA64-AA71 -> 5226.947008 | AD78: 9796.899664 | AE78: 10874.77906 | AF78: 9932.181873 | AG78: 10077.69828 | AH78: 9989.969718 | AI78: 9774.486904 | AJ78: 9634.208261 | AK78: 9533.510555 | AL78: 9405.602362 | AM78: 9320.694589
A79: =ROW() -> 79 | D79: Total | O79: =SUM(O74:O78) -> 20016.21321 | P79: =SUM(P74:P78) -> 19611.12562 | Q79: =SUM(Q74:Q78) -> 20301.99398 | R79: =SUM(R74:R78) -> 20801.54514 | S79: =SUM(S74:S78) -> 20649.53145 | T79: =SUM(T74:T78) -> 9761.155915 | U79: 11738.52552 | V79: 9668.548587 | W79: 21407.07411 | X79: 22970.6779 | Y79: 23239.84673 | Z79: 23279.31136 | AA79: 12388.04727 | AD79: =SUM(AD74:AD78) -> 23456.72147 | AE79: =SUM(AE74:AE78) -> 25419.18069 | AF79: 24236.09517 | AG79: 25148.81313 | AH79: 24850.92756 | AI79: 24616.1743 | AJ79: 24823.41894 | AK79: 24421.70641 | AL79: 24015.64381 | AM79: 23883.50212
A80: =ROW() -> 80 | C80: FD - # of Net Connections During Period
A81: =ROW() -> 81 | D81: Tariff class A1 | T81: =T32-S32 -> 1.833333333 | W81: =W32-T32 -> 2.833333333 | X81: =X32-W32 -> 2.75 | Y81: =Y32-X32 -> 6.75 | Z81: =Z32-Y32 -> 1.833333333
A82: =ROW() -> 82 | D82: Tariff class A2 | T82: =T33-S33 -> 3.166666667 | W82: =W33-T33 -> 3.833333333 | X82: =X33-W33 -> 8.5 | Y82: -2.916666667 | Z82: -2.083333333
A83: =ROW() -> 83 | D83: Tariff class B1 | T83: =T34-S34 -> 41.16666667 | W83: =W34-T34 -> 34.16666667 | X83: =X34-W34 -> 41.08333333 | Y83: 37 | Z83: 29.58333333
A84: =ROW() -> 84 | D84: Tariff class B2 | T84: =T35-S35 -> 454 | W84: =W35-T35 -> 407.5833333 | X84: =X35-W35 -> 603.6666667 | Y84: 553.5 | Z84: 534.75
A85: =ROW() -> 85 | D85: Tariff class B3 | T85: =T36-S36 -> 11683.5 | W85: =W36-T36 -> 13278 | X85: =X36-W36 -> 15375.58333 | Y85: 12810.25 | Z85: 14961.66667
A86: =ROW() -> 86 | D86: Total | T86: =SUM(T81:T85) -> 12183.66667 | W86: =SUM(W81:W85) -> 13726.41667 | X86: =SUM(X81:X85) -> 16031.58333 | Y86: =SUM(Y81:Y85) -> 13404.58333 | Z86: =SUM(Z81:Z85) -> 15525.75 | AA86: =SUM(AA81:AA85) -> 0 | AD86: 0 | AE86: 0 | AF86: 0 | AG86: 0 | AH86: 0 | AI86: =SUM(AI81:AI85) -> 0 | AJ86: 0 | AK86: 0 | AL86: 0 | AM86: 0
A87: Volume & Customer # by Bands
A88: =ROW() -> 88 | T88: Actual 3 and est for 2013/14 | AA88: Actual | AG88: Forecast | AI88: Forecast
A89: =ROW() -> 89 | C89: A1
A90: =ROW() -> 90 | D90: Customers | T90: =T39 -> 50.33333333 | U90: 53 | V90: 53.16666667 | W90: 53.16666667 | X90: 55.91666667 | Y90: 62.66666667 | Z90: 64.5 | AA90: 64.5 | AD90: 66.5 | AE90: 72 | AF90: 72.5 | AG90: 72.5 | AH90: 73 | AI90: =AI39 -> 73 | AJ90: 73 | AK90: 72.5 | AL90: 72 | AM90: 72
A91: =ROW() -> 91 | D91: Demand 1 [GJ km Year] | T91: 4810.674978 | W91: 9941.092845 | X91: 11680.59719 | Y91: 12196.77594 | Z91: 12836.93546 | AA91: 6908.508355 | AD91: 13355.22104 | AE91: 15366.25762 | AF91: 15901.48185 | AG91: 16933.5405 | AH91: 16451.6396 | AI91: 17062.4266 | AJ91: 17077.6136 | AK91: 15164.6136 | AL91: 13454.8136 | AM91: 13474.8136
A92: =ROW() -> 92 | D92: Demand 2 [GJ km Year] | T92: 1022.982247 | W92: 2395.216712 | X92: 6559.023452 | Y92: 5974.018389 | Z92: 6077.220082 | AA92: 3742.059419 | AD92: 7362.087342 | AE92: 7594.702027 | AF92: 6938.869589 | AG92: 6587.707562 | AH92: 6375.082 | AI92: 6557.322 | AJ92: 6562.522 | AK92: 6562.522 | AL92: 6159.422 | AM92: 6164.622
A93: =ROW() -> 93 | D93: Usage 1 [TJ km] | T93: 10466.01377 | W93: 23453.57172 | X93: 30807.77556 | Y93: 28099.35376 | Z93: 29939.8747 | AA93: 16267.79064 | AD93: 31828.34975 | AE93: 37584.49962 | AF93: 37057.85173 | AG93: 42709.11395 | AH93: 39983.58965 | AI93: 41246.94015 | AJ93: 44810.78326 | AK93: 42975.20601 | AL93: 41945.49333 | AM93: 41647.88055
A94: =ROW() -> 94 | D94: Usage 2 [TJ km] | T94: 1432.245102 | W94: 2792.582836 | X94: 22417.44889 | Y94: 10456.27511 | Z94: 9608.150919 | AA94: 5860.346571 | AD94: 14173.39355 | AE94: 17215.38124 | AF94: 18631.62799 | AG94: 24799.91344 | AH94: 23537.28294 | AI94: 23927.09602 | AJ94: 24860.07907 | AK94: 24541.18881 | AL94: 23972.87112 | AM94: 23586.1967
A95: =ROW() -> 95 | D95: Modelled [GJ per Annum] | T95: =T74*1000 -> 2989027.059 | U95: 3385705.709 | V95: 3676067.249 | W95: 7061772.958 | X95: 8562532.485 | Y95: 8478528.824 | Z95: 8669858.249 | AA95: 4660411.482 | AD95: =AD74*1000 -> 8842923.473 | AE95: 9474734.76 | AF95: 9292616.66 | AG95: 9924907.241 | AH95: 9611953.607 | AI95: =AI74*1000 -> 9537737.393 | AJ95: 9850738.909 | AK95: 9509453.86 | AL95: 9200536.907 | AM95: 9140729.14
A96: =ROW() -> 96 | D96: Adjustment [GJ per Annum] | T96: 0 | U96: 0 | V96: 0 | W96: 0 | X96: 0 | Y96: 0 | Z96: 0 | AA96: 0 | AD96: 0 | AE96: 0 | AF96: 0 | AG96: 0 | AH96: 0
A97: =ROW() -> 97 | D97: Total [GJ per Annum] | T97: =T95+T96 -> 2989027.059 | U97: 3385705.709 | V97: 3676067.249 | W97: 7061772.958 | X97: 8562532.485 | Y97: 8478528.824 | Z97: 8669858.249 | AA97: 4660411.482 | AD97: =AD95+AD96 -> 8842923.473 | AE97: 9474734.76 | AF97: 9292616.66 | AG97: 9924907.241 | AH97: 9611953.607 | AI97: 9537737.393 | AJ97: 9850738.909 | AK97: 9509453.86 | AL97: 9200536.907 | AM97: 9140729.14
A98: =ROW() -> 98 | D98: Volume per Customer [GJ per customer] | T98: =T97/T90 -> 59384.64356 | U98: 63881.2398 | V98: 69142.3307 | W98: 132823.3158 | X98: 153130.2382 | Y98: 135295.6727 | Z98: 134416.407 | AA98: 72254.44158 | AD98: =AD97/AD90 -> 132976.2928 | AE98: 131593.5383 | AF98: 128174.0229 | AG98: 136895.2723 | AH98: 131670.5974 | AI98: 130653.9369 | AJ98: 134941.6289 | AK98: 131164.8808 | AL98: 127785.2348 | AM98: 126954.5714
A99: =ROW() -> 99 | C99: A2
A100: =ROW() -> 100 | D100: A2 Customers | T100: =T40 -> 97.16666667 | U100: 96.5 | V100: 101 | W100: 101 | X100: 109.5 | Y100: 106.5833333 | Z100: 104.5 | AA100: 103 | AD100: 102.5 | AE100: 98.5 | AF100: 97 | AG100: 102 | AH100: 105 | AI100: =AI40 -> 105.5 | AJ100: 106 | AK100: 106.5 | AL100: 107 | AM100: 107.5
A101: =ROW() -> 101 | D101: Band 1 | T101: 228196.5464 | W101: 439801.477 | X101: 851175.004 | Y101: 838543.447 | Z101: 815846.866
A102: =ROW() -> 102 | D102: Band 2 | T102: 203649.7527 | W102: 383576.215 | X102: 1168877.416 | Y102: 1144950.279 | Z102: 1068670.536
A103: =ROW() -> 103 | D103: Band 3 | T103: 455151.0385 | W103: 992837.4724
A104: =ROW() -> 104 | D104: Band 1* | AA104: 405625.606 | AD104: 785654.977 | AE104: 762671.7419 | AF104: 768684.569 | AG104: 777864.024 | AH104: 792767.7198 | AI104: 784982.5789 | AJ104: 777323.2998 | AK104: 769787.7917 | AL104: 762373.9981 | AM104: 755079.8954
A105: =ROW() -> 105 | D105: Band 2* | AA105: 542794.279 | AD105: 1018804.015 | AE105: 1008052.483 | AF105: 1025065.958 | AG105: 1010103.254 | AH105: 1044266.011 | AI105: 1034011.106 | AJ105: 1023921.99 | AK105: 1013995.911 | AL105: 1004230.16 | AM105: 994622.0699
A106: =ROW() -> 106 | D106: Total [GJ per Annum] | T106: =SUM(T101:T103) -> 886997.3376 | U106: 0 | V106: 0 | W106: 1816215.164 | X106: 2020052.42 | Y106: 1983493.726 | Z106: 1884517.402 | AA106: =SUM(AA101:AA105) -> 948419.885 | AD106: =SUM(AD101:AD105) -> 1804458.992 | AE106: 1770724.225 | AF106: 1793750.527 | AG106: 1787967.278 | AH106: 1837033.731 | AI106: 1818993.685 | AJ106: 1801245.29 | AK106: 1783783.703 | AL106: 1766604.158 | AM106: 1749701.965
A107: =ROW() -> 107 | D107: Adjustment [GJ per Annum] | T107: 0 | U107: =W107*J107 -> 0 | V107: 0 | W107: 0 | X107: 0 | Y107: 0 | Z107: 0 | AA107: 0 | AD107: 0 | AE107: 0 | AF107: 0 | AG107: 0 | AH107: 0
A108: =ROW() -> 108 | D108: Modelled [GJ per Annum] | T108: =T106+T107 -> 886997.3376 | U108: 0 | V108: 0 | W108: 1816215.164 | X108: 2020052.42 | Y108: 1983493.726 | Z108: 1884517.402 | AA108: 948419.885 | AD108: =AD106+AD107 -> 1804458.992 | AE108: 1770724.225 | AF108: 1793750.527 | AG108: 1787967.278 | AH108: 1837033.731 | AI108: 1818993.685 | AJ108: 1801245.29 | AK108: 1783783.703 | AL108: 1766604.158 | AM108: 1749701.965
A109: =ROW() -> 109 | D109: Volume per Customer [GJ per customer] | T109: =T108/T100 -> 9128.61754 | U109: 0 | V109: 0 | W109: 17982.32836 | X109: 18447.96731 | Y109: 18609.79258 | Z109: 18033.65935 | AA109: 9207.960049 | AD109: =AD108/AD100 -> 17604.47797 | AE109: 17976.89569 | AF109: 18492.27347 | AG109: 17529.09096 | AH109: 17495.55934 | AI109: 17241.6463 | AJ109: 16992.88009 | AK109: 16749.14275 | AL109: 16510.31923 | AM109: 16276.29735
A110: =ROW() -> 110 | C110: B1
A111: =ROW() -> 111 | D111: Customers | T111: =T41 -> 1222.166667 | U111: 1242 | V111: 1256.333333 | W111: 1256.333333 | X111: 1297.416667 | Y111: 1334.416667 | Z111: 1364 | AA111: 1399 | AD111: 1444 | AE111: 1518.5 | AF111: 1599.5 | AG111: 1670.5 | AH111: 1728.409426 | AI111: =AI41 -> 1780.006732 | AJ111: 1834.193575 | AK111: 1888.489968 | AL111: 1943.392253 | AM111: 1998.918607
A112: =ROW() -> 112 | D112: Band 1 | T112: 649493.4631 | W112: 1389540.322 | X112: 1385587.464 | Y112: 1463332.441 | Z112: 1472170.211 | AA112: 791288.4815 | AD112: 1523036.72 | AE112: 1664051.405 | AF112: 1632990.466 | AG112: 1714526.397 | AH112: 1811006.692 | AI112: 1862188.325 | AJ112: 1907538.198 | AK112: 1947553.394 | AL112: 1979324.775 | AM112: 2000485.254
A113: =ROW() -> 113 | D113: Band 2 | T113: 94260.5628 | W113: 202653.3169 | X113: 168076.3819 | Y113: 176654.1947 | Z113: 175019.4857
A114: =ROW() -> 114 | D114: Band 2* | AA114: 97970.16121 | AD114: 197766.1523 | AE114: 266373.9094 | AF114: 241805.8528 | AG114: 290029.4973 | AH114: 251428.6675 | AI114: 249399.2756 | AJ114: 242855.0933 | AK114: 243066.877 | AL114: 245335.2958 | AM114: 246678.7396
A115: =ROW() -> 115 | D115: Total [GJ per Annum] | T115: =SUM(T112:T113) -> 743754.0259 | U115: 0 | V115: 0 | W115: 1592193.639 | X115: 1553663.846 | Y115: 1639986.635 | Z115: 1647189.697 | AA115: =SUM(AA112:AA114) -> 889258.6427 | AD115: =SUM(AD112:AD114) -> 1720802.873 | AE115: 1930425.315 | AF115: 1874796.319 | AG115: 2004555.894 | AH115: 2062435.359 | AI115: 2111587.6 | AJ115: 2150393.291 | AK115: 2190620.271 | AL115: 2224660.071 | AM115: 2247163.994
A116: =ROW() -> 116 | D116: Adjustment [GJ per Annum] | T116: 0 | U116: =W116*J116 -> 0 | V116: =W116*L116 -> 0 | W116: 0 | X116: 0 | Y116: 0 | Z116: 0 | AA116: 0 | AD116: 0 | AE116: 0 | AF116: 0 | AG116: 0 | AH116: 0
A117: =ROW() -> 117 | D117: Modelled [GJ per Annum] | T117: =T115+T116 -> 743754.0259 | U117: 0 | V117: 0 | W117: 1592193.639 | X117: 1553663.846 | Y117: 1639986.635 | Z117: 1647189.697 | AA117: 889258.6427 | AD117: =AD115+AD116 -> 1720802.873 | AE117: 1930425.315 | AF117: 1874796.319 | AG117: 2004555.894 | AH117: 2062435.359 | AI117: 2111587.6 | AJ117: 2150393.291 | AK117: 2190620.271 | AL117: 2224660.071 | AM117: 2247163.994
A118: =ROW() -> 118 | D118: Volume per Customer [GJ per customer] | T118: =T117/T111 -> 608.5536827 | U118: 0 | V118: 0 | W118: 1267.333753 | X118: 1197.505694 | Y118: 1228.991421 | Z118: 1207.61708 | AA118: 635.6387725 | AD118: =AD117/AD111 -> 1191.69174 | AE118: 1271.271198 | AF118: 1172.113985 | AG118: 1199.973597 | AH118: 1193.256256 | AI118: 1186.280682 | AJ118: 1172.391682 | AK118: 1159.985125 | AL118: 1144.730338 | AM118: 1124.189843
A119: =ROW() -> 119 | C119: B2
A120: =ROW() -> 120 | D120: Modelled B2 Customers | T120: =T42 -> 7697.5 | U120: 7893 | V120: 8105.083333 | W120: 8105.083333 | X120: 8708.75 | Y120: 9262.25 | Z120: 9797 | AA120: 10221.5 | AD120: 10622.5 | AE120: 11112.5 | AF120: 11494.5 | AG120: 11738.5 | AH120: 11957.43869 | AI120: =AI42 -> 12238.84289 | AJ120: 12519.27429 | AK120: 12795.99349 | AL120: 13095.75427 | AM120: 13402.12108
A121: =ROW() -> 121 | D121: Band 1 | T121: 185987.7142 | W121: 389585.8249 | X121: 403522.1127 | Y121: 418531.9016 | Z121: 430255.2483 | AA121: 228811.0652 | AD121: 454358.7074 | AE121: 481672.4814 | AF121: 480578.9736 | AG121: 490073.3326 | AH121: 493541.6991 | AI121: 510865.2847 | AJ121: 524544.5302 | AK121: 540009.9469 | AL121: 554013.675 | AM121: 562698.1234
A122: =ROW() -> 122 | D122: Band 2 | T122: 366118.5915 | W122: 777541.4461 | X122: 784946.1842 | Y122: 812884.7301 | Z122: 825273.9552 | AA122: 434199.1841 | AD122: 837277.7577 | AE122: 886844.8449 | AF122: 862170.8128 | AG122: 863611.1006 | AH122: 855993.4437 | AI122: 862503.4366 | AJ122: 862288.6573 | AK122: 864328.0732 | AL122: 864226.6406 | AM122: 862514.3074
A123: =ROW() -> 123 | D123: Total [GJ per Annum] | T123: =SUM(T121:T122) -> 552106.3057 | U123: 0 | V123: 0 | W123: 1167127.271 | X123: 1188468.297 | Y123: 1231416.632 | Z123: 1255529.203 | AA123: 663010.2493 | AD123: =SUM(AD121:AD122) -> 1291636.465 | AE123: 1368517.326 | AF123: 1342749.786 | AG123: 1353684.433 | AH123: 1349535.143 | AI123: 1373368.721 | AJ123: 1386833.188 | AK123: 1404338.02 | AL123: 1418240.316 | AM123: 1425212.431
A124: =ROW() -> 124 | D124: Adjustment [GJ per Annum] | T124: 0 | U124: =W124*J124 -> 0 | V124: =W124*L124 -> 0 | W124: 0 | X124: 0 | Y124: 0 | Z124: 0 | AA124: 0 | AD124: 0 | AE124: 0 | AF124: 0 | AG124: 0 | AH124: 0
A125: =ROW() -> 125 | D125: Modelled [GJ per Annum] | T125: =T123+T124 -> 552106.3057 | U125: 0 | V125: 0 | W125: 1167127.271 | X125: 1188468.297 | Y125: 1231416.632 | Z125: 1255529.203 | AA125: 663010.2493 | AD125: =AD123+AD124 -> 1291636.465 | AE125: 1368517.326 | AF125: 1342749.786 | AG125: 1353684.433 | AH125: 1349535.143 | AI125: 1373368.721 | AJ125: 1386833.188 | AK125: 1404338.02 | AL125: 1418240.316 | AM125: 1425212.431
A126: =ROW() -> 126 | D126: Volume per Customer [GJ per customer] | T126: =T125/T120 -> 71.7254051 | U126: 0 | V126: 0 | W126: 143.9994165 | X126: 136.4682988 | Y126: 132.9500534 | Z126: 128.1544558 | AA126: 64.86428111 | AD126: =AD125/AD120 -> 121.5943954 | AE126: 123.1511655 | AF126: 116.8167199 | AG126: 115.3200522 | AH126: 112.8615565 | AI126: 112.2139351 | AJ126: 110.775845 | AK126: 109.74826 | AL126: 108.297719 | AM126: 106.3423038
A127: =ROW() -> 127 | C127: B3
A128: =ROW() -> 128 | D128: Modelled B3 Customers | O128: 517005 | P128: 536255 | Q128: 553005 | R128: 568255 | S128: 583955 | T128: =T43 -> 601246 | U128: 609162.8988 | V128: 614524 | W128: 614524 | X128: 629899.5833 | Y128: 642709.8333 | Z128: 657671.5 | AA128: 671181 | AD128: 686909.5 | AE128: 705512 | AF128: 718910.5 | AG128: 728627 | AH128: 735064.5288 | AI128: =AI43 -> 741392.1042 | AJ128: 750024.0076 | AK128: 760301.6426 | AL128: 771444.031 | AM128: 782696.0952
A129: =ROW() -> 129 | D129: Band 1 | O129: 5612594.867 | P129: 5804269.831 | Q129: 5947535.191 | R129: 6153433.466 | S129: 6175963.154 | T129: 3008688.118 | W129: 6231553.639 | X129: 4913980.424 | Y129: 5015651.234 | Z129: 5094684.331
A130: =ROW() -> 130 | D130: Band 2 | O130: 3447512.497 | P130: 3565248.028 | Q130: 3653248.165 | R130: 3601834.077 | S130: 3793559.069 | T130: 1249333.842 | W130: 2807463.61 | X130: 4731980.429 | Y130: 4888608.743 | Z130: 4772554.581
A131: =ROW() -> 131 | D131: Band 3 | O131: 1086632.898 | P131: 1123742.351 | Q131: 1151479.406 | R131: 1191342.579 | S131: 1195704.465 | T131: 331249.2265 | W131: 730749.4901
A132: =ROW() -> 132 | D132: Band 1* | AA132: 0 | AD132: 288522.8556 | AE132: 1180420.566 | AF132: 1198474.251 | AG132: 1219086.447 | AH132: 1246640.147 | AI132: 1248663.668 | AJ132: 1264983.766 | AK132: 1297086.284 | AL132: 1313017.27 | AM132: 1333763.941
A133: =ROW() -> 133 | D133: Band 2* | AA133: 2658352.316 | AD133: 4884879.333 | AE133: 4166565.797 | AF133: 4166780.088 | AG133: 4215164.047 | AH133: 4265567.55 | AI133: 4223463.857 | AJ133: 4213468.567 | AK133: 4234455.046 | AL133: 4215444.33 | AM133: 4213846.112
A134: =ROW() -> 134 | D134: Band 3* | AA134: 2568594.692 | AD134: 4623497.475 | AE134: 5527792.696 | AF134: 4566927.535 | AG134: 4643447.786 | AH134: 4477762.022 | AI134: 4302359.378 | AJ134: 4155755.928 | AK134: 4001969.226 | AL134: 3877140.762 | AM134: 3773084.537
A135: =ROW() -> 135 | D135: Total [GJ per Annum] | O135: =SUM(O129:O131) -> 10146740.26 | P135: 10493260.21 | Q135: 10752262.76 | R135: 10946610.12 | S135: 11165226.69 | T135: 4589271.187 | U135: 0 | V135: 0 | W135: 9769766.739 | X135: 9645960.853 | Y135: 9904259.977 | Z135: 9867238.912 | AA135: =SUM(AA129:AA134) -> 5226947.008 | AD135: =SUM(AD129:AD134) -> 9796899.664 | AE135: 10874779.06 | AF135: 9932181.873 | AG135: 10077698.28 | AH135: 9989969.718 | AI135: 9774486.904 | AJ135: 9634208.261 | AK135: 9533510.555 | AL135: 9405602.362 | AM135: 9320694.589
A136: =ROW() -> 136 | D136: Total [GJ per Annum] Adjusted | T136: =T78*1000 -> 4589271.187 | U136: 5806000 | V136: 3963765.074 | W136: 9769765.074 | X136: 9645960.853 | Y136: 9905950.389 | Z136: 9840841.277 | AA136: 5226947.008 | AD136: 9796899.664 | AE136: 10874779.06 | AF136: 9932181.873 | AG136: 10077698.28 | AH136: 9989969.718 | AI136: =AI78*1000 -> 9774486.904 | AJ136: 9634208.261 | AK136: 9533510.555 | AL136: 9405602.362 | AM136: 9320694.589
A137: =ROW() -> 137 | D137: Volume per Customer [GJ per customer] | T137: =T136/T128 -> 7.632934251 | U137: =U136/U128 -> 9.531112305 | V137: 6.450138764 | W137: 15.89810174 | X137: 15.31348981 | Y137: 15.41278797 | Z137: 14.96315604 | AA137: 7.787686195 | AD137: 14.26228588 | AE137: 15.41402423 | AF137: 13.81560274 | AG137: 13.83107993 | AH137: 13.59060236 | AI137: =AI136/AI128 -> 13.18396412 | AJ137: 12.84519984 | AK137: 12.53911608 | AL137: 12.19220317 | AM137: 11.90844652
A138: =ROW() -> 138 | T138: Modelled - Estimate | AA138: Actual | AG138: Forecast | AI138: Forecast
A139: =ROW() -> 139 | D139: Modelled Band 1 | T139: =T$136*T149 -> 3008688.118 | W139: =W$136*W149 -> 6231552.577 | X139: 4913980.424 | Y139: 5016507.282 | Z139: 5081054.62 | AA139: 0 | AB139: 0 | AC139: 0 | AD139: 0 | AE139: 0 | AF139: 0 | AG139: 0 | AH139: 0 | AI139: =AI$136*AI149 -> 0 | AJ139: 0 | AK139: 0 | AL139: 0 | AM139: 0
A140: =ROW() -> 140 | D140: Modelled Band 2 | T140: =T$136*T150 -> 1249333.842 | W140: =W$136*W150 -> 2807463.131 | X140: 4731980.429 | Y140: 4889443.108 | Z140: 4759786.657 | AA140: 0 | AB140: 0 | AC140: 0 | AD140: 0 | AE140: 0 | AF140: 0 | AG140: 0 | AH140: 0 | AI140: =AI$136*AI150 -> 0 | AJ140: 0 | AK140: 0 | AL140: 0 | AM140: 0
A141: =ROW() -> 141 | D141: Modelled Band 3 | T141: =T$136*T151 -> 331249.2265 | W141: =W$136*W151 -> 730749.3655 | X141: 0 | Y141: 0 | Z141: 0 | AA141: 0 | AB141: 0 | AC141: 0 | AD141: 0 | AE141: 0 | AF141: 0 | AG141: 0 | AH141: 0 | AI141: =AI$136*AI151 -> 0 | AJ141: 0 | AK141: 0 | AL141: 0 | AM141: 0
A142: =ROW() -> 142 | D142: Modelled Band 1* | AA142: =AA$136*AA152 -> 0 | AD142: 288522.8556 | AE142: 1180420.566 | AF142: 1198474.251 | AG142: 1219086.447 | AH142: 1246640.147 | AI142: =AI$136*AI152 -> 1248663.668 | AJ142: 1264983.766 | AK142: 1297086.284 | AL142: 1313017.27 | AM142: 1333763.941
A143: =ROW() -> 143 | D143: Modelled Band 2* | AA143: 2658352.316 | AD143: 4884879.333 | AE143: 4166565.797 | AF143: 4166780.088 | AG143: 4215164.047 | AH143: 4265567.55 | AI143: =AI$136*AI153 -> 4223463.857 | AJ143: 4213468.567 | AK143: 4234455.046 | AL143: 4215444.33 | AM143: 4213846.112
A144: =ROW() -> 144 | D144: Modelled Band 3* | AA144: 2568594.692 | AD144: 4623497.475 | AE144: 5527792.696 | AF144: 4566927.535 | AG144: 4643447.786 | AH144: 4477762.022 | AI144: =AI$136*AI154 -> 4302359.378 | AJ144: 4155755.928 | AK144: 4001969.226 | AL144: 3877140.762 | AM144: 3773084.537
A145: =ROW() -> 145 | D145: ERA adjustment [GJ per Annum] | T145: 0 | U145: 0 | V145: 0 | W145: 0 | X145: 0 | Y145: 0 | Z145: 0 | AA145: 0 | AD145: 0 | AE145: 0 | AF145: 0 | AG145: 0 | AH145: 0
A146: =ROW() -> 146 | D146: Modelled Total [GJ per Annum] | O146: =O135 -> 10146740.26 | P146: =P135 -> 10493260.21 | Q146: =Q135 -> 10752262.76 | R146: =R135 -> 10946610.12 | S146: =S135 -> 11165226.69 | T146: =SUM(T139:T145) -> 4589271.187 | U146: =SUM(U139:U145) -> 0 | V146: 0 | W146: 9769765.074 | X146: 9645960.853 | Y146: 9905950.389 | Z146: 9840841.277 | AA146: 5226947.008 | AD146: =SUM(AD139:AD145) -> 9796899.664 | AE146: 10874779.06 | AF146: 9932181.873 | AG146: 10077698.28 | AH146: 9989969.718 | AI146: 9774486.904 | AJ146: 9634208.261 | AK146: 9533510.555 | AL146: 9405602.362 | AM146: 9320694.589
A147: =ROW() -> 147 | D147: Volume per Customer | O147: =O146/O128 -> 19.62600026 | P147: 19.56766876 | Q147: 19.44333733 | R147: 19.26355267 | S147: 19.12001214 | T147: 7.632934251 | U147: 0 | V147: 0 | W147: 15.89810174 | X147: 15.31348981 | Y147: 15.41278797 | Z147: 14.96315604 | AA147: 7.787686195 | AD147: =AD146/AD128 -> 14.26228588 | AE147: 15.41402423 | AF147: 13.81560274 | AG147: 13.83107993 | AH147: 13.59060236 | AI147: 13.18396412 | AJ147: 12.84519984 | AK147: 12.53911608 | AL147: 12.19220317 | AM147: 11.90844652
A148: =ROW() -> 148 | T148: =T138 -> Modelled - Estimate | AA148: Actual | AG148: Forecast | AI148: Forecast
A149: =ROW() -> 149 | D149: Modelled Band 1 | T149: =T129/T$135 -> 0.6555917041 | W149: =W129/W$135 -> 0.6378405755 | X149: 0.5094340003 | Y149: 0.5064135277 | Z149: 0.5163231961
A150: =ROW() -> 150 | D150: Modelled Band 2 | T150: =T130/T$135 -> 0.2722292477 | W150: 0.2873623992 | X150: 0.4905659997 | Y150: 0.4935864723 | Z150: 0.4836768039
A151: =ROW() -> 151 | D151: Modelled Band 3 | T151: =T131/T$135 -> 0.07217904827 | W151: 0.07479702531 | X151: 0 | Y151: 0 | Z151: 0
A152: =ROW() -> 152 | D152: Modelled Band 1* | AA152: =AA132/AA$135 -> 0 | AD152: =AD132/AD$135 -> 0.02945042467 | AE152: 0.1085466251 | AF152: 0.1206657577 | AG152: 0.1209687384 | AH152: 0.1247891817 | AI152: =AI132/AI$135 -> 0.1277472343 | AJ152: 0.1313012686 | AK152: 0.1360554726 | AL152: 0.1395994875 | AM152: 0.1430970544
A153: =ROW() -> 153 | D153: Modelled Band 2* | AA153: 0.5085860469 | AD153: 0.498614817 | AE153: 0.3831402711 | AF153: 0.4195231361 | AG153: 0.4182665455 | AH153: 0.426985033 | AI153: =AI133/AI$135 -> 0.4320905945 | AJ153: 0.4373445594 | AK153: 0.4441653493 | AL153: 0.4481844084 | AM153: 0.4520957179
A154: =ROW() -> 154 | D154: Modelled Band 3* | AA154: 0.4914139531 | AD154: 0.4719347583 | AE154: 0.5083131038 | AF154: 0.4598111063 | AG154: 0.460764716 | AH154: 0.4482257853 | AI154: =AI134/AI$135 -> 0.4401621712 | AJ154: 0.4313541721 | AK154: 0.4197791782 | AL154: 0.412216104 | AM154: 0.4048072277
A155: =ROW() -> 155 | T155: =SUM(T149:T154) -> 1 | U155: =SUM(U149:U154) -> 0 | V155: 0 | W155: 1 | X155: 1 | Y155: 1 | Z155: 1 | AA155: 1 | AD155: 1 | AE155: 1 | AF155: 1 | AG155: 1 | AH155: 1 | AI155: =SUM(AI149:AI154) -> 1 | AJ155: 1 | AK155: 1 | AL155: 1 | AM155: 1
A156: Prudent Discounts
A157: =ROW() -> 157 | C157: Prudent Discounts | O157: Approved 2 | AA157: Forecast [m$ 30/6/2014]
A158: =ROW() -> 158 | D158: Discounted Revenue [k$ 31/12/2004] | O158: 3372.350687 | P158: 3367.643259 | Q158: 3361.38203 | R158: 3355.815836 | S158: 3367.626992
A159: =ROW() -> 159 | D159: ="Discounted Revenue [m$ "&Input!$G$34&"]" -> Discounted Revenue [m$ 31/12/2019] | O159: =O158*$N$12/1000 -> 4.803564229 | P159: =P158*$N$12/1000 -> 4.796858985 | Q159: =Q158*$N$12/1000 -> 4.787940513 | R159: =R158*$N$12/1000 -> 4.780012046 | S159: =S158*$N$12/1000 -> 4.796835815
A160: =ROW() -> 160 | C160: Prudent Discounts | O160: Actual [m$ Nominal] | AA160: $ m actual | AB160: $ m actual | AC160: $ m actual | AD160: $ m actual | AE160: $ m actual | AF160: $ m actual | AG160: Forecast $ nominal | AI160: Forecast $ nominal
A161: =ROW() -> 161 | D161: Discounted Revenue [$ OD] | O161: 4231.59836 | P161: 4558.284913 | Q161: 4561.407993 | R161: 3850.048486 | S161: 4029.130035 | AA161: 0.9597968866 | AD161: 2.022598293 | AE161: 0.78735303 | AF161: 0.31370567 | AG161: 0.2477026774 | AH161: 0.2344 | AI161: 0.2344 | AJ161: 0.2404269136 | AK161: 0.2434982355 | AL161: 0.2466087918 | AM161: 0.2497590837
A162: =ROW() -> 162 | O162: ="Actual [m$ "&Input!$G$34&"]" -> Actual [m$ 31/12/2019] | T162: ="Post DD3 - Approved 3 [m$ "&Input!$G$34&"]" -> Post DD3 - Approved 3 [m$ 31/12/2019] | AA162: Actual [m$ 30/6/2019] | AG162: Forecast $ m 31/12/2019 | AI162: Forecast $ m 31/12/2019
A163: =ROW() -> 163 | D163: ="Discounted Revenue [m$ "&Input!$G$34&"]" -> Discounted Revenue [m$ 31/12/2019] | O163: =O161*O$12/1000 -> 5.863378969 | P163: 6.11701535 | Q163: 5.945331622 | R163: 4.839790999 | S163: 4.960324379 | T163: =1.61324818038973*$S$12 -> 1.986094817 | U163: =1.70281914185273*$S$12 -> 2.096367015 | V163: =1.56952494995037*$S$12 -> 1.932266471 | W163: =3.2723440918031*$S$12 -> 4.028633485 | X163: =3.28607519027924*$S$12 -> 4.045538053 | Y163: =3.25036818366509*$S$12 -> 4.001578605 | Z163: =3.16052965214769*$S$12 -> 3.890976997 | AA163: =AA161*AA12 -> 1.045653531 | AB163: 0 | AC163: 0 | AD163: 2.166935729 | AE163: 0.8312707405 | AF163: 0.3249993048 | AG163: 0.2521219937 | AH163: 0.2344 | AI163: 0.2314434371 | AJ163: 0.2344 | AK163: 0.2344 | AL163: 0.2344 | AM163: 0.2344
A164: =ROW() -> 164 | C164: Volume | O164: Actual | T164: Actual 3 | AA164: Actual (TJ) | AG164: Forecast (TJ) | AI164: Forecast (TJ)
A165: =ROW() -> 165 | D165: Volume [TJ] | O165: =O72 -> 11677.13241 | P165: 11112.86454 | Q165: 10411.34365 | R165: 6993.026199 | S165: 6745.648528 | T165: 3094.701782 | U165: 2891.935041 | V165: 2664.301299 | W165: 5556.23634 | X165: 3582.567595 | Y165: 2875.102834 | Z165: 2735.771464 | AA165: 1389.280505 | AD165: =AD72 -> 2605.250539 | AE165: 1352.817209 | AF165: 1066.656258 | AG165: 1300.164276 | AH165: 2000 | AI165: =AI72 -> 2000 | AJ165: 2000 | AK165: 2000 | AL165: 2000 | AM165: 2000
A166: =ROW() -> 166 | D166: ="Discounted Notional Tariff [$ per GJ, "&Input!$G$34&"]" -> Discounted Notional Tariff [$ per GJ, 31/12/2019] | O166: =1000*O163/O165 -> 0.5021249023 | P166: 0.5504445165 | Q166: 0.5710436443 | R166: 0.692088212 | S166: 0.7353369151 | T166: 0.6417726027 | U166: 0.7249011423 | V166: 0.7252432266 | W166: 0.725065177 | X166: 1.129228674 | Y166: 1.391803645 | Z166: 1.422259516 | AA166: 0.7526583203 | AD166: =1000*AD163/AD165 -> 0.831757137 | AE166: =1000*AE163/AE165 -> 0.6144738071 | AF166: 0.3046898214 | AG166: 0.1939154908 | AH166: 0.1172 | AI166: 0.1157217186 | AJ166: 0.1172 | AK166: 0.1172 | AL166: 0.1172 | AM166: 0.1172
A167: =ROW() -> 167 | O167: Actual [m$ Nominal] | T167: =T164&" [m$ Nominal]" -> Actual 3 [m$ Nominal] | AA167: Actual [m$ Nominal] | AG167: Forecast $ m Nominal | AI167: Forecast $ m Nominal
A168: =ROW() -> 168 | D168: Discounted Notional Tariff [$ per GJ, Nominal] | O168: =O166*O$13 -> 0.36238335 | P168: 0.410180912 | Q168: 0.4381190502 | R168: 0.5505554214 | S168: 0.5972932058 | T168: 0.5292898269 | U168: 0.6044488223 | V168: 0.619678642 | W168: 0.6195265089 | X168: 0.9762250194 | Y168: 1.231984966 | Z168: 1.296907889 | AA168: =AA166*AA$13 -> 0.6908589614 | AD168: 0.7763546204 | AE168: 0.5820099161 | AF168: 0.2941019355 | AG168: 0.1905164463 | AH168: 0.1172 | AI168: =AI166*AI$13 -> 0.1172 | AJ168: 0.1202134568 | AK168: 0.1217491177 | AL168: 0.1233043959 | AM168: 0.1248795419
A169: Tariff Revenue
A170: =ROW() -> 170 | C170: Proposed Tariff Revenue [Real] | O170: Actual [m$ 31/12/2009] | T170: Approved 3 [m$ 31/12/2009] | AA170: Approved [m$ 30/6/2014] | AI170: Forecast [m$ 30/6/2019]
A171: =ROW() -> 171 | D171: A1 | O171: 4.80139987 | P171: 4.2922495 | Q171: 4.3136383 | R171: 4.545798883 | S171: 4.826820838 | T171: 2.768748194 | U171: 3.182541018 | V171: 3.179597933 | W171: 6.362138951 | X171: 7.008674989 | Y171: 7.512294084 | Z171: 7.924159466 | AA171: 4.094850881 | AB171: 4.815685591 | AC171: 3.180525157 | AE171: 7.878421387 | AF171: 7.226269581 | AG171: 6.577223067 | AH171: 5.988655881 | AI171: =Revenue!AI$110 -> 7.428925143 | AJ171: =Revenue!AJ$110 -> 7.734784801 | AK171: =Revenue!AK$110 -> 7.524069579 | AL171: =Revenue!AL$110 -> 7.32159444 | AM171: =Revenue!AM$110 -> 7.476577157
A172: =ROW() -> 172 | D172: A2 | O172: 4.41869984 | P172: 4.72661995 | Q172: 4.93738968 | R172: 4.918677475 | S172: 5.203813145 | T172: 2.607760183 | U172: 2.759398225 | V172: 3.57409815 | W172: 6.333496375 | X172: 7.817500234 | Y172: 8.45458036 | Z172: 9.10643868 | AA172: 3.125233004 | AB172: 4.595120053 | AC172: 1.454069924 | AE172: 5.608288214 | AF172: 5.315696163 | AG172: 5.040065608 | AH172: 4.671191358 | AI172: =Revenue!AI$118 -> 4.667226485 | AJ172: =Revenue!AJ$118 -> 4.752043737 | AK172: =Revenue!AK$118 -> 4.845539542 | AL172: =Revenue!AL$118 -> 4.93992773 | AM172: =Revenue!AM$118 -> 5.045217098
A173: =ROW() -> 173 | D173: B1 | O173: 8.59801223 | P173: 8.413272871 | Q173: 8.711606538 | R173: 7.658183152 | S173: 8.299208156 | T173: 4.017820159 | U173: 4.721702136 | V173: 4.861209307 | W173: 9.582911443 | X173: 11.04703331 | Y173: 12.10981779 | Z173: 13.23535228 | AA173: 5.276063572 | AB173: 7.544028389 | AC173: 2.192048269 | AE173: 8.828295417 | AF173: 8.243961957 | AG173: 7.717327216 | AH173: 7.228097872 | AI173: =Revenue!AI$124 -> 9.721049576 | AJ173: =Revenue!AJ$124 -> 10.16061282 | AK173: =Revenue!AK$124 -> 10.61287963 | AL173: =Revenue!AL$124 -> 11.05019105 | AM173: =Revenue!AM$124 -> 11.45034962
A174: =ROW() -> 174 | D174: B2 | O174: 6.26021071 | P174: 6.501671833 | Q174: 6.979974896 | R174: 7.371811049 | S174: 7.523205351 | T174: 3.66696144 | U174: 4.031464526 | V174: 4.941080427 | W174: 8.972544953 | X174: 10.83174427 | Y174: 11.7801164 | Z174: 12.85390142 | AA174: 5.733021665 | AB174: 7.926108625 | AC174: 2.466590787 | AE174: 9.143368074 | AF174: 8.320907832 | AG174: 7.566229981 | AH174: 6.734082658 | AI174: =Revenue!AI$129 -> 9.59706429 | AJ174: =Revenue!AJ$129 -> 9.981781174 | AK174: =Revenue!AK$129 -> 10.39548445 | AL174: =Revenue!AL$129 -> 10.80666664 | AM174: =Revenue!AM$129 -> 11.19127573
A175: =ROW() -> 175 | D175: B3 | O175: 87.52746275 | P175: 87.12634889 | Q175: 90.54797867 | R175: 94.38861393 | S175: 97.8627623 | T175: 45.89263033 | U175: 56.02774359 | V175: 63.86178671 | W175: 119.8895303 | X175: 151.5492519 | Y175: 166.3879097 | Z175: 183.0571263 | AA175: 79.58052432 | AB175: 108.3592022 | AC175: 31.93360483 | AE175: 127.4029613 | AF175: 118.679674 | AG175: 112.0611405 | AH175: 106.2312504 | AI175: =Revenue!AI$138 -> 138.8493111 | AJ175: =Revenue!AJ$138 -> 140.2099985 | AK175: =Revenue!AK$138 -> 141.9602476 | AL175: =Revenue!AL$138 -> 143.6337841 | AM175: =Revenue!AM$138 -> 145.6160387
A176: =ROW() -> 176 | D176: Total | O176: =SUM(O171:O175) -> 111.6057854 | P176: 111.060163 | Q176: 115.4905881 | R176: 118.8830845 | S176: 123.7158098 | T176: 58.9539203 | U176: 70.72284949 | V176: 80.41777252 | W176: 151.140622 | X176: 188.2542047 | Y176: 206.2447183 | Z176: 226.1769781 | AA176: =SUM(AA171:AA175) -> 97.80969344 | AB176: =SUM(AB171:AB175) -> 133.2401449 | AC176: =SUM(AC171:AC175) -> 41.22683897 | AE176: 158.8613343 | AF176: 147.7865096 | AG176: 138.9619864 | AH176: 130.8532781 | AI176: =SUM(AI171:AI175) -> 170.2635766 | AJ176: 172.839221 | AK176: 175.3382208 | AL176: 177.752164 | AM176: 180.7794583
A177: =ROW() -> 177 | C177: Proposed Tariff Revenue [Nominal] | O177: Actual [m$ Nominal] | T177: Approved 3 [m$ Nominal] | AA177: Approved [m$ Nominal] | AI177: Forecast [m$ Nominal]
A178: =ROW() -> 178 | D178: A1 | O178: =O171*O$13 -> 3.46516845 | P178: 3.198503685 | Q178: 3.309531826 | R178: 3.616178077 | S178: 3.920688915 | T178: 2.283472753 | U178: 2.653717946 | V178: 2.716783635 | W178: 5.436081967 | X178: 6.059041926 | Y178: 6.649668867 | Z178: 7.225759301 | AA178: =AA171*AA$12 -> 4.461147294 | AB178: 5.159344395 | AC178: 3.407495014 | AE178: =AE171*AE$12 -> 8.317871311 | AF178: 7.486420599 | AG178: 6.694568706 | AH178: 5.988655881 | AI178: =AI171*AI$13 -> 7.523825584 | AJ178: 7.933662274 | AK178: 7.816116323 | AL178: 7.702941803 | AM178: 7.966480632
A179: =ROW() -> 179 | D179: A2 | O179: =O172*O$13 -> 3.188973985 | P179: 3.522188384 | Q179: 3.788089577 | R179: 3.912802592 | S179: 4.226909016 | T179: =T172*T$13 -> 2.150700933 | U179: 2.300886162 | V179: 3.05386139 | W179: =W172*W$13 -> 5.411608532 | X179: 6.758276243 | Y179: 7.483753854 | Z179: 8.303837684 | AA179: 3.404794256 | AB179: 4.923038775 | AC179: 1.557835821 | AE179: 5.921112536 | AF179: 5.507065134 | AG179: 5.129986493 | AH179: 4.671191358 | AI179: =AI172*AI$13 -> 4.726847742 | AJ179: 4.874228708 | AK179: 5.033619148 | AL179: 5.197225294 | AM179: 5.375805458
A180: =ROW() -> 180 | D180: B1 | O180: 6.205182139 | P180: 6.269412876 | Q180: 6.683763702 | R180: 6.092076385 | S180: 6.741210109 | T180: 3.313621253 | U180: 3.937126222 | V180: 4.153623876 | W180: 8.188046895 | X180: 9.550227126 | Y180: 10.71926597 | Z180: 12.06884721 | AA180: 5.748022922 | AB180: 8.08238824 | AC180: 2.348478059 | AE180: 9.320728299 | AF180: 8.54075065 | AG180: 7.855013696 | AH180: 7.228097872 | AI180: =AI173*AI$13 -> 9.845230648 | AJ180: 10.4218634 | AK180: 11.02481853 | AL180: 11.62574345 | AM180: 12.20063494
A181: =ROW() -> 181 | D181: B2 | O181: 4.517991676 | P181: 4.844923698 | Q181: 5.355212342 | R181: 5.864267688 | S181: 6.11088516 | T181: 3.024257156 | U181: 3.361581108 | V181: 4.221869156 | W181: 7.66652382 | X181: 9.364108449 | Y181: 10.42742368 | Z181: 11.72101572 | AA181: 6.245857256 | AB181: 8.491734633 | AC181: 2.642612585 | AE181: 9.653375372 | AF181: 8.620466632 | AG181: 7.701220703 | AH181: 6.734082658 | AI181: =AI174*AI$13 -> 9.719661519 | AJ181: 10.23843362 | AK181: 10.79898516 | AL181: 11.369535 | AM181: 11.92458521
A182: =ROW() -> 182 | D182: B3 | O182: 63.1685364 | P182: 64.92491827 | Q182: 69.47068724 | R182: 75.08603993 | S182: 79.49113097 | T182: 37.84907966 | U182: 46.71796146 | V182: 54.56622525 | W182: 102.438711 | X182: 131.0152451 | Y182: 147.281841 | Z182: 166.9232855 | AA182: 86.69923546 | AB182: 116.0919733 | AC182: 34.212463 | AE182: 134.5093623 | AF182: 122.9522295 | AG182: 114.0604472 | AH182: 106.2312504 | AI182: =AI175*AI$13 -> 140.6230348 | AJ182: 143.8150904 | AK182: 147.4704343 | AL182: 151.1149913 | AM182: 155.1575444
A183: =ROW() -> 183 | D183: Total | O183: =SUM(O178:O182) -> 80.54585265 | P183: 82.75994692 | Q183: 88.60728469 | R183: 94.57136467 | S183: 100.4908242 | T183: 48.62113175 | U183: 58.9712729 | V183: 68.71236331 | W183: 129.1409723 | X183: 162.7468988 | Y183: 182.5619534 | Z183: 206.2427454 | AA183: 106.5590572 | AB183: 142.7484793 | AC183: 44.16888448 | AE183: =SUM(AE178:AE182) -> 167.7224498 | AF183: 153.1069326 | AG183: 141.4412368 | AH183: 130.8532781 | AI183: 172.4386003 | AJ183: 177.2832784 | AK183: 182.1439734 | AL183: 187.0104368 | AM183: 192.6250506
A184: Ancillary Services (including special meter reads)
A185: =ROW() -> 185 | C185: Revenue | O185: AA2 [m$ OD] | T185: Approved 3 [m$ 31/12/2009] | AA185: Actual $ M Nominal | AG185: Forecast $ m nominal | AI185: Forecast $ M Nominal
A186: =ROW() -> 186 | D186: Revenue | O186: 0.53 | P186: 0.525 | Q186: 0.548 | R186: 0.709 | S186: 0.706 | T186: =0.77/2 -> 0.385 | U186: =T186 -> 0.385 | V186: =T186 -> 0.385 | W186: =U186+V186 -> 0.77 | X186: =$T$186*2 -> 0.77 | Y186: =$T$186*2 -> 0.77 | Z186: =$T$186*2 -> 0.77 | AA186: =AA188/AA12 -> 0.7902569957 | AB186: 0 | AC186: 0 | AD186: 1.948705492 | AE186: 2.650892915 | AF186: 3.854279787 | AG186: 3.98112877 | AH186: 4.026437676 | AI186: 3.235999553 | AJ186: 3.319041961 | AK186: 3.410749781 | AL186: 3.504898201 | AM186: 3.601250541
A187: =ROW() -> 187 | T187: ="Approved 3 [m$ "&Input!$G$34&"]" -> Approved 3 [m$ 31/12/2019] | AA187: ="Actual [m$ "&Input!$G$34&"]" -> Actual [m$ 31/12/2019] | AG187: ="Forecast [m$ "&Input!$G$34&"]" -> Forecast [m$ 31/12/2019] | AI187: ="Forecast [m$ "&Input!$G$34&"]" -> Forecast [m$ 31/12/2019]
A188: =ROW() -> 188 | T188: =T348/1000000 -> 0 | W188: =W348/1000000 -> 0 | X188: =X348/1000000 -> 0 | Y188: =Y348/1000000 -> 0 | Z188: =Z348/1000000 -> 0 | AA188: =AA348/1000000 -> 0.8609478001 | AB188: 0 | AC188: 0 | AD188: 2.087769762 | AE188: 2.798756888 | AF188: 3.993036693 | AG188: 4.052156937 | AH188: 4.026437676 | AI188: 3.195182846 | AJ188: 3.235841712 | AK188: 3.283308181 | AL188: 3.331382196 | AM188: 3.379789492
A189: =ROW() -> 189 | D189: Adjustment | O189: 0 | P189: 0 | Q189: 0 | R189: 0 | S189: 0 | T189: 0 | U189: 0 | V189: 0 | W189: 0 | X189: 0 | Y189: 0 | Z189: 0 | AA189: 0 | AD189: 0 | AE189: 0 | AF189: 0 | AG189: 0 | AH189: 0
A190: =ROW() -> 190 | D190: ="Revenue [m$ "&Input!$G$34&"]" -> Revenue [m$ 31/12/2019] | O190: =O186*O$12+O189 -> 0.7343775541 | P190: =P186*P$12+P189 -> 0.7045266191 | Q190: =Q186*Q$12+Q189 -> 0.7142622923 | R190: =R186*R$12+R189 -> 0.8912645725 | S190: =S186*S$12+S189 -> 0.8691675328 | T190: =T188+T189 -> 0 | W190: =W188+W189 -> 0 | X190: =X188+X189 -> 0 | Y190: =Y188+Y189 -> 0 | Z190: =Z188+Z189 -> 0 | AA190: =AA188+AA189 -> 0.8609478001 | AD190: =AD188+AD189 -> 2.087769762 | AE190: =AE188+AE189 -> 2.798756888 | AF190: =AF188+AF189 -> 3.993036693 | AG190: 4.052156937 | AH190: 4.026437676 | AI190: =AI188+AI189 -> 3.195182846 | AJ190: =AJ188+AJ189 -> 3.235841712 | AK190: =AK188+AK189 -> 3.283308181 | AL190: =AL188+AL189 -> 3.331382196 | AM190: =AM188+AM189 -> 3.379789492
A191: =ROW() -> 191 | O191: Actual [m$ Nominal] | T191: Approved 3 [m$ Nominal] | AA191: Actual $ M Nominal | AG191: Forecast $ m nominal | AI191: Forecast $ M Nominal
A192: =ROW() -> 192 | D192: Revenue [m$ Nominal] | O192: =O190*O$13 -> 0.53 | P192: 0.525 | Q192: 0.548 | R192: 0.709 | S192: 0.706 | T192: 0 | W192: =W190*W$13 -> 0 | X192: =X190*X$13 -> 0 | Y192: =Y190*Y$13 -> 0 | Z192: =Z190*Z$13 -> 0 | AA192: =AA190*AA$13 -> 0.7902569957 | AD192: =AD190*AD$13 -> 1.948705492 | AE192: 2.650892915 | AF192: 3.854279787 | AG192: 3.98112877 | AH192: 4.026437676 | AI192: 3.235999553 | AJ192: 3.319041961 | AK192: 3.410749781 | AL192: 3.504898201 | AM192: 3.601250541
A193: Tariffs Excluding GST
A194: =ROW() -> 194 | C194: A1 | J194: Actual 1 (FA1) [$ OD] | O194: Actual 2 [$ OD] | T194: Actual 3 [$ Nominal] | AA194: Actual 4 [$ Nominal] | AH194: Forecast 9$ Nominal) | AI194: Forecast 5 ($ Nominal)
A195: =ROW() -> 195 | D195: Fixed [$/year] | J195: 43720 | K195: 44069.76364 | L195: 44056.54545 | M195: 44342.90909 | N195: 44365.08182 | O195: 44263.04545 | P195: 44734.3 | Q195: 44286.96 | R195: 44286.96 | S195: 44286.96 | T195: 44286.96 | W195: 44286.96 | X195: 41283.45 | Y195: 45308.99444 | Z195: 46738.99 | AA195: 46742.47 | AB195: 46742.47 | AC195: 46027.88148 | AE195: 42220.77 | AF195: 38925.9 | AG195: 35827.4 | AH195: 32444.85 | AI195: =Revenue!AI68*AI$13 -> 36348.22186 | AJ195: =Revenue!AJ68*AJ$13 -> 37659.23474 | AK195: =Revenue!AK68*AK$13 -> 39017.53812 | AL195: =Revenue!AL68*AL$13 -> 40424.83067 | AM195: =Revenue!AM68*AM$13 -> 41882.88284
A196: =ROW() -> 196 | D196: Demand 1 (<=10km) [$/GJ*km*year], | J196: 180.4818182 | K196: 181.9272727 | L196: 181.8727273 | M196: 183.0545455 | N196: 183.1454545 | O196: 182.7272727 | P196: 184.71 | Q196: 182.86 | R196: 182.86 | S196: 182.86 | T196: 182.86 | W196: 182.86 | X196: 174.02 | Y196: 190.9826186 | Z196: 197.0028843 | AA196: 197.0028843 | AB196: 197.0028843 | AC196: 193.9929687 | AE196: 177.94 | AF196: 164.05 | AG196: 151.04 | AH196: 136.75 | AI196: =Revenue!AI69*AI$13 -> 153.2023912 | AJ196: =Revenue!AJ69*AJ$13 -> 158.7289457 | AK196: =Revenue!AK69*AK$13 -> 164.4548023 | AL196: =Revenue!AL69*AL$13 -> 170.3852126 | AM196: =Revenue!AM69*AM$13 -> 176.5255435
A197: =ROW() -> 197 | D197: Demand 2 (>10km) [$/GJ*km*year], | J197: 90.24545455 | K197: 90.96363636 | L197: 90.93636364 | M197: 91.52727273 | N197: 91.57272727 | O197: 91.36363636 | P197: 92.35 | Q197: 91.43 | R197: 91.43 | S197: 91.43 | T197: 91.43 | W197: 91.43 | X197: 91.59 | Y197: 100.5221915 | Z197: 103.6909149 | AA197: 103.6909149 | AB197: 103.6909149 | AC197: 102.1086719 | AE197: 93.66 | AF197: 86.35 | AG197: 79.5 | AH197: 71.98 | AI197: =Revenue!AI70*AI$13 -> 80.6371018 | AJ197: =Revenue!AJ70*AJ$13 -> 83.54424963 | AK197: =Revenue!AK70*AK$13 -> 86.55406561 | AL197: =Revenue!AL70*AL$13 -> 89.67975004 | AM197: =Revenue!AM70*AM$13 -> 92.91378882
A198: =ROW() -> 198 | D198: Usage 1 (<=10km) [$/GJ*km] | J198: 0.04398181818 | K198: 0.04433636364 | L198: 0.04432727273 | M198: 0.04461818182 | N198: 0.04463636364 | O198: 0.04453636364 | P198: 0.04502 | Q198: 0.0446 | R198: 0.0446 | S198: 0.0446 | T198: 0.0446 | W198: 0.0446 | X198: 0.03691 | Y198: 0.04051864027 | Z198: 0.0417958996 | AA198: 0.0417958996 | AB198: 0.0417958996 | AC198: 0.04115726563 | AE198: 0.03776 | AF198: 0.0347 | AG198: 0.03195 | AH198: 0.02893 | AI198: =Revenue!AI71*AI$13 -> 0.03240878244 | AJ198: =Revenue!AJ71*AJ$13 -> 0.03358181379 | AK198: =Revenue!AK71*AK$13 -> 0.03478991427 | AL198: =Revenue!AL71*AL$13 -> 0.036044442 | AM198: =Revenue!AM71*AM$13 -> 0.0373466548
A199: =ROW() -> 199 | D199: Usage 2 (>10km) [$/GJ*km] | J199: 0.02199090909 | K199: 0.02216363636 | L199: 0.02215454545 | M199: 0.0223 | N199: 0.02230909091 | O199: 0.02225454545 | P199: 0.02249 | Q199: 0.0223 | R199: 0.0223 | S199: 0.0223 | T199: 0.0223 | W199: 0.0223 | X199: 0.01845 | Y199: 0.02024331861 | Z199: 0.02088143965 | AA199: 0.02088143965 | AB199: 0.02088143965 | AC199: 0.02056304687 | AE199: 0.01896 | AF199: 0.01749 | AG199: 0.0161 | AH199: 0.01458 | AI199: =Revenue!AI72*AI$13 -> 0.0163360519 | AJ199: =Revenue!AJ72*AJ$13 -> 0.01692424947 | AK199: =Revenue!AK72*AK$13 -> 0.01753519716 | AL199: =Revenue!AL72*AL$13 -> 0.01816951294 | AM199: =Revenue!AM72*AM$13 -> 0.01882782854
A200: =ROW() -> 200 | C200: A2
A201: =ROW() -> 201 | D201: Fixed [$/year] | J201: 496.8181818 | K201: 500.7909091 | L201: 500.6363636 | M201: 503.8909091 | N201: 504.1454545 | O201: 502.9818182 | P201: 508.18 | Q201: 526.04 | R201: 526.04 | S201: 556.13 | T201: 556.13 | W201: 556.13 | X201: 22854.58 | Y201: 25083.20134 | Z201: 25875.63257 | AA201: 25879.11 | AB201: 25879.11 | AC201: 25483.47539 | AE201: 23375.64 | AF201: 21551.35 | AG201: 19827.7 | AH201: 17952 | AI201: =Revenue!AI74*AI$13 -> 20111.7662 | AJ201: =Revenue!AJ74*AJ$13 -> 20837.16671 | AK201: =Revenue!AK74*AK$13 -> 21588.726 | AL201: =Revenue!AL74*AL$13 -> 22367.39637 | AM201: =Revenue!AM74*AM$13 -> 23174.14805
... 178 more rows

Sheet Calc >>

Sheet Price_path_AA5
A1: Smoothing parameters | E1: Annual price movements (% change)
A2: Rounding decimal places A1 usage tariff | B2: 5 | E2: Tariff class | F2: P0 | G2: X-factor
A3: Rounding decimal places all other tariffs | B3: 2 | E3: A1 - B2 | F3: 0.1061770074 | G3: 0.023
A4: B3 tariff smoothing (0=Same as A1-B2; 1=Fixed in 2020 = 2019) | B4: 1 | C4: B3 target revenue | E4: B3 | F4: 0.4642055125 | G4: =G3 -> 0.023
A5: NPV of AA5 B3 revenue under B3 revenue smoothing same as A1-B2 | B5: 639.890592 | C5: =Revenue!F247*81% -> 639.9469759
C6: =Revenue!F246/Revenue!F247 -> 0.8100721431
A8: Conditional formatting key | B8: X
C9: AA5 | E9: 2019 | F9: 2020 | G9: 2021 | H9: 2022 | I9: 2023 | J9: 2024
A10: WACC | B10: Real post tax | F10: =CoS!AI14 -> 0.03546549665 | G10: =CoS!AJ14 -> 0.03546549665 | H10: =CoS!AK14 -> 0.03546549665 | I10: =CoS!AL14 -> 0.03546549665 | J10: =CoS!AM14 -> 0.03546549665
A11: Discount factor | B11: Real post tax | F11: =CoS!AI15 -> 0.9657492241 | G11: =CoS!AJ15 -> 0.9326715639 | H11: =CoS!AK15 -> 0.9007268392 | I11: =CoS!AL15 -> 0.8698762461 | J11: =CoS!AM15 -> 0.8400823098
A12: X factor | B12: % | F12: =F3 -> 0.1061770074 | G12: 0.023 | H12: 0.023 | I12: 0.023 | J12: 0.023
A13: CPI | B13: % | F13: =Input!AI31 -> 0.0127744511 | G13: =Input!AJ31 -> 0.0127744511 | H13: =Input!AK31 -> 0.0127744511 | I13: =Input!AL31 -> 0.0127744511 | J13: =Input!AM31 -> 0.0127744511
A14: B3 X factor | F14: =F4 -> 0.4642055125 | G14: 0.023 | H14: 0.023 | I14: 0.023 | J14: 0.023
A16: Cost of service | C16: PV
A17: OPEX | B17: $ m real | C17: =SUMPRODUCT($F$11:$J$11,$F17:$J17) -> 310.6858044 | F17: =CoS!AI65 -> 65.26045834 | G17: =CoS!AJ65 -> 67.19886186 | H17: =CoS!AK65 -> 69.62987333 | I17: =CoS!AL65 -> 71.210267 | J17: =CoS!AM65 -> 71.80782598
A18: Depreciation | B18: $ m real | C18: 257.3316177 | F18: =CoS!AI66 -> 47.72960895 | G18: =CoS!AJ66 -> 57.22223473 | H18: =CoS!AK66 -> 58.78594355 | I18: =CoS!AL66 -> 60.25334425 | J18: =CoS!AM66 -> 62.49888025
A19: Asset Disposal | B19: $ m real | C19: 0 | F19: =CoS!AI67 -> 0 | G19: =CoS!AJ67 -> 0 | H19: =CoS!AK67 -> 0 | I19: =CoS!AL67 -> 0 | J19: =CoS!AM67 -> 0
A20: Return on Asset | B20: $ m real | C20: 224.4920354 | F20: =CoS!AI68 -> 47.30639182 | G20: =CoS!AJ68 -> 49.00901105 | H20: =CoS!AK68 -> 50.04165793 | I20: =CoS!AL68 -> 51.09367086 | J20: =CoS!AM68 -> 51.87298636
A21: Return on Working Capital | B21: $ m real | C21: 4.91319971 | F21: =CoS!AI69 -> 1.070023555 | G21: =CoS!AJ69 -> 1.056527003 | H21: =CoS!AK69 -> 1.092566374 | I21: =CoS!AL69 -> 1.102901314 | J21: =CoS!AM69 -> 1.131961805
A22: Tax | B22: $ m real | C22: 16.97478121 | F22: =CoS!AI70 -> 5.106877733 | G22: =CoS!AJ70 -> 4.031308782 | H22: =CoS!AK70 -> 3.488619371 | I22: =CoS!AL70 -> 2.998144047 | J22: =CoS!AM70 -> 3.014732622
A23: Imputation Credits | B23: $ m real | C23: -8.487390604 | F23: =CoS!AI71 -> -2.553438866 | G23: =CoS!AJ71 -> -2.015654391 | H23: =CoS!AK71 -> -1.744309686 | I23: =CoS!AL71 -> -1.499072024 | J23: =CoS!AM71 -> -1.507366311
A24: Net Cost of Service | B24: $ m real | C24: 805.9100477 | F24: =SUM(F17:F23) -> 163.9199215 | G24: =SUM(G17:G23) -> 176.502289 | H24: =SUM(H17:H23) -> 181.2943509 | I24: =SUM(I17:I23) -> 185.1592554 | J24: =SUM(J17:J23) -> 188.8190207
A25: Total Tariff Revenue | B25: $ m real | C25: =SUMPRODUCT($F$11:$J$11,$F25:$J25) -> 805.9103524 | F25: =CoS!AI73 -> 173.6902029 | G25: =CoS!AJ73 -> 176.3094627 | H25: =CoS!AK73 -> 178.855929 | I25: =CoS!AL73 -> 181.3179462 | J25: =CoS!AM73 -> 184.3936478
A26: Check CoS - Revenue rounded to nearest $100k (should be 0) | B26: $ m real | C26: =ROUND(C24-C25,6) -> -0.000305
E28: AAP4 closing tariff | F28: Fixed $ Increments
A29: Charging parameter ($ real at 31 December 2019) | B29: Units | E29: 2019 | F29: 2020 | G29: 2021 | H29: 2022 | I29: 2023 | J29: 2024
A30: Reference tariff A1
A31: Standing charge | B31: $/year | E31: =Load_Tariffs!AH195 -> 32444.85
A32: Demand charge
A33: First 10 km | B33: $/GJ km | E33: =Load_Tariffs!AH196 -> 136.75
A34: Distance > 10 km | B34: $/GJ km | E34: =Load_Tariffs!AH197 -> 71.98
A35: Usage charge
A36: First 10 km | B36: $/GJ km | E36: =Load_Tariffs!AH198 -> 0.02893
A37: Distance > 10 km | B37: $/GJ km | E37: =Load_Tariffs!AH199 -> 0.01458
A38: Reference tariff A2
A39: Standing charge | B39: $/Year | E39: =Load_Tariffs!AH201 -> 17952
A40: First 10 TJ | B40: $/GJ | E40: =Load_Tariffs!AH205 -> 1.74
A41: Volume > 10 TJ | B41: $/GJ | E41: =Load_Tariffs!AH206 -> 0.93
A42: Reference tariff B1
A43: Standing charge | B43: $/Year | E43: =Load_Tariffs!AH208 -> 907.55
A44: First 5 TJ | B44: $/GJ | E44: =Load_Tariffs!AH209 -> 3.45
A45: Volume > 5 TJ | B45: $/GJ | E45: =Load_Tariffs!AH211 -> 2.97
A46: Reference tariff B2
A47: Standing charge | B47: $/Year | E47: =Load_Tariffs!AH213 -> 226.74
A48: First 100 GJ | B48: $/GJ | E48: =Load_Tariffs!AH214 -> 5.77
A49: Volume > 100 GJ | B49: $/GJ | E49: =Load_Tariffs!AH215 -> 3.44
A50: Reference tariff B3
A51: Standing charge | B51: $/Year | E51: =Load_Tariffs!AH217 -> 116.84
A52: First 1.825 GJ | B52: $/GJ | E52: =Load_Tariffs!AH221 -> 0
A53: Volume > 1.825 <9.855 GJ | B53: $/GJ | E53: =Load_Tariffs!AH222 -> 4.89
A54: Volume > 9.855 GJ | B54: $/GJ | E54: =Load_Tariffs!AH223 -> 2.11 | F54: 3
E56: AAP4 closing tariff | F56: Tariffs to which X factor applied (X Factor will be applied to any cell containing "X")
A57: Charging parameter ($ real at 30 June 2019) | B57: Units $ real | E57: 2019 | F57: 2020 | G57: 2021 | H57: 2022 | I57: 2023 | J57: 2024
A58: Reference tariff A1
A59: Standing charge | B59: $/year | E59: =E31 -> 32444.85 | F59: =IF(F31<>0,0,"x") -> x | G59: =IF(G31<>0,0,"x") -> x | H59: =IF(H31<>0,0,"x") -> x | I59: =IF(I31<>0,0,"x") -> x | J59: =IF(J31<>0,0,"x") -> x
A60: Demand charge
A61: First 10 km | B61: $/GJ km | E61: 136.75 | F61: =IF(F33<>0,0,"x") -> x | G61: x | H61: x | I61: x | J61: x
A62: Distance > 10 km | B62: $/GJ km | E62: 71.98 | F62: x | G62: x | H62: x | I62: x | J62: x
A63: Usage charge | E63: 0
A64: First 10 km | B64: $/GJ km | E64: 0.02893 | F64: =IF(F36<>0,0,"x") -> x | G64: x | H64: x | I64: x | J64: x
A65: Distance > 10 km | B65: $/GJ km | E65: 0.01458 | F65: x | G65: x | H65: x | I65: x | J65: x
A66: Reference tariff A2 | E66: 0
A67: Standing charge | B67: $/Year | E67: 17952 | F67: =IF(F39<>0,0,"x") -> x | G67: x | H67: x | I67: x | J67: x
A68: First 10 TJ | B68: $/GJ | E68: 1.74 | F68: x | G68: x | H68: x | I68: x | J68: x
A69: Volume > 10 TJ | B69: $/GJ | E69: 0.93 | F69: x | G69: x | H69: x | I69: x | J69: x
A70: Reference tariff B1 | E70: 0
A71: Standing charge | B71: $/Year | E71: 907.55 | F71: =IF(F43<>0,0,"x") -> x | G71: x | H71: x | I71: x | J71: x
A72: First 5 TJ | B72: $/GJ | E72: 3.45 | F72: x | G72: x | H72: x | I72: x | J72: x
A73: Volume > 5 TJ | B73: $/GJ | E73: 2.97 | F73: x | G73: x | H73: x | I73: x | J73: x
A74: Reference tariff B2 | E74: 0
A75: Standing charge | B75: $/Year | E75: 226.74 | F75: =IF(F47<>0,0,"x") -> x | G75: x | H75: x | I75: x | J75: x
A76: First 100 GJ | B76: $/GJ | E76: 5.77 | F76: x | G76: x | H76: x | I76: x | J76: x
A77: Volume > 100 GJ | B77: $/GJ | E77: 3.44 | F77: x | G77: x | H77: x | I77: x | J77: x
A78: Reference tariff B3 | E78: 0
A79: Standing charge | B79: $/Year | E79: 116.84 | F79: =IF(F51<>0,0,"x") -> x | G79: x | H79: x | I79: x | J79: x
A80: First 1.825 GJ | B80: $/GJ | E80: 0 | F80: x | G80: x | H80: x | I80: x | J80: x
A81: Volume > 1.825 <9.855 GJ | B81: $/GJ | E81: 4.89 | F81: x | G81: x | H81: x | I81: x | J81: x
A82: Volume > 9.855 GJ | B82: $/GJ | E82: 2.11 | F82: 0 | G82: x | H82: x | I82: x | J82: x
A84: Manual tariff adjustment to balance NPV = 0 (necessary due to tariff rounding)
E85: AAP4 closing tariff | F85: Forecast tariffs ($ real)
A86: Charging parameter ($ real at 30 June 2019) | B86: Units $ real | E86: 2019 | F86: 2020 | G86: 2021 | H86: 2022 | I86: 2023 | J86: 2024
A87: Reference tariff A1
A88: Standing charge | B88: $/year
A89: Demand charge
A90: First 10 km | B90: $/GJ km
A91: Distance > 10 km | B91: $/GJ km
A92: Usage charge
A93: First 10 km | B93: $/GJ km
A94: Distance > 10 km | B94: $/GJ km
A95: Reference tariff A2
A96: Standing charge | B96: $/Year
A97: First 10 TJ | B97: $/GJ
A98: Volume > 10 TJ | B98: $/GJ
A99: Reference tariff B1
A100: Standing charge | B100: $/Year
A101: First 5 TJ | B101: $/GJ
A102: Volume > 5 TJ | B102: $/GJ
A103: Reference tariff B2
A104: Standing charge | B104: $/Year | F104: -0.22
A105: First 100 GJ | B105: $/GJ | F105: -0.03
A106: Volume > 100 GJ | B106: $/GJ
A107: Reference tariff B3
A108: Standing charge | B108: $/Year
A109: First 1.81.8255 GJ | B109: $/GJ
A110: Volume > 1.825 <9.855 GJ | B110: $/GJ
A111: Volume > 9.855 GJ | B111: $/GJ
A113: Proposed tariffs ($ real December 2019)
E114: AAP4 closing tariff | F114: Forecast tariffs ($ real)
A115: Charging parameter ($ real at 30 June 2019) | B115: Units $ real | E115: 2019 | F115: 2020 | G115: 2021 | H115: 2022 | I115: 2023 | J115: 2024
A116: Reference tariff A1
A117: Standing charge | B117: $/year | E117: =E59 -> 32444.85 | F117: =ROUND(IF(F31<>0,E117+F31,E117*(1+F$12)),$B$3)+F88 -> 35889.75 | G117: 36715.21 | H117: 37559.66 | I117: 38423.53 | J117: 39307.27
A118: Demand charge
A119: First 10 km | B119: $/GJ km | E119: =E61 -> 136.75 | F119: =ROUND(IF(F33<>0,E119+F33,E119*(1+F$12)),$B$3)+F90 -> 151.27 | G119: 154.75 | H119: 158.31 | I119: 161.95 | J119: 165.67
A120: Distance > 10 km | B120: $/GJ km | E120: =E62 -> 71.98 | F120: 79.62 | G120: 81.45 | H120: 83.32 | I120: 85.24 | J120: 87.2
A121: Usage charge
A122: First 10 km | B122: $/GJ km | E122: =E64 -> 0.02893 | F122: =ROUND(IF(F36<>0,E122+F36,E122*(1+F$12)),$B$2)+F93 -> 0.032 | G122: 0.03274 | H122: 0.03349 | I122: 0.03426 | J122: 0.03505
A123: Distance > 10 km | B123: $/GJ km | E123: =E65 -> 0.01458 | F123: 0.01613 | G123: 0.0165 | H123: 0.01688 | I123: 0.01727 | J123: 0.01767
A124: Reference tariff A2
A125: Standing charge | B125: $/Year | E125: =E67 -> 17952 | F125: =ROUND(IF(F39<>0,E125+F39,E125*(1+F$12)),$B$3)+F96 -> 19858.09 | G125: 20314.83 | H125: 20782.07 | I125: 21260.06 | J125: 21749.04
A126: First 10 TJ | B126: $/GJ | E126: 1.74 | F126: 1.92 | G126: 1.96 | H126: 2.01 | I126: 2.06 | J126: 2.11
A127: Volume > 10 TJ | B127: $/GJ | E127: 0.93 | F127: 1.03 | G127: 1.05 | H127: 1.07 | I127: 1.09 | J127: 1.12
A128: Reference tariff B1 | E128: 0
A129: Standing charge | B129: $/Year | E129: 907.55 | F129: =ROUND(IF(F43<>0,E129+F43,E129*(1+F$12)),$B$3)+F100 -> 1003.91 | G129: 1027 | H129: 1050.62 | I129: 1074.78 | J129: 1099.5
A130: First 5 TJ | B130: $/GJ | E130: 3.45 | F130: =ROUND(IF(F44<>0,E130+F44,E130*(1+F$12)),$B$3)+F101 -> 3.82 | G130: 3.91 | H130: 4 | I130: 4.09 | J130: 4.18
A131: Volume > 5 TJ | B131: $/GJ | E131: 2.97 | F131: =ROUND(IF(F45<>0,E131+F45,E131*(1+F$12)),$B$3)+F102 -> 3.29 | G131: 3.37 | H131: 3.45 | I131: 3.53 | J131: 3.61
A132: Reference tariff B2
A133: Standing charge | B133: $/Year | E133: =E75 -> 226.74 | F133: =ROUND(IF(F47<>0,E133+F47,E133*(1+F$12)),$B$3)+F104 -> 250.59 | G133: 256.35 | H133: 262.25 | I133: 268.28 | J133: 274.45
A134: First 100 GJ | B134: $/GJ | E134: =E76 -> 5.77 | F134: =ROUND(IF(F48<>0,E134+F48,E134*(1+F$12)),$B$3)+F105 -> 6.35 | G134: =ROUND(IF(G48<>0,F134+G48,F134*(1+G$12)),$B$3)+G105 -> 6.5 | H134: 6.65 | I134: 6.8 | J134: 6.96
A135: Volume > 100 GJ | B135: $/GJ | E135: =E77 -> 3.44 | F135: =ROUND(IF(F49<>0,E135+F49,E135*(1+F$12)),$B$3)+F106 -> 3.81 | G135: 3.9 | H135: 3.99 | I135: 4.08 | J135: 4.17
A136: Reference tariff B3
A137: Standing charge | B137: $/Year | E137: =E79 -> 116.84 | F137: =ROUND(IF(F51<>0,E137+F51,IF($B$4=0,E137*(1+F$12),$E$137)),$B$3) -> 116.84 | G137: =ROUND(IF(G51<>0,F137+G51,IF($B$4=0,F137*(1+G$12),$E$137)),$B$3) -> 116.84 | H137: 116.84 | I137: 116.84 | J137: 116.84
A138: First 1.81.8255 GJ | B138: $/GJ | E138: =E80 -> 0 | F138: =ROUND(IF(F52<>0,E138+F52,E138*(1+IF($B$4=0,F$12,F$14))),$B$3) -> 0 | G138: =ROUND(IF(G52<>0,F138+G52,F138*(1+IF($B$4=0,G$12,G$14))),$B$3) -> 0 | H138: 0 | I138: 0 | J138: 0
A139: Volume > 1.825 <9.855 GJ | B139: $/GJ | E139: =E81 -> 4.89 | F139: =ROUND(IF(F53<>0,E139+F53,E139*(1+IF($B$4=0,F$12,F$14))),$B$3)+F110 -> 7.16 | G139: 7.32 | H139: 7.49 | I139: 7.66 | J139: 7.84
A140: Volume > 9.855 GJ | B140: $/GJ | E140: =E82 -> 2.11 | F140: =ROUND(IF(F54<>0,E140+F54,E140*(1+IF($B$4=0,F$12,F$14))),$B$3)+F111 -> 5.11 | G140: 5.23 | H140: 5.35 | I140: 5.47 | J140: 5.6

Sheet CoS
A1: =Main!A1 -> 0 | AA1: -18.04799675 | AD1: -39.86185428 | AE1: -44.23397147 | AF1: -47.27684437 | AG1: -50.09821891 | AH1: -53.20661395
A2: Building Block of Total Revenue Required
A3: Ref | C3: =COLUMN() -> 3 | D3: =COLUMN() -> 4 | E3: =COLUMN() -> 5 | F3: =COLUMN() -> 6 | G3: =COLUMN() -> 7 | H3: =COLUMN() -> 8 | I3: =COLUMN() -> 9 | J3: =COLUMN() -> 10 | K3: =COLUMN() -> 11 | L3: =COLUMN() -> 12 | M3: =COLUMN() -> 13 | N3: =COLUMN() -> 14 | O3: =COLUMN() -> 15 | P3: =COLUMN() -> 16 | Q3: =COLUMN() -> 17 | R3: =COLUMN() -> 18 | S3: =COLUMN() -> 19 | T3: =COLUMN() -> 20 | W3: =COLUMN() -> 23 | X3: =COLUMN() -> 24 | Y3: =COLUMN() -> 25 | Z3: =COLUMN() -> 26 | AA3: =COLUMN() -> 27 | AB3: =COLUMN() -> 28 | AC3: =COLUMN() -> 29 | AD3: =COLUMN() -> 30 | AE3: =COLUMN() -> 31 | AF3: =COLUMN() -> 32 | AG3: =COLUMN() -> 33 | AH3: =COLUMN() -> 34
A4: Regulatory Period | J4: 1 | K4: 1 | L4: 1 | M4: 1 | N4: 1 | O4: 2 | P4: 2 | Q4: 2 | R4: 2 | S4: 2 | T4: 3 | W4: 3 | X4: 3 | Y4: 3 | Z4: 3 | AA4: 4 | AB4: 4 | AC4: 4 | AD4: 4 | AE4: 4 | AF4: 4 | AG4: 4 | AH4: 4 | AI4: 5 | AJ4: 5 | AK4: 5 | AL4: 5 | AM4: 5
A5: Year ending | I5: 1999 | J5: 2000 | K5: 2001 | L5: 2002 | M5: 2003 | N5: 2004 | O5: 2005 | P5: 2006 | Q5: 2007 | R5: 2008 | S5: =1+R5 -> 2009 | T5: =1+S5 -> 2010 | W5: =T5+1 -> 2011 | X5: =W5+1 -> 2012 | Y5: =X5+1 -> 2013 | Z5: =Y5+1 -> 2014 | AA5: 2014 | AB5: =Load_Tariffs!AB6 -> 2015 | AC5: =Load_Tariffs!AC6 -> 2015 | AD5: =AA5+1 -> 2015 | AE5: =AD5+1 -> 2016 | AF5: =AE5+1 -> 2017 | AG5: =AF5+1 -> 2018 | AH5: =AG5+1 -> 2019 | AI5: 2020 | AJ5: 2021 | AK5: =Load_Tariffs!AK6 -> 2022 | AL5: 2023 | AM5: 2024
A6: Months | I6: 1 to 12 | J6: 1 to 12 | K6: 1 to 12 | L6: 1 to 12 | M6: 1 to 12 | N6: 1 to 12 | O6: 1 to 12 | P6: 1 to 12 | Q6: 1 to 12 | R6: 1 to 12 | S6: 1 to 12 | T6: 1 to 6 | W6: 7 to 6 | X6: 7 to 6 | Y6: 7 to 6 | Z6: 7 to 6 | AA6: 7 to 12 | AB6: =Load_Tariffs!AB7 -> 1 to 9 | AC6: =Load_Tariffs!AC7 -> 10 to 12 | AD6: 1 to 12 | AE6: 1 to 12 | AF6: 1 to 12 | AG6: 1 to 12 | AH6: 1 to 12 | AI6: 1 to 12 | AJ6: =Load_Tariffs!AJ7 -> 1 to 12 | AK6: =Load_Tariffs!AK7 -> 1 to 12 | AL6: 1 to 12 | AM6: 1 to 12
A7: Days | I7: =Input!I$8 -> 365 | J7: =Input!J$8 -> 366 | K7: =Input!K$8 -> 365 | L7: =Input!L$8 -> 365 | M7: =Input!M$8 -> 365 | N7: =Input!N$8 -> 366 | O7: =Input!O$8 -> 365 | P7: =Input!P$8 -> 365 | Q7: =Input!Q$8 -> 365 | R7: =Input!R$8 -> 366 | S7: =Input!S$8 -> 365 | T7: =Input!T$8 -> 181 | W7: =Input!W$8 -> 365 | X7: =Input!X$8 -> 366 | Y7: =Input!Y$8 -> 365 | Z7: =Input!Z$8 -> 365 | AA7: =Input!AA$8 -> 184 | AB7: =Input!AB$8 -> 273 | AC7: =Input!AC$8 -> 92 | AD7: =Input!AD$8 -> 365 | AE7: =Input!AE$8 -> 366 | AF7: =Input!AF$8 -> 365 | AG7: =Input!AG$8 -> 365 | AH7: =Input!AH$8 -> 365 | AI7: =Input!AI$8 -> 366 | AJ7: =Input!AJ$8 -> 365 | AK7: =Input!AK$8 -> 365 | AL7: =Input!AL$8 -> 365 | AM7: =Input!AM$8 -> 365
A8: Year portion | I8: =Input!I$9 -> 1 | J8: =Input!J$9 -> 1 | K8: =Input!K$9 -> 1 | L8: =Input!L$9 -> 1 | M8: =Input!M$9 -> 1 | N8: =Input!N$9 -> 1 | O8: =Input!O$9 -> 1 | P8: =Input!P$9 -> 1 | Q8: =Input!Q$9 -> 1 | R8: =Input!R$9 -> 1 | S8: =Input!S$9 -> 1 | T8: =Input!T$9 -> 0.495890411 | W8: =Input!W$9 -> 1 | X8: =Input!X$9 -> 1 | Y8: =Input!Y$9 -> 1 | Z8: =Input!Z$9 -> 1 | AA8: =Input!AA$9 -> 0.504109589 | AB8: =Input!AB$9 -> 0.7479452055 | AC8: =Input!AC$9 -> 0.2520547945 | AD8: =Input!AD$9 -> 1 | AE8: =Input!AE$9 -> 1 | AF8: =Input!AF$9 -> 1 | AG8: =Input!AG$9 -> 1 | AH8: =Input!AH$9 -> 1 | AI8: =Input!AK$9 -> 1 | AJ8: =Input!AL$9 -> 1 | AK8: =Input!AM$9 -> 1 | AL8: =Input!AL$9 -> 1 | AM8: =Input!AM$9 -> 1
A9: Financial Parameters
A10: =ROW() -> 10 | C10: Modelled Inflation | J10: ACTUAL 1 | O10: ACTUAL 2 | T10: ACTUAL 3 | AA10: FORECAST | AI10: FORECAST
A11: =ROW() -> 11 | D11: Inflation | J11: =Input!J$31 -> 0.05801772764 | K11: =Input!K$31 -> 0.03122619954 | L11: =Input!L$31 -> 0.03028064993 | M11: =Input!M$31 -> 0.02365591398 | N11: =Input!N$31 -> 0.02591036415 | O11: =Input!O$31 -> 0.02798634812 | P11: =Input!P$31 -> 0.03253652058 | Q11: =Input!Q$31 -> 0.02958199357 | R11: =Input!R$31 -> 0.03685196752 | S11: =Input!S$31 -> 0.02108433735 | T11: =Input!T31 -> 0.01533923304 | W11: =Input!W31 -> 0.03602556653 | X11: =Input!X31 -> 0.01177790241 | Y11: =Input!Y31 -> 0.02390438247 | Z11: =Input!Z31 -> 0.03015564202 | AA11: =Input!AA31 -> 0.006610009443 | AD11: =Input!AD31 -> 0.01688555347 | AE11: =Input!AE31 -> 0.0147601476 | AF11: =Input!AF31 -> 0.01909090909 | AG11: =Input!AG31 -> 0.0178412132 | AH11: =Input!AH31 -> 0.0178412132 | AI11: =Input!AI31 -> 0.0127744511 | AJ11: =Input!AJ31 -> 0.0127744511 | AK11: =Input!AK31 -> 0.0127744511 | AL11: =Input!AL31 -> 0.0127744511 | AM11: =Input!AM31 -> 0.0127744511
A12: =ROW() -> 12 | D12: Inflation Factor (convert to nominal $) | J12: =Input!J$35 -> 0.6292108884 | K12: =Input!K$35 -> 0.6488587532 | L12: =Input!L$35 -> 0.668506618 | M12: =Input!M$35 -> 0.684320753 | N12: =Input!N$35 -> 0.7020517529 | O12: =Input!O$35 -> 0.7216996177 | P12: =Input!P$35 -> 0.7451812121 | Q12: =Input!Q$35 -> 0.767225158 | R12: =Input!R$35 -> 0.7954989146 | S12: =Input!S$35 -> 0.812271482 | T12: =Load_Tariffs!T13 -> 0.8247311036 | W12: =Load_Tariffs!W13 -> 0.8544425088 | X12: =Load_Tariffs!X13 -> 0.8645060493 | Y12: =Load_Tariffs!Y13 -> 0.8851715326 | Z12: =Load_Tariffs!Z13 -> 0.9118644484 | AA12: =Load_Tariffs!AA13 -> 0.9178918811 | AD12: =Load_Tariffs!AD13 -> 0.9333909935 | AE12: =Load_Tariffs!AE13 -> 0.9471679823 | AF12: =Load_Tariffs!AF13 -> 0.9652502802 | AG12: =Load_Tariffs!AG13 -> 0.9824715162 | AH12: =Load_Tariffs!AH13 -> 1 | AI12: =Load_Tariffs!AI13 -> 1.012774451 | AJ12: =Load_Tariffs!AJ13 -> 1.025712089 | AK12: =Load_Tariffs!AK13 -> 1.038814998 | AL12: =Load_Tariffs!AL13 -> 1.052085289 | AM12: =Load_Tariffs!AM13 -> 1.065525101
A13: =ROW() -> 13 | C13: Real Post Tax WACC
A14: =ROW() -> 14 | D14: WACC | T14: =Input!T38 -> 0 | W14: =Input!W38 -> 0 | X14: =Input!X38 -> 0 | Y14: =Input!Y38 -> 0 | Z14: =Input!Z38 -> 0 | AA14: =Input!AA38 -> 0.0198101078 | AD14: =Input!AD38 -> 0.04010991168 | AE14: =Input!AE38 -> 0.04113444553 | AF14: =Input!AF38 -> 0.04177625123 | AG14: =Input!AG38 -> 0.04071638862 | AH14: =Input!AH38 -> 0.03897350343 | AI14: =Input!AI38 -> 0.03546549665 | AJ14: =Input!AJ38 -> 0.03546549665 | AK14: =Input!AK38 -> 0.03546549665 | AL14: =Input!AL38 -> 0.03546549665 | AM14: =Input!AM38 -> 0.03546549665
A15: =ROW() -> 15 | D15: Discounting Factor | T15: =Input!T39 -> 1 | W15: =Input!W39 -> 1 | X15: =Input!X39 -> 1 | Y15: =Input!Y39 -> 1 | Z15: =Input!Z39 -> 1 | AA15: =Input!AA39 -> 0.9805747093 | AD15: =Input!AD39 -> 0.9427606624 | AE15: =Input!AE39 -> 0.9055128917 | AF15: =Input!AF39 -> 0.869200935 | AG15: =Input!AG39 -> 0.8351948183 | AH15: =Input!AH39 -> 0.8038653686 | AI15: =Input!AI39 -> 0.9657492241 | AJ15: =Input!AJ39 -> 0.9326715639 | AK15: =Input!AK39 -> 0.9007268392 | AL15: =Input!AL39 -> 0.8698762461 | AM15: =Input!AM39 -> 0.8400823098
A16: =ROW() -> 16 | C16: Nominal Post Tax WACC
A17: =ROW() -> 17 | D17: WACC | T17: =Input!T41 -> 0 | W17: =Input!W41 -> 0 | X17: =Input!X41 -> 0 | Y17: =Input!Y41 -> 0 | Z17: =Input!Z41 -> 0 | AA17: =Input!AA41 -> 0.02953234787 | AD17: =Input!AD41 -> 0.059872 | AE17: =Input!AE41 -> 0.060916 | AF17: =Input!AF41 -> 0.06157 | AG17: =Input!AG41 -> 0.06049 | AH17: =Input!AH41 -> 0.058714 | AI17: =Input!AI41 -> 0.048693 | AJ17: =Input!AJ41 -> 0.048693 | AK17: =Input!AK41 -> 0.048693 | AL17: =Input!AL41 -> 0.048693 | AM17: =Input!AM41 -> 0.048693
A18: =ROW() -> 18 | D18: Discounting Factor | T18: =Input!T42 -> 1 | W18: =Input!W42 -> 1 | X18: =Input!X42 -> 1 | Y18: =Input!Y42 -> 1 | Z18: =Input!Z42 -> 1 | AA18: =Input!AA42 -> 0.9713147936 | AD18: =Input!AD42 -> 0.9164453761 | AE18: =Input!AE42 -> 0.8638246346 | AF18: =Input!AF42 -> 0.8137236684 | AG18: =Input!AG42 -> 0.7673091386 | AH18: =Input!AH42 -> 0.7247558251 | AI18: =Input!AI42 -> 0.9535679174 | AJ18: =Input!AJ42 -> 0.9092917731 | AK18: =Input!AK42 -> 0.8670714624 | AL18: =Input!AL42 -> 0.8268115286 | AM18: =Input!AM42 -> 0.7884209474
A19: ="Capital Base [m$ "&Input!$G$34&"]" -> Capital Base [m$ 31/12/2019]
A20: =ROW() -> 20 | C20: Asset Account
A21: =ROW() -> 21 | D21: Opening Value | O21: =Asset!O$16 -> 946.7142164 | P21: =Asset!P$16 -> 936.7482853 | Q21: =Asset!Q$16 -> 940.0494677 | R21: =Asset!R$16 -> 943.3585042 | S21: =Asset!S$16 -> 945.7806179 | T21: =Asset!T$16 -> 962.5592674 | W21: =Asset!W$16 -> 983.0888775 | X21: =Asset!X$16 -> 999.3037278 | Y21: =Asset!Y$16 -> 1009.922577 | Z21: =Asset!Z$16 -> 1062.453208 | AA21: =Asset!AA$16 -> 1102.57939 | AD21: =Asset!AD$16 -> 1127.184274 | AE21: =Asset!AE$16 -> 1167.152231 | AF21: =Asset!AF$16 -> 1214.064648 | AG21: =Asset!AG$16 -> 1257.914734 | AH21: =Asset!AH$16 -> 1300.510364 | AI21: =Asset!AI$16 -> 1333.87084 | AJ21: =Asset!AJ$16 -> 1381.878605 | AK21: =Asset!AK$16 -> 1410.995549 | AL21: =Asset!AL$16 -> 1440.658547 | AM21: =Asset!AM$16 -> 1462.632453
A22: =ROW() -> 22 | D22: Capex | O22: =Asset!O$18 -> 33.89050867 | P22: =Asset!P$18 -> 40.83325235 | Q22: =Asset!Q$18 -> 42.9151724 | R22: =Asset!R$18 -> 43.71418753 | S22: =Asset!S$18 -> 52.2407356 | T22: =Asset!T$18 -> 30.36778797 | W22: =Asset!W$18 -> 45.42046683 | X22: =Asset!X$18 -> 42.45633319 | Y22: =Asset!Y$18 -> 86.95616535 | Z22: =Asset!Z$18 -> 77.08487171 | AA22: =Asset!AA$18 -> 42.62505153 | AD22: =Asset!AD$18 -> 79.82340651 | AE22: =Asset!AE$18 -> 91.32498476 | AF22: =Asset!AF$18 -> 91.31459414 | AG22: =Asset!AG$18 -> 93.18199064 | AH22: =Asset!AH$18 -> 86.53789648 | AI22: =Asset!AI$18 -> 95.73737392 | AJ22: =Asset!AJ$18 -> 86.33917882 | AK22: =Asset!AK$18 -> 88.44894092 | AL22: =Asset!AL$18 -> 82.2272506 | AM22: =Asset!AM$18 -> 84.28994711
A23: =ROW() -> 23 | D23: Depreciation | O23: =Asset!O$22 -> -35.28496947 | P23: =Asset!P$22 -> -37.5320699 | Q23: =Asset!Q$22 -> -39.60613595 | R23: =Asset!R$22 -> -41.29207378 | S23: =Asset!S$22 -> -43.44696138 | T23: =Asset!T$22 -> -13.4778566 | W23: =Asset!W$22 -> -29.20561654 | X23: =Asset!X$22 -> -31.83748438 | Y23: =Asset!Y$22 -> -34.42553436 | Z23: =Asset!Z$22 -> -36.958689 | AA23: =Asset!AA$22 -> -18.03809398 | AD23: =Asset!AD$22 -> -39.83998245 | AE23: =Asset!AE$22 -> -44.20970069 | AF23: =Asset!AF$22 -> -47.250904 | AG23: =Asset!AG$22 -> -50.07073047 | AH23: =Asset!AH$22 -> -53.17741997 | AI23: =Asset!AI$22 -> -47.72960895 | AJ23: =Asset!AJ$22 -> -57.22223473 | AK23: =Asset!AK$22 -> -58.78594355 | AL23: =Asset!AL$22 -> -60.25334425 | AM23: =Asset!AM$22 -> -62.49888025
A24: =ROW() -> 24 | D24: Asset Adjustment, Redundant Assets & Asset Disposal | O24: =Asset!O$21 -> 0 | P24: =Asset!P$21 -> 0 | Q24: =Asset!Q$21 -> 0 | R24: =Asset!R$21 -> 0 | S24: =Asset!S$21 -> -5.42850108 | T24: =Asset!T$21 -> 0 | W24: =Asset!W$21 -> 0 | X24: =Asset!X$21 -> 0 | Y24: =Asset!Y$21 -> 0 | Z24: =Asset!Z$21 -> 0 | AA24: =Asset!AA$21 -> -0.0424773683 | AD24: =Asset!AD$21 -> -0.01546661101 | AE24: =Asset!AE$21 -> -0.2028672662 | AF24: =Asset!AF$21 -> -0.2136045275 | AG24: =Asset!AG$21 -> -0.5156300225 | AH24: =Asset!AH$21 -> 0 | AI24: =Asset!AI$21 -> 0 | AJ24: =Asset!AJ$21 -> 0 | AK24: =Asset!AK$21 -> 0 | AL24: =Asset!AL$21 -> 0 | AM24: =Asset!AM$21 -> 0
A25: =ROW() -> 25 | D25: Closing Value | N25: =Asset!N$25 -> 946.7142164 | O25: =Asset!O$25 -> 936.7482853 | P25: =Asset!P$25 -> 940.0494677 | Q25: =Asset!Q$25 -> 943.3585042 | R25: =Asset!R$25 -> 945.7806179 | S25: =Asset!S$25 -> 962.5592674 | T25: =Asset!T$25 -> 983.0888775 | W25: =Asset!W$25 -> 999.3037278 | X25: =Asset!X$25 -> 1009.922577 | Y25: =Asset!Y$25 -> 1062.453208 | Z25: =Asset!Z$25 -> 1102.57939 | AA25: =Asset!AA$25 -> 1127.184274 | AD25: =Asset!AD$25 -> 1167.152231 | AE25: =Asset!AE$25 -> 1214.064648 | AF25: =Asset!AF$25 -> 1257.914734 | AG25: =Asset!AG$25 -> 1300.510364 | AH25: =Asset!AH$25 -> 1333.87084 | AI25: =Asset!AI$25 -> 1381.878605 | AJ25: =Asset!AJ$25 -> 1410.995549 | AK25: =Asset!AK$25 -> 1440.658547 | AL25: =Asset!AL$25 -> 1462.632453 | AM25: =Asset!AM$25 -> 1484.42352
A26: Capital Base [m$ nominal]
A27: =ROW() -> 27 | C27: Asset Account
A28: =ROW() -> 28 | D28: Opening Value (start period) | O28: =N34 -> 664.6423751 | P28: 676.0508794 | Q28: 700.5072018 | R28: 723.7683774 | S28: 752.367455 | T28: 781.8594427 | W28: =T34 -> 810.7839749 | X28: 853.8475843 | Y28: 873.0841768 | Z28: 940.453334 | AA28: =Z34 -> 1005.402948 | AD28: =AA34 -> 1034.633293 | AE28: 1089.409381 | AF28: 1149.923163 | AG28: 1214.202549 | AH28: 1277.714389 | AI28: =AH34 -> 1333.87084 | AJ28: 1399.531346 | AK28: 1447.275192 | AL28: 1496.577705 | AM28: 1538.814087
A29: =ROW() -> 29 | D29: Inflation on Opening Value (start period) | O29: =O28*O$11 -> 18.60091289 | P29: 21.99634335 | Q29: 20.72239954 | R29: 26.67228874 | S29: 15.86316923 | T29: 11.99312419 | W29: 29.20895203 | X29: 10.05653352 | Y29: 20.87053809 | Z29: 28.35997408 | AA29: 6.645722978 | AD29: 17.4703558 | AE29: 16.07984326 | AF29: 21.95307857 | AG29: 21.66284655 | AH29: 22.79597483 | AI29: =AI28*AI$11 -> 17.03946782 | AJ29: 17.87824474 | AK29: 18.48814617 | AL29: 19.11795871 | AM29: 19.65750531
A30: =ROW() -> 30 | D30: Opening Value (end period) | O30: =SUM(O28:O29) -> 683.243288 | P30: 698.0472227 | Q30: 721.2296014 | R30: 750.4406661 | S30: 768.2306242 | T30: 793.8525669 | W30: 839.9929269 | X30: 863.9041178 | Y30: 893.9547149 | Z30: =SUM(Z28:Z29) -> 968.8133081 | AA30: 1012.048671 | AD30: 1052.103649 | AE30: 1105.489224 | AF30: 1171.876242 | AG30: 1235.865396 | AH30: 1300.510364 | AI30: =SUM(AI28:AI29) -> 1350.910308 | AJ30: 1417.409591 | AK30: 1465.763338 | AL30: 1515.695664 | AM30: 1558.471593
A31: =ROW() -> 31 | D31: Capex | O31: =O22*O$12 -> 24.45876715 | P31: 30.42817248 | Q31: 32.92559992 | R31: 34.77458873 | S31: 42.43365973 | T31: 25.04525929 | W31: 38.80917763 | X31: 36.70375687 | Y31: 76.97112215 | Z31: 70.29095403 | AA31: 39.12518873 | AD31: =AD22*AD$12 -> 74.50644871 | AE31: 86.50010156 | AF31: 88.14143757 | AG31: 91.54865162 | AH31: 86.53789648 | AI31: =AI22*AI$12 -> 96.96036632 | AJ31: 88.55913945 | AK31: 91.88208636 | AL31: 86.51008072 | AM31: 89.81305442
A32: =ROW() -> 32 | D32: Depreciation | O32: =O23*O$12 -> -25.46514898 | P32: -27.96819334 | Q32: -30.38682391 | R32: -32.84779987 | S32: -35.29072771 | T32: -11.11560755 | W32: -24.95452027 | X32: -27.52369784 | Y32: -30.47250301 | Z32: -33.70131456 | AA32: -16.55702001 | AD32: -37.1862808 | AE32: -41.87401301 | AF32: -45.60894832 | AG32: -49.19306649 | AH32: -53.17741997 | AI32: =AI23*AI$12 -> -48.3393285 | AJ32: -58.69353791 | AK32: -61.06771982 | AL32: -63.3916571 | AM32: -66.5941257
A33: =ROW() -> 33 | D33: Asset Adjustment, Redundant Assets & Asset Disposal | O33: =O24*O$12 -> 0 | P33: 0 | Q33: 0 | R33: 0 | S33: -4.409416618 | T33: 0 | W33: 0 | X33: 0 | Y33: 0 | Z33: 0 | AA33: -0.03898963149 | AD33: -0.01443639542 | AE33: -0.1921493792 | AF33: -0.20618183 | AG33: -0.50659181 | AH33: 0 | AI33: =AI24*AI$12 -> 0 | AJ33: 0 | AK33: 0 | AL33: 0 | AM33: 0
A34: =ROW() -> 34 | D34: Closing Value | N34: =Asset!N25*N$12 -> 664.6423751 | O34: =Asset!O25*O$12 -> 676.0508794 | P34: =Asset!P25*P$12 -> 700.5072018 | Q34: =Asset!Q25*Q$12 -> 723.7683774 | R34: =Asset!R25*R$12 -> 752.367455 | S34: =Asset!S25*S$12 -> 781.8594427 | T34: =Asset!T25*T$12 -> 810.7839749 | W34: =Asset!W25*W$12 -> 853.8475843 | X34: =Asset!X25*X$12 -> 873.0841768 | Y34: =Asset!Y25*Y$12 -> 940.453334 | Z34: =Asset!Z25*Z$12 -> 1005.402948 | AA34: =Asset!AA25*AA$12 -> 1034.633293 | AD34: =Asset!AD25*AD$12 -> 1089.409381 | AE34: =Asset!AE25*AE$12 -> 1149.923163 | AF34: =Asset!AF25*AF$12 -> 1214.202549 | AG34: =Asset!AG25*AG$12 -> 1277.714389 | AH34: =Asset!AH25*AH$12 -> 1333.87084 | AI34: =Asset!AI25*AI$12 -> 1399.531346 | AJ34: =Asset!AJ25*AJ$12 -> 1447.275192 | AK34: =Asset!AK25*AK$12 -> 1496.577705 | AL34: =Asset!AL25*AL$12 -> 1538.814087 | AM34: =Asset!AM25*AM$12 -> 1581.690521
A35: =ROW() -> 35
A36: Cost of Service, Allowable Revenue [m$ nominal]
A37: =ROW() -> 37 | C37: Cost of Service | F37: PV AAP5
A38: =ROW() -> 38 | D38: OPEX | F38: =SUMPRODUCT($AI$18:$AM$18,AI38:AM38) -> 310.6858044 | AI38: =Input!AI$1599*AI$12 -> 66.09412488 | AJ38: =Input!AJ$1599*AJ$12 -> 68.92668497 | AK38: =Input!AK$1599*AK$12 -> 72.3325567 | AL38: =Input!AL$1599*AL$12 -> 74.91927434 | AM38: =Input!AM$1599*AM$12 -> 76.51304104
A39: =ROW() -> 39 | D39: Depreciation | F39: =SUMPRODUCT($AI$18:$AM$18,AI39:AM39) -> 257.3316177 | AI39: =-AI$32 -> 48.3393285 | AJ39: 58.69353791 | AK39: 61.06771982 | AL39: 63.3916571 | AM39: 66.5941257
A40: =ROW() -> 40 | D40: Inflationary Gain in Return on Asset | F40: -79.84071225 | AI40: =-AI$29 -> -17.03946782 | AJ40: -17.87824474 | AK40: -18.48814617 | AL40: -19.11795871 | AM40: -19.65750531
A41: =ROW() -> 41 | D41: Asset Disposal | F41: 0 | AI41: =-Asset!AI$21*AI$12 -> 0 | AJ41: =-Asset!AJ$21*AJ$12 -> 0 | AK41: =-Asset!AK$21*AK$12 -> 0 | AL41: =-Asset!AL$21*AL$12 -> 0 | AM41: =-Asset!AM$21*AM$12 -> 0
A42: =ROW() -> 42 | D42: Return on Asset | F42: 304.3327476 | AI42: =AI$17*AI$28 -> 64.95017283 | AJ42: 68.14737983 | AK42: 70.47217093 | AL42: 72.87285819 | AM42: 74.92947435
A43: =ROW() -> 43 | D43: Return on Working Capital (opening balance) | F43: 4.91319971 | AI43: =Working_Capital!AI$35 -> 1.083692519 | AJ43: =Working_Capital!AJ$35 -> 1.083692519 | AK43: =Working_Capital!AK$35 -> 1.134974335 | AL43: =Working_Capital!AL$35 -> 1.160346248 | AM43: =Working_Capital!AM$35 -> 1.206133717
A44: =ROW() -> 44 | D44: Tax | F44: 16.97478121 | AI44: =-Tax_CoRE!AI$46 -> 5.172115293 | AJ44: =-Tax_CoRE!AJ$46 -> 4.134962151 | AK44: =-Tax_CoRE!AK$46 -> 3.624030124 | AL44: =-Tax_CoRE!AL$46 -> 3.154303247 | AM44: =-Tax_CoRE!AM$46 -> 3.212273283
A45: =ROW() -> 45 | D45: Imputation Credits | F45: -8.487390604 | AI45: =-AI44*WACC!AI$24 -> -2.586057646 | AJ45: =-AJ44*WACC!AJ$24 -> -2.067481076 | AK45: =-AK44*WACC!AK$24 -> -1.812015062 | AL45: =-AL44*WACC!AL$24 -> -1.577151623 | AM45: =-AM44*WACC!AM$24 -> -1.606136641
A46: =ROW() -> 46 | D46: Net Cost of Service | F46: =SUMPRODUCT($AI$18:$AM$18,AI46:AM46) -> 805.9100477 | AI46: =SUM(AI38:AI45) -> 166.0139086 | AJ46: 181.0405316 | AK46: 188.3312907 | AL46: 194.8033288 | AM46: 201.1914061
A47: =ROW() -> 47 | D47: Total Revenue | F47: 805.9103524 | AI47: =Revenue!AI$239 -> 175.9089999 | AJ47: =Revenue!AJ$239 -> 180.8427473 | AK47: =Revenue!AK$239 -> 185.7982214 | AL47: =Revenue!AL$239 -> 190.7619438 | AM47: =Revenue!AM$239 -> 196.4760602
A48: =ROW() -> 48 | D48: Check CoS - Revenue (should be 0) | F48: =ROUND(F46-F47,5) -> -0.0003
A49: =ROW() -> 49
A50: =ROW() -> 50 | C50: Cost of Service | F50: PV | AI50: PV | AJ50: PV | AK50: PV | AL50: PV | AM50: PV
A51: =ROW() -> 51 | D51: OPEX | F51: =SUM(AI51:AM51) -> 310.6858044 | AI51: =AI38*AI$18 -> 63.02523701 | AJ51: 62.67446759 | AK51: 62.71749571 | AL51: 61.94411974 | AM51: 60.32448431
A52: =ROW() -> 52 | D52: Depreciation | F52: 257.3316177 | AI52: =AI39*AI$18 -> 46.09483281 | AJ52: 53.36955116 | AK52: 52.95007713 | AL52: 52.41295291 | AM52: 52.50420368
A53: =ROW() -> 53 | D53: Inflationary Gain in Return on Asset | F53: -79.84071225 | AI53: =AI40*AI$18 -> -16.24828984 | AJ53: -16.25654086 | AK53: -16.03054393 | AL53: -15.80694866 | AM53: -15.49838896
A54: =ROW() -> 54 | D54: Asset Disposal | F54: 0 | AI54: =AI41*AI$18 -> 0 | AJ54: 0 | AK54: 0 | AL54: 0 | AM54: 0
A55: =ROW() -> 55 | D55: Return on Asset | F55: 304.3327476 | AI55: =AI42*AI$18 -> 61.93440104 | AJ55: 61.96585183 | AK55: 61.10440831 | AL55: 60.25211927 | AM55: 59.07596716
A56: =ROW() -> 56 | D56: Return on Working Capital | F56: 4.91319971 | AI56: =AI43*AI$18 -> 1.033374418 | AJ56: 0.9853926921 | AK56: 0.9841038566 | AL56: 0.9593876552 | AM56: 0.9509410877
A57: =ROW() -> 57 | D57: Tax | F57: 16.97478121 | AI57: =AI44*AI$18 -> 4.931963208 | AJ57: 3.759887066 | AK57: 3.1422931 | AL57: 2.608014289 | AM57: 2.532623545
A58: =ROW() -> 58 | D58: Imputation Credits | F58: -8.487390604 | AI58: =AI45*AI$18 -> -2.465981604 | AJ58: -1.879943533 | AK58: -1.57114655 | AL58: -1.304007144 | AM58: -1.266311772
A59: =ROW() -> 59 | D59: Net Cost of Service | F59: =SUM(AI59:AM59) -> 805.9100477 | AI59: =AI46*AI$18 -> 158.305537 | AJ59: 164.6186659 | AK59: 163.2966876 | AL59: 161.0656381 | AM59: 158.623519
A60: =ROW() -> 60 | D60: Total Revenue | F60: =SUM(AI60:AM60) -> 805.9103524 | AI60: =AI47*AI$18 -> 167.7411787 | AJ60: 164.4388223 | AK60: 161.1003356 | AL60: 157.7241744 | AM60: 154.9058415
A61: =ROW() -> 61 | D61: Check CoS - Revenue (should be 0) | F61: =ROUND(F59-F60,5) -> -0.0003
A62: =ROW() -> 62
A63: ="CHECK -- Cost of Service, Allowable Revenue [m$ "&Input!$G$34&"]" -> CHECK -- Cost of Service, Allowable Revenue [m$ 31/12/2019]
A64: =ROW() -> 64 | C64: Cost of Service | F64: PV
A65: =ROW() -> 65 | D65: OPEX | F65: =SUMPRODUCT($AI$15:$AM$15,AI65:AM65) -> 310.6858044 | AI65: =Input!AI1599 -> 65.26045834 | AJ65: =Input!AJ1599 -> 67.19886186 | AK65: =Input!AK1599 -> 69.62987333 | AL65: =Input!AL1599 -> 71.210267 | AM65: =Input!AM1599 -> 71.80782598
A66: =ROW() -> 66 | D66: Depreciation | F66: 257.3316177 | AI66: =-AI23 -> 47.72960895 | AJ66: 57.22223473 | AK66: 58.78594355 | AL66: 60.25334425 | AM66: 62.49888025
A67: =ROW() -> 67 | D67: Asset Disposal | F67: 0 | AI67: =Asset!AI175 -> 0 | AJ67: =Asset!AJ175 -> 0 | AK67: =Asset!AK175 -> 0 | AL67: =Asset!AL175 -> 0 | AM67: =Asset!AM175 -> 0
A68: =ROW() -> 68 | D68: Return on Asset | F68: 224.4920354 | AI68: =AI$14*AI$21 -> 47.30639182 | AJ68: 49.00901105 | AK68: 50.04165793 | AL68: 51.09367086 | AM68: 51.87298636
A69: =ROW() -> 69 | D69: Return on Working Capital | F69: 4.91319971 | AI69: =AI43/AI$12 -> 1.070023555 | AJ69: 1.056527003 | AK69: 1.092566374 | AL69: 1.102901314 | AM69: 1.131961805
A70: =ROW() -> 70 | D70: Tax | F70: 16.97478121 | AI70: =AI44/AI$12 -> 5.106877733 | AJ70: 4.031308782 | AK70: 3.488619371 | AL70: 2.998144047 | AM70: 3.014732622
A71: =ROW() -> 71 | D71: Imputation Credits | F71: -8.487390604 | AI71: =-AI70*WACC!AI$24 -> -2.553438866 | AJ71: =-AJ70*WACC!AJ$24 -> -2.015654391 | AK71: =-AK70*WACC!AK$24 -> -1.744309686 | AL71: =-AL70*WACC!AL$24 -> -1.499072024 | AM71: =-AM70*WACC!AM$24 -> -1.507366311
A72: =ROW() -> 72 | D72: Net Cost of Service | F72: =SUMPRODUCT($AI$15:$AM$15,AI72:AM72) -> 805.9100477 | AI72: =SUM(AI65:AI71) -> 163.9199215 | AJ72: 176.502289 | AK72: 181.2943509 | AL72: 185.1592554 | AM72: 188.8190207
A73: =ROW() -> 73 | D73: Total Revenue | F73: =SUMPRODUCT($AI$15:$AM$15,AI73:AM73) -> 805.9103524 | AI73: =Revenue!AI148 -> 173.6902029 | AJ73: =Revenue!AJ148 -> 176.3094627 | AK73: =Revenue!AK148 -> 178.855929 | AL73: =Revenue!AL148 -> 181.3179462 | AM73: =Revenue!AM148 -> 184.3936478
A74: =ROW() -> 74 | D74: Check CoS - Revenue (should be 0) | F74: =ROUND(F72-F73,5) -> -0.0003
A75: =ROW() -> 75
A76: =ROW() -> 76 | C76: Cost of Service | F76: PV | AI76: PV | AJ76: PV | AK76: PV | AL76: PV | AM76: PV
A77: =ROW() -> 77 | D77: OPEX | F77: =SUM(AI77:AM77) -> 310.6858044 | AI77: =AI65*AI$15 -> 63.02523701 | AJ77: 62.67446759 | AK77: 62.71749571 | AL77: 61.94411974 | AM77: 60.32448431
A78: =ROW() -> 78 | D78: Depreciation | F78: 257.3316177 | AI78: =AI66*AI$15 -> 46.09483281 | AJ78: 53.36955116 | AK78: 52.95007713 | AL78: 52.41295291 | AM78: 52.50420368
A79: =ROW() -> 79 | D79: Asset Disposal | F79: 0 | AI79: =AI67*AI$15 -> 0 | AJ79: 0 | AK79: 0 | AL79: 0 | AM79: 0
A80: =ROW() -> 80 | D80: Return on Asset | F80: 224.4920354 | AI80: =AI68*AI$15 -> 45.68611119 | AJ80: 45.70931098 | AK80: 45.07386437 | AL80: 44.44517061 | AM80: 43.5775782
A81: =ROW() -> 81 | D81: Return on Working Capital | F81: 4.91319971 | AI81: =AI69*AI$15 -> 1.033374418 | AJ81: 0.9853926921 | AK81: 0.9841038566 | AL81: 0.9593876552 | AM81: 0.9509410877
A82: =ROW() -> 82 | D82: Tax | F82: 16.97478121 | AI82: =AI70*AI$15 -> 4.931963208 | AJ82: 3.759887066 | AK82: 3.1422931 | AL82: 2.608014289 | AM82: 2.532623545
A83: =ROW() -> 83 | D83: Imputation Credits | F83: -8.487390604 | AI83: =AI71*AI$15 -> -2.465981604 | AJ83: -1.879943533 | AK83: -1.57114655 | AL83: -1.304007144 | AM83: -1.266311772
A84: =ROW() -> 84 | D84: Net Cost of Service | F84: =SUM(AI84:AM84) -> 805.9100477 | AI84: =AI72*AI$15 -> 158.305537 | AJ84: 164.6186659 | AK84: 163.2966876 | AL84: 161.0656381 | AM84: 158.623519
A85: =ROW() -> 85 | D85: Total Revenue | F85: =SUM(AI85:AM85) -> 805.9103524 | AI85: =AI73*AI$15 -> 167.7411787 | AJ85: 164.4388223 | AK85: 161.1003356 | AL85: 157.7241744 | AM85: 154.9058415
A86: =ROW() -> 86 | D86: Check CoS - Revenue (should be 0) | F86: =ROUND(F84-F85,5) -> -0.0003
A87: =ROW() -> 87
A88: Credit Foncier Check
A89: =ROW() -> 89 | C89: Net Cash Flow | F89: PV
A90: =ROW() -> 90 | D90: Total Smoothed Revenue | F90: =AH90+SUMPRODUCT($AI$18:$AM$18,AI90:AM90) -> 805.9103524 | AI90: =AI$47 -> 175.9089999 | AJ90: =AJ$47 -> 180.8427473 | AK90: =AK$47 -> 185.7982214 | AL90: =AL$47 -> 190.7619438 | AM90: =AM$47 -> 196.4760602
A91: =ROW() -> 91 | D91: Opex | F91: =AH91+SUMPRODUCT($AI$18:$AM$18,AI91:AM91) -> -310.6858044 | AI91: =-AI$38 -> -66.09412488 | AJ91: =-AJ$38 -> -68.92668497 | AK91: =-AK$38 -> -72.3325567 | AL91: =-AL$38 -> -74.91927434 | AM91: =-AM$38 -> -76.51304104
A92: =ROW() -> 92 | D92: Tax | F92: -16.97478121 | AI92: =-AI$44 -> -5.172115293 | AJ92: =-AJ$44 -> -4.134962151 | AK92: =-AK$44 -> -3.624030124 | AL92: =-AL$44 -> -3.154303247 | AM92: =-AM$44 -> -3.212273283
A93: =ROW() -> 93 | D93: Imputation Credits | F93: 8.487390604 | AI93: =-AI$45 -> 2.586057646 | AJ93: =-AJ$45 -> 2.067481076 | AK93: =-AK$45 -> 1.812015062 | AL93: =-AL$45 -> 1.577151623 | AM93: =-AM$45 -> 1.606136641
A94: =ROW() -> 94 | D94: Asset Opening Value | F94: -1333.87084 | AH94: =-AH34 -> -1333.87084
A95: =ROW() -> 95 | D95: Capex | F95: -394.990752 | AI95: =-AI$31 -> -96.96036632 | AJ95: =-AJ$31 -> -88.55913945 | AK95: =-AK$31 -> -91.88208636 | AL95: =-AL$31 -> -86.51008072 | AM95: =-AM$31 -> -89.81305442
A96: =ROW() -> 96 | D96: Asset Residual Value | F96: 1247.037939 | AM96: =AM34 -> 1581.690521
A97: =ROW() -> 97 | D97: Working Capital Opening Value | F97: -22.25561208 | AH97: =-Working_Capital!AI29 -> -22.25561208
A98: =ROW() -> 98 | D98: Working Capital Variation | F98: -2.774369783 | AI98: =-Working_Capital!AI30 -> 0 | AJ98: =-Working_Capital!AJ30 -> -1.053166086 | AK98: =-Working_Capital!AK30 -> -0.5210587335 | AL98: =-Working_Capital!AL30 -> -0.9403295867 | AM98: =-Working_Capital!AM30 -> -0.7451146824
A99: =ROW() -> 99
A100: =ROW() -> 100 | D100: Working Capital Residual Value | F100: 20.11678215 | AM100: =Working_Capital!AM31 -> 25.51528117
A101: =ROW() -> 101 | D101: Net Cash Flow (should be 0) | F101: 0.0003047351627 | AH101: =SUM(AH90:AH100) -> -1356.126452 | AI101: 10.26845102 | AJ101: 20.23627568 | AK101: 19.25050458 | AL101: 26.81510754 | AM101: 1635.004516
A102: =ROW() -> 102
A103: =ROW() -> 103
A104: =ROW() -> 104
A105: =ROW() -> 105 | D105: Credit Foncier Check AA5 | F105: (A)
A106: =ROW() -> 106
A107: =ROW() -> 107 | F107: PV
A108: =ROW() -> 108 | D108: Total Smoothed Revenue | F108: =F90 -> 805.9103524
A109: =ROW() -> 109
A110: =ROW() -> 110 | D110: Asset Opening Value | F110: =F94 -> -1333.87084
A111: =ROW() -> 111 | D111: Capex | F111: =F95 -> -394.990752
A112: =ROW() -> 112 | D112: Asset Residual Value | F112: =F96 -> 1247.037939
A113: =ROW() -> 113 | F113: =SUM(F110:F112) -> -481.823653
A114: =ROW() -> 114
A115: =ROW() -> 115 | D115: Opex | F115: =F91 -> -310.6858044
A116: =ROW() -> 116 | D116: Tax | F116: =F92 -> -16.97478121
A117: =ROW() -> 117 | D117: Imputation Credits | F117: =F93 -> 8.487390604
A118: =ROW() -> 118 | F118: =SUM(F115:F117) -> -319.173195
A119: =ROW() -> 119
A120: =ROW() -> 120 | D120: Working Capital Opening Value | F120: =F97 -> -22.25561208
A121: =ROW() -> 121 | D121: Working Capital Residual Value | F121: =F100 -> 20.11678215
A122: =ROW() -> 122 | D122: Working Capital Variation | F122: =F98 -> -2.774369783
A123: =ROW() -> 123
A124: =ROW() -> 124 | F124: =SUM(F120:F123) -> -4.91319971
A125: =ROW() -> 125
A126: =ROW() -> 126 | D126: Net Cash Flow (should be 0) | F126: =ROUND(F108+F113+F118+F124,0.00001) -> 0
A127: =ROW() -> 127

Sheet Revenue
A1: =Main!A1 -> 0
A2: Revenue
A3: Ref | C3: =COLUMN() -> 3 | D3: =COLUMN() -> 4 | E3: =COLUMN() -> 5 | F3: =COLUMN() -> 6 | G3: =COLUMN() -> 7 | H3: =COLUMN() -> 8 | I3: =COLUMN() -> 9 | J3: =COLUMN() -> 10 | K3: =COLUMN() -> 11 | L3: =COLUMN() -> 12 | M3: =COLUMN() -> 13 | N3: =COLUMN() -> 14 | O3: =COLUMN() -> 15 | P3: =COLUMN() -> 16 | Q3: =COLUMN() -> 17 | R3: =COLUMN() -> 18 | S3: =COLUMN() -> 19 | T3: =COLUMN() -> 20 | U3: =COLUMN() -> 21 | V3: =COLUMN() -> 22 | W3: =COLUMN() -> 23 | X3: =COLUMN() -> 24 | Y3: =COLUMN() -> 25 | Z3: =COLUMN() -> 26 | AA3: =COLUMN() -> 27 | AD3: =COLUMN() -> 30 | AE3: =COLUMN() -> 31 | AF3: =COLUMN() -> 32 | AG3: =COLUMN() -> 33 | AH3: =COLUMN() -> 34
A4: =ROW() -> 4 | J4: Year ending 31 December | O4: Year ending 31 December | T4: Year Ending 30 June | AA4: Year Ending 31 December | AI4: Year Ending 31 December
A5: Regulatory Period | J5: 1 | K5: 1 | L5: 1 | M5: 1 | N5: 1 | O5: 2 | P5: 2 | Q5: 2 | R5: 2 | S5: 2 | T5: 3 | U5: 3 | V5: 3 | W5: 3 | X5: 3 | Y5: 3 | Z5: 3 | AA5: 4 | AB5: 4 | AC5: 4 | AD5: 4 | AE5: 4 | AF5: 4 | AG5: 4 | AH5: 4 | AI5: 4 | AJ5: 4 | AK5: 4 | AL5: 4 | AM5: 4
A6: Year ending | I6: =Load_Tariffs!I6 -> 1999 | J6: =Load_Tariffs!J6 -> 2000 | K6: =Load_Tariffs!K6 -> 2001 | L6: =Load_Tariffs!L6 -> 2002 | M6: =Load_Tariffs!M6 -> 2003 | N6: =Load_Tariffs!N6 -> 2004 | O6: =Load_Tariffs!O6 -> 2005 | P6: =Load_Tariffs!P6 -> 2006 | Q6: =Load_Tariffs!Q6 -> 2007 | R6: =Load_Tariffs!R6 -> 2008 | S6: =Load_Tariffs!S6 -> 2009 | T6: =Load_Tariffs!T6 -> 2010 | U6: =Load_Tariffs!U6 -> 2010 | V6: =Load_Tariffs!V6 -> 2011 | W6: =Load_Tariffs!W6 -> 2011 | X6: =Load_Tariffs!X6 -> 2012 | Y6: =Load_Tariffs!Y6 -> 2013 | Z6: =Load_Tariffs!Z6 -> 2014 | AA6: =Load_Tariffs!AA6 -> 2014 | AB6: =Load_Tariffs!AB6 -> 2015 | AC6: =Load_Tariffs!AC6 -> 2015 | AD6: =Load_Tariffs!AD6 -> 2015 | AE6: =Load_Tariffs!AE6 -> 2016 | AF6: =Load_Tariffs!AF6 -> 2017 | AG6: =Load_Tariffs!AG6 -> 2018 | AH6: =Load_Tariffs!AH6 -> 2019 | AI6: =Load_Tariffs!AI6 -> 2020 | AJ6: =Load_Tariffs!AJ6 -> 2021 | AK6: =Load_Tariffs!AK6 -> 2022 | AL6: =Load_Tariffs!AL6 -> 2023 | AM6: =Load_Tariffs!AM6 -> 2024
A7: Months | I7: =Load_Tariffs!I7 -> 1 to 12 | J7: =Load_Tariffs!J7 -> 1 to 12 | K7: =Load_Tariffs!K7 -> 1 to 12 | L7: =Load_Tariffs!L7 -> 1 to 12 | M7: =Load_Tariffs!M7 -> 1 to 12 | N7: =Load_Tariffs!N7 -> 1 to 12 | O7: =Load_Tariffs!O7 -> 1 to 12 | P7: =Load_Tariffs!P7 -> 1 to 12 | Q7: =Load_Tariffs!Q7 -> 1 to 12 | R7: =Load_Tariffs!R7 -> 1 to 12 | S7: =Load_Tariffs!S7 -> 1 to 12 | T7: =Load_Tariffs!T7 -> 1 to 6 | U7: =Load_Tariffs!U7 -> 7 to 12 | V7: =Load_Tariffs!V7 -> 1 to 6 | W7: =Load_Tariffs!W7 -> 7 to 6 | X7: =Load_Tariffs!X7 -> 7 to 6 | Y7: =Load_Tariffs!Y7 -> 7 to 6 | Z7: =Load_Tariffs!Z7 -> 7 to 6 | AA7: =Load_Tariffs!AA7 -> 7 to 12 | AB7: =Load_Tariffs!AB7 -> 1 to 9 | AC7: =Load_Tariffs!AC7 -> 10 to 12 | AD7: =Load_Tariffs!AD7 -> 1 to 12 | AE7: =Load_Tariffs!AE7 -> 1 to 12 | AF7: =Load_Tariffs!AF7 -> 1 to 12 | AG7: =Load_Tariffs!AG7 -> 1 to 12 | AH7: =Load_Tariffs!AH7 -> 1 to 12 | AI7: =Load_Tariffs!AI7 -> 1 to 12 | AJ7: =Load_Tariffs!AJ7 -> 1 to 12 | AK7: =Load_Tariffs!AK7 -> 1 to 12 | AL7: =Load_Tariffs!AL7 -> 1 to 12 | AM7: =Load_Tariffs!AM7 -> 1 to 12
A8: Days | I8: =Load_Tariffs!I8 -> 365 | J8: =Load_Tariffs!J8 -> 366 | K8: =Load_Tariffs!K8 -> 365 | L8: =Load_Tariffs!L8 -> 365 | M8: =Load_Tariffs!M8 -> 365 | N8: =Load_Tariffs!N8 -> 366 | O8: =Load_Tariffs!O8 -> 365 | P8: =Load_Tariffs!P8 -> 365 | Q8: =Load_Tariffs!Q8 -> 365 | R8: =Load_Tariffs!R8 -> 366 | S8: =Load_Tariffs!S8 -> 365 | T8: =Load_Tariffs!T8 -> 181 | U8: =Load_Tariffs!U8 -> 184 | V8: =Load_Tariffs!V8 -> 181 | W8: =Load_Tariffs!W8 -> 365 | X8: =Load_Tariffs!X8 -> 366 | Y8: =Load_Tariffs!Y8 -> 365 | Z8: =Load_Tariffs!Z8 -> 365 | AA8: =Load_Tariffs!AA8 -> 184 | AB8: =Load_Tariffs!AB8 -> 273 | AC8: =Load_Tariffs!AC8 -> 92 | AD8: =Load_Tariffs!AD8 -> 365 | AE8: =Load_Tariffs!AE8 -> 366 | AF8: =Load_Tariffs!AF8 -> 365 | AG8: =Load_Tariffs!AG8 -> 365 | AH8: =Load_Tariffs!AH8 -> 365 | AI8: 365 | AJ8: 365 | AK8: 365 | AL8: 365 | AM8: 365
A9: Year portion | I9: =Load_Tariffs!I9 -> 1 | J9: =Load_Tariffs!J9 -> 1 | K9: =Load_Tariffs!K9 -> 1 | L9: =Load_Tariffs!L9 -> 1 | M9: =Load_Tariffs!M9 -> 1 | N9: =Load_Tariffs!N9 -> 1 | O9: =Load_Tariffs!O9 -> 1 | P9: =Load_Tariffs!P9 -> 1 | Q9: =Load_Tariffs!Q9 -> 1 | R9: =Load_Tariffs!R9 -> 1 | S9: =Load_Tariffs!S9 -> 1 | T9: =Load_Tariffs!T9 -> 0.495890411 | U9: =Load_Tariffs!U9 -> 0.5 | V9: =Load_Tariffs!V9 -> 0.5 | W9: =Load_Tariffs!W9 -> 1 | X9: =Load_Tariffs!X9 -> 1 | Y9: =Load_Tariffs!Y9 -> 1 | Z9: =Load_Tariffs!Z9 -> 1 | AA9: =Load_Tariffs!AA9 -> 0.504109589 | AB9: =Load_Tariffs!AB9 -> 0.7479452055 | AC9: =Load_Tariffs!AC9 -> 0.2520547945 | AD9: =Load_Tariffs!AD9 -> 1 | AE9: =Load_Tariffs!AE9 -> 1 | AF9: =Load_Tariffs!AF9 -> 1 | AG9: =Load_Tariffs!AG9 -> 1 | AH9: =Load_Tariffs!AH9 -> 1 | AI9: =Load_Tariffs!AI9 -> 1 | AJ9: =Load_Tariffs!AJ9 -> 1 | AK9: =Load_Tariffs!AK9 -> 1 | AL9: =Load_Tariffs!AL9 -> 1 | AM9: =Load_Tariffs!AM9 -> 1
A10: Financial Parameters
A11: =ROW() -> 11 | C11: Inflation factor | J11: Actual 1 | O11: Actual 2 | T11: Actual 3 | Y11: FORECAST | AA11: Actual | AH11: Forecast | AI11: Forecast
A12: =ROW() -> 12 | D12: ="Inflation Factor (convert to real "&Input!$G$34&" $)" -> Inflation Factor (convert to real 31/12/2019 $) | T12: =Input!T34 -> 1.212516414 | U12: =Input!U34 -> 1.199276292 | V12: =Input!V34 -> 1.170353757 | W12: =Input!W34 -> 1.170353757 | X12: =Input!X34 -> 1.156729905 | Y12: =Input!Y34 -> 1.129724537 | Z12: =Input!Z34 -> 1.096654225 | AA12: =Input!AA34 -> 1.089452931 | AB12: =Input!AB34 -> 1.071362384 | AC12: =Input!AC34 -> 1.071362384 | AD12: =Input!AD34 -> 1.071362384 | AE12: =Input!AE34 -> 1.055778931 | AF12: =Input!AF34 -> 1.036000735 | AG12: =Input!AG34 -> 1.017841213 | AH12: =Input!AH34 -> 1 | AI12: =Input!AI34 -> 0.9873866772 | AJ12: =Input!AJ34 -> 0.9749324503 | AK12: =Input!AK34 -> 0.9626353125 | AL12: =Input!AL34 -> 0.9504932826 | AM12: =Input!AM34 -> 0.938504404
A13: =ROW() -> 13 | D13: ="Inflation Factor (convert " &Input!$G$34& " $ to nominal $)" -> Inflation Factor (convert 31/12/2019 $ to nominal $) | T13: =Input!T35 -> 0.8247311036 | U13: =Input!U35 -> 0.8338362117 | V13: =Input!V35 -> 0.8544425088 | W13: =Input!W35 -> 0.8544425088 | X13: =Input!X35 -> 0.8645060493 | Y13: =Input!Y35 -> 0.8851715326 | Z13: =Input!Z35 -> 0.9118644484 | AA13: =Input!AA35 -> 0.9178918811 | AB13: =Input!AB35 -> 0.9333909935 | AC13: =Input!AC35 -> 0.9333909935 | AD13: =Input!AD35 -> 0.9333909935 | AE13: =Input!AE35 -> 0.9471679823 | AF13: =Input!AF35 -> 0.9652502802 | AG13: =Input!AG35 -> 0.9824715162 | AH13: =Input!AH35 -> 1 | AI13: =Input!AI35 -> 1.012774451 | AJ13: =Input!AJ35 -> 1.025712089 | AK13: =Input!AK35 -> 1.038814998 | AL13: =Input!AL35 -> 1.052085289 | AM13: =Input!AM35 -> 1.065525101
A14: =ROW() -> 14 | J14: Approved 1 | O14: Approved 2 | T14: Approved 3 | AA14: Actual | AH14: Forecast | AI14: Forecast
A15: =ROW() -> 15 | C15: Real Post-tax WACC
A16: =ROW() -> 16 | D16: Discounting Factor | T16: =Input!T39 -> 1 | W16: =Input!W39 -> 1 | X16: =Input!X39 -> 1 | Y16: =Input!Y39 -> 1 | Z16: =Input!Z39 -> 1 | AA16: =Input!AA39 -> 0.9805747093 | AD16: =Input!AD39 -> 0.9427606624 | AE16: =Input!AE39 -> 0.9055128917 | AF16: =Input!AF39 -> 0.869200935 | AG16: =Input!AG39 -> 0.8351948183 | AH16: =Input!AH39 -> 0.8038653686 | AI16: =Input!AI39 -> 0.9657492241 | AJ16: =Input!AJ39 -> 0.9326715639 | AK16: =Input!AK39 -> 0.9007268392 | AL16: =Input!AL39 -> 0.8698762461 | AM16: =Input!AM39 -> 0.8400823098
A17: =ROW() -> 17 | C17: Nominal Post Tax WACC
A18: =ROW() -> 18 | D18: Discounting Factor | T18: =Input!T42 -> 1 | W18: =Input!W42 -> 1 | X18: =Input!X42 -> 1 | Y18: =Input!Y42 -> 1 | Z18: =Input!Z42 -> 1 | AA18: =Input!AA42 -> 0.9713147936 | AD18: =Input!AD42 -> 0.9164453761 | AE18: =Input!AE42 -> 0.8638246346 | AF18: =Input!AF42 -> 0.8137236684 | AG18: =Input!AG42 -> 0.7673091386 | AH18: =Input!AH42 -> 0.7247558251 | AI18: =Input!AI42 -> 0.9535679174 | AJ18: =Input!AJ42 -> 0.9092917731 | AK18: =Input!AK42 -> 0.8670714624 | AL18: =Input!AL42 -> 0.8268115286 | AM18: =Input!AM42 -> 0.7884209474
A19: Modelled Volume & Customer # (excluding prudent discount)
A20: =ROW() -> 20 | T20: Actual | AA20: Actual | AH20: Forecast | AI20: Forecast
A21: =ROW() -> 21 | C21: A1
A22: =ROW() -> 22 | D22: Customers | T22: =Load_Tariffs!T90 -> 50.33333333 | W22: =Load_Tariffs!W90 -> 53.16666667 | X22: =Load_Tariffs!X90 -> 55.91666667 | Y22: =Load_Tariffs!Y90 -> 62.66666667 | Z22: =Load_Tariffs!Z90 -> 64.5 | AA22: =Load_Tariffs!AA90 -> 64.5 | AD22: =Load_Tariffs!AD90 -> 66.5 | AE22: =Load_Tariffs!AE90 -> 72 | AF22: =Load_Tariffs!AF90 -> 72.5 | AG22: =Load_Tariffs!AG90 -> 72.5 | AH22: =Load_Tariffs!AH90 -> 73 | AI22: =Load_Tariffs!AI90 -> 73 | AJ22: =Load_Tariffs!AJ90 -> 73 | AK22: =Load_Tariffs!AK90 -> 72.5 | AL22: =Load_Tariffs!AL90 -> 72 | AM22: =Load_Tariffs!AM90 -> 72
A23: =ROW() -> 23 | D23: Demand 1 [GJ km] | T23: =Load_Tariffs!T91 -> 4810.674978 | W23: =Load_Tariffs!W91 -> 9941.092845 | X23: =Load_Tariffs!X91 -> 11680.59719 | Y23: =Load_Tariffs!Y91 -> 12196.77594 | Z23: =Load_Tariffs!Z91 -> 12836.93546 | AA23: =Load_Tariffs!AA91 -> 6908.508355 | AD23: =Load_Tariffs!AD91 -> 13355.22104 | AE23: =Load_Tariffs!AE91 -> 15366.25762 | AF23: =Load_Tariffs!AF91 -> 15901.48185 | AG23: =Load_Tariffs!AG91 -> 16933.5405 | AH23: =Load_Tariffs!AH91 -> 16451.6396 | AI23: =Load_Tariffs!AI91 -> 17062.4266 | AJ23: =Load_Tariffs!AJ91 -> 17077.6136 | AK23: =Load_Tariffs!AK91 -> 15164.6136 | AL23: =Load_Tariffs!AL91 -> 13454.8136 | AM23: =Load_Tariffs!AM91 -> 13474.8136
A24: =ROW() -> 24 | D24: Demand 2 [GJ km] | T24: =Load_Tariffs!T92 -> 1022.982247 | W24: =Load_Tariffs!W92 -> 2395.216712 | X24: =Load_Tariffs!X92 -> 6559.023452 | Y24: =Load_Tariffs!Y92 -> 5974.018389 | Z24: =Load_Tariffs!Z92 -> 6077.220082 | AA24: =Load_Tariffs!AA92 -> 3742.059419 | AD24: =Load_Tariffs!AD92 -> 7362.087342 | AE24: =Load_Tariffs!AE92 -> 7594.702027 | AF24: =Load_Tariffs!AF92 -> 6938.869589 | AG24: =Load_Tariffs!AG92 -> 6587.707562 | AH24: =Load_Tariffs!AH92 -> 6375.082 | AI24: =Load_Tariffs!AI92 -> 6557.322 | AJ24: =Load_Tariffs!AJ92 -> 6562.522 | AK24: =Load_Tariffs!AK92 -> 6562.522 | AL24: =Load_Tariffs!AL92 -> 6159.422 | AM24: =Load_Tariffs!AM92 -> 6164.622
A25: =ROW() -> 25 | D25: Usage 1 [TJ km] | T25: =Load_Tariffs!T93 -> 10466.01377 | W25: =Load_Tariffs!W93 -> 23453.57172 | X25: =Load_Tariffs!X93 -> 30807.77556 | Y25: =Load_Tariffs!Y93 -> 28099.35376 | Z25: =Load_Tariffs!Z93 -> 29939.8747 | AA25: =Load_Tariffs!AA93 -> 16267.79064 | AD25: =Load_Tariffs!AD93 -> 31828.34975 | AE25: =Load_Tariffs!AE93 -> 37584.49962 | AF25: =Load_Tariffs!AF93 -> 37057.85173 | AG25: =Load_Tariffs!AG93 -> 42709.11395 | AH25: =Load_Tariffs!AH93 -> 39983.58965 | AI25: =Load_Tariffs!AI93 -> 41246.94015 | AJ25: =Load_Tariffs!AJ93 -> 44810.78326 | AK25: =Load_Tariffs!AK93 -> 42975.20601 | AL25: =Load_Tariffs!AL93 -> 41945.49333 | AM25: =Load_Tariffs!AM93 -> 41647.88055
A26: =ROW() -> 26 | D26: Usage 2 [TJ km] | T26: =Load_Tariffs!T94 -> 1432.245102 | W26: =Load_Tariffs!W94 -> 2792.582836 | X26: =Load_Tariffs!X94 -> 22417.44889 | Y26: =Load_Tariffs!Y94 -> 10456.27511 | Z26: =Load_Tariffs!Z94 -> 9608.150919 | AA26: =Load_Tariffs!AA94 -> 5860.346571 | AD26: =Load_Tariffs!AD94 -> 14173.39355 | AE26: =Load_Tariffs!AE94 -> 17215.38124 | AF26: =Load_Tariffs!AF94 -> 18631.62799 | AG26: =Load_Tariffs!AG94 -> 24799.91344 | AH26: =Load_Tariffs!AH94 -> 23537.28294 | AI26: =Load_Tariffs!AI94 -> 23927.09602 | AJ26: =Load_Tariffs!AJ94 -> 24860.07907 | AK26: =Load_Tariffs!AK94 -> 24541.18881 | AL26: =Load_Tariffs!AL94 -> 23972.87112 | AM26: =Load_Tariffs!AM94 -> 23586.1967
A27: =ROW() -> 27 | D27: Total Volume [GJ per Annum] | T27: =Load_Tariffs!T74*1000 -> 2989027.059 | W27: =Load_Tariffs!W74*1000 -> 7061772.958 | X27: =Load_Tariffs!X74*1000 -> 8562532.485 | Y27: =Load_Tariffs!Y74*1000 -> 8478528.824 | Z27: =Load_Tariffs!Z74*1000 -> 8669858.249 | AA27: =Load_Tariffs!AA74*1000 -> 4660411.482 | AD27: =Load_Tariffs!AD74*1000 -> 8842923.473 | AE27: =Load_Tariffs!AE74*1000 -> 9474734.76 | AF27: =Load_Tariffs!AF74*1000 -> 9292616.66 | AG27: =Load_Tariffs!AG74*1000 -> 9924907.241 | AH27: =Load_Tariffs!AH74*1000 -> 9611953.607 | AI27: =Load_Tariffs!AI74*1000 -> 9537737.393 | AJ27: =Load_Tariffs!AJ74*1000 -> 9850738.909 | AK27: =Load_Tariffs!AK74*1000 -> 9509453.86 | AL27: =Load_Tariffs!AL74*1000 -> 9200536.907 | AM27: =Load_Tariffs!AM74*1000 -> 9140729.14
A28: =ROW() -> 28 | C28: A2
A29: =ROW() -> 29 | D29: A2 Customers | T29: =Load_Tariffs!T40 -> 97.16666667 | W29: =Load_Tariffs!W40 -> 101 | X29: =Load_Tariffs!X40 -> 109.5 | Y29: =Load_Tariffs!Y40 -> 106.5833333 | Z29: =Load_Tariffs!Z40 -> 104.5 | AA29: =Load_Tariffs!AA40 -> 103 | AD29: =Load_Tariffs!AD40 -> 102.5 | AE29: =Load_Tariffs!AE40 -> 98.5 | AF29: =Load_Tariffs!AF40 -> 97 | AG29: =Load_Tariffs!AG40 -> 102 | AH29: =Load_Tariffs!AH40 -> 105 | AI29: =Load_Tariffs!AI40 -> 105.5 | AJ29: =Load_Tariffs!AJ40 -> 106 | AK29: =Load_Tariffs!AK40 -> 106.5 | AL29: =Load_Tariffs!AL40 -> 107 | AM29: =Load_Tariffs!AM40 -> 107.5
A30: =ROW() -> 30 | D30: GJ Band 1 | T30: =Load_Tariffs!T101 -> 228196.5464 | W30: =Load_Tariffs!W101 -> 439801.477 | X30: =Load_Tariffs!X101 -> 851175.004 | Y30: =Load_Tariffs!Y101 -> 838543.447 | Z30: =Load_Tariffs!Z101 -> 815846.866 | AA30: =Load_Tariffs!AA101 -> 0 | AD30: =Load_Tariffs!AD101 -> 0 | AE30: =Load_Tariffs!AE101 -> 0 | AF30: =Load_Tariffs!AF101 -> 0 | AG30: =Load_Tariffs!AG101 -> 0 | AH30: =Load_Tariffs!AH101 -> 0 | AI30: =Load_Tariffs!AI101 -> 0 | AJ30: =Load_Tariffs!AJ101 -> 0 | AK30: =Load_Tariffs!AK101 -> 0 | AL30: =Load_Tariffs!AL101 -> 0 | AM30: =Load_Tariffs!AM101 -> 0
A31: =ROW() -> 31 | D31: GJ Band 2 | T31: =Load_Tariffs!T102 -> 203649.7527 | W31: =Load_Tariffs!W102 -> 383576.215 | X31: =Load_Tariffs!X102 -> 1168877.416 | Y31: =Load_Tariffs!Y102 -> 1144950.279 | Z31: =Load_Tariffs!Z102 -> 1068670.536 | AA31: =Load_Tariffs!AA102 -> 0 | AD31: =Load_Tariffs!AD102 -> 0 | AE31: =Load_Tariffs!AE102 -> 0 | AF31: =Load_Tariffs!AF102 -> 0 | AG31: =Load_Tariffs!AG102 -> 0 | AH31: =Load_Tariffs!AH102 -> 0 | AI31: =Load_Tariffs!AI102 -> 0 | AJ31: =Load_Tariffs!AJ102 -> 0 | AK31: =Load_Tariffs!AK102 -> 0 | AL31: =Load_Tariffs!AL102 -> 0 | AM31: =Load_Tariffs!AM102 -> 0
A32: =ROW() -> 32 | D32: GJ Band 3 | T32: =Load_Tariffs!T103 -> 455151.0385 | W32: =Load_Tariffs!W103 -> 992837.4724 | X32: =Load_Tariffs!X103 -> 0 | Y32: =Load_Tariffs!Y103 -> 0 | Z32: =Load_Tariffs!Z103 -> 0 | AA32: =Load_Tariffs!AA103 -> 0 | AD32: =Load_Tariffs!AD103 -> 0 | AE32: =Load_Tariffs!AE103 -> 0 | AF32: =Load_Tariffs!AF103 -> 0 | AG32: =Load_Tariffs!AG103 -> 0 | AH32: =Load_Tariffs!AH103 -> 0 | AI32: =Load_Tariffs!AI103 -> 0 | AJ32: =Load_Tariffs!AJ103 -> 0 | AK32: =Load_Tariffs!AK103 -> 0 | AL32: =Load_Tariffs!AL103 -> 0 | AM32: =Load_Tariffs!AM103 -> 0
A33: =ROW() -> 33 | D33: GJ Band 1* | AA33: =Load_Tariffs!AA104 -> 405625.606 | AD33: =Load_Tariffs!AD104 -> 785654.977 | AE33: =Load_Tariffs!AE104 -> 762671.7419 | AF33: =Load_Tariffs!AF104 -> 768684.569 | AG33: =Load_Tariffs!AG104 -> 777864.024 | AH33: =Load_Tariffs!AH104 -> 792767.7198 | AI33: =Load_Tariffs!AI104 -> 784982.5789 | AJ33: =Load_Tariffs!AJ104 -> 777323.2998 | AK33: =Load_Tariffs!AK104 -> 769787.7917 | AL33: =Load_Tariffs!AL104 -> 762373.9981 | AM33: =Load_Tariffs!AM104 -> 755079.8954
A34: =ROW() -> 34 | D34: GJ Band 2* | AA34: =Load_Tariffs!AA105 -> 542794.279 | AD34: =Load_Tariffs!AD105 -> 1018804.015 | AE34: =Load_Tariffs!AE105 -> 1008052.483 | AF34: =Load_Tariffs!AF105 -> 1025065.958 | AG34: =Load_Tariffs!AG105 -> 1010103.254 | AH34: =Load_Tariffs!AH105 -> 1044266.011 | AI34: =Load_Tariffs!AI105 -> 1034011.106 | AJ34: =Load_Tariffs!AJ105 -> 1023921.99 | AK34: =Load_Tariffs!AK105 -> 1013995.911 | AL34: =Load_Tariffs!AL105 -> 1004230.16 | AM34: =Load_Tariffs!AM105 -> 994622.0699
A35: =ROW() -> 35 | D35: Total Volume [GJ per Annum] | T35: =SUM(T30:T34) -> 886997.3376 | W35: 1816215.164 | X35: 2020052.42 | Y35: 1983493.726 | Z35: 1884517.402 | AA35: =SUM(AA30:AA34) -> 948419.885 | AD35: =SUM(AD30:AD34) -> 1804458.992 | AE35: 1770724.225 | AF35: 1793750.527 | AG35: 1787967.278 | AH35: 1837033.731 | AI35: =SUM(AI30:AI34) -> 1818993.685 | AJ35: 1801245.29 | AK35: 1783783.703 | AL35: 1766604.158 | AM35: 1749701.965
A36: =ROW() -> 36 | C36: B1
A37: =ROW() -> 37 | D37: Customers | T37: =Load_Tariffs!T41 -> 1222.166667 | W37: =Load_Tariffs!W41 -> 1256.333333 | X37: =Load_Tariffs!X41 -> 1297.416667 | Y37: =Load_Tariffs!Y41 -> 1334.416667 | Z37: =Load_Tariffs!Z41 -> 1364 | AA37: =Load_Tariffs!AA41 -> 1399 | AD37: =Load_Tariffs!AD41 -> 1444 | AE37: =Load_Tariffs!AE41 -> 1518.5 | AF37: =Load_Tariffs!AF41 -> 1599.5 | AG37: =Load_Tariffs!AG41 -> 1670.5 | AH37: =Load_Tariffs!AH41 -> 1728.409426 | AI37: =Load_Tariffs!AI41 -> 1780.006732 | AJ37: =Load_Tariffs!AJ41 -> 1834.193575 | AK37: =Load_Tariffs!AK41 -> 1888.489968 | AL37: =Load_Tariffs!AL41 -> 1943.392253 | AM37: =Load_Tariffs!AM41 -> 1998.918607
A38: =ROW() -> 38 | D38: GJ Band 1 | T38: =Load_Tariffs!T112 -> 649493.4631 | W38: =Load_Tariffs!W112 -> 1389540.322 | X38: =Load_Tariffs!X112 -> 1385587.464 | Y38: =Load_Tariffs!Y112 -> 1463332.441 | Z38: =Load_Tariffs!Z112 -> 1472170.211 | AA38: =Load_Tariffs!AA112 -> 791288.4815 | AD38: =Load_Tariffs!AD112 -> 1523036.72 | AE38: =Load_Tariffs!AE112 -> 1664051.405 | AF38: =Load_Tariffs!AF112 -> 1632990.466 | AG38: =Load_Tariffs!AG112 -> 1714526.397 | AH38: =Load_Tariffs!AH112 -> 1811006.692 | AI38: =Load_Tariffs!AI112 -> 1862188.325 | AJ38: =Load_Tariffs!AJ112 -> 1907538.198 | AK38: =Load_Tariffs!AK112 -> 1947553.394 | AL38: =Load_Tariffs!AL112 -> 1979324.775 | AM38: =Load_Tariffs!AM112 -> 2000485.254
A39: =ROW() -> 39 | D39: GJ Band 2 | T39: =Load_Tariffs!T113 -> 94260.5628 | W39: =Load_Tariffs!W113 -> 202653.3169 | X39: =Load_Tariffs!X113 -> 168076.3819 | Y39: =Load_Tariffs!Y113 -> 176654.1947 | Z39: =Load_Tariffs!Z113 -> 175019.4857 | AA39: =Load_Tariffs!AA113 -> 0 | AD39: =Load_Tariffs!AD113 -> 0 | AE39: =Load_Tariffs!AE113 -> 0 | AF39: =Load_Tariffs!AF113 -> 0 | AG39: =Load_Tariffs!AG113 -> 0 | AH39: =Load_Tariffs!AH113 -> 0 | AI39: =Load_Tariffs!AI113 -> 0 | AJ39: =Load_Tariffs!AJ113 -> 0 | AK39: =Load_Tariffs!AK113 -> 0 | AL39: =Load_Tariffs!AL113 -> 0 | AM39: =Load_Tariffs!AM113 -> 0
A40: =ROW() -> 40 | D40: GJ Band 2* | AA40: =Load_Tariffs!AA114 -> 97970.16121 | AD40: =Load_Tariffs!AD114 -> 197766.1523 | AE40: =Load_Tariffs!AE114 -> 266373.9094 | AF40: =Load_Tariffs!AF114 -> 241805.8528 | AG40: =Load_Tariffs!AG114 -> 290029.4973 | AH40: =Load_Tariffs!AH114 -> 251428.6675 | AI40: =Load_Tariffs!AI114 -> 249399.2756 | AJ40: =Load_Tariffs!AJ114 -> 242855.0933 | AK40: =Load_Tariffs!AK114 -> 243066.877 | AL40: =Load_Tariffs!AL114 -> 245335.2958 | AM40: =Load_Tariffs!AM114 -> 246678.7396
A41: =ROW() -> 41 | D41: Total Volume [GJ per Annum] | T41: =SUM(T38:T40) -> 743754.0259 | W41: =SUM(W38:W40) -> 1592193.639 | X41: 1553663.846 | Y41: 1639986.635 | Z41: 1647189.697 | AA41: 889258.6427 | AD41: 1720802.873 | AE41: 1930425.315 | AF41: 1874796.319 | AG41: 2004555.894 | AH41: 2062435.359 | AI41: =SUM(AI38:AI40) -> 2111587.6 | AJ41: 2150393.291 | AK41: 2190620.271 | AL41: 2224660.071 | AM41: 2247163.994
A42: =ROW() -> 42 | C42: B2
A43: =ROW() -> 43 | D43: Modelled B2 Customers | T43: =Load_Tariffs!T42 -> 7697.5 | W43: =Load_Tariffs!W42 -> 8105.083333 | X43: =Load_Tariffs!X42 -> 8708.75 | Y43: =Load_Tariffs!Y42 -> 9262.25 | Z43: =Load_Tariffs!Z42 -> 9797 | AA43: =Load_Tariffs!AA42 -> 10221.5 | AD43: =Load_Tariffs!AD42 -> 10622.5 | AE43: =Load_Tariffs!AE42 -> 11112.5 | AF43: =Load_Tariffs!AF42 -> 11494.5 | AG43: =Load_Tariffs!AG42 -> 11738.5 | AH43: =Load_Tariffs!AH42 -> 11957.43869 | AI43: =Load_Tariffs!AI42 -> 12238.84289 | AJ43: =Load_Tariffs!AJ42 -> 12519.27429 | AK43: =Load_Tariffs!AK42 -> 12795.99349 | AL43: =Load_Tariffs!AL42 -> 13095.75427 | AM43: =Load_Tariffs!AM42 -> 13402.12108
A44: =ROW() -> 44 | D44: GJ Band 1 | T44: =Load_Tariffs!T121 -> 185987.7142 | W44: =Load_Tariffs!W121 -> 389585.8249 | X44: =Load_Tariffs!X121 -> 403522.1127 | Y44: =Load_Tariffs!Y121 -> 418531.9016 | Z44: =Load_Tariffs!Z121 -> 430255.2483 | AA44: =Load_Tariffs!AA121 -> 228811.0652 | AD44: =Load_Tariffs!AD121 -> 454358.7074 | AE44: =Load_Tariffs!AE121 -> 481672.4814 | AF44: =Load_Tariffs!AF121 -> 480578.9736 | AG44: =Load_Tariffs!AG121 -> 490073.3326 | AH44: =Load_Tariffs!AH121 -> 493541.6991 | AI44: =Load_Tariffs!AI121 -> 510865.2847 | AJ44: =Load_Tariffs!AJ121 -> 524544.5302 | AK44: =Load_Tariffs!AK121 -> 540009.9469 | AL44: =Load_Tariffs!AL121 -> 554013.675 | AM44: =Load_Tariffs!AM121 -> 562698.1234
A45: =ROW() -> 45 | D45: GJ Band 2 | T45: =Load_Tariffs!T122 -> 366118.5915 | W45: =Load_Tariffs!W122 -> 777541.4461 | X45: =Load_Tariffs!X122 -> 784946.1842 | Y45: =Load_Tariffs!Y122 -> 812884.7301 | Z45: =Load_Tariffs!Z122 -> 825273.9552 | AA45: =Load_Tariffs!AA122 -> 434199.1841 | AD45: =Load_Tariffs!AD122 -> 837277.7577 | AE45: =Load_Tariffs!AE122 -> 886844.8449 | AF45: =Load_Tariffs!AF122 -> 862170.8128 | AG45: =Load_Tariffs!AG122 -> 863611.1006 | AH45: =Load_Tariffs!AH122 -> 855993.4437 | AI45: =Load_Tariffs!AI122 -> 862503.4366 | AJ45: =Load_Tariffs!AJ122 -> 862288.6573 | AK45: =Load_Tariffs!AK122 -> 864328.0732 | AL45: =Load_Tariffs!AL122 -> 864226.6406 | AM45: =Load_Tariffs!AM122 -> 862514.3074
A46: =ROW() -> 46 | D46: Total Volume [GJ per Annum] | T46: =SUM(T44:T45) -> 552106.3057 | W46: =SUM(W44:W45) -> 1167127.271 | X46: 1188468.297 | Y46: 1231416.632 | Z46: 1255529.203 | AA46: =SUM(AA44:AA45) -> 663010.2493 | AD46: 1291636.465 | AE46: 1368517.326 | AF46: 1342749.786 | AG46: =SUM(AG44:AG45) -> 1353684.433 | AH46: 1349535.143 | AI46: 1373368.721 | AJ46: 1386833.188 | AK46: 1404338.02 | AL46: 1418240.316 | AM46: 1425212.431
A47: =ROW() -> 47 | C47: B3
A48: =ROW() -> 48 | D48: Modelled B3 Customers | T48: =Load_Tariffs!T43 -> 601246 | W48: =Load_Tariffs!W43 -> 614524 | X48: =Load_Tariffs!X43 -> 629899.5833 | Y48: =Load_Tariffs!Y43 -> 642709.8333 | Z48: =Load_Tariffs!Z43 -> 657671.5 | AA48: =Load_Tariffs!AA43 -> 671181 | AD48: =Load_Tariffs!AD43 -> 686909.5 | AE48: =Load_Tariffs!AE43 -> 705512 | AF48: =Load_Tariffs!AF43 -> 718910.5 | AG48: =Load_Tariffs!AG43 -> 728627 | AH48: =Load_Tariffs!AH43 -> 735064.5288 | AI48: =Load_Tariffs!AI43 -> 741392.1042 | AJ48: =Load_Tariffs!AJ43 -> 750024.0076 | AK48: =Load_Tariffs!AK43 -> 760301.6426 | AL48: =Load_Tariffs!AL43 -> 771444.031 | AM48: =Load_Tariffs!AM43 -> 782696.0952
A49: =ROW() -> 49 | D49: GJ Band 1 | T49: =Load_Tariffs!T139 -> 3008688.118 | W49: =Load_Tariffs!W139 -> 6231552.577 | X49: =Load_Tariffs!X139 -> 4913980.424 | Y49: =Load_Tariffs!Y139 -> 5016507.282 | Z49: =Load_Tariffs!Z139 -> 5081054.62 | AA49: =Load_Tariffs!AA139 -> 0 | AD49: =Load_Tariffs!AD139 -> 0 | AE49: =Load_Tariffs!AE139 -> 0 | AF49: =Load_Tariffs!AF139 -> 0 | AG49: =Load_Tariffs!AG139 -> 0 | AH49: =Load_Tariffs!AH139 -> 0 | AI49: =Load_Tariffs!AI139 -> 0 | AJ49: =Load_Tariffs!AJ139 -> 0 | AK49: =Load_Tariffs!AK139 -> 0 | AL49: =Load_Tariffs!AL139 -> 0 | AM49: =Load_Tariffs!AM139 -> 0
A50: =ROW() -> 50 | D50: GJ Band 2 | T50: =Load_Tariffs!T140 -> 1249333.842 | W50: =Load_Tariffs!W140 -> 2807463.131 | X50: =Load_Tariffs!X140 -> 4731980.429 | Y50: =Load_Tariffs!Y140 -> 4889443.108 | Z50: =Load_Tariffs!Z140 -> 4759786.657 | AA50: =Load_Tariffs!AA140 -> 0 | AD50: =Load_Tariffs!AD140 -> 0 | AE50: =Load_Tariffs!AE140 -> 0 | AF50: =Load_Tariffs!AF140 -> 0 | AG50: =Load_Tariffs!AG140 -> 0 | AH50: =Load_Tariffs!AH140 -> 0 | AI50: =Load_Tariffs!AI140 -> 0 | AJ50: =Load_Tariffs!AJ140 -> 0 | AK50: =Load_Tariffs!AK140 -> 0 | AL50: =Load_Tariffs!AL140 -> 0 | AM50: =Load_Tariffs!AM140 -> 0
A51: =ROW() -> 51 | D51: GJ Band 3 | T51: =Load_Tariffs!T141 -> 331249.2265 | W51: =Load_Tariffs!W141 -> 730749.3655 | X51: =Load_Tariffs!X141 -> 0 | Y51: =Load_Tariffs!Y141 -> 0 | Z51: =Load_Tariffs!Z141 -> 0 | AA51: =Load_Tariffs!AA141 -> 0 | AD51: =Load_Tariffs!AD141 -> 0 | AE51: =Load_Tariffs!AE141 -> 0 | AF51: =Load_Tariffs!AF141 -> 0 | AG51: =Load_Tariffs!AG141 -> 0 | AH51: =Load_Tariffs!AH141 -> 0 | AI51: =Load_Tariffs!AI141 -> 0 | AJ51: =Load_Tariffs!AJ141 -> 0 | AK51: =Load_Tariffs!AK141 -> 0 | AL51: =Load_Tariffs!AL141 -> 0 | AM51: =Load_Tariffs!AM141 -> 0
A52: =ROW() -> 52 | D52: GJ Band 1* | AA52: =Load_Tariffs!AA142 -> 0 | AD52: =Load_Tariffs!AD142 -> 288522.8556 | AE52: =Load_Tariffs!AE142 -> 1180420.566 | AF52: =Load_Tariffs!AF142 -> 1198474.251 | AG52: =Load_Tariffs!AG142 -> 1219086.447 | AH52: =Load_Tariffs!AH142 -> 1246640.147 | AI52: =Load_Tariffs!AI142 -> 1248663.668 | AJ52: =Load_Tariffs!AJ142 -> 1264983.766 | AK52: =Load_Tariffs!AK142 -> 1297086.284 | AL52: =Load_Tariffs!AL142 -> 1313017.27 | AM52: =Load_Tariffs!AM142 -> 1333763.941
A53: =ROW() -> 53 | D53: GJ Band 2* | AA53: =Load_Tariffs!AA143 -> 2658352.316 | AD53: =Load_Tariffs!AD143 -> 4884879.333 | AE53: =Load_Tariffs!AE143 -> 4166565.797 | AF53: =Load_Tariffs!AF143 -> 4166780.088 | AG53: =Load_Tariffs!AG143 -> 4215164.047 | AH53: =Load_Tariffs!AH143 -> 4265567.55 | AI53: =Load_Tariffs!AI143 -> 4223463.857 | AJ53: =Load_Tariffs!AJ143 -> 4213468.567 | AK53: =Load_Tariffs!AK143 -> 4234455.046 | AL53: =Load_Tariffs!AL143 -> 4215444.33 | AM53: =Load_Tariffs!AM143 -> 4213846.112
A54: =ROW() -> 54 | D54: GJ Band 3* | AA54: =Load_Tariffs!AA144 -> 2568594.692 | AD54: =Load_Tariffs!AD144 -> 4623497.475 | AE54: =Load_Tariffs!AE144 -> 5527792.696 | AF54: =Load_Tariffs!AF144 -> 4566927.535 | AG54: =Load_Tariffs!AG144 -> 4643447.786 | AH54: =Load_Tariffs!AH144 -> 4477762.022 | AI54: =Load_Tariffs!AI144 -> 4302359.378 | AJ54: =Load_Tariffs!AJ144 -> 4155755.928 | AK54: =Load_Tariffs!AK144 -> 4001969.226 | AL54: =Load_Tariffs!AL144 -> 3877140.762 | AM54: =Load_Tariffs!AM144 -> 3773084.537
A55: =ROW() -> 55 | D55: Total Volume [GJ per Annum] | T55: =SUM(T49:T54) -> 4589271.187 | U55: 0 | V55: 0 | W55: 9769765.074 | X55: 9645960.853 | Y55: 9905950.389 | Z55: 9840841.277 | AA55: =SUM(AA49:AA54) -> 5226947.008 | AD55: =SUM(AD49:AD54) -> 9796899.664 | AE55: 10874779.06 | AF55: 9932181.873 | AG55: 10077698.28 | AH55: 9989969.718 | AI55: =SUM(AI49:AI54) -> 9774486.904 | AJ55: 9634208.261 | AK55: 9533510.555 | AL55: 9405602.362 | AM55: 9320694.589
A56: =ROW() -> 56
A57: X-Factor
A58: =ROW() -> 58
A59: =ROW() -> 59
A60: =ROW() -> 60
A61: =ROW() -> 61
A62: =ROW() -> 62
A63: =ROW() -> 63
A64: =ROW() -> 64
A65: ="Tariffs Excluding GST [$ "&Input!$G$34&"]" -> Tariffs Excluding GST [$ 31/12/2019]
A66: =ROW() -> 66 | T66: ="Actual 3 and est 2013/14 [$ "&Input!$G$34&"]" -> Actual 3 and est 2013/14 [$ 31/12/2019] | AA66: ="Actual [$ "&Input!$G$34&"]" -> Actual [$ 31/12/2019] | AI66: ="Forecast [$ "&Input!$G$34&"]" -> Forecast [$ 31/12/2019]
A67: =ROW() -> 67 | C67: A1
A68: =ROW() -> 68 | D68: Fixed [$/year] | AA68: =Load_Tariffs!AA226 -> 50923.72094 | AB68: =Load_Tariffs!AB226 -> 50078.12409 | AC68: =Load_Tariffs!AC226 -> 49312.54084 | AE68: =Load_Tariffs!AE226 -> 44575.79942 | AF68: =Load_Tariffs!AF226 -> 40327.26102 | AG68: =Load_Tariffs!AG226 -> 36466.60428 | AH68: =Load_Tariffs!AH226 -> 32444.85 | AI68: =Price_path_AA5!F117 -> 35889.75 | AJ68: =Price_path_AA5!G117 -> 36715.21 | AK68: =Price_path_AA5!H117 -> 37559.66 | AL68: =Price_path_AA5!I117 -> 38423.53 | AM68: =Price_path_AA5!J117 -> 39307.27
A69: =ROW() -> 69 | D69: Demand 1 (<=10km) [$/GJ*km*year] | AA69: =Load_Tariffs!AA227 -> 214.6253697 | AB69: =Load_Tariffs!AB227 -> 211.0614798 | AC69: =Load_Tariffs!AC227 -> 207.8367695 | AE69: =Load_Tariffs!AE227 -> 187.865303 | AF69: =Load_Tariffs!AF227 -> 169.9559206 | AG69: =Load_Tariffs!AG227 -> 153.7347368 | AH69: =Load_Tariffs!AH227 -> 136.75 | AI69: =Price_path_AA5!F119 -> 151.27 | AJ69: =Price_path_AA5!G119 -> 154.75 | AK69: =Price_path_AA5!H119 -> 158.31 | AL69: =Price_path_AA5!I119 -> 161.95 | AM69: =Price_path_AA5!J119 -> 165.67
A70: =ROW() -> 70 | D70: Demand 2 (>10km) [$/GJ*km*year] | AA70: =Load_Tariffs!AA228 -> 112.9663712 | AB70: =Load_Tariffs!AB228 -> 111.0905458 | AC70: =Load_Tariffs!AC228 -> 109.3953901 | AE70: =Load_Tariffs!AE228 -> 98.88425469 | AF70: =Load_Tariffs!AF228 -> 89.45866349 | AG70: =Load_Tariffs!AG228 -> 80.91837645 | AH70: =Load_Tariffs!AH228 -> 71.98 | AI70: =Price_path_AA5!F120 -> 79.62 | AJ70: =Price_path_AA5!G120 -> 81.45 | AK70: =Price_path_AA5!H120 -> 83.32 | AL70: =Price_path_AA5!I120 -> 85.24 | AM70: =Price_path_AA5!J120 -> 87.2
A71: =ROW() -> 71 | D71: Usage 1 (<=10km) [$/GJ*km] | AA71: =Load_Tariffs!AA229 -> 0.04553466532 | AB71: =Load_Tariffs!AB229 -> 0.04477855464 | AC71: =Load_Tariffs!AC229 -> 0.04409434622 | AE71: =Load_Tariffs!AE229 -> 0.03986621244 | AF71: =Load_Tariffs!AF229 -> 0.03594922551 | AG71: =Load_Tariffs!AG229 -> 0.03252002676 | AH71: =Load_Tariffs!AH229 -> 0.02893 | AI71: =Price_path_AA5!F122 -> 0.032 | AJ71: =Price_path_AA5!G122 -> 0.03274 | AK71: =Price_path_AA5!H122 -> 0.03349 | AL71: =Price_path_AA5!I122 -> 0.03426 | AM71: =Price_path_AA5!J122 -> 0.03505
A72: =ROW() -> 72 | D72: Usage 2 (>10km) [$/GJ*km] | AA72: =Load_Tariffs!AA230 -> 0.02274934562 | AB72: =Load_Tariffs!AB230 -> 0.02237158896 | AC72: =Load_Tariffs!AC230 -> 0.02203047492 | AE72: =Load_Tariffs!AE230 -> 0.02001756853 | AF72: =Load_Tariffs!AF230 -> 0.01811965286 | AG72: =Load_Tariffs!AG230 -> 0.01638724353 | AH72: =Load_Tariffs!AH230 -> 0.01458 | AI72: =Price_path_AA5!F123 -> 0.01613 | AJ72: =Price_path_AA5!G123 -> 0.0165 | AK72: =Price_path_AA5!H123 -> 0.01688 | AL72: =Price_path_AA5!I123 -> 0.01727 | AM72: =Price_path_AA5!J123 -> 0.01767
A73: =ROW() -> 73 | C73: A2
A74: =ROW() -> 74 | D74: Fixed [$/year] | AA74: =Load_Tariffs!AA232 -> 28194.07224 | AB74: =Load_Tariffs!AB232 -> 27725.90499 | AC74: =Load_Tariffs!AC232 -> 27302.03695 | AE74: =Load_Tariffs!AE232 -> 24679.50821 | AF74: =Load_Tariffs!AF232 -> 22327.21445 | AG74: =Load_Tariffs!AG232 -> 20181.45022 | AH74: =Load_Tariffs!AH232 -> 17952 | AI74: =Price_path_AA5!F125 -> 19858.09 | AJ74: =Price_path_AA5!G125 -> 20314.83 | AK74: =Price_path_AA5!H125 -> 20782.07 | AL74: =Price_path_AA5!I125 -> 21260.06 | AM74: =Price_path_AA5!J125 -> 21749.04
A75: =ROW() -> 75 | D75: Usage 1 (Q<=5TJ/year) [$/GJ] | AA75: =Load_Tariffs!AA233 -> 0 | AB75: =Load_Tariffs!AB233 -> 0 | AC75: =Load_Tariffs!AC233 -> 0 | AE75: =Load_Tariffs!AE233 -> 0 | AF75: =Load_Tariffs!AF233 -> 0 | AG75: =Load_Tariffs!AG233 -> 0 | AH75: =Load_Tariffs!AH233 -> 0
A76: =ROW() -> 76 | D76: Usage 2 (5<Q<=10TJ/year) [$/GJ] | AA76: =Load_Tariffs!AA234 -> 0 | AB76: =Load_Tariffs!AB234 -> 0 | AC76: =Load_Tariffs!AC234 -> 0 | AE76: =Load_Tariffs!AE234 -> 0 | AF76: =Load_Tariffs!AF234 -> 0 | AG76: =Load_Tariffs!AG234 -> 0 | AH76: =Load_Tariffs!AH234 -> 0
A77: =ROW() -> 77 | D77: Usage 3 (Q>10TJ/year) [$/GJ] | AA77: =Load_Tariffs!AA235 -> 0 | AB77: =Load_Tariffs!AB235 -> 0 | AC77: =Load_Tariffs!AC235 -> 0 | AE77: =Load_Tariffs!AE235 -> 0 | AF77: =Load_Tariffs!AF235 -> 0 | AG77: =Load_Tariffs!AG235 -> 0 | AH77: =Load_Tariffs!AH235 -> 0
A78: =ROW() -> 78 | D78: Usage 1* (Q<=10TJ/year) [$/GJ] | AA78: =Load_Tariffs!AA236 -> 2.723632327 | AB78: =Load_Tariffs!AB236 -> 2.67840596 | AC78: =Load_Tariffs!AC236 -> 2.638313571 | AE78: =Load_Tariffs!AE236 -> 2.386060384 | AF78: =Load_Tariffs!AF236 -> 2.154881529 | AG78: =Load_Tariffs!AG236 -> 1.954255129 | AH78: =Load_Tariffs!AH236 -> 1.74 | AI78: =Price_path_AA5!F126 -> 1.92 | AJ78: =Price_path_AA5!G126 -> 1.96 | AK78: =Price_path_AA5!H126 -> 2.01 | AL78: =Price_path_AA5!I126 -> 2.06 | AM78: =Price_path_AA5!J126 -> 2.11
A79: =ROW() -> 79 | D79: Usage 2* (Q>10TJ/year) [$/GJ] | AA79: =Load_Tariffs!AA237 -> 1.459866927 | AB79: =Load_Tariffs!AB237 -> 1.435625595 | AC79: =Load_Tariffs!AC237 -> 1.413779846 | AE79: =Load_Tariffs!AE237 -> 1.277492507 | AF79: =Load_Tariffs!AF237 -> 1.160320824 | AG79: =Load_Tariffs!AG237 -> 1.04837645 | AH79: =Load_Tariffs!AH237 -> 0.93 | AI79: =Price_path_AA5!F127 -> 1.03 | AJ79: =Price_path_AA5!G127 -> 1.05 | AK79: =Price_path_AA5!H127 -> 1.07 | AL79: =Price_path_AA5!I127 -> 1.09 | AM79: =Price_path_AA5!J127 -> 1.12
A80: =ROW() -> 80 | C80: B1
A81: =ROW() -> 81 | D81: Fixed [$/year] | AA81: =Load_Tariffs!AA239 -> 1420.265313 | AB81: =Load_Tariffs!AB239 -> 1396.681572 | AC81: =Load_Tariffs!AC239 -> 1375.329487 | AE81: =Load_Tariffs!AE239 -> 1246.378702 | AF81: =Load_Tariffs!AF239 -> 1128.277321 | AG81: =Load_Tariffs!AG239 -> 1020.263675 | AH81: =Load_Tariffs!AH239 -> 907.55 | AI81: =Price_path_AA5!F129 -> 1003.91 | AJ81: =Price_path_AA5!G129 -> 1027 | AK81: =Price_path_AA5!H129 -> 1050.62 | AL81: =Price_path_AA5!I129 -> 1074.78 | AM81: =Price_path_AA5!J129 -> 1099.5
A82: =ROW() -> 82 | D82: Usage 1 (Q<=5TJ/year) [$/GJ], | AA82: =Load_Tariffs!AA240 -> 5.425475596 | AB82: =Load_Tariffs!AB240 -> 5.335384672 | AC82: =Load_Tariffs!AC240 -> 5.254362892 | AE82: =Load_Tariffs!AE240 -> 4.740447401 | AF82: =Load_Tariffs!AF240 -> 4.289043044 | AG82: =Load_Tariffs!AG240 -> 3.877975022 | AH82: =Load_Tariffs!AH240 -> 3.45 | AI82: =Price_path_AA5!F130 -> 3.82 | AJ82: =Price_path_AA5!G130 -> 3.91 | AK82: =Price_path_AA5!H130 -> 4 | AL82: =Price_path_AA5!I130 -> 4.09 | AM82: =Price_path_AA5!J130 -> 4.18
A83: =ROW() -> 83 | D83: Usage 2 (Q>5TJ/year) [$/GJ] | AA83: =Load_Tariffs!AA241 -> 0 | AB83: =Load_Tariffs!AB241 -> 0 | AC83: =Load_Tariffs!AC241 -> 0 | AE83: =Load_Tariffs!AE241 -> 0 | AF83: =Load_Tariffs!AF241 -> 0 | AG83: =Load_Tariffs!AG241 -> 0 | AH83: =Load_Tariffs!AH241 -> 0 | AI83: =AH83*(1+AI$63) -> 0 | AJ83: 0 | AK83: 0 | AL83: 0 | AM83: 0
A84: =ROW() -> 84 | D84: Usage 2* (Q>5TJ/year) [$/GJ] | AA84: =Load_Tariffs!AA242 -> 4.651964015 | AB84: =Load_Tariffs!AB242 -> 4.57471738 | AC84: =Load_Tariffs!AC242 -> 4.508510532 | AE84: =Load_Tariffs!AE242 -> 4.075306674 | AF84: =Load_Tariffs!AF242 -> 3.688162618 | AG84: =Load_Tariffs!AG242 -> 3.338519179 | AH84: =Load_Tariffs!AH242 -> 2.97 | AI84: =Price_path_AA5!F131 -> 3.29 | AJ84: =Price_path_AA5!G131 -> 3.37 | AK84: =Price_path_AA5!H131 -> 3.45 | AL84: =Price_path_AA5!I131 -> 3.53 | AM84: =Price_path_AA5!J131 -> 3.61
A85: =ROW() -> 85 | C85: B2
A86: =ROW() -> 86 | D86: Fixed [$/year] | AA86: =Load_Tariffs!AA244 -> 355.8915889 | AB86: =Load_Tariffs!AB244 -> 349.98195 | AC86: =Load_Tariffs!AC244 -> 344.6283187 | AE86: =Load_Tariffs!AE244 -> 311.5286892 | AF86: =Load_Tariffs!AF244 -> 281.83364 | AG86: =Load_Tariffs!AG244 -> 254.9081534 | AH86: =Load_Tariffs!AH244 -> 226.74 | AI86: =Price_path_AA5!F133 -> 250.59 | AJ86: =Price_path_AA5!G133 -> 256.35 | AK86: =Price_path_AA5!H133 -> 262.25 | AL86: =Price_path_AA5!I133 -> 268.28 | AM86: =Price_path_AA5!J133 -> 274.45
A87: =ROW() -> 87 | D87: Usage 1 (Q<=100GJ/year) [$/GJ] | AA87: =Load_Tariffs!AA245 -> 9.053353855 | AB87: =Load_Tariffs!AB245 -> 8.903021411 | AC87: =Load_Tariffs!AC245 -> 8.77211432 | AE87: =Load_Tariffs!AE245 -> 7.928899773 | AF87: =Load_Tariffs!AF245 -> 7.169125088 | AG87: =Load_Tariffs!AG245 -> 6.483648528 | AH87: =Load_Tariffs!AH245 -> 5.77 | AI87: =Price_path_AA5!F134 -> 6.35 | AJ87: =Price_path_AA5!G134 -> 6.5 | AK87: =Price_path_AA5!H134 -> 6.65 | AL87: =Price_path_AA5!I134 -> 6.8 | AM87: =Price_path_AA5!J134 -> 6.96
A88: =ROW() -> 88 | D88: Usage 2 (Q>100GJ/year) [$/GJ] | AA88: =Load_Tariffs!AA246 -> 5.392792008 | AB88: =Load_Tariffs!AB246 -> 5.303243801 | AC88: =Load_Tariffs!AC246 -> 5.220966518 | AE88: =Load_Tariffs!AE246 -> 4.719331822 | AF88: =Load_Tariffs!AF246 -> 4.268323029 | AG88: =Load_Tariffs!AG246 -> 3.857618198 | AH88: =Load_Tariffs!AH246 -> 3.44 | AI88: =Price_path_AA5!F135 -> 3.81 | AJ88: =Price_path_AA5!G135 -> 3.9 | AK88: =Price_path_AA5!H135 -> 3.99 | AL88: =Price_path_AA5!I135 -> 4.08 | AM88: =Price_path_AA5!J135 -> 4.17
A89: =ROW() -> 89 | C89: B3
A90: =ROW() -> 90 | D90: Fixed [$/year] | AA90: =Load_Tariffs!AA248 -> 77.32936903 | AB90: =Load_Tariffs!AB248 -> 76.04530202 | AC90: =Load_Tariffs!AC248 -> 84.39263789 | AE90: =Load_Tariffs!AE248 -> 86.96451056 | AF90: =Load_Tariffs!AF248 -> 96.5138285 | AG90: =Load_Tariffs!AG248 -> 106.6392239 | AH90: =Load_Tariffs!AH248 -> 116.84 | AI90: =Price_path_AA5!F137 -> 116.84 | AJ90: =Price_path_AA5!G137 -> 116.84 | AK90: =Price_path_AA5!H137 -> 116.84 | AL90: =Price_path_AA5!I137 -> 116.84 | AM90: =Price_path_AA5!J137 -> 116.84
A91: =ROW() -> 91 | D91: Usage 1 (Q<=10GJ/year) [$/GJ] | AA91: =Load_Tariffs!AA249 -> 0 | AB91: =Load_Tariffs!AB249 -> 0 | AC91: =Load_Tariffs!AC249 -> 0 | AE91: =Load_Tariffs!AE249 -> 0 | AF91: =Load_Tariffs!AF249 -> 0 | AG91: =Load_Tariffs!AG249 -> 0 | AH91: =Load_Tariffs!AH249 -> 0 | AI91: =AH91*(1+AI$63) -> 0 | AJ91: 0 | AK91: 0 | AL91: 0 | AM91: 0
A92: =ROW() -> 92 | D92: Usage 2 (10<Q<=15GJ/year) [$/GJ] | AA92: =Load_Tariffs!AA250 -> 0 | AB92: =Load_Tariffs!AB250 -> 0 | AC92: =Load_Tariffs!AC250 -> 0 | AE92: =Load_Tariffs!AE250 -> 0 | AF92: =Load_Tariffs!AF250 -> 0 | AG92: =Load_Tariffs!AG250 -> 0 | AH92: =Load_Tariffs!AH250 -> 0 | AI92: =AH92*(1+AI$63) -> 0 | AJ92: 0 | AK92: 0 | AL92: 0 | AM92: 0
A93: =ROW() -> 93 | D93: Usage 3 (Q>15GJ/year) [$/GJ] | AA93: =Load_Tariffs!AA251 -> 0 | AB93: =Load_Tariffs!AB251 -> 0 | AC93: =Load_Tariffs!AC251 -> 0 | AE93: =Load_Tariffs!AE251 -> 0 | AF93: =Load_Tariffs!AF251 -> 0 | AG93: =Load_Tariffs!AG251 -> 0 | AH93: =Load_Tariffs!AH251 -> 0 | AI93: =AH93*(1+AI$63) -> 0 | AJ93: 0 | AK93: 0 | AL93: 0 | AM93: 0
A94: =ROW() -> 94 | D94: Usage 1* (Q<=2GJ/year to 2016); (Q<=1.825GJ/year, 2017 onwards) [$/GJ] | AA94: =Load_Tariffs!AA252 -> 15.19786839 | AB94: =Load_Tariffs!AB252 -> 14.94550526 | AC94: =Load_Tariffs!AC252 -> 0 | AE94: =Load_Tariffs!AE252 -> 0 | AF94: =Load_Tariffs!AF252 -> 0 | AG94: =Load_Tariffs!AG252 -> 0 | AH94: =Load_Tariffs!AH252 -> 0 | AI94: =Price_path_AA5!F138 -> 0 | AJ94: =Price_path_AA5!G138 -> 0 | AK94: =Price_path_AA5!H138 -> 0 | AL94: =Price_path_AA5!I138 -> 0 | AM94: =Price_path_AA5!J138 -> 0
A95: =ROW() -> 95 | D95: Usage 2* (2<Q<=10GJ/year to 2016); (1.825<Q<=9.855GJ/year, 2017 onwards) [$/GJ] | AA95: =Load_Tariffs!AA253 -> 15.19786839 | AB95: =Load_Tariffs!AB253 -> 14.94550526 | AC95: =Load_Tariffs!AC253 -> 16.67592291 | AE95: =Load_Tariffs!AE253 -> 14.03130199 | AF95: =Load_Tariffs!AF253 -> 10.83656769 | AG95: =Load_Tariffs!AG253 -> 7.908626227 | AH95: =Load_Tariffs!AH253 -> 4.89 | AI95: =Price_path_AA5!F139 -> 7.16 | AJ95: =Price_path_AA5!G139 -> 7.32 | AK95: =Price_path_AA5!H139 -> 7.49 | AL95: =Price_path_AA5!I139 -> 7.66 | AM95: =Price_path_AA5!J139 -> 7.84
A96: =ROW() -> 96 | D96: Usage 3* (Q>10GJ/year to 2016); (Q>9.855GJ/year, 2017 onwards) [$/GJ] | AA96: =Load_Tariffs!AA254 -> 6.558506644 | AB96: =Load_Tariffs!AB254 -> 6.449601552 | AC96: =Load_Tariffs!AC254 -> 7.202484727 | AE96: =Load_Tariffs!AE254 -> 6.049613275 | AF96: =Load_Tariffs!AF254 -> 4.672363316 | AG96: =Load_Tariffs!AG254 -> 3.409768064 | AH96: =Load_Tariffs!AH254 -> 2.11 | AI96: =Price_path_AA5!F140 -> 5.11 | AJ96: =Price_path_AA5!G140 -> 5.23 | AK96: =Price_path_AA5!H140 -> 5.35 | AL96: =Price_path_AA5!I140 -> 5.47 | AM96: =Price_path_AA5!J140 -> 5.6
A97: =ROW() -> 97
A98: =ROW() -> 98
A99: ="Revenue [m$ "&Input!$G$34&"]" -> Revenue [m$ 31/12/2019]
A100: =ROW() -> 100 | AI100: Forecast [m$ 31/12/2019]
A101: =ROW() -> 101 | C101: PV of Tariff Revenue
A102: =ROW() -> 102 | D102: Discounting Factor Real Pre-tax (1 Half a Year & 5 Years)
A103: =ROW() -> 103 | D103: Discounting Factor Real Post-tax (1 Half a Year & 5 Years) | AI103: =AI$16 -> 0.9657492241 | AJ103: =AJ$16 -> 0.9326715639 | AK103: 0.9007268392 | AL103: 0.8698762461 | AM103: 0.8400823098
A104: =ROW() -> 104 | C104: A1 | F104: PV AA5
A105: =ROW() -> 105 | D105: Fixed | E105: =F105/$F$110 -> 0.3627562343 | F105: =SUMPRODUCT($AI$103:$AM$103,AI105:AM105) -> 12.26676357 | AI105: =AI$9*AI22*AI68/1000000 -> 2.61995175 | AJ105: =(AJ$9)*AJ22*AJ68/1000000 -> 2.68021033 | AK105: =AK$9*AK22*AK68/1000000 -> 2.72307535 | AL105: =(AL$9)*AL22*AL68/1000000 -> 2.76649416 | AM105: =AM$9*AM22*AM68/1000000 -> 2.83012344
A106: =ROW() -> 106 | D106: Demand 1 (<=10km) | E106: =F106/$F$110 -> 0.3220624628 | F106: =SUMPRODUCT($AI$103:$AM$103,AI106:AM106) -> 10.89068557 | AI106: =AI23*AI69/1000000 -> 2.581033272 | AJ106: 2.642760705 | AK106: 2.40070998 | AL106: 2.179007063 | AM106: 2.23237237
A107: =ROW() -> 107 | D107: Demand 2 (>10km) | E107: =F107/$F$110 -> 0.07107845862 | F107: 2.403549725 | AI107: =AI24*AI70/1000000 -> 0.5220939776 | AJ107: 0.5345174169 | AK107: 0.546789333 | AL107: 0.5250291313 | AM107: 0.5375550384
A108: =ROW() -> 108 | D108: Usage 1 (<=10km) | E108: =F108/$F$110 -> 0.1897286367 | F108: 6.415758324 | AI108: =AI25*AI71/1000 -> 1.319902085 | AJ108: 1.467105044 | AK108: 1.439239649 | AL108: 1.437052601 | AM108: 1.459758213
A109: =ROW() -> 109 | D109: Usage 2 (>10km) | E109: =F109/$F$110 -> 0.05437420758 | F109: 1.838688039 | AI109: =AI26*AI72/1000 -> 0.3859440587 | AJ109: =AJ26*AJ72/1000 -> 0.4101913047 | AK109: =AK26*AK72/1000 -> 0.4142552671 | AL109: =AL26*AL72/1000 -> 0.4140114843 | AM109: =AM26*AM72/1000 -> 0.4167680957
A110: =ROW() -> 110 | D110: Total | E110: =F110/$F$110 -> 1 | F110: 33.81544523 | AI110: =SUM(AI105:AI109) -> 7.428925143 | AJ110: =SUM(AJ105:AJ109) -> 7.734784801 | AK110: =SUM(AK105:AK109) -> 7.524069579 | AL110: =SUM(AL105:AL109) -> 7.32159444 | AM110: =SUM(AM105:AM109) -> 7.476577157
A111: =ROW() -> 111 | C111: A2
A112: =ROW() -> 112 | D112: Fixed | E112: =F112/$F$118 -> 0.4564289703 | F112: =SUMPRODUCT($AI$103:$AM$103,AI112:AM112) -> 9.968179292 | AI112: =AI$9*AI29*AI74/1000000 -> 2.095028495 | AJ112: =(AJ$9)*AJ29*AJ74/1000000 -> 2.15337198 | AK112: =AK$9*AK29*AK74/1000000 -> 2.213290455 | AL112: =(AL$9)*AL29*AL74/1000000 -> 2.27482642 | AM112: =AM$9*AM29*AM74/1000000 -> 2.3380218
A113: =ROW() -> 113 | D113: Usage 1 (Q<=5TJ/year) | E113: 0 | F113: 0 | AI113: =AI30*AI75/1000000 -> 0 | AJ113: 0 | AK113: 0 | AL113: 0 | AM113: 0
A114: =ROW() -> 114 | D114: Usage 2 (5<Q<=10TJ/year) | E114: 0 | F114: 0 | AI114: 0 | AJ114: 0 | AK114: 0 | AL114: 0 | AM114: 0
A115: =ROW() -> 115 | D115: Usage 3 (Q>10TJ/year) | E115: 0 | F115: 0 | AI115: 0 | AJ115: 0 | AK115: 0 | AL115: 0 | AM115: 0
A116: =ROW() -> 116 | D116: Usage 1* (Q<=10TJ/year) | E116: 0.3193643974 | F116: 6.974757913 | AI116: 1.507166552 | AJ116: 1.523553668 | AK116: 1.547273461 | AL116: 1.570490436 | AM116: 1.593218579
A117: =ROW() -> 117 | D117: Usage 2* (Q>10TJ/year) | E117: 0.2242066323 | F117: 4.896560154 | AI117: 1.065031439 | AJ117: 1.07511809 | AK117: 1.084975625 | AL117: 1.094610874 | AM117: 1.113976718
A118: =ROW() -> 118 | D118: Total | E118: 1 | F118: 21.83949736 | AI118: =SUM(AI112:AI117) -> 4.667226485 | AJ118: 4.752043737 | AK118: 4.845539542 | AL118: 4.93992773 | AM118: 5.045217098
A119: =ROW() -> 119 | C119: B1
A120: =ROW() -> 120 | D120: Fixed | E120: =F120/$F$124 -> 0.1874505153 | F120: =SUMPRODUCT($AI$103:$AM$103,AI120:AM120) -> 8.933038871 | AI120: =AI$9*AI37*AI81/1000000 -> 1.786966558 | AJ120: =(AJ$9)*AJ37*AJ81/1000000 -> 1.883716801 | AK120: =AK$9*AK37*AK81/1000000 -> 1.98408533 | AL120: =(AL$9)*AL37*AL81/1000000 -> 2.088719126 | AM120: =AM$9*AM37*AM81/1000000 -> 2.197811008
A121: =ROW() -> 121 | D121: Usage 1 (Q<=5TJ/year) | E121: =F121/$F$124 -> 0.7325478334 | F121: =SUMPRODUCT($AI$103:$AM$103,AI121:AM121) -> 34.90989747 | AI121: =AI38*AI82/1000000 -> 7.113559401 | AJ121: 7.458474354 | AK121: 7.790213577 | AL121: 8.095438331 | AM121: 8.362028364
A122: =ROW() -> 122 | D122: Usage 2 (5<Q<=10TJ/year) | E122: =F122/$F$124 -> 0 | F122: =SUMPRODUCT($AI$103:$AM$103,AI122:AM122) -> 0 | AI122: 0 | AJ122: 0 | AK122: 0 | AL122: 0 | AM122: 0
A123: =ROW() -> 123 | D123: Usage 2* (Q>5TJ/year) | E123: =F123/$F$124 -> 0.08000165135 | F123: =SUMPRODUCT($AI$103:$AM$103,AI123:AM123) -> 3.812514786 | AI123: 0.8205236167 | AJ123: 0.8184216645 | AK123: 0.8385807256 | AL123: 0.8660335942 | AM123: 0.8905102501
A124: =ROW() -> 124 | D124: Total | E124: =F124/$F$124 -> 1 | F124: =SUMPRODUCT($AI$103:$AM$103,AI124:AM124) -> 47.65545113 | AI124: =SUM(AI120:AI123) -> 9.721049576 | AJ124: 10.16061282 | AK124: 10.61287963 | AL124: 11.05019105 | AM124: 11.45034962
A125: =ROW() -> 125 | C125: B2
A126: =ROW() -> 126 | D126: Fixed | E126: =F126/$F$129 -> 0.3235499898 | F126: =SUMPRODUCT($AI$103:$AM$103,AI126:AM126) -> 15.12390039 | AI126: =AI$9*AI43*AI86/1000000 -> 3.066931639 | AJ126: =(AJ$9)*AJ43*AJ86/1000000 -> 3.209315964 | AK126: =AK$9*AK43*AK86/1000000 -> 3.355749291 | AL126: =(AL$9)*AL43*AL86/1000000 -> 3.513328955 | AM126: =AM$9*AM43*AM86/1000000 -> 3.678212129
A127: =ROW() -> 127 | D127: Usage 1 (Q<=100GJ/year) | E127: =F127/$F$129 -> 0.3447442012 | F127: =SUMPRODUCT($AI$103:$AM$103,AI127:AM127) -> 16.11459472 | AI127: =AI44*AI87/1000000 -> 3.243994558 | AJ127: 3.409539446 | AK127: 3.591066147 | AL127: 3.76729299 | AM127: 3.916378939
A128: =ROW() -> 128 | D128: Usage 2 (Q>100GJ/year) | E128: =F128/$F$129 -> 0.331705809 | F128: =SUMPRODUCT($AI$103:$AM$103,AI128:AM128) -> 15.50513296 | AI128: 3.286138093 | AJ128: 3.362925764 | AK128: 3.448669012 | AL128: 3.526044693 | AM128: 3.596684662
A129: =ROW() -> 129 | D129: Total | E129: =F129/$F$129 -> 1 | F129: =SUMPRODUCT($AI$103:$AM$103,AI129:AM129) -> 46.74362808 | AI129: =SUM(AI126:AI128) -> 9.59706429 | AJ129: 9.981781174 | AK129: 10.39548445 | AL129: 10.80666664 | AM129: 11.19127573
A130: =ROW() -> 130 | C130: B3
A131: =ROW() -> 131 | D131: Fixed | E131: =F131/$F$138 -> 0.6259917882 | F131: =SUMPRODUCT($AI$103:$AM$103,AI131:AM131) -> 400.6372316 | AI131: =AI$9*AI48*AI90/1000000 -> 86.62425345 | AJ131: =AJ$9*AJ48*AJ90/1000000 -> 87.63280505 | AK131: =AK$9*AK48*AK90/1000000 -> 88.83364393 | AL131: =AL$9*AL48*AL90/1000000 -> 90.13552058 | AM131: =AM$9*AM48*AM90/1000000 -> 91.45021176
A132: =ROW() -> 132 | D132: Usage 1 (Q<=15GJ/year) | E132: 0 | F132: 0 | AI132: =AI49*AI91/1000000 -> 0 | AJ132: 0 | AK132: 0 | AL132: 0 | AM132: 0
A133: =ROW() -> 133 | D133: Usage 2 (15<Q<=45GJ/year) | E133: 0 | F133: 0 | AI133: 0 | AJ133: 0 | AK133: 0 | AL133: 0 | AM133: 0
A134: =ROW() -> 134 | D134: Usage 3 (Q>45GJ/year) | E134: 0 | F134: 0 | AI134: 0 | AJ134: 0 | AK134: 0 | AL134: 0 | AM134: 0
A135: =ROW() -> 135 | D135: Usage 1* (Q<=2GJ/year to 2016); (Q<=1.825GJ/year, 2017 onwards) [$/GJ] | E135: 0 | F135: 0 | AI135: 0 | AJ135: 0 | AK135: 0 | AL135: 0 | AM135: 0
A136: =ROW() -> 136 | D136: Usage 2* (2<Q<=10GJ/year to 2016); (1.825<Q<=9.855GJ/year, 2017 onwards) [$/GJ] | E136: 0.2224670103 | F136: 142.3797705 | AI136: 30.24000122 | AJ136: 30.84258991 | AK136: 31.71606829 | AL136: 32.29030357 | AM136: 33.03655352
A137: =ROW() -> 137 | D137: Usage 3* (Q>10GJ/year to 2016); (Q>9.855GJ/year, 2017 onwards) [$/GJ] | E137: 0.1515412015 | F137: 96.98697107 | AI137: 21.98505642 | AJ137: 21.7346035 | AK137: 21.41053536 | AL137: 21.20795997 | AM137: 21.12927341
A138: =ROW() -> 138 | D138: Total | E138: 1 | F138: 640.0039731 | AI138: =SUM(AI131:AI137) -> 138.8493111 | AJ138: 140.2099985 | AK138: 141.9602476 | AL138: 143.6337841 | AM138: 145.6160387
A139: =ROW() -> 139 | C139: Calculated Tariff Revenue | F139: PV AA5 | I139: Lower Bound Check per Rule 94 (3)(b) | N139: Upper Bound Check per Rule 94 (3)(a)
A140: =ROW() -> 140 | D140: A1 | E140: =F140/$F$148 -> 0.04195931363 | F140: =SUMPRODUCT($AI$103:$AM$103,AI140:AM140) -> 33.81544523 | I140: =IF(F162<(F140+F146),"Complies","Breach - Reset Tariffs") -> Complies | N140: =IF(F169>(F140+F146),"Complies","Breach - Reset Tariffs") -> Complies | AI140: =AI110 -> 7.428925143 | AJ140: 7.734784801 | AK140: 7.524069579 | AL140: 7.32159444 | AM140: 7.476577157
A141: =ROW() -> 141 | D141: A2 | E141: 0.02709916468 | F141: 21.83949736 | I141: =IF(F163<F141,"Complies","Breach - Reset Tariffs") -> Complies | N141: =IF(F170>F141,"Complies","Breach - Reset Tariffs") -> Complies | AI141: =AI118 -> 4.667226485 | AJ141: 4.752043737 | AK141: 4.845539542 | AL141: 4.93992773 | AM141: 5.045217098
A142: =ROW() -> 142 | D142: B1 | E142: 0.05913244691 | F142: 47.65545113 | I142: =IF(F164<F142,"Complies","Breach - Reset Tariffs") -> Complies | N142: =IF(F171>F142,"Complies","Breach - Reset Tariffs") -> Complies | AI142: =AI124 -> 9.721049576 | AJ142: 10.16061282 | AK142: 10.61287963 | AL142: 11.05019105 | AM142: 11.45034962
A143: =ROW() -> 143 | D143: B2 | E143: 0.05800102695 | F143: 46.74362808 | I143: =IF(F165<F143,"Complies","Breach - Reset Tariffs") -> Complies | N143: =IF(F172>F143,"Complies","Breach - Reset Tariffs") -> Complies | AI143: =AI129 -> 9.59706429 | AJ143: 9.981781174 | AK143: 10.39548445 | AL143: 10.80666664 | AM143: 11.19127573
A144: =ROW() -> 144 | D144: B3 | E144: 0.7941379227 | F144: 640.0039731 | I144: =IF(F166<F144,"Complies","Breach - Reset Tariffs") -> Complies | N144: =IF(F173>F144,"Complies","Breach - Reset Tariffs") -> Complies | AI144: =AI138 -> 138.8493111 | AJ144: 140.2099985 | AK144: 141.9602476 | AL144: 143.6337841 | AM144: 145.6160387
A145: =ROW() -> 145 | D145: Total Tariff Revenue | E145: 0.9803298748 | F145: 790.0579949 | AI145: =SUM(AI140:AI144) -> 170.2635766 | AJ145: 172.839221 | AK145: 175.3382208 | AL145: 177.752164 | AM145: 180.7794583
A146: =ROW() -> 146 | D146: Revenue from Prudent Discounts | E146: 0.001307936035 | F146: 1.054079191 | AI146: =Load_Tariffs!AI163 -> 0.2314434371 | AJ146: =Load_Tariffs!AJ163 -> 0.2344 | AK146: =Load_Tariffs!AK163 -> 0.2344 | AL146: =Load_Tariffs!AL163 -> 0.2344 | AM146: =Load_Tariffs!AM163 -> 0.2344
A147: =ROW() -> 147 | D147: Revenue from Ancillary Services | E147: 0.01836218912 | F147: 14.79827831 | AI147: =Load_Tariffs!AI190 -> 3.195182846 | AJ147: =Load_Tariffs!AJ190 -> 3.235841712 | AK147: =Load_Tariffs!AK190 -> 3.283308181 | AL147: =Load_Tariffs!AL190 -> 3.331382196 | AM147: =Load_Tariffs!AM190 -> 3.379789492
A148: =ROW() -> 148 | D148: Total Tariff Revenue | E148: 1 | F148: 805.9103524 | AI148: =SUM(AI145:AI147) -> 173.6902029 | AJ148: 176.3094627 | AK148: 178.855929 | AL148: 181.3179462 | AM148: 184.3936478
A149: =ROW() -> 149
A150: =ROW() -> 150 | C150: Calculated Tariff Revenue | F150: PV AA5 | I150: Lower Bound Check per Rule 94 (3)(b) | N150: Upper Bound Check per Rule 94 (3)(a) | AI150: PV | AJ150: PV | AK150: PV | AL150: PV | AM150: PV
A151: =ROW() -> 151 | D151: A1 | E151: =F151/$F$159 -> 0.04195931363 | F151: =SUM(AI151:AM151) -> 33.81544523 | I151: =IF(F162<(F151+F157),"Complies","Breach - Reset Tariffs") -> Complies | N151: =IF(F169>(F151+F157),"Complies","Breach - Reset Tariffs") -> Complies | AI151: =AI$103*AI140 -> 7.174478693 | AJ151: 7.214013836 | AK151: 6.77713141 | AL151: 6.368881087 | AM151: 6.280940207
A152: =ROW() -> 152 | D152: A2 | E152: 0.02709916468 | F152: 21.83949736 | I152: =IF(F163<F152,"Complies","Breach - Reset Tariffs") -> Complies | N152: =IF(F170>F152,"Complies","Breach - Reset Tariffs") -> Complies | AI152: =AI$103*AI141 -> 4.507370357 | AJ152: 4.432096064 | AK152: 4.364507516 | AL152: 4.29712579 | AM152: 4.238397633
A153: =ROW() -> 153 | D153: B1 | E153: 0.05913244691 | F153: 47.65545113 | I153: =IF(F164<F153,"Complies","Breach - Reset Tariffs") -> Complies | N153: =IF(F171>F153,"Complies","Breach - Reset Tariffs") -> Complies | AI153: =AI$103*AI142 -> 9.388096086 | AJ153: 9.476514649 | AK153: 9.559305527 | AL153: 9.61229871 | AM153: 9.619236158
A154: =ROW() -> 154 | D154: B2 | E154: 0.05800102695 | F154: 46.74362808 | I154: =IF(F165<F154,"Complies","Breach - Reset Tariffs") -> Complies | N154: =IF(F172>F154,"Complies","Breach - Reset Tariffs") -> Complies | AI154: =AI$103*AI143 -> 9.268357392 | AJ154: 9.309723458 | AK154: 9.363491851 | AL154: 9.400462609 | AM154: 9.401592765
A155: =ROW() -> 155 | D155: B3 | E155: 0.7941379227 | F155: 640.0039731 | I155: =IF(F166<F155,"Complies","Breach - Reset Tariffs") -> Complies | N155: =IF(F173>F155,"Complies","Breach - Reset Tariffs") -> Complies | AI155: =AI$103*AI144 -> 134.0936145 | AJ155: 130.7698785 | AK155: 127.8674051 | AL155: 124.9436169 | AM155: 122.3294581
A156: =ROW() -> 156 | D156: Total Tariff Revenue | E156: 0.9803298748 | F156: 790.0579949 | AI156: =SUM(AI151:AI155) -> 164.431917 | AJ156: 161.2022265 | AK156: 157.9318414 | AL156: 154.6223851 | AM156: 151.8696249
A157: =ROW() -> 157 | D157: Revenue from Prudent Discounts | E157: 0.001307936035 | F157: 1.054079191 | AI157: =AI$103*AI146 -> 0.2235163198 | AJ157: 0.2186182146 | AK157: 0.2111303711 | AL157: 0.2038989921 | AM157: 0.1969152934
A158: =ROW() -> 158 | D158: Revenue from Ancillary Services | E158: 0.01836218912 | F158: 14.79827831 | AI158: =AI$103*AI147 -> 3.085745354 | AJ158: 3.01797755 | AK158: 2.9573638 | AL158: 2.897890239 | AM158: 2.839301363
A159: =ROW() -> 159 | D159: Total Revenue | E159: =F159/$F$148 -> 1 | F159: 805.9103524 | AI159: =SUM(AI156:AI158) -> 167.7411787 | AJ159: 164.4388223 | AK159: 161.1003356 | AL159: 157.7241744 | AM159: 154.9058415
A160: =ROW() -> 160 | AI160: ="Forecast 5 [m$ 31/12/2019]" -> Forecast 5 [m$ 31/12/2019]
A161: =ROW() -> 161 | C161: Avoidable Costs | F161: PV
A162: =ROW() -> 162 | D162: A1 | F162: =SUMPRODUCT($AI162:$AM162,$AI$16:$AM$16) -> 3.059964834 | AI162: =Input!AI1613 -> 0.4304712325 | AJ162: =Input!AJ1613 -> 0.5887747641 | AK162: =Input!AK1613 -> 0.6980838102 | AL162: =Input!AL1613 -> 0.80208901 | AM162: =Input!AM1613 -> 0.914914033
A163: =ROW() -> 163 | D163: A2 | F163: =SUMPRODUCT($AI163:$AM163,$AI$16:$AM$16) -> 1.99801101 | AI163: =Input!AI1614 -> 0.1853998391 | AJ163: =Input!AJ1614 -> 0.322544959 | AK163: =Input!AK1614 -> 0.454587486 | AL163: =Input!AL1614 -> 0.5832818109 | AM163: =Input!AM1614 -> 0.715752016
A164: =ROW() -> 164 | D164: B1 | F164: 6.897609977 | AI164: =Input!AI1615 -> 0.9767139835 | AJ164: =Input!AJ1615 -> 1.362600627 | AK164: =Input!AK1615 -> 1.581405661 | AL164: =Input!AL1615 -> 1.795651879 | AM164: =Input!AM1615 -> 2.020136467
A165: =ROW() -> 165 | D165: B2 | F165: 6.588490283 | AI165: =Input!AI1616 -> 0.9337925718 | AJ165: =Input!AJ1616 -> 1.252120432 | AK165: =Input!AK1616 -> 1.491893497 | AL165: =Input!AL1616 -> 1.733932302 | AM165: =Input!AM1616 -> 1.984054009
A166: =ROW() -> 166 | D166: B3 | F166: 115.4216911 | AI166: =Input!AI1617 -> 18.2085481 | AJ166: =Input!AJ1617 -> 22.40556085 | AK166: =Input!AK1617 -> 26.04626204 | AL166: =Input!AL1617 -> 29.69092167 | AM166: =Input!AM1617 -> 32.91555518
A167: =ROW() -> 167
A168: =ROW() -> 168 | C168: Stand Alone Costs | F168: PV
A169: =ROW() -> 169 | D169: A1 | F169: =SUMPRODUCT($AI169:$AM169,$AI$16:$AM$16) -> 174.2652713 | AI169: =Input!AI1627 -> 36.48519376 | AJ169: =Input!AJ1627 -> 38.67825756 | AK169: =Input!AK1627 -> 39.31955546 | AL169: =Input!AL1627 -> 39.62617123 | AM169: =Input!AM1627 -> 39.36467696
A170: =ROW() -> 170 | D170: A2 | F170: =SUMPRODUCT($AI170:$AM170,$AI$16:$AM$16) -> 268.661369 | AI170: =Input!AI1628 -> 57.66638559 | AJ170: =Input!AJ1628 -> 59.68039411 | AK170: =Input!AK1628 -> 60.29260309 | AL170: =Input!AL1628 -> 60.48199576 | AM170: =Input!AM1628 -> 59.98088226
A171: =ROW() -> 171 | D171: B1 | F171: 419.2709915 | AI171: =Input!AI1629 -> 89.07765605 | AJ171: =Input!AJ1629 -> 92.1749048 | AK171: =Input!AK1629 -> 93.74833373 | AL171: =Input!AL1629 -> 95.03136838 | AM171: =Input!AM1629 -> 95.42901983
A172: =ROW() -> 172 | D172: B2 | F172: 426.4759041 | AI172: =Input!AI1630 -> 90.87261715 | AJ172: =Input!AJ1630 -> 93.76891396 | AK172: =Input!AK1630 -> 95.32012198 | AL172: =Input!AL1630 -> 96.56470882 | AM172: =Input!AM1630 -> 96.89932212
A173: =ROW() -> 173 | D173: B3 | F173: 739.4051125 | AI173: =Input!AI1631 -> 154.7195074 | AJ173: =Input!AJ1631 -> 163.789306 | AK173: =Input!AK1631 -> 165.6954496 | AL173: =Input!AL1631 -> 167.5337572 | AM173: =Input!AM1631 -> 169.3206297
A174: =ROW() -> 174
A175: =ROW() -> 175 | C175: PV of Volume [TJ] | F175: PV
A176: =ROW() -> 176 | D176: A1 | E176: =F176/$F$183 -> 0.358687408 | F176: =SUMPRODUCT($AI$103:$AM$103,AI27:AM27)/1000 -> 42646.28023
A177: =ROW() -> 177 | D177: A2 | E177: 0.06770644629 | F177: =SUMPRODUCT($AI$103:$AM$103,AI35:AM35)/1000 -> 8049.98452
A178: =ROW() -> 178 | D178: B1 | E178: 0.08277029648 | F178: =SUMPRODUCT($AI$103:$AM$103,AI41:AM41/1000) -> 9841.006904
A179: =ROW() -> 179 | D179: B2 | E179: 0.05311983728 | F179: =SUMPRODUCT($AI$103:$AM$103,AI46:AM46)/1000 -> 6315.703914
A180: =ROW() -> 180 | D180: B3 | E180: 0.3618660387 | F180: =SUMPRODUCT($AI$103:$AM$103,AI55:AM55)/1000 -> 43024.20477
A181: =ROW() -> 181 | D181: Total Tariff Volume | E181: 0.9241500267 | F181: =SUM(F176:F180) -> 109877.1803
A182: =ROW() -> 182 | D182: Prudent Discount Volume | E182: 0.07584997334 | F182: =SUMPRODUCT($AI$103:$AM$103,Load_Tariffs!AI72:AM72) -> 9018.212366
A183: =ROW() -> 183 | D183: Total Volume | E183: 1 | F183: =SUM(F181:F182) -> 118895.3927
A184: =ROW() -> 184 | C184: ATCO's Revenue | T184: Estimated [m$ 31/12/2009]
A185: =ROW() -> 185 | D185: Total Tariff Revenue | F185: =SUMPRODUCT($AI$103:$AM$103,AI185:AM185) -> 0 | T185: 57.80674133 | U185: 68.97222535 | V185: 79.69592046 | W185: 148.6681458 | X185: 180.4300674 | Y185: 192.0882502 | Z185: 204.2410921
A186: =ROW() -> 186 | D186: Revenue from Prudent Discounts | F186: =SUMPRODUCT($AI$103:$AM$103,AI186:AM186) -> 0 | T186: 1.61324818 | U186: 1.702819142 | V186: 1.56952495 | W186: 3.272344092 | X186: 3.28607519 | Y186: 3.250368184 | Z186: 3.160529652
A187: =ROW() -> 187 | D187: Ancillary Services' Revenue | F187: =SUMPRODUCT($AI$103:$AM$103,AI187:AM187) -> 0 | T187: 0.3679208 | U187: 0 | V187: 0 | W187: 0.7545947989 | X187: 0.7393276472 | Y187: 0.7393276472 | Z187: 0.7393276472
A188: =ROW() -> 188 | D188: Total Revenue | F188: =SUMPRODUCT($AI$103:$AM$103,AI188:AM188) -> 0 | T188: =SUM(T185:T187) -> 59.78791031 | U188: =SUM(U185:U187) -> 70.67504449 | V188: 81.26544541 | W188: 152.6950847 | X188: 184.4554703 | Y188: 196.077946 | Z188: 208.1409494
A189: =ROW() -> 189
A190: =ROW() -> 190
A191: Revenue [m$ nominal]
A192: =ROW() -> 192 | AI192: Forecast [$ nominal]
A193: =ROW() -> 193 | C193: PV of Tariff Revenue
A194: =ROW() -> 194 | D194: Discounting Factor Nominal Post-tax (1 Half a Year & 5 Years) | AI194: =AI$18 -> 0.9535679174 | AJ194: =AJ$18 -> 0.9092917731 | AK194: 0.8670714624 | AL194: 0.8268115286 | AM194: 0.7884209474
A195: =ROW() -> 195 | C195: A1 | F195: PV
A196: =ROW() -> 196 | D196: Fixed [$/year] | E196: =F196/$F$201 -> 0.3627562343 | F196: =SUMPRODUCT($AI$194:$AM$194,AI196:AM196) -> 12.26676357 | AI196: =AI105*AI$13 -> 2.653420196 | AJ196: 2.749124136 | AK196: 2.828771513 | AL196: 2.910587808 | AM196: 3.015567565
A197: =ROW() -> 197 | D197: Demand 1 (<=10km) [$/GJ*km*year], | E197: 0.3220624628 | F197: 10.89068557 | AI197: 2.614004556 | AJ197: 2.710711603 | AK197: 2.493893532 | AL197: 2.292501276 | AM197: 2.378648795
A198: =ROW() -> 198 | D198: Demand 2 (>10km) [$/GJ*km*year], | E198: 0.07107845862 | F198: 2.403549725 | AI198: 0.5287634416 | AJ198: 0.5482609762 | AK198: 0.5680129598 | AL198: 0.5523754254 | AM198: 0.5727783867
A199: =ROW() -> 199 | D199: Usage 1 (<=10km) [$/GJ*km] | E199: 0.1897286367 | F199: 6.415758324 | AI199: 1.336763109 | AJ199: 1.504827379 | AK199: 1.495103733 | AL199: 1.511901902 | AM199: 1.555409018
A200: =ROW() -> 200 | D200: Usage 2 (>10km) [$/GJ*km] | E200: 0.05437420758 | F200: 1.838688039 | AI200: =AI109*AI$13 -> 0.3908742822 | AJ200: =AJ109*AJ$13 -> 0.4207381799 | AK200: =AK109*AK$13 -> 0.4303345844 | AL200: =AL109*AL$13 -> 0.4355753922 | AM200: =AM109*AM$13 -> 0.4440768674
... 80 more rows

Sheet Working_Capital
A1: =Main!A1 -> 0
A2: Working Capital [m$ nominal]
A3: Ref | C3: =COLUMN() -> 3 | D3: =COLUMN() -> 4 | E3: =COLUMN() -> 5 | F3: =COLUMN() -> 6 | G3: =COLUMN() -> 7 | H3: =COLUMN() -> 8 | I3: =COLUMN() -> 9 | J3: =COLUMN() -> 10 | K3: =COLUMN() -> 11 | L3: =COLUMN() -> 12 | M3: =COLUMN() -> 13 | N3: =COLUMN() -> 14 | O3: =COLUMN() -> 15 | P3: =COLUMN() -> 16 | Q3: =COLUMN() -> 17 | R3: =COLUMN() -> 18 | S3: =COLUMN() -> 19 | T3: =COLUMN() -> 20 | U3: =COLUMN() -> 21 | V3: =COLUMN() -> 22 | W3: =COLUMN() -> 23 | X3: =COLUMN() -> 24 | Y3: =COLUMN() -> 25 | Z3: =COLUMN() -> 26 | AA3: =COLUMN() -> 27 | AD3: =COLUMN() -> 30 | AE3: =COLUMN() -> 31 | AF3: =COLUMN() -> 32 | AG3: =COLUMN() -> 33 | AH3: =COLUMN() -> 34 | AI3: =COLUMN() -> 35 | AJ3: =COLUMN() -> 36 | AK3: =COLUMN() -> 37 | AL3: =COLUMN() -> 38 | AM3: =COLUMN() -> 39
A4: Regulatory Period | J4: 1 | K4: 1 | L4: 1 | M4: 1 | N4: 1 | O4: 2 | P4: 2 | Q4: 2 | R4: 2 | S4: 2 | T4: 3 | U4: 3 | V4: 3 | W4: 3 | X4: 3 | Y4: 3 | Z4: 3 | AA4: 3 | AD4: 3 | AE4: 3 | AF4: 3 | AG4: 3 | AH4: 3 | AI4: 4 | AJ4: 5 | AK4: 6 | AL4: 7 | AM4: 8
A5: Year ending | I5: 1999 | J5: 2000 | K5: 2001 | L5: 2002 | M5: 2003 | N5: 2004 | O5: 2005 | P5: 2006 | Q5: 2007 | R5: 2008 | S5: =1+R5 -> 2009 | T5: =1+S5 -> 2010 | U5: 2010 | V5: 2011 | W5: =T5+1 -> 2011 | X5: =W5+1 -> 2012 | Y5: =X5+1 -> 2013 | Z5: =Y5+1 -> 2014 | AA5: 2014 | AD5: =AA5+1 -> 2015 | AE5: =AD5+1 -> 2016 | AF5: 2017 | AG5: 2018 | AH5: 2019 | AI5: 2020 | AJ5: 2021 | AK5: 2022 | AL5: 2023 | AM5: 2024
A6: Months | I6: 1 to 12 | J6: 1 to 12 | K6: 1 to 12 | L6: 1 to 12 | M6: 1 to 12 | N6: 1 to 12 | O6: 1 to 12 | P6: 1 to 12 | Q6: 1 to 12 | R6: 1 to 12 | S6: 1 to 12 | T6: 1 to 6 | U6: 7 to 12 | V6: 1 to 6 | W6: 7 to 6 | X6: 7 to 6 | Y6: 7 to 6 | Z6: 7 to 6 | AA6: 7 to 12 | AD6: 1 to 12 | AE6: 1 to 12 | AF6: 1 to 12 | AG6: 1 to 12 | AH6: 1 to 12 | AI6: 1 to 12 | AJ6: 1 to 12 | AK6: 1 to 12 | AL6: 1 to 12 | AM6: 1 to 12
A7: Days | I7: =Input!I$8 -> 365 | J7: =Input!J$8 -> 366 | K7: =Input!K$8 -> 365 | L7: =Input!L$8 -> 365 | M7: =Input!M$8 -> 365 | N7: =Input!N$8 -> 366 | O7: =Input!O$8 -> 365 | P7: =Input!P$8 -> 365 | Q7: =Input!Q$8 -> 365 | R7: =Input!R$8 -> 366 | S7: =Input!S$8 -> 365 | T7: =Input!T$8 -> 181 | U7: 184 | V7: 181 | W7: =Input!W$8 -> 365 | X7: =Input!X$8 -> 366 | Y7: =Input!Y$8 -> 365 | Z7: =Input!Z$8 -> 365 | AA7: =Input!AA$8 -> 184 | AD7: =Input!AD$8 -> 365 | AE7: =Input!AE$8 -> 366 | AF7: =Input!AF$8 -> 365 | AG7: =Input!AG$8 -> 365 | AH7: =Input!AH$8 -> 365 | AI7: 365 | AJ7: 365 | AK7: 365 | AL7: 365 | AM7: 365
A8: Year portion | I8: =Input!I$9 -> 1 | J8: =Input!J$9 -> 1 | K8: =Input!K$9 -> 1 | L8: =Input!L$9 -> 1 | M8: =Input!M$9 -> 1 | N8: =Input!N$9 -> 1 | O8: =Input!O$9 -> 1 | P8: =Input!P$9 -> 1 | Q8: =Input!Q$9 -> 1 | R8: =Input!R$9 -> 1 | S8: =Input!S$9 -> 1 | T8: =Input!T$9 -> 0.495890411 | U8: 0.5 | V8: 0.5 | W8: =Input!W$9 -> 1 | X8: =Input!X$9 -> 1 | Y8: =Input!Y$9 -> 1 | Z8: =Input!Z$9 -> 1 | AA8: =Input!AA$9 -> 0.504109589 | AD8: =Input!AD$9 -> 1 | AE8: =Input!AE$9 -> 1 | AF8: =Input!AF$9 -> 1 | AG8: =Input!AG$9 -> 1 | AH8: =Input!AH$9 -> 1 | AI8: =Input!AI$9 -> 1 | AJ8: =Input!AJ$9 -> 1 | AK8: =Input!AK$9 -> 1 | AL8: =Input!AL$9 -> 1 | AM8: =Input!AM$9 -> 1
A9: Financial Parameters
A10: =ROW() -> 10 | C10: Modelled Inflation
A11: =ROW() -> 11 | D11: Inflation | T11: =Input!T$31 -> 0.01533923304 | U11: =Input!U$31 -> 0.01104009297 | V11: =Input!V$31 -> 0.03602556653 | W11: =Input!W$31 -> 0.03602556653 | X11: =Input!X$31 -> 0.01177790241 | Y11: =Input!Y$31 -> 0.02390438247 | Z11: =Input!Z$31 -> 0.03015564202 | AA11: =Input!AA$31 -> 0.006610009443 | AD11: =Input!AD$31 -> 0.01688555347 | AE11: =Input!AE$31 -> 0.0147601476 | AF11: =Input!AF$31 -> 0.01909090909 | AG11: =Input!AG$31 -> 0.0178412132 | AH11: =Input!AH$31 -> 0.0178412132 | AI11: =Input!AI$31 -> 0.0127744511 | AJ11: =Input!AJ$31 -> 0.0127744511 | AK11: =Input!AK$31 -> 0.0127744511 | AL11: =Input!AL$31 -> 0.0127744511 | AM11: =Input!AM$31 -> 0.0127744511
A12: =ROW() -> 12 | D12: Inflation Factor (convert to nominal $) | T12: =Input!T$35 -> 0.8247311036 | U12: =Input!U$35 -> 0.8338362117 | V12: =Input!V$35 -> 0.8544425088 | W12: =Input!W$35 -> 0.8544425088 | X12: =Input!X$35 -> 0.8645060493 | Y12: =Input!Y$35 -> 0.8851715326 | Z12: =Input!Z$35 -> 0.9118644484 | AA12: =Input!AA$35 -> 0.9178918811 | AD12: =Input!AD$35 -> 0.9333909935 | AE12: =Input!AE$35 -> 0.9471679823 | AF12: =Input!AF$35 -> 0.9652502802 | AG12: =Input!AG$35 -> 0.9824715162 | AH12: =Input!AH$35 -> 1 | AI12: =Input!AI$35 -> 1.012774451 | AJ12: =Input!AJ$35 -> 1.025712089 | AK12: =Input!AK$35 -> 1.038814998 | AL12: =Input!AL$35 -> 1.052085289 | AM12: =Input!AM$35 -> 1.065525101
A13: =ROW() -> 13 | C13: Nominal Post Tax WACC
A14: =ROW() -> 14 | D14: WACC | T14: =Input!T$41 -> 0 | U14: =Input!U$41 -> 0 | V14: =Input!V$41 -> 0 | W14: =Input!W$41 -> 0 | X14: =Input!X$41 -> 0 | Y14: =Input!Y$41 -> 0 | Z14: =Input!Z$41 -> 0 | AA14: =Input!AA$41 -> 0.02953234787 | AD14: =Input!AD$41 -> 0.059872 | AE14: =Input!AE$41 -> 0.060916 | AF14: =Input!AF$41 -> 0.06157 | AG14: =Input!AG$41 -> 0.06049 | AH14: =Input!AH$41 -> 0.058714 | AI14: =Input!AI$41 -> 0.048693 | AJ14: =Input!AJ$41 -> 0.048693 | AK14: =Input!AK$41 -> 0.048693 | AL14: =Input!AL$41 -> 0.048693 | AM14: =Input!AM$41 -> 0.048693
A15: =ROW() -> 15 | D15: Discounting Factor | T15: =Input!T$42 -> 1 | U15: =Input!U$42 -> 0 | V15: =Input!V$42 -> 0 | W15: =Input!W$42 -> 1 | X15: =Input!X$42 -> 1 | Y15: =Input!Y$42 -> 1 | Z15: =Input!Z$42 -> 1 | AA15: =Input!AA$42 -> 0.9713147936 | AD15: =Input!AD$42 -> 0.9164453761 | AE15: =Input!AE$42 -> 0.8638246346 | AF15: =Input!AF$42 -> 0.8137236684 | AG15: =Input!AG$42 -> 0.7673091386 | AH15: =Input!AH$42 -> 0.7247558251 | AI15: =Input!AI$42 -> 0.9535679174 | AJ15: =Input!AJ$42 -> 0.9092917731 | AK15: =Input!AK$42 -> 0.8670714624 | AL15: =Input!AL$42 -> 0.8268115286 | AM15: =Input!AM$42 -> 0.7884209474
A16: Working Capital | AI16: Forecast $m nominal
A17: =ROW() -> 17 | C17: Revenue
A18: =ROW() -> 18 | D18: Total Revenue | AI18: =Revenue!AI$239 -> 175.9089999 | AJ18: =Revenue!AJ$239 -> 180.8427473 | AK18: =Revenue!AK$239 -> 185.7982214 | AL18: =Revenue!AL$239 -> 190.7619438 | AM18: =Revenue!AM$239 -> 196.4760602
A19: =ROW() -> 19 | C19: Expenses
A20: =ROW() -> 20 | D20: Opex | AI20: =Input!AI$1610 -> 66.09412488 | AJ20: =Input!AJ$1610 -> 68.92668497 | AK20: =Input!AK$1610 -> 72.3325567 | AL20: =Input!AL$1610 -> 74.91927434 | AM20: =Input!AM$1610 -> 76.51304104
A21: =ROW() -> 21 | D21: Capex | AI21: =CoS!AI31 -> 96.96036632 | AJ21: =CoS!AJ31 -> 88.55913945 | AK21: =CoS!AK31 -> 91.88208636 | AL21: =CoS!AL31 -> 86.51008072 | AM21: =CoS!AM31 -> 89.81305442
A22: =ROW() -> 22 | D22: Total Expenses | AI22: =SUM(AI20:AI21) -> 163.0544912 | AJ22: 157.4858244 | AK22: 164.2146431 | AL22: 161.4293551 | AM22: 166.3260955
A23: =ROW() -> 23 | C23: Working Capital | E23: Base for Calculation
A24: =ROW() -> 24 | D24: Receivables | E24: =Input!$AI$1642 -> 62 | F24: Days outstanding on receipts (billing plus credit) | AI24: =AI18/AI$7*$E24 -> 29.88043286 | AJ24: 30.71849406 | AK24: 31.56024583 | AL24: 32.40339868 | AM24: 33.37401571
A25: =ROW() -> 25 | D25: Inventory | E25: =Input!$AI$1643 -> 0.0089 | F25: (materials consumed / asset turnover) + insurance spares (ratio) | AI25: =AI21*$E25 -> 0.8629472603 | AJ25: 0.7881763411 | AK25: 0.8177505686 | AL25: 0.7699397184 | AM25: 0.7993361843
A26: =ROW() -> 26 | D26: Creditors | E26: =-Input!$AI$1644 -> -19 | F26: Days outstanding on expenditure | AI26: =AI22/AI$7*$E26 -> -8.487768035 | AJ26: -8.19789223 | AK26: -8.548159502 | AL26: -8.403171908 | AM26: -8.658070723
A27: =ROW() -> 27 | D27: End of the Year Working Capital | AI27: =SUM(AI24:AI26) -> 22.25561208 | AJ27: 23.30877817 | AK27: 23.8298369 | AL27: 24.77016649 | AM27: 25.51528117
A28: =ROW() -> 28 | C28: Working Capital
A29: =ROW() -> 29 | D29: Opening Value | AI29: =AI27 -> 22.25561208 | AJ29: =AI31 -> 22.25561208 | AK29: 23.30877817 | AL29: 23.8298369 | AM29: 24.77016649
A30: =ROW() -> 30 | D30: Variation | AI30: =AI27-AI29 -> 0 | AJ30: 1.053166086 | AK30: 0.5210587335 | AL30: 0.9403295867 | AM30: 0.7451146824
A31: =ROW() -> 31 | D31: Closing Value | AI31: =SUM(AI29:AI30) -> 22.25561208 | AJ31: 23.30877817 | AK31: 23.8298369 | AL31: 24.77016649 | AM31: 25.51528117
A32: =ROW() -> 32 | AI32: 24.31418429 | AJ32: 25.2927091 | AK32: 26.17917559 | AL32: 26.9938266 | AM32: 28.08157026
A33: =ROW() -> 33 | D33: WACC applied (Nominal after tax) | AI33: =AI$14 -> 0.048693 | AJ33: 0.048693 | AK33: 0.048693 | AL33: 0.048693 | AM33: 0.048693
A34: =ROW() -> 34 | F34: PV AA5 | G34: PV AA6
A35: =ROW() -> 35 | D35: Return on Working Capital (at Nominal after tax WACC) | F35: =SUMPRODUCT(AI35:AM35,AI$15:AM$15) -> 4.91319971 | G35: =SUMPRODUCT(AN35:AR35,AN$15:AR$15) -> 0 | AI35: =AI29*AI33 -> 1.083692519 | AJ35: 1.083692519 | AK35: 1.134974335 | AL35: 1.160346248 | AM35: 1.206133717

Sheet Tax_CoRE
A1: =Main!A1 -> 0
A2: Taxation Account and Equity Raising Cost
A3: Ref | C3: =COLUMN() -> 3 | D3: =COLUMN() -> 4 | E3: =COLUMN() -> 5 | F3: =COLUMN() -> 6 | G3: =COLUMN() -> 7 | H3: =COLUMN() -> 8 | I3: =COLUMN() -> 9 | J3: =COLUMN() -> 10 | K3: =COLUMN() -> 11 | L3: =COLUMN() -> 12 | M3: =COLUMN() -> 13 | N3: =COLUMN() -> 14 | O3: =COLUMN() -> 15 | P3: =COLUMN() -> 16 | Q3: =COLUMN() -> 17 | R3: =COLUMN() -> 18 | S3: =COLUMN() -> 19 | T3: =COLUMN() -> 20 | W3: =COLUMN() -> 23 | X3: =COLUMN() -> 24 | Y3: =COLUMN() -> 25 | Z3: =COLUMN() -> 26 | AA3: =COLUMN() -> 27 | AD3: =COLUMN() -> 30 | AE3: =COLUMN() -> 31 | AF3: =COLUMN() -> 32 | AG3: =COLUMN() -> 33 | AH3: =COLUMN() -> 34 | AI3: =COLUMN() -> 35 | AJ3: =COLUMN() -> 36 | AK3: =COLUMN() -> 37 | AL3: =COLUMN() -> 38 | AM3: =COLUMN() -> 39 | AN3: =COLUMN() -> 40
A4: Regulatory Period | J4: 1 | K4: 1 | L4: 1 | M4: 1 | N4: 1 | O4: 2 | P4: 2 | Q4: 2 | R4: 2 | S4: 2 | T4: 3 | W4: 3 | X4: 3 | Y4: 3 | Z4: 3 | AA4: 4 | AD4: 4 | AE4: 4 | AF4: 4 | AG4: 4 | AH4: 4 | AI4: 5 | AJ4: 6 | AK4: 7 | AL4: 8 | AM4: 9 | AN4: 10
A5: Year ending | I5: 1999 | J5: 2000 | K5: 2001 | L5: 2002 | M5: 2003 | N5: 2004 | O5: 2005 | P5: 2006 | Q5: 2007 | R5: 2008 | S5: =1+R5 -> 2009 | T5: =1+S5 -> 2010 | W5: =T5+1 -> 2011 | X5: =W5+1 -> 2012 | Y5: 2013 | Z5: 2014 | AA5: 2014 | AD5: =AA5+1 -> 2015 | AE5: 2016 | AF5: 2017 | AG5: 2018 | AH5: =AG5+1 -> 2019 | AI5: 2020 | AJ5: 2021 | AK5: 2022 | AL5: 2023 | AM5: 2024 | AN5: 2025
A6: Months | I6: 1 to 12 | J6: 1 to 12 | K6: 1 to 12 | L6: 1 to 12 | M6: 1 to 12 | N6: 1 to 12 | O6: 1 to 12 | P6: 1 to 12 | Q6: 1 to 12 | R6: 1 to 12 | S6: 1 to 12 | T6: 1 to 6 | W6: 7 to 6 | X6: 7 to 6 | Y6: 7 to 6 | Z6: 7 to 6 | AA6: 7 to 12 | AD6: 1 to 12 | AE6: 1 to 12 | AF6: 1 to 12 | AG6: 1 to 12 | AH6: 1 to 12 | AI6: 1 to 12 | AJ6: 1 to 12 | AK6: 1 to 12 | AL6: 1 to 12 | AM6: 1 to 12 | AN6: 1 to 12
A7: Days | I7: =Input!I8 -> 365 | J7: =Input!J8 -> 366 | K7: =Input!K8 -> 365 | L7: =Input!L8 -> 365 | M7: =Input!M8 -> 365 | N7: =Input!N8 -> 366 | O7: =Input!O8 -> 365 | P7: =Input!P8 -> 365 | Q7: =Input!Q8 -> 365 | R7: =Input!R8 -> 366 | S7: =Input!S8 -> 365 | T7: =Input!T8 -> 181 | W7: =Input!W8 -> 365 | X7: =Input!X8 -> 366 | Y7: =Input!Y8 -> 365 | Z7: =Input!Z8 -> 365 | AA7: =Input!AA8 -> 184 | AD7: =Input!AD8 -> 365 | AE7: =Input!AE8 -> 366 | AF7: =Input!AF8 -> 365 | AG7: =Input!AG8 -> 365 | AH7: =Input!AH8 -> 365 | AI7: 365 | AJ7: 365 | AK7: 365 | AL7: 365 | AM7: 365 | AN7: 366
A8: Year portion | I8: =Input!I9 -> 1 | J8: =Input!J9 -> 1 | K8: =Input!K9 -> 1 | L8: =Input!L9 -> 1 | M8: =Input!M9 -> 1 | N8: =Input!N9 -> 1 | O8: =Input!O9 -> 1 | P8: =Input!P9 -> 1 | Q8: =Input!Q9 -> 1 | R8: =Input!R9 -> 1 | S8: =Input!S9 -> 1 | T8: =Input!T9 -> 0.495890411 | W8: =Input!W9 -> 1 | X8: =Input!X9 -> 1 | Y8: =Input!Y9 -> 1 | Z8: =Input!Z9 -> 1 | AA8: =Input!AA9 -> 0.504109589 | AD8: =Input!AD9 -> 1 | AE8: =Input!AE9 -> 1 | AF8: =Input!AF9 -> 1 | AG8: =Input!AG9 -> 1 | AH8: =Input!AH9 -> 1 | AI8: =Input!AI9 -> 1 | AJ8: =Input!AJ9 -> 1 | AK8: =Input!AK9 -> 1 | AL8: =Input!AL9 -> 1 | AM8: =Input!AM9 -> 1
A9: Financial Parameters
A10: =ROW() -> 10 | C10: Modelled Inflation
A11: =ROW() -> 11 | D11: Inflation | AI11: =Input!AI31 -> 0.0127744511 | AJ11: =Input!AJ31 -> 0.0127744511 | AK11: =Input!AK31 -> 0.0127744511 | AL11: =Input!AL31 -> 0.0127744511 | AM11: =Input!AM31 -> 0.0127744511
A12: =ROW() -> 12 | D12: =Input!D35 -> Inflation Factor (convert 31/12/2019 $ to nominal $) | AI12: =Input!AI35 -> 1.012774451 | AJ12: =Input!AJ35 -> 1.025712089 | AK12: =Input!AK35 -> 1.038814998 | AL12: =Input!AL35 -> 1.052085289 | AM12: =Input!AM35 -> 1.065525101
A13: =ROW() -> 13 | C13: Nominal Post Tax WACC
A14: =ROW() -> 14 | D14: WACC | AI14: =Input!AI41 -> 0.048693 | AJ14: =Input!AJ41 -> 0.048693 | AK14: =Input!AK41 -> 0.048693 | AL14: =Input!AL41 -> 0.048693 | AM14: =Input!AM41 -> 0.048693
A15: =ROW() -> 15 | D15: Discounting Factor | AI15: =Input!AI42 -> 0.9535679174 | AJ15: =Input!AJ42 -> 0.9092917731 | AK15: =Input!AK42 -> 0.8670714624 | AL15: =Input!AL42 -> 0.8268115286 | AM15: =Input!AM42 -> 0.7884209474
A16: =ROW() -> 16 | D16: Debt and Equity constant multiplier for less than 1 year period
A17: =ROW() -> 17
A18: Asset Value [m$ nominal]
A19: =ROW() -> 19 | C19: Asset Value
A20: =ROW() -> 20 | D20: Opening Asset Value | AI20: =Asset!AH$25*Input!AH$35 -> 1333.87084 | AJ20: =Asset!AI$25*Input!AI$35 -> 1399.531346 | AK20: =Asset!AJ$25*Input!AJ$35 -> 1447.275192 | AL20: =Asset!AK$25*Input!AK$35 -> 1496.577705 | AM20: =Asset!AL$25*Input!AL$35 -> 1538.814087 | AN20: =Asset!AM$25*Input!AM$35 -> 1581.690521
A21: =ROW() -> 21 | D21: Opening Working Capital | AI21: =Working_Capital!AI$29 -> 22.25561208 | AJ21: =Working_Capital!AJ$29 -> 22.25561208 | AK21: =Working_Capital!AK$29 -> 23.30877817 | AL21: =Working_Capital!AL$29 -> 23.8298369 | AM21: =Working_Capital!AM$29 -> 24.77016649 | AN21: =Working_Capital!AN$29 -> 0
A22: =ROW() -> 22 | D22: Total Opening Value | AI22: =SUM(AI20:AI21) -> 1356.126452 | AJ22: =SUM(AJ20:AJ21) -> 1421.786958 | AK22: =SUM(AK20:AK21) -> 1470.58397 | AL22: =SUM(AL20:AL21) -> 1520.407542 | AM22: =SUM(AM20:AM21) -> 1563.584254 | AN22: =SUM(AN20:AN21) -> 1581.690521
A23: =ROW() -> 23 | C23: Equity
A24: =ROW() -> 24 | D24: Equity | AI24: =AI$22*WACC!AI$15 -> 610.2569036 | AJ24: =AJ$22*WACC!AJ$15 -> 639.8041311 | AK24: =AK$22*WACC!AK$15 -> 661.7627867 | AL24: =AL$22*WACC!AL$15 -> 684.1833938 | AM24: =AM$22*WACC!AM$15 -> 703.6129142 | AN24: =AN$22*WACC!AN$15 -> 0
A25: =ROW() -> 25 | D25: Total Equity | AI25: =SUM(AI24:AI24) -> 610.2569036 | AJ25: =SUM(AJ24:AJ24) -> 639.8041311 | AK25: =SUM(AK24:AK24) -> 661.7627867 | AL25: =SUM(AL24:AL24) -> 684.1833938 | AM25: =SUM(AM24:AM24) -> 703.6129142 | AN25: =SUM(AN24:AN24) -> 0
A26: =ROW() -> 26 | C26: Debt
A27: =ROW() -> 27 | D27: Debt | AI27: =AI$22*WACC!AI$14 -> 745.8695488 | AJ27: =AJ$22*WACC!AJ$14 -> 781.9828269 | AK27: =AK$22*WACC!AK$14 -> 808.8211837 | AL27: =AL$22*WACC!AL$14 -> 836.224148 | AM27: =AM$22*WACC!AM$14 -> 859.9713396 | AN27: =AN$22*WACC!AN$14 -> 0
A28: =ROW() -> 28 | D28: Total Debt | AI28: =SUM(AI27:AI27) -> 745.8695488 | AJ28: =SUM(AJ27:AJ27) -> 781.9828269 | AK28: =SUM(AK27:AK27) -> 808.8211837 | AL28: =SUM(AL27:AL27) -> 836.224148 | AM28: =SUM(AM27:AM27) -> 859.9713396 | AN28: =SUM(AN27:AN27) -> 0
A29: =ROW() -> 29 | C29: Check that A=D+E | AI29: =IF(ROUND(AI22-AI25-AI28,8)=0,"OK","CHECK") -> OK | AJ29: =IF(ROUND(AJ22-AJ25-AJ28,8)=0,"OK","CHECK") -> OK | AK29: =IF(ROUND(AK22-AK25-AK28,8)=0,"OK","CHECK") -> OK | AL29: =IF(ROUND(AL22-AL25-AL28,8)=0,"OK","CHECK") -> OK | AM29: =IF(ROUND(AM22-AM25-AM28,8)=0,"OK","CHECK") -> OK
A30: =ROW() -> 30
A31: Calculation of Tax Expense - [m$ nominal]
A32: =ROW() -> 32 | C32: Revenue | AI32: Forecast 5 [m$ nominal]
A33: =ROW() -> 33 | D33: Tariff Revenue | AI33: =Revenue!AI145*AI$12 -> 172.4386003 | AJ33: =Revenue!AJ145*AJ$12 -> 177.2832784 | AK33: =Revenue!AK145*AK$12 -> 182.1439734 | AL33: =Revenue!AL145*AL$12 -> 187.0104368 | AM33: =Revenue!AM145*AM$12 -> 192.6250506
A34: =ROW() -> 34 | D34: Prudent Discount | AI34: =Revenue!AI146*AI$12 -> 0.2344 | AJ34: =Revenue!AJ146*AJ$12 -> 0.2404269136 | AK34: =Revenue!AK146*AK$12 -> 0.2434982355 | AL34: =Revenue!AL146*AL$12 -> 0.2466087918 | AM34: =Revenue!AM146*AM$12 -> 0.2497590837
A35: =ROW() -> 35 | D35: Ancillary Services | AI35: =Revenue!AI147*AI$12 -> 3.235999553 | AJ35: =Revenue!AJ147*AJ$12 -> 3.319041961 | AK35: =Revenue!AK147*AK$12 -> 3.410749781 | AL35: =Revenue!AL147*AL$12 -> 3.504898201 | AM35: =Revenue!AM147*AM$12 -> 3.601250541
A36: =ROW() -> 36 | D36: Total Revenue | AI36: =SUM(AI33:AI35) -> 175.9089999 | AJ36: =SUM(AJ33:AJ35) -> 180.8427473 | AK36: =SUM(AK33:AK35) -> 185.7982214 | AL36: =SUM(AL33:AL35) -> 190.7619438 | AM36: =SUM(AM33:AM35) -> 196.4760602
A37: =ROW() -> 37 | C37: Expenses
A38: =ROW() -> 38 | D38: Operating Expenditure | AI38: =-Input!AI1577 -> -66.09412488 | AJ38: =-Input!AJ1577 -> -68.92668497 | AK38: =-Input!AK1577 -> -72.3325567 | AL38: =-Input!AL1577 -> -74.91927434 | AM38: =-Input!AM1577 -> -76.51304104
A39: =ROW() -> 39 | D39: Interest on Debt | AI39: =-Tax_CoRE!AI28*WACC!AI$27*AI$8 -> -31.37127322 | AJ39: =-Tax_CoRE!AJ28*WACC!AJ$27*AJ$8 -> -32.8901977 | AK39: =-Tax_CoRE!AK28*WACC!AK$27*AK$8 -> -34.01901899 | AL39: =-Tax_CoRE!AL28*WACC!AL$27*AL$8 -> -35.17158766 | AM39: =-Tax_CoRE!AM28*WACC!AM$27*AM$8 -> -36.17039454
A40: =ROW() -> 40 | D40: Tax Depreciation | AI40: =Tax_Asset!AE20 -> -61.20321746 | AJ40: =Tax_Asset!AF20 -> -65.24265743 | AK40: =Tax_Asset!AG20 -> -67.36654534 | AL40: =Tax_Asset!AH20 -> -70.15673765 | AM40: =Tax_Asset!AI20 -> -73.08504702
A41: =ROW() -> 41 | D41: Total Expenses | AI41: =SUM(AI38:AI40) -> -158.6686156 | AJ41: =SUM(AJ38:AJ40) -> -167.0595401 | AK41: =SUM(AK38:AK40) -> -173.718121 | AL41: =SUM(AL38:AL40) -> -180.2475997 | AM41: =SUM(AM38:AM40) -> -185.7684826
A42: =ROW() -> 42 | C42: Tax
A43: =ROW() -> 43 | D43: Net Income | AI43: =AI36+AI41 -> 17.24038431 | AJ43: =AJ36+AJ41 -> 13.78320717 | AK43: =AK36+AK41 -> 12.08010041 | AL43: =AL36+AL41 -> 10.51434416 | AM43: =AM36+AM41 -> 10.70757761
A44: =ROW() -> 44 | D44: Tax Loss Carried Forward | AI44: =IF(AI45<0,AI45,0) -> 0 | AJ44: 0 | AK44: 0 | AL44: 0 | AM44: 0
A45: =ROW() -> 45 | D45: Taxable Income | AI45: =AI43 -> 17.24038431 | AJ45: =AJ43+AI44 -> 13.78320717 | AK45: 12.08010041 | AL45: 10.51434416 | AM45: 10.70757761
A46: =ROW() -> 46 | D46: Income tax expense | AI46: =-IF(AI45>0,AI45*WACC!AI$23) -> -5.172115293 | AJ46: =-IF(AJ45>0,AJ45*WACC!AJ$23) -> -4.134962151 | AK46: =-IF(AK45>0,AK45*WACC!AK$23) -> -3.624030124 | AL46: =-IF(AL45>0,AL45*WACC!AL$23) -> -3.154303247 | AM46: =-IF(AM45>0,AM45*WACC!AM$23) -> -3.212273283
A47: =ROW() -> 47 | D47: Imputation Credits | AI47: =-AI46*WACC!AI$24 -> 2.586057646 | AJ47: =-AJ46*WACC!AJ$24 -> 2.067481076 | AK47: =-AK46*WACC!AK$24 -> 1.812015062 | AL47: =-AL46*WACC!AL$24 -> 1.577151623 | AM47: =-AM46*WACC!AM$24 -> 1.606136641
A48: =ROW() -> 48 | D48: Net Tax Expense | AI48: =SUM(AI46:AI47) -> -2.586057646 | AJ48: -2.067481076 | AK48: -1.812015062 | AL48: =SUM(AL46:AL47) -> -1.577151623 | AM48: =SUM(AM46:AM47) -> -1.606136641
A49: =ROW() -> 49
A50: Reconciliation on Return on Equity - [m$ nominal]
A51: =ROW() -> 51
A52: =ROW() -> 52 | C52: RAB | F52: =SUM(F53:F54) -> 1 | AI52: =CoS!AI$28 -> 1333.87084 | AJ52: =CoS!AJ$28 -> 1399.531346 | AK52: =CoS!AK$28 -> 1447.275192 | AL52: =CoS!AL$28 -> 1496.577705 | AM52: =CoS!AM$28 -> 1538.814087
A53: =ROW() -> 53 | D53: Equity | F53: =WACC!$AI$15 -> 0.45 | AI53: =$F53*AI52 -> 600.2418781 | AJ53: =$F53*AJ52 -> 629.7891057 | AK53: =$F53*AK52 -> 651.2738365 | AL53: =$F53*AL52 -> 673.4599672 | AM53: =$F53*AM52 -> 692.4663393
A54: =ROW() -> 54 | D54: Debt | F54: =WACC!$AI$14 -> 0.55 | AI54: =$F54*AI52 -> 733.6289622 | AJ54: =$F54*AJ52 -> 769.7422403 | AK54: =$F54*AK52 -> 796.0013557 | AL54: =$F54*AL52 -> 823.1177377 | AM54: =$F54*AM52 -> 846.347748
A55: =ROW() -> 55 | C55: per Revenue Building Blocks
A56: =ROW() -> 56 | D56: Return on Asset (includes inflationary gain) | G56: PV AA5
A57: =ROW() -> 57 | D57: Return on Equity % | AI57: =WACC!AI$30 -> 0.0568 | AJ57: =WACC!AJ$30 -> 0.0568 | AK57: =WACC!AK$30 -> 0.0568 | AL57: =WACC!AL$30 -> 0.0568 | AM57: =WACC!AM$30 -> 0.0568
A58: =ROW() -> 58 | D58: Return on Debt % | AI58: =WACC!AI$27 -> 0.04206 | AJ58: =WACC!AJ$27 -> 0.04206 | AK58: =WACC!AK$27 -> 0.04206 | AL58: =WACC!AL$27 -> 0.04206 | AM58: =WACC!AM$27 -> 0.04206
A59: =ROW() -> 59 | D59: Return on Equity | G59: =SUMPRODUCT($AI$15:$AM$15,AI59:AM59) -> 159.7507861 | AI59: =AI$53*AI$57 -> 34.09373868 | AJ59: 35.7720212 | AK59: 36.99235391 | AL59: 38.25252614 | AM59: 39.33208807
A60: =ROW() -> 60 | D60: Return on Debt | G60: =SUMPRODUCT($AI$15:$AM$15,$AI60:$AM60) -> 144.5819615 | AI60: =AI$54*AI$58 -> 30.85643415 | AJ60: 32.37535863 | AK60: 33.47981702 | AL60: 34.62033205 | AM60: 35.59738628
A61: =ROW() -> 61 | F61: =WACC!AA35 -> 0.059434 | G61: =SUMPRODUCT($AI$15:$AM$15,$AI61:$AM61) -> 304.3327476 | AI61: =SUM(AI59:AI60) -> 64.95017283 | AJ61: 68.14737983 | AK61: 70.47217093 | AL61: 72.87285819 | AM61: 74.92947435
A62: =ROW() -> 62
A63: =ROW() -> 63 | C63: Reconciliation on Return on Equity: | F63: Expected PV | G63: PV
A64: =ROW() -> 64 | D64: Total Annual Revenue | F64: =CoS!F60 -> 805.9103524 | G64: =SUMPRODUCT($AI$15:$AM$15,$AI64:$AM64) -> 805.9103524 | AI64: =AI$36 -> 175.9089999 | AJ64: 180.8427473 | AK64: 185.7982214 | AL64: 190.7619438 | AM64: 196.4760602
A65: =ROW() -> 65 | D65: Annual Revenue and CoS difference | F65: =G65 -> -0.0003047351637 | G65: =SUMPRODUCT($AI$15:$AM$15,$AI65:$AM65) -> -0.0003047351637 | AI65: =AI66-AI64 -> -9.89509132 | AJ65: 0.1977843 | AK65: 2.533069243 | AL65: 4.041384979 | AM65: 4.71534593
A66: =ROW() -> 66 | D66: Net Cost of Service | F66: =CoS!F59 -> 805.9100477 | G66: =SUMPRODUCT($AI$15:$AM$15,$AI66:$AM66) -> 805.9100477 | AI66: =CoS!AI$46 -> 166.0139086 | AJ66: =CoS!AJ$46 -> 181.0405316 | AK66: =CoS!AK$46 -> 188.3312907 | AL66: =CoS!AL$46 -> 194.8033288 | AM66: =CoS!AM$46 -> 201.1914061
A67: =ROW() -> 67 | D67: Less:
A68: =ROW() -> 68 | D68: OPEX (Including UAFG) | F68: =CoS!F51 -> 310.6858044 | G68: =SUMPRODUCT($AI$15:$AM$15,$AI68:$AM68) -> 310.6858044 | AI68: =-AI38 -> 66.09412488 | AJ68: =-AJ38 -> 68.92668497 | AK68: =-AK38 -> 72.3325567 | AL68: =-AL38 -> 74.91927434 | AM68: =-AM38 -> 76.51304104
A69: =ROW() -> 69 | D69: Return on Debt (includes inflationary gain) | F69: =G69 -> 144.5819615 | G69: 144.5819615 | AI69: =AI60 -> 30.85643415 | AJ69: =AJ60 -> 32.37535863 | AK69: =AK60 -> 33.47981702 | AL69: =AL60 -> 34.62033205 | AM69: =AM60 -> 35.59738628
A70: =ROW() -> 70 | D70: Tax Payable | F70: =CoS!F57 -> 16.97478121 | G70: 16.97478121 | AI70: =CoS!AI44 -> 5.172115293 | AJ70: =CoS!AJ44 -> 4.134962151 | AK70: =CoS!AK44 -> 3.624030124 | AL70: =CoS!AL44 -> 3.154303247 | AM70: =CoS!AM44 -> 3.212273283
A71: =ROW() -> 71 | D71: Imputation Credits | F71: =CoS!F58 -> -8.487390604 | G71: -8.487390604 | AI71: =CoS!AI45 -> -2.586057646 | AJ71: =CoS!AJ45 -> -2.067481076 | AK71: =CoS!AK45 -> -1.812015062 | AL71: =CoS!AL45 -> -1.577151623 | AM71: =CoS!AM45 -> -1.606136641
A72: =ROW() -> 72 | D72: Depreciation | F72: =CoS!F52 -> 257.3316177 | G72: 257.3316177 | AI72: =CoS!AI39 -> 48.3393285 | AJ72: =CoS!AJ39 -> 58.69353791 | AK72: =CoS!AK39 -> 61.06771982 | AL72: =CoS!AL39 -> 63.3916571 | AM72: =CoS!AM39 -> 66.5941257
A73: =ROW() -> 73 | D73: Return of Asset Inflationary gain | F73: =CoS!F53 -> -79.84071225 | G73: -79.84071225 | AI73: =CoS!AI40 -> -17.03946782 | AJ73: =CoS!AJ40 -> -17.87824474 | AK73: =CoS!AK40 -> -18.48814617 | AL73: =CoS!AL40 -> -19.11795871 | AM73: =CoS!AM40 -> -19.65750531
A74: =ROW() -> 74 | D74: Return on Working Capital | F74: =CoS!F56 -> 4.91319971 | G74: 4.91319971 | AI74: =CoS!AI43 -> 1.083692519 | AJ74: =CoS!AJ43 -> 1.083692519 | AK74: =CoS!AK43 -> 1.134974335 | AL74: =CoS!AL43 -> 1.160346248 | AM74: =CoS!AM43 -> 1.206133717
A75: =ROW() -> 75 | F75: =SUM(F68:F74) -> 646.1592616 | G75: 646.1592616 | AI75: =SUM(AI68:AI74) -> 131.9201699 | AJ75: =SUM(AJ68:AJ74) -> 145.2685104 | AK75: =SUM(AK68:AK74) -> 151.3389368 | AL75: =SUM(AL68:AL74) -> 156.5508027 | AM75: =SUM(AM68:AM74) -> 161.8593181
A76: =ROW() -> 76 | D76: Return on Equity | F76: =F66-F75 -> 159.7507861 | G76: 159.7507861 | AI76: =AI66-AI75 -> 34.09373868 | AJ76: =AJ66-AJ75 -> 35.7720212 | AK76: =AK66-AK75 -> 36.99235391 | AL76: =AL66-AL75 -> 38.25252614 | AM76: =AM66-AM75 -> 39.33208807
A77: =ROW() -> 77 | D77: Expected Return on Equity | F77: =G59 -> 159.7507861 | G77: 159.7507861 | AI77: =AI59 -> 34.09373868 | AJ77: =AJ59 -> 35.7720212 | AK77: =AK59 -> 36.99235391 | AL77: =AL59 -> 38.25252614 | AM77: =AM59 -> 39.33208807
A78: =ROW() -> 78 | D78: Difference (should be 0) | F78: =F76-F77 -> 0 | G78: 0 | AI78: =AI76-AI77 -> 0 | AJ78: 0 | AK78: 0 | AL78: 0 | AM78: 0
A79: =ROW() -> 79
A80: =ROW() -> 80
A81: Equity Raising Costs, Nominal Calculations [m$ nominal]
A82: =ROW() -> 82 | C82: Yield / cost inputs (ERA Rate of Return Guideline, 16 Dec 2013)
A83: =ROW() -> 83 | D83: Dividend imputation/payout ratio | G83: 0.7
A84: =ROW() -> 84 | D84: Benchmark seasoned equity offering (SEO) raising cost | G84: =Input!G1650 -> 0.03
A85: =ROW() -> 85 | D85: Benchmark DRP cost (AER 2010 Victorian DNSP decision) | G85: =Input!G1651 -> 0.01
A86: =ROW() -> 86 | D86: Benchmark DRP take-up | G86: =Input!G1652 -> 0.25
A87: =ROW() -> 87
A88: =ROW() -> 88 | C88: Dividend assessment
A89: =ROW() -> 89 | D89: Tax payable | AI89: =-AI46 -> 5.172115293 | AJ89: 4.134962151 | AK89: 3.624030124 | AL89: 3.154303247 | AM89: 3.212273283
A90: =ROW() -> 90 | D90: Dividends | AI90: =(AI89/WACC!AI$23*(1-WACC!AI$23)*$G$83) -> 8.447788311 | AJ90: =(AJ89/WACC!AJ$23*(1-WACC!AJ$23)*$G$83) -> 6.753771513 | AK90: =(AK89/WACC!AK$23*(1-WACC!AK$23)*$G$83) -> 5.919249203 | AL90: =(AL89/WACC!AL$23*(1-WACC!AL$23)*$G$83) -> 5.152028636 | AM90: =(AM89/WACC!AM$23*(1-WACC!AM$23)*$G$83) -> 5.246713028
A91: =ROW() -> 91 | D91: Dividend re-investment (DRP) | AI91: =AI90*$G$86 -> 2.111947078 | AJ91: 1.688442878 | AK91: 1.479812301 | AL91: 1.288007159 | AM91: 1.311678257
A92: =ROW() -> 92
A93: =ROW() -> 93 | C93: Benchmark Cash Flows
A94: =ROW() -> 94 | D94: Revenue | AI94: =AI36 -> 175.9089999 | AJ94: =AJ36 -> 180.8427473 | AK94: =AK36 -> 185.7982214 | AL94: =AL36 -> 190.7619438 | AM94: =AM36 -> 196.4760602
A95: =ROW() -> 95 | D95: Opex | AI95: =AI38 -> -66.09412488 | AJ95: -68.92668497 | AK95: -72.3325567 | AL95: -74.91927434 | AM95: -76.51304104
A96: =ROW() -> 96 | D96: Interest | AI96: -31.37127322 | AJ96: -32.8901977 | AK96: -34.01901899 | AL96: -35.17158766 | AM96: -36.17039454
A97: =ROW() -> 97 | D97: Tax | AI97: =AI46 -> -5.172115293 | AJ97: =AJ46 -> -4.134962151 | AK97: =AK46 -> -3.624030124 | AL97: =AL46 -> -3.154303247 | AM97: =AM46 -> -3.212273283
A98: =ROW() -> 98 | D98: Internal cash flow | AI98: =SUM(AI94:AI97) -> 73.27148648 | AJ98: =SUM(AJ94:AJ97) -> 74.89090245 | AK98: =SUM(AK94:AK97) -> 75.82261563 | AL98: =SUM(AL94:AL97) -> 77.51677856 | AM98: =SUM(AM94:AM97) -> 80.58035135
A99: =ROW() -> 99 | D99: Dividend | AI99: =-AI90 -> -8.447788311 | AJ99: =-AJ90 -> -6.753771513 | AK99: =-AK90 -> -5.919249203 | AL99: =-AL90 -> -5.152028636 | AM99: =-AM90 -> -5.246713028
A100: =ROW() -> 100 | D100: Dividend reinvestment | AI100: =AI91 -> 2.111947078 | AJ100: =AJ91 -> 1.688442878 | AK100: =AK91 -> 1.479812301 | AL100: =AL91 -> 1.288007159 | AM100: =AM91 -> 1.311678257
A101: =ROW() -> 101 | D101: Retained cash flow | AI101: =SUM(AI98:AI100) -> 66.93564525 | AJ101: =SUM(AJ98:AJ100) -> 69.82557381 | AK101: =SUM(AK98:AK100) -> 71.38317872 | AL101: =SUM(AL98:AL100) -> 73.65275709 | AM101: =SUM(AM98:AM100) -> 76.64531658
A102: =ROW() -> 102
A103: =ROW() -> 103 | C103: Benchmark capex funding
A104: =ROW() -> 104 | D104: Capex | AI104: =(Asset!AI18+Asset!AI19+Asset!AI20)*Input!AI$35 -> 96.96036632 | AJ104: =(Asset!AJ18+Asset!AJ19+Asset!AJ20)*Input!AJ$35 -> 88.55913945 | AK104: =(Asset!AK18+Asset!AK19+Asset!AK20)*Input!AK$35 -> 91.88208636 | AL104: =(Asset!AL18+Asset!AL19+Asset!AL20)*Input!AL$35 -> 86.51008072 | AM104: =(Asset!AM18+Asset!AM19+Asset!AM20)*Input!AM$35 -> 89.81305442
A105: =ROW() -> 105 | D105: less Debt Component | AI105: =(AJ20-AI20)*WACC!AI$14 -> 36.1132781 | AJ105: =(AK20-AJ20)*WACC!AJ$14 -> 26.25911545 | AK105: =(AL20-AK20)*WACC!AK$14 -> 27.11638199 | AL105: =(AM20-AL20)*WACC!AL$14 -> 23.23001028 | AM105: =(AN20-AM20)*WACC!AM$14 -> 23.58203871
A106: =ROW() -> 106 | D106: Equity Component | AI106: =AI104-AI105 -> 60.84708822 | AJ106: =AJ104-AJ105 -> 62.300024 | AK106: =AK104-AK105 -> 64.76570437 | AL106: =AL104-AL105 -> 63.28007044 | AM106: =AM104-AM105 -> 66.2310157
A107: =ROW() -> 107 | D107: Retained cash flows | AI107: =AI101 -> 66.93564525 | AJ107: =AJ101 -> 69.82557381 | AK107: =AK101 -> 71.38317872 | AL107: =AL101 -> 73.65275709 | AM107: =AM101 -> 76.64531658
A108: =ROW() -> 108 | D108: Equity Required (SEO) | AI108: =AI106-AI107 -> -6.088557024 | AJ108: =AJ106-AJ107 -> -7.525549812 | AK108: =AK106-AK107 -> -6.617474357 | AL108: =AL106-AL107 -> -10.37268664 | AM108: =AM106-AM107 -> -10.41430087
A109: =ROW() -> 109
A110: =ROW() -> 110 | C110: Equity raising costs
A111: =ROW() -> 111 | D111: External Equity Raising Costs | AI111: =AI108*$G$84 -> -0.1826567107 | AJ111: =AJ108*$G$84 -> -0.2257664944 | AK111: =AK108*$G$84 -> -0.1985242307 | AL111: =AL108*$G$84 -> -0.3111805993 | AM111: =AM108*$G$84 -> -0.3124290261
A112: =ROW() -> 112 | D112: DRP cost | AI112: =AI91*$G$85 -> 0.02111947078 | AJ112: =AJ91*$G$85 -> 0.01688442878 | AK112: =AK91*$G$85 -> 0.01479812301 | AL112: =AL91*$G$85 -> 0.01288007159 | AM112: =AM91*$G$85 -> 0.01311678257
A113: =ROW() -> 113 | D113: Total Equity Raising Costs | AI113: =SUM(AI111:AI112) -> -0.1615372399 | AJ113: -0.2088820656 | AK113: -0.1837261077 | AL113: -0.2983005277 | AM113: -0.2993122436
A114: =ROW() -> 114 | D114: Equity Raising Costs (capitalised and included in RAB)
A115: =ROW() -> 115 | D115: Equity Raising Costs (manual entry)
A116: =ROW() -> 116 | D116: ="Total Equity Raising Costs [Real " & Input!$G$34 & " $M]" -> Total Equity Raising Costs [Real 31/12/2019 $M]
A117: =ROW() -> 117

Sheet Asset
A1: =Main!A1 -> 0
A2: ="Assets Account [Real m$ "&Input!$G$34&"]" -> Assets Account [Real m$ 31/12/2019]
A3: Ref | C3: =COLUMN() -> 3 | D3: =COLUMN() -> 4 | E3: =COLUMN() -> 5 | F3: =COLUMN() -> 6 | G3: =COLUMN() -> 7 | H3: =COLUMN() -> 8 | I3: =COLUMN() -> 9 | J3: =COLUMN() -> 10 | K3: =COLUMN() -> 11 | L3: =COLUMN() -> 12 | M3: =COLUMN() -> 13 | N3: =COLUMN() -> 14 | O3: =COLUMN() -> 15 | P3: =COLUMN() -> 16 | Q3: =COLUMN() -> 17 | R3: =COLUMN() -> 18 | S3: =COLUMN() -> 19 | T3: =COLUMN() -> 20 | W3: =COLUMN() -> 23 | X3: =COLUMN() -> 24 | Y3: =COLUMN() -> 25 | Z3: =COLUMN() -> 26 | AA3: =COLUMN() -> 27 | AD3: =COLUMN() -> 30 | AE3: =COLUMN() -> 31 | AF3: =COLUMN() -> 32 | AG3: =COLUMN() -> 33 | AH3: =COLUMN() -> 34 | AI3: =COLUMN() -> 35 | AJ3: =COLUMN() -> 36 | AK3: =COLUMN() -> 37 | AL3: =COLUMN() -> 38 | AM3: =COLUMN() -> 39
A4: =ROW() -> 4 | J4: Year ending 31 December | O4: Year ending 31 December | T4: Year Ending 30 June | AA4: Year Ending 31 December | AI4: Year Ending 31 December
A5: Regulatory Period | J5: 1 | K5: 1 | L5: 1 | M5: 1 | N5: 1 | O5: 2 | P5: 2 | Q5: 2 | R5: 2 | S5: 2 | T5: 3 | W5: 3 | X5: 3 | Y5: 3 | Z5: 3 | AA5: 4 | AD5: 4 | AE5: 4 | AF5: 4 | AG5: 4 | AH5: 4 | AI5: 4 | AJ5: 4 | AK5: 4 | AL5: 4 | AM5: 4
A6: Year ending | I6: 1999 | J6: 2000 | K6: 2001 | L6: 2002 | M6: 2003 | N6: 2004 | O6: 2005 | P6: 2006 | Q6: 2007 | R6: 2008 | S6: =1+R6 -> 2009 | T6: =1+S6 -> 2010 | W6: =T6+1 -> 2011 | X6: =W6+1 -> 2012 | Y6: 2013 | Z6: 2014 | AA6: 2014 | AD6: =AA6+1 -> 2015 | AE6: 2016 | AF6: 2017 | AG6: 2018 | AH6: 2019 | AI6: =AH6+1 -> 2020 | AJ6: 2021 | AK6: 2022 | AL6: 2023 | AM6: 2024
A7: Months | I7: 1 to 12 | J7: 1 to 12 | K7: 1 to 12 | L7: 1 to 12 | M7: 1 to 12 | N7: 1 to 12 | O7: 1 to 12 | P7: 1 to 12 | Q7: 1 to 12 | R7: 1 to 12 | S7: 1 to 12 | T7: 1 to 6 | W7: 7 to 6 | X7: 7 to 6 | Y7: 7 to 6 | Z7: 7 to 6 | AA7: 7 to 12 | AD7: 1 to 12 | AE7: 1 to 12 | AF7: 1 to 12 | AG7: 1 to 12 | AH7: 1 to 12 | AI7: 1 to 12 | AJ7: 1 to 12 | AK7: 1 to 12 | AL7: 1 to 12 | AM7: 1 to 12
A8: Days | I8: =Input!I8 -> 365 | J8: =Input!J8 -> 366 | K8: =Input!K8 -> 365 | L8: =Input!L8 -> 365 | M8: =Input!M8 -> 365 | N8: =Input!N8 -> 366 | O8: =Input!O8 -> 365 | P8: =Input!P8 -> 365 | Q8: =Input!Q8 -> 365 | R8: =Input!R8 -> 366 | S8: =Input!S8 -> 365 | T8: =Input!T8 -> 181 | W8: =Input!W8 -> 365 | X8: =Input!X8 -> 366 | Y8: =Input!Y8 -> 365 | Z8: =Input!Z8 -> 365 | AA8: =Input!AA8 -> 184 | AD8: =Input!AD8 -> 365 | AE8: =Input!AE8 -> 366 | AF8: =Input!AF8 -> 365 | AG8: =Input!AG8 -> 365 | AH8: =Input!AH8 -> 365 | AI8: 365 | AJ8: =Input!AJ8 -> 365 | AK8: =Input!AK8 -> 365 | AL8: =Input!AL8 -> 365 | AM8: =Input!AM8 -> 365
A9: Year portion | I9: =Input!I9 -> 1 | J9: =Input!J9 -> 1 | K9: =Input!K9 -> 1 | L9: =Input!L9 -> 1 | M9: =Input!M9 -> 1 | N9: =Input!N9 -> 1 | O9: =Input!O9 -> 1 | P9: =Input!P9 -> 1 | Q9: =Input!Q9 -> 1 | R9: =Input!R9 -> 1 | S9: =Input!S9 -> 1 | T9: =ROUND(Input!T9,2) -> 0.5 | W9: =Input!W9 -> 1 | X9: =Input!X9 -> 1 | Y9: =Input!Y9 -> 1 | Z9: =Input!Z9 -> 1 | AA9: =ROUND(Input!AA9,2) -> 0.5 | AD9: =Input!AD9 -> 1 | AE9: =Input!AE9 -> 1 | AF9: =Input!AF9 -> 1 | AG9: =Input!AG9 -> 1 | AH9: =Input!AH9 -> 1 | AI9: =ROUND(Input!AI9,2) -> 1 | AJ9: =Input!AJ9 -> 1 | AK9: =Input!AK9 -> 1 | AL9: =Input!AL9 -> 1 | AM9: =Input!AM9 -> 1
A10: Financial Parameters
A11: =ROW() -> 11 | C11: Inflation factor | J11: AA1 | O11: AA2 | T11: AA3 | AA11: AA4 | AI11: AA5
A12: =ROW() -> 12 | D12: ="Inflation Factor (convert to real "&Input!$G$34&" $)" -> Inflation Factor (convert to real 31/12/2019 $) | I12: =Input!I$34 -> 1.681499394 | J12: =Input!J$34 -> 1.589292268 | K12: =Input!K$34 -> 1.541167465 | L12: =Input!L$34 -> 1.495871504 | M12: =Input!M$34 -> 1.461303045 | N12: =Input!N$34 -> 1.424396415 | O12: =Input!O$34 -> 1.385618027 | P12: =Input!P$34 -> 1.341955465 | Q12: =Input!Q$34 -> 1.303398344 | R12: =Input!R$34 -> 1.25707274 | S12: =Input!S$34 -> 1.231115486 | T12: =Input!T$34 -> 1.212516414 | W12: =Input!W$34 -> 1.170353757 | X12: =Input!X$34 -> 1.156729905 | Y12: =Input!Y$34 -> 1.129724537 | Z12: =Input!Z$34 -> 1.096654225 | AA12: =Input!AA$34 -> 1.089452931 | AD12: =Input!AD$34 -> 1.071362384 | AE12: =Input!AE$34 -> 1.055778931 | AF12: =Input!AF$34 -> 1.036000735 | AG12: =Input!AG$34 -> 1.017841213 | AH12: =Input!AH$34 -> 1 | AI12: =Input!AI$34 -> 0.9873866772 | AJ12: =Input!AJ$34 -> 0.9749324503 | AK12: =Input!AK$34 -> 0.9626353125 | AL12: =Input!AL$34 -> 0.9504932826 | AM12: =Input!AM$34 -> 0.938504404
A13: =ROW() -> 13 | D13: ="Inflation Factor (convert " &Input!$G$34& " $ to nominal $)" -> Inflation Factor (convert 31/12/2019 $ to nominal $) | I13: =Input!I$35 -> 0.5947073211 | J13: =Input!J$35 -> 0.6292108884 | K13: =Input!K$35 -> 0.6488587532 | L13: =Input!L$35 -> 0.668506618 | M13: =Input!M$35 -> 0.684320753 | N13: =Input!N$35 -> 0.7020517529 | O13: =Input!O$35 -> 0.7216996177 | P13: =Input!P$35 -> 0.7451812121 | Q13: =Input!Q$35 -> 0.767225158 | R13: =Input!R$35 -> 0.7954989146 | S13: =Input!S$35 -> 0.812271482 | T13: =Input!T$35 -> 0.8247311036 | W13: =Input!W$35 -> 0.8544425088 | X13: =Input!X$35 -> 0.8645060493 | Y13: =Input!Y$35 -> 0.8851715326 | Z13: =Input!Z$35 -> 0.9118644484 | AA13: =Input!AA$35 -> 0.9178918811 | AD13: =Input!AD$35 -> 0.9333909935 | AE13: =Input!AE$35 -> 0.9471679823 | AF13: =Input!AF$35 -> 0.9652502802 | AG13: =Input!AG$35 -> 0.9824715162 | AH13: =Input!AH$35 -> 1 | AI13: =Input!AI$35 -> 1.012774451 | AJ13: =Input!AJ$35 -> 1.025712089 | AK13: =Input!AK$35 -> 1.038814998 | AL13: =Input!AL$35 -> 1.052085289 | AM13: =Input!AM$35 -> 1.065525101
A14: Capital Base
A15: =ROW() -> 15 | C15: Physical Asset Account | AD15: 1127.184274 | AE15: 1167.152231 | AF15: 1214.064648 | AG15: 1257.914734 | AH15: 1300.510364 | AI15: 1333.87084 | AJ15: 1381.878605 | AK15: 1410.995549 | AL15: 1440.658547 | AM15: 1462.632453
A16: =ROW() -> 16 | D16: Opening Value | O16: =N25 -> 946.7142164 | P16: =O25 -> 936.7482853 | Q16: 940.0494677 | R16: 943.3585042 | S16: 945.7806179 | T16: =S25 -> 962.5592674 | W16: =T25 -> 983.0888775 | X16: 999.3037278 | Y16: 1009.922577 | Z16: 1062.453208 | AA16: =Z25 -> 1102.57939 | AD16: =AA25 -> 1127.184274 | AE16: 1167.152231 | AF16: 1214.064648 | AG16: 1257.914734 | AH16: 1300.510364 | AI16: =AH25 -> 1333.87084 | AJ16: 1381.878605 | AK16: 1410.995549 | AL16: 1440.658547 | AM16: 1462.632453
D17: Adjustment to opening balance (CAPEX over depreciation transferred to ICB assets) | O17: =O296 -> -8.571470303 | P17: 0 | Q17: 0 | R17: 0 | S17: 0 | T17: 0 | W17: 0 | X17: 0 | Y17: 0 | Z17: 0 | AA17: 0 | AD17: 0 | AE17: 0 | AF17: 0 | AG17: 0 | AH17: 0 | AI17: 0 | AJ17: 0 | AK17: 0 | AL17: 0 | AM17: 0
A18: =ROW() -> 18 | D18: Capex | O18: =O49 -> 33.89050867 | P18: =P49 -> 40.83325235 | Q18: 42.9151724 | R18: 43.71418753 | S18: 52.2407356 | T18: 30.36778797 | W18: 45.42046683 | X18: 42.45633319 | Y18: 86.95616535 | Z18: 77.08487171 | AA18: 42.62505153 | AD18: 79.82340651 | AE18: 91.32498476 | AF18: 91.31459414 | AG18: 93.18199064 | AH18: 86.53789648 | AI18: =AI49 -> 95.73737392 | AJ18: 86.33917882 | AK18: 88.44894092 | AL18: 82.2272506 | AM18: 84.28994711
A19: =ROW() -> 19 | D19: Vines (capex) | S19: =S39 -> 0.7138290742
A20: =ROW() -> 20 | D20: West Net (capex) | T20: =T45 -> 3.639678756
A21: =ROW() -> 21 | D21: Redundant Assets & Asset Disposal | O21: =O31+O38+O44+O50 -> 0 | P21: 0 | Q21: 0 | R21: 0 | S21: -5.42850108 | T21: 0 | W21: 0 | X21: 0 | Y21: 0 | Z21: 0 | AA21: -0.0424773683 | AD21: -0.01546661101 | AE21: -0.2028672662 | AF21: -0.2136045275 | AG21: -0.5156300225 | AH21: 0 | AI21: 0 | AJ21: 0 | AK21: 0 | AL21: 0 | AM21: 0
A22: =ROW() -> 22 | D22: Depreciation | O22: =O30+O37+O43+O51 -> -35.28496947 | P22: -37.5320699 | Q22: -39.60613595 | R22: -41.29207378 | S22: -43.44696138 | T22: -13.4778566 | W22: -29.20561654 | X22: -31.83748438 | Y22: -34.42553436 | Z22: -36.958689 | AA22: -18.03809398 | AD22: -39.83998245 | AE22: -44.20970069 | AF22: -47.250904 | AG22: -50.07073047 | AH22: -53.17741997 | AI22: -47.72960895 | AJ22: -57.22223473 | AK22: -58.78594355 | AL22: -60.25334425 | AM22: -62.49888025
D23: Tariff variation depreciation
A24: =ROW() -> 24 | D24: Over Depreciation including adjustment to 2014 capital contributions due to deducting tax portion | O24: =O215 -> 0 | P24: 0 | Q24: 0 | R24: 0 | S24: 12.69954721 | T24: 0 | W24: 0 | X24: 0 | Y24: 0 | Z24: 2.220446049e-16 | AA24: 0.06040327796 | AD24: 0 | AE24: 0 | AF24: 0 | AG24: 0 | AH24: 0 | AI24: 0 | AJ24: 0 | AK24: 0 | AL24: 0 | AM24: 0
A25: =ROW() -> 25 | D25: Closing Value | N25: =N33+N54 -> 946.7142164 | O25: =SUM(O16:O24) -> 936.7482853 | P25: 940.0494677 | Q25: 943.3585042 | R25: 945.7806179 | S25: 962.5592674 | T25: 983.0888775 | W25: 999.3037278 | X25: 1009.922577 | Y25: 1062.453208 | Z25: 1102.57939 | AA25: 1127.184274 | AD25: 1167.152231 | AE25: 1214.064648 | AF25: 1257.914734 | AG25: 1300.510364 | AH25: 1333.87084 | AI25: 1381.878605 | AJ25: 1410.995549 | AK25: 1440.658547 | AL25: 1462.632453 | AM25: 1484.42352
A26: Initial Asset, Vines and West net
A27: =ROW() -> 27 | C27: ICB Account [m$ 30/6/2014]
A28: =ROW() -> 28 | D28: Opening Value | O28: =N33 -> 768.7721256 | P28: 735.3213934 | Q28: 710.4421316 | R28: 685.5628697 | S28: 660.6836079 | T28: 634.4926155 | W28: =T33 -> 627.1896641 | X28: 612.5837614 | Y28: 597.9778587 | Z28: 583.371956 | AA28: 568.7660533 | AD28: =AA33 -> 561.4631019 | AE28: 546.8571992 | AF28: 532.2512965 | AG28: 517.6453938 | AH28: 503.0394911 | AI28: 488.4335883 | AJ28: 473.8276856 | AK28: 459.2217829 | AL28: 444.6158802 | AM28: 430.0393803
D29: Adjustment to opening balance (CAPEX over depreciation transferred to ICB assets) | O29: =O296 -> -8.571470303 | P29: 0 | Q29: 0 | R29: 0 | S29: 0 | T29: 0 | W29: 0 | X29: 0 | Y29: 0 | Z29: 0 | AA29: 0 | AD29: 0 | AE29: 0 | AF29: 0 | AG29: 0 | AH29: 0 | AI29: 0 | AJ29: 0 | AK29: 0 | AL29: 0 | AM29: 0
A30: =ROW() -> 30 | D30: Depreciation | O30: =O336 -> -24.87926185 | P30: -24.87926185 | Q30: -24.87926185 | R30: -24.87926185 | S30: -24.87926185 | T30: -7.302951358 | W30: -14.60590272 | X30: -14.60590272 | Y30: -14.60590272 | Z30: -14.60590272 | AA30: -7.302951358 | AD30: -14.60590272 | AE30: -14.60590272 | AF30: -14.60590272 | AG30: -14.60590272 | AH30: -14.60590272 | AI30: -14.60590272 | AJ30: -14.60590272 | AK30: -14.60590272 | AL30: -14.57649985 | AM30: -14.4419326
A31: =ROW() -> 31 | D31: Asset Adjustment, Redundant Assets & Asset Disposal | O31: =O356 -> 0 | P31: =P356 -> 0 | Q31: 0 | R31: 0 | S31: -5.42850108 | T31: 0 | W31: 0 | X31: 0 | Y31: 0 | Z31: 0 | AA31: 0 | AD31: 0 | AE31: 0 | AF31: 0 | AG31: 0 | AH31: 0 | AI31: =AI356 -> 0 | AJ31: 0 | AK31: 0 | AL31: 0 | AM31: 0
D32: Over depreciation | O32: =O376 -> 0 | P32: 0 | Q32: 0 | R32: 0 | S32: 4.116770533 | T32: 0 | W32: 0 | X32: 0 | Y32: 0 | Z32: 0 | AA32: 0 | AD32: 0 | AE32: 0 | AF32: 0 | AG32: 0 | AH32: 0 | AI32: 0 | AJ32: 0 | AK32: 0 | AL32: 0 | AM32: 0
A33: =ROW() -> 33 | D33: Closing Value | N33: =N396 -> 768.7721256 | O33: =SUM(O28:O32) -> 735.3213934 | P33: 710.4421316 | Q33: 685.5628697 | R33: 660.6836079 | S33: 634.4926155 | T33: 627.1896641 | W33: 612.5837614 | X33: 597.9778587 | Y33: 583.371956 | Z33: 568.7660533 | AA33: 561.4631019 | AD33: 546.8571992 | AE33: 532.2512965 | AF33: 517.6453938 | AG33: 503.0394911 | AH33: 488.4335883 | AI33: 473.8276856 | AJ33: 459.2217829 | AK33: 444.6158802 | AL33: 430.0393803 | AM33: 415.5974477
A34: =ROW() -> 34 | C34: Vines Asset Account
A35: =ROW() -> 35 | D35: Opening Value | T35: =S39 -> 0.7138290742 | W35: =T39 -> 0.7024750414 | X35: 0.6797669758 | Y35: 0.6570589103 | Z35: 0.6343508447 | AA35: 0.6116427792 | AD35: =AA39 -> 0.6002887464 | AE35: 0.5775806809 | AF35: 0.5548726153 | AG35: 0.5321645498 | AH35: 0.5094564842 | AI35: =AH39 -> 0.4867484187 | AJ35: 0.4640403531 | AK35: 0.4413322876 | AL35: 0.418624222 | AM35: 0.3959161565
D36: Assets rolled into asset base | S36: =S457 -> 0.7138290742 | T36: 0 | W36: 0 | X36: 0 | Y36: 0 | Z36: 0 | AA36: 0 | AD36: 0 | AE36: 0 | AF36: 0 | AG36: 0 | AH36: 0 | AI36: 0 | AJ36: 0 | AK36: 0 | AL36: 0 | AM36: 0
A37: =ROW() -> 37 | D37: Depreciation | T37: =T477 -> -0.01135403278 | W37: -0.02270806555 | X37: -0.02270806555 | Y37: -0.02270806555 | Z37: -0.02270806555 | AA37: -0.01135403278 | AD37: -0.02270806555 | AE37: -0.02270806555 | AF37: -0.02270806555 | AG37: -0.02270806555 | AH37: -0.02270806555 | AI37: -0.02270806555 | AJ37: -0.02270806555 | AK37: -0.02270806555 | AL37: -0.02270806555 | AM37: -0.02270806555
A38: =ROW() -> 38 | D38: Redundant Assets & Asset Disposal | T38: =T497 -> 0 | W38: 0 | X38: 0 | Y38: 0 | Z38: 0 | AA38: 0 | AD38: 0 | AE38: 0 | AF38: 0 | AG38: 0 | AH38: 0 | AI38: =AI497 -> 0 | AJ38: 0 | AK38: 0 | AL38: 0 | AM38: 0
A39: =ROW() -> 39 | D39: Closing Value (Asset Added as at 31/12/2009) | S39: =SUM(S35:S38) -> 0.7138290742 | T39: 0.7024750414 | W39: 0.6797669758 | X39: 0.6570589103 | Y39: 0.6343508447 | Z39: 0.6116427792 | AA39: 0.6002887464 | AD39: 0.5775806809 | AE39: 0.5548726153 | AF39: 0.5321645498 | AG39: 0.5094564842 | AH39: 0.4867484187 | AI39: 0.4640403531 | AJ39: 0.4413322876 | AK39: 0.418624222 | AL39: 0.3959161565 | AM39: 0.3732080909
A40: =ROW() -> 40 | C40: West Net Energy Asset Account
A41: =ROW() -> 41 | D41: Opening Value | W41: =T45 -> 3.639678756 | X41: =W45 -> 2.898190922 | Y41: 2.156703089 | Z41: 1.415215255 | AA41: 0.6737274221 | AD41: =AA45 -> 0.4959767868 | AE41: 0.252452373 | AF41: 0.008927959073 | AG41: -8.67361738e-16 | AH41: -8.67361738e-16 | AI41: =AH45 -> -8.67361738e-16 | AJ41: -4.442247414e-16 | AK41: -4.44360273e-16 | AL41: -4.444958045e-16 | AM41: -4.446313361e-16
D42: Assets rolled into asset base | T42: =T578 -> 3.639678756 | W42: 0 | X42: 0 | Y42: 0 | Z42: 0 | AA42: 0 | AD42: 0 | AE42: 0 | AF42: 0 | AG42: 0 | AH42: 0 | AI42: 0 | AJ42: 0 | AK42: 0 | AL42: 0 | AM42: 0
A43: =ROW() -> 43 | D43: Depreciation | W43: =W598 -> -0.7414878334 | X43: -0.7414878334 | Y43: -0.7414878334 | Z43: -0.7414878334 | AA43: -0.1777506352 | AD43: -0.2435244139 | AE43: -0.2435244139 | AF43: -0.008927959073 | AG43: 0 | AH43: 0 | AI43: 4.231369966e-16 | AJ43: -1.355315569e-19 | AK43: -1.355315569e-19 | AL43: -1.355315569e-19 | AM43: -1.355315569e-19
A44: =ROW() -> 44 | D44: Redundant Assets & Asset Disposal | W44: =W618 -> 0 | X44: 0 | Y44: 0 | Z44: 0 | AA44: 0 | AD44: 0 | AE44: 0 | AF44: 0 | AG44: 0 | AH44: 0 | AI44: =AI618 -> 0 | AJ44: 0 | AK44: 0 | AL44: 0 | AM44: 0
A45: =ROW() -> 45 | D45: Closing Value (Asset Added as at 30/06/2010) | T45: =SUM(T41:T44) -> 3.639678756 | W45: 2.898190922 | X45: 2.156703089 | Y45: 1.415215255 | Z45: 0.6737274221 | AA45: 0.4959767868 | AD45: 0.252452373 | AE45: 0.008927959073 | AF45: -8.67361738e-16 | AG45: -8.67361738e-16 | AH45: -8.67361738e-16 | AI45: -4.442247414e-16 | AJ45: -4.44360273e-16 | AK45: -4.444958045e-16 | AL45: -4.446313361e-16 | AM45: -4.447668676e-16
A46: Capex
A47: =ROW() -> 47 | C47: Capex Account
A48: =ROW() -> 48 | C48: 1 | D48: Opening Value | O48: =N54 -> 177.9420908 | P48: 201.4268919 | Q48: 229.6073362 | R48: 257.7956345 | S48: 285.0970101 | T48: 318.7700461 | W48: =T54 -> 342.9742829 | X48: 374.5592318 | Y48: 400.5481792 | Z48: 468.4489088 | AA48: 523.9451902 | AD48: =AA54 -> 555.9817264 | AE48: 610.821819 | AF48: 672.606371 | AG48: 731.0939954 | AH48: 788.3182363 | AI48: 836.3073236 | AJ48: 898.9436993 | AK48: 942.6892542 | AL48: 986.9808624 | AM48: 1023.553977
A49: =ROW() -> 49 | C49: 2 | D49: Capex | O49: =O699 -> 33.89050867 | P49: =P699 -> 40.83325235 | Q49: 42.9151724 | R49: 43.71418753 | S49: 52.2407356 | T49: 30.36778797 | W49: 45.42046683 | X49: 42.45633319 | Y49: 86.95616535 | Z49: 77.08487171 | AA49: 42.62505153 | AD49: 79.82340651 | AE49: 91.32498476 | AF49: 91.31459414 | AG49: 93.18199064 | AH49: 86.53789648 | AI49: =AI699 -> 95.73737392 | AJ49: 86.33917882 | AK49: 88.44894092 | AL49: 82.2272506 | AM49: 84.28994711
A50: =ROW() -> 50 | C50: 3 | D50: Redundant Assets & Asset Disposal | O50: =O719 -> 0 | P50: 0 | Q50: 0 | R50: 0 | S50: 0 | T50: 0 | W50: 0 | X50: 0 | Y50: 0 | Z50: 0 | AA50: -0.0424773683 | AD50: -0.01546661101 | AE50: -0.2028672662 | AF50: -0.2136045275 | AG50: -0.5156300225 | AH50: 0 | AI50: 0 | AJ50: 0 | AK50: 0 | AL50: 0 | AM50: 0
A51: =ROW() -> 51 | C51: 4 | D51: Depreciation | O51: =O739 -> -10.40570762 | P51: =P739 -> -12.65280805 | Q51: =Q739 -> -14.7268741 | R51: =R739 -> -16.41281193 | S51: =S739 -> -18.56769953 | T51: =T739+T759 -> -6.163551214 | W51: -13.83551792 | X51: -16.46738576 | Y51: -19.05543575 | Z51: -21.58859038 | AA51: -10.54603795 | AD51: -24.96784725 | AE51: -29.3375655 | AF51: -32.61336526 | AG51: -35.44211969 | AH51: -38.54880919 | AI51: -33.10099817 | AJ51: -42.59362395 | AK51: -44.15733277 | AL51: -45.65413634 | AM51: -48.03423958
A52: =ROW() -> 52 | C52: 5 | D52: Depreciation per tariff variation | O52: =O759 -> 0 | P52: 0 | Q52: 0 | R52: 0 | S52: 0 | T52: 0 | W52: 0 | X52: 0 | Y52: 0 | Z52: -0.01604208843 | AA52: 0 | AD52: 0 | AE52: 0 | AF52: 0 | AG52: 0 | AH52: 0 | AI52: 0 | AJ52: 0 | AK52: 0 | AL52: 0 | AM52: 0
A53: =ROW() -> 53 | C53: 6 | D53: Over depreciation | O53: =O779 -> 0 | P53: 0 | Q53: 0 | R53: 0 | S53: 8.582776673 | T53: 0 | W53: 0 | X53: 0 | Y53: 0 | Z53: 2.220446049e-16 | AA53: 0.06040327796 | AD53: 0 | AE53: 0 | AF53: 0 | AG53: 0 | AH53: 0 | AI53: 0 | AJ53: 0 | AK53: 0 | AL53: 0 | AM53: 0
A54: =ROW() -> 54 | D54: Closing Value | N54: =N799 -> 177.9420908 | O54: =SUM(O48:O51) -> 201.4268919 | P54: 229.6073362 | Q54: 257.7956345 | R54: 285.0970101 | S54: 318.7700461 | T54: 342.9742829 | W54: 374.5592318 | X54: 400.5481792 | Y54: 468.4489088 | Z54: 523.9451902 | AA54: 555.9817264 | AD54: 610.821819 | AE54: 672.606371 | AF54: 731.0939954 | AG54: 788.3182363 | AH54: 836.3073236 | AI54: 898.9436993 | AJ54: 942.6892542 | AK54: 986.9808624 | AL54: 1023.553977 | AM54: 1059.809684
A55: ="Assets Account [m$"&Input!$G$34&"]" -> Assets Account [m$31/12/2019]
A56: Opening Asset Value -- by asset class
A57: =ROW() -> 57 | C57: Opening Value
A58: =ROW() -> 58 | D58: High Pressure Mains - Steel | O58: =N218 -> 242.6976216 | P58: 240.9091617 | Q58: 240.3782399 | R58: 239.9120791 | S58: 241.5316604 | T58: 252.0589004 | W58: =T218 -> 260.4631536 | X58: 261.7044522 | Y58: 262.1516648 | Z58: 282.016896 | AA58: 284.2996753 | AD58: =AA218 -> 283.4117819 | AE58: 280.7041051 | AF58: 279.9639869 | AG58: 283.4594744 | AH58: 285.8069371 | AI58: =AH218 -> 284.9781408 | AJ58: 284.1918923 | AK58: 283.4697772 | AL58: 284.1955451 | AM58: 283.2468854
A59: =ROW() -> 59 | D59: High Pressure Mains - PE | O59: =N219 -> 0 | P59: =O219 -> 0 | Q59: =P219 -> 0 | R59: =Q219 -> 0 | S59: =R219 -> 0 | T59: 0 | W59: 0 | X59: 0 | Y59: 0 | Z59: 0 | AA59: =Z219 -> 0 | AD59: 1.185460772 | AE59: 2.694138208 | AF59: 3.447940526 | AG59: 3.889387097 | AH59: 4.461438869 | AI59: =AH219 -> 4.417466103 | AJ59: 4.339337779 | AK59: 4.261209454 | AL59: 4.183081129 | AM59: 4.104952805
A60: =ROW() -> 60 | D60: Medium Pressure Mains | O60: =N220 -> 309.4860737 | P60: 302.7980429 | Q60: 295.9778582 | R60: 289.0342936 | S60: 281.9867099 | T60: 276.0459198 | W60: 235.9235835 | X60: 229.9508346 | Y60: 223.9780856 | Z60: 218.0053367 | AA60: 212.0325877 | AD60: 209.0462132 | AE60: 203.0734643 | AF60: 197.1007153 | AG60: 191.1279664 | AH60: 185.1552174 | AI60: =AH220 -> 179.1824685 | AJ60: 173.2097195 | AK60: 167.2369706 | AL60: 161.2642216 | AM60: 155.2914727
A61: =ROW() -> 61 | D61: Medium / Low Pressure Mains | O61: =N221 -> 146.2732113 | P61: 151.8679599 | Q61: 158.7031363 | R61: 170.7046662 | S61: 180.7523845 | T61: 187.5976027 | W61: 227.4431918 | X61: 232.7882837 | Y61: 238.9087493 | Z61: 257.3365597 | AA61: 269.112829 | AD61: 279.2961095 | AE61: 307.020346 | AF61: 333.407037 | AG61: 358.8946044 | AH61: 386.4183115 | AI61: =AH221 -> 406.3643522 | AJ61: 437.2802122 | AK61: 460.1867342 | AL61: 482.6876131 | AM61: 505.8504308
A62: =ROW() -> 62 | D62: Low Pressure Mains | O62: =N222 -> 39.37252842 | P62: 37.10347655 | Q62: 35.67641976 | R62: 34.24936297 | S62: 32.82230618 | T62: 31.39524939 | W62: 30.681721 | X62: 29.25466421 | Y62: 27.82760742 | Z62: 26.40055063 | AA62: 24.97349383 | AD62: 24.25996544 | AE62: 22.83290865 | AF62: 21.40585186 | AG62: 19.97879507 | AH62: 18.55173828 | AI62: =AH222 -> 17.12468149 | AJ62: 15.6976247 | AK62: 14.27056791 | AL62: 12.84351111 | AM62: 11.41645432
A63: =ROW() -> 63 | D63: Regulators | O63: =N223 -> 13.77208143 | P63: 13.27970902 | Q63: 13.62828219 | R63: 13.79665966 | S63: 13.38605635 | T63: 13.68369657 | W63: 13.63456064 | X63: 13.17980388 | Y63: 12.95439176 | Z63: 13.57535226 | AA63: 13.54133813 | AD63: 14.67217429 | AE63: 16.69339626 | AF63: 20.24572265 | AG63: 24.54198263 | AH63: 25.18261313 | AI63: =AH223 -> 24.97980869 | AJ63: 24.8640657 | AK63: 24.4001784 | AL63: 24.13433191 | AM63: 23.58075569
A64: =ROW() -> 64 | D64: Secondary Gate Stations | O64: =N224 -> 2.616728723 | P64: 2.42221035 | Q64: 2.287371682 | R64: 2.152266586 | S64: 2.032377935 | T64: 3.939667024 | W64: 5.890561563 | X64: 5.852728528 | Y64: 5.860652661 | Z64: 5.604306822 | AA64: 5.344217636 | AD64: 5.228802566 | AE64: 5.005216958 | AF64: 4.757304074 | AG64: 4.704246825 | AH64: 4.955751464 | AI64: =AH224 -> 9.834322914 | AJ64: 17.7310515 | AK64: 20.65762199 | AL64: 26.03442066 | AM64: 25.26313989
A65: =ROW() -> 65 | D65: Buildings | O65: =N225 -> 2.318732832 | P65: 2.189723035 | Q65: 2.060253949 | R65: 1.981757634 | S65: 1.99521021 | T65: 0.8235141447 | W65: 0.9471681423 | X65: 2.169899287 | Y65: 2.899195785 | Z65: 7.431828347 | AA65: 17.58261432 | AD65: 17.5320527 | AE65: 17.50639815 | AF65: 17.38971416 | AG65: 18.00626216 | AH65: 27.14255555 | AI65: =AH225 -> 29.17850619 | AJ65: 31.09991694 | AK65: 30.5520823 | AL65: 29.94817842 | AM65: 29.1615769
A66: =ROW() -> 66 | D66: Meter and Services Pipes | O66: =N226 -> 152.9639813 | P66: 161.2169401 | Q66: 172.4104264 | R66: 179.4475273 | S66: 183.5198744 | T66: 188.4597277 | W66: 194.3634378 | X66: 207.6304117 | Y66: 217.3837638 | Z66: 228.4800634 | AA66: 248.4566041 | AD66: 259.8006541 | AE66: 278.1888581 | AF66: 295.7718807 | AG66: 309.9184713 | AH66: 320.8327908 | AI66: =AH226 -> 335.4522421 | AJ66: 342.875589 | AK66: 349.9336451 | AL66: 358.2879151 | AM66: 366.5386887
A67: =ROW() -> 67 | D67: Equipment & Vehicles | O67: =N227 -> 3.552753565 | P67: -4.116770533 | Q67: -4.116770533 | R67: -4.116770533 | S67: -4.116770533 | T67: 0 | W67: 3.497652422 | X67: 3.581586815 | Y67: 4.101470749 | Z67: 7.800407353 | AA67: 12.60409389 | AD67: 12.1963118 | AE67: 11.85688329 | AF67: 10.98944984 | AG67: 10.38106197 | AH67: 10.19168155 | AI67: =AH227 -> 10.33339505 | AJ67: 9.148287306 | AK67: 7.924248131 | AL67: 6.830723104 | AM67: 5.983526894
A68: =ROW() -> 68 | D68: Vehicle | O68: =N228 -> 0 | P68: 0 | Q68: 0 | R68: 0 | S68: 0 | T68: 0 | W68: 0 | X68: 0 | Y68: 0 | Z68: 0 | AA68: 0 | AD68: 1.54380702 | AE68: 2.525985196 | AF68: 3.773296344 | AG68: 4.540750155 | AH68: 6.027502756 | AI68: =AH228 -> 7.252025439 | AJ68: 10.757746 | AK68: 14.1705502 | AL68: 14.28160001 | AM68: 15.31037206
A69: =ROW() -> 69 | D69: Information Technology | O69: =N229 -> 8.470116791 | P69: 7.289370069 | Q69: 4.657712326 | R69: 1.212048689 | S69: 0.2881202706 | T69: 4.537291131 | W69: 6.226148574 | X69: 9.173364425 | Y69: 9.839296209 | Z69: 11.78420788 | AA69: 10.61423781 | AD69: 14.993242 | AE69: 14.15431546 | AF69: 18.53861234 | AG69: 20.77476348 | AH69: 17.7947368 | AI69: =AH229 -> 14.08721361 | AJ69: 18.53622513 | AK69: 19.73306374 | AL69: 20.04349155 | AM69: 19.34480778
A70: 70 | D70: Miscellaneous IT equipment | O70: =N230 -> 0 | P70: =O230 -> 0 | Q70: =P230 -> 0 | R70: =Q230 -> 0 | S70: =R230 -> 0 | T70: =S230 -> 0 | W70: =T230 -> 0 | X70: =W230 -> 0 | Y70: =X230 -> 0 | Z70: =Y230 -> 0 | AA70: =Z230 -> 0 | AD70: =AA230 -> 0 | AE70: =AD230 -> 0 | AF70: =AE230 -> 0 | AG70: =AF230 -> 0 | AH70: =AG230 -> 0 | AI70: =AH230 -> 0 | AJ70: =AI230 -> 0.08649087975 | AK70: =AJ230 -> 0.1556835835 | AL70: =AK230 -> 0.2075781114 | AM70: =AL230 -> 0.2504728311
A71: =ROW() -> 71 | D71: Telemetry and Monitoring | O71: =N231 -> 0 | P71: 0 | Q71: =P231 -> 0 | R71: =Q231 -> 0 | S71: =R231 -> 0 | T71: =S231 -> 0 | W71: =T231 -> 0 | X71: =W231 -> 0 | Y71: =X231 -> 0 | Z71: =Y231 -> 0 | AA71: =Z231 -> 0 | AD71: =AA231 -> 0 | AE71: =AD231 -> 0 | AF71: =AE231 -> 0 | AG71: =AF231 -> 0 | AH71: =AG231 -> 0 | AI71: =AH231 -> 0 | AJ71: 1.388866399 | AK71: 3.386273939 | AL71: 5.074030526 | AM71: 6.661248216
A72: =ROW() -> 72 | D72: FRC | O72: =N232 -> 17.00962303 | P72: 13.60769843 | Q72: 10.20577382 | R72: 6.803849213 | S72: 3.401924606 | T72: 1.221245327e-15 | W72: =T232 -> 1.221245327e-15 | X72: 1.221245327e-15 | Y72: 1.221245327e-15 | Z72: 1.221245327e-15 | AA72: 1.221245327e-15 | AD72: =AA232 -> 1.221245327e-15 | AE72: 1.221245327e-15 | AF72: 1.221245327e-15 | AG72: 1.221245327e-15 | AH72: 1.221245327e-15 | AI72: =AH232 -> 1.221245327e-15 | AJ72: =AI232 -> 1.221001382e-15 | AK72: =AJ232 -> 1.221001382e-15 | AL72: =AK232 -> 1.221001382e-15 | AM72: =AL232 -> 1.221001382e-15
A73: =ROW() -> 73 | D73: Land | O73: 8.180763758 | P73: 8.180763758 | Q73: 8.180763758 | R73: 8.180763758 | S73: 8.180763758 | T73: 4.0176985 | W73: =T233 -> 4.0176985 | X73: 4.0176985 | Y73: 4.0176985 | Z73: 4.0176985 | AA73: 4.0176985 | AD73: =AA233 -> 4.0176985 | AE73: 4.896215655 | AF73: 7.273136246 | AG73: 7.696967855 | AH73: 7.703794913 | AI73: 9.726789913 | AJ73: 9.726789913 | AK73: 9.726789913 | AL73: 9.726789913 | AM73: 9.726789913
A74: =ROW() -> 74 | D74: Equity Raising Cost | O74: =N234 -> 0 | P74: 0 | Q74: 0 | R74: 0 | S74: 0 | T74: 0 | W74: =T234 -> 0 | X74: 0 | Y74: 0 | Z74: 0 | AA74: 0 | AD74: =AA234 -> 0 | AE74: 0 | AF74: 0 | AG74: 0 | AH74: 0.2852936609 | AI74: 0.9594273477 | AJ74: 0.9447900424 | AK74: 0.930152737 | AL74: 0.9155154317 | AM74: 0.9008781264
A75: =ROW() -> 75 | D75: Total | O75: =SUM(O58:O74) -> 946.7142164 | P75: 936.7482853 | Q75: 940.0494677 | R75: 943.3585042 | S75: 945.7806179 | T75: =SUM(T58:T74) -> 962.5592674 | W75: 983.0888775 | X75: 999.3037278 | Y75: 1009.922577 | Z75: 1062.453208 | AA75: 1102.57939 | AD75: 1127.184274 | AE75: 1167.152231 | AF75: 1214.064648 | AG75: 1257.914734 | AH75: 1300.510364 | AI75: =SUM(AI58:AI74) -> 1333.87084 | AJ75: 1381.878605 | AK75: 1410.995549 | AL75: 1440.658547 | AM75: 1462.632453
A76: =CONCATENATE("Adjustments to Opening Asset Value 1 January 2005 ",A$236) -> Adjustments to Opening Asset Value 1 January 2005 ICB Account [m$31/12/2019]
A77: =ROW() -> 77 | C77: =CONCATENATE("Adjustments to Opening Asset Value ",C$236) -> Adjustments to Opening Asset Value
A78: =ROW() -> 78 | D78: High Pressure Mains - Steel | O78: =O279 -> 0
A79: =ROW() -> 79 | D79: High Pressure Mains - PE | O79: 0
A80: =ROW() -> 80 | D80: Medium Pressure Mains | O80: 0
A81: =ROW() -> 81 | D81: Medium / Low Pressure Mains | O81: 0
A82: =ROW() -> 82 | D82: Low Pressure Mains | O82: -0.8419950732
A83: =ROW() -> 83 | D83: Regulators | O83: 0
A84: =ROW() -> 84 | D84: Secondary Gate Stations | O84: -0.05995113104
A85: =ROW() -> 85 | D85: Buildings | O85: 0
A86: =ROW() -> 86 | D86: Meter and Services Pipes | O86: 0
A87: =ROW() -> 87 | D87: Equipment & Vehicles | O87: -7.669524098
A88: =ROW() -> 88 | D88: Vehicle | O88: 0
A89: =ROW() -> 89 | D89: Information Technology | O89: 0
D90: Miscellaneous IT Equipment
D91: Telemetry and Monitoring | O91: =O292 -> 0
A92: =ROW() -> 92 | D92: FRC | O92: 0
A93: =ROW() -> 93 | D93: Land | O93: 0
A94: =ROW() -> 94 | D94: Equity Raising Cost | O94: 0
A95: =ROW() -> 95 | D95: Total | O95: =SUM(O78:O94) -> -8.571470303 | S95: =SUM(S78:S94) -> 0 | Z95: =SUM(Z78:Z94) -> 0
A96: Vines and West net assets rolled into asset base
A97: =ROW() -> 97 | C97: Vines and West net assets rolled into asset base
A98: =ROW() -> 98 | D98: High Pressure Mains - Steel | O98: =O440+O561 -> 0 | P98: 0 | Q98: 0 | R98: 0 | S98: 0 | T98: 0 | W98: 0 | X98: 0 | Y98: 0 | Z98: 0 | AA98: 0 | AD98: 0 | AE98: 0 | AF98: 0 | AG98: 0 | AH98: 0 | AI98: 0 | AJ98: 0 | AK98: 0 | AL98: 0 | AM98: 0
A99: =ROW() -> 99 | D99: High Pressure Mains - PE | O99: =O441+O562 -> 0 | P99: 0 | Q99: 0 | R99: 0 | S99: 0 | T99: 0 | W99: 0 | X99: 0 | Y99: 0 | Z99: 0 | AA99: 0 | AD99: 0 | AE99: 0 | AF99: 0 | AG99: 0 | AH99: 0 | AI99: 0 | AJ99: 0 | AK99: 0 | AL99: 0 | AM99: 0
A100: =ROW() -> 100 | D100: Medium Pressure Mains | O100: =O442+O563 -> 0 | P100: 0 | Q100: 0 | R100: 0 | S100: 0 | T100: 0 | W100: 0 | X100: 0 | Y100: 0 | Z100: 0 | AA100: 0 | AD100: 0 | AE100: 0 | AF100: 0 | AG100: 0 | AH100: 0 | AI100: 0 | AJ100: 0 | AK100: 0 | AL100: 0 | AM100: 0
A101: =ROW() -> 101 | D101: Medium / Low Pressure Mains | O101: =O443+O564 -> 0 | P101: 0 | Q101: 0 | R101: 0 | S101: 0.5256752323 | T101: 0 | W101: 0 | X101: 0 | Y101: 0 | Z101: 0 | AA101: 0 | AD101: 0 | AE101: 0 | AF101: 0 | AG101: 0 | AH101: 0 | AI101: 0 | AJ101: 0 | AK101: 0 | AL101: 0 | AM101: 0
A102: =ROW() -> 102 | D102: Low Pressure Mains | O102: =O444+O565 -> 0 | P102: 0 | Q102: 0 | R102: 0 | S102: 0 | T102: 0 | W102: 0 | X102: 0 | Y102: 0 | Z102: 0 | AA102: 0 | AD102: 0 | AE102: 0 | AF102: 0 | AG102: 0 | AH102: 0 | AI102: 0 | AJ102: 0 | AK102: 0 | AL102: 0 | AM102: 0
A103: =ROW() -> 103 | D103: Regulators | O103: =O445+O566 -> 0 | P103: 0 | Q103: 0 | R103: 0 | S103: 0 | T103: 0 | W103: 0 | X103: 0 | Y103: 0 | Z103: 0 | AA103: 0 | AD103: 0 | AE103: 0 | AF103: 0 | AG103: 0 | AH103: 0 | AI103: 0 | AJ103: 0 | AK103: 0 | AL103: 0 | AM103: 0
A104: =ROW() -> 104 | D104: Secondary Gate Stations | O104: =O446+O567 -> 0 | P104: 0 | Q104: 0 | R104: 0 | S104: 0 | T104: 0 | W104: 0 | X104: 0 | Y104: 0 | Z104: 0 | AA104: 0 | AD104: 0 | AE104: 0 | AF104: 0 | AG104: 0 | AH104: 0 | AI104: 0 | AJ104: 0 | AK104: 0 | AL104: 0 | AM104: 0
A105: =ROW() -> 105 | D105: Buildings | O105: =O447+O568 -> 0 | P105: 0 | Q105: 0 | R105: 0 | S105: 0 | T105: 0.01582602281 | W105: 0 | X105: 0 | Y105: 0 | Z105: 0 | AA105: 0 | AD105: 0 | AE105: 0 | AF105: 0 | AG105: 0 | AH105: 0 | AI105: 0 | AJ105: 0 | AK105: 0 | AL105: 0 | AM105: 0
A106: =ROW() -> 106 | D106: Meter and Services Pipes | O106: =O448+O569 -> 0 | P106: 0 | Q106: 0 | R106: 0 | S106: 0.1881538419 | T106: 0 | W106: 0 | X106: 0 | Y106: 0 | Z106: 0 | AA106: 0 | AD106: 0 | AE106: 0 | AF106: 0 | AG106: 0 | AH106: 0 | AI106: 0 | AJ106: 0 | AK106: 0 | AL106: 0 | AM106: 0
A107: =ROW() -> 107 | D107: Equipment & Vehicles | O107: =O449+O570 -> 0 | P107: 0 | Q107: 0 | R107: 0 | S107: 0 | T107: 3.497652422 | W107: 0 | X107: 0 | Y107: 0 | Z107: 0 | AA107: 0 | AD107: 0 | AE107: 0 | AF107: 0 | AG107: 0 | AH107: 0 | AI107: 0 | AJ107: 0 | AK107: 0 | AL107: 0 | AM107: 0
A108: =ROW() -> 108 | D108: Vehicle | O108: =O450+O571 -> 0 | P108: 0 | Q108: 0 | R108: 0 | S108: 0 | T108: 0 | W108: 0 | X108: 0 | Y108: 0 | Z108: 0 | AA108: 0 | AD108: 0 | AE108: 0 | AF108: 0 | AG108: 0 | AH108: 0 | AI108: 0 | AJ108: 0 | AK108: 0 | AL108: 0 | AM108: 0
A109: =ROW() -> 109 | D109: Information Technology | O109: =O451+O572 -> 0 | P109: 0 | Q109: 0 | R109: 0 | S109: 0 | T109: 0.1262003109 | W109: 0 | X109: 0 | Y109: 0 | Z109: 0 | AA109: 0 | AD109: 0 | AE109: 0 | AF109: 0 | AG109: 0 | AH109: 0 | AI109: 0 | AJ109: 0 | AK109: 0 | AL109: 0 | AM109: 0
D110: Miscellaneous IT equipment | O110: 0 | P110: 0 | Q110: 0 | R110: 0 | S110: 0 | T110: 0 | U110: 0 | V110: 0 | W110: 0 | X110: 0 | Y110: 0 | Z110: 0 | AA110: 0 | AB110: 0 | AC110: 0 | AD110: 0 | AE110: 0 | AF110: 0 | AG110: 0 | AH110: 0 | AI110: 0 | AJ110: 0 | AK110: 0 | AL110: 0 | AM110: 0
D111: Telemetry and Monitoring | O111: =O453+O574 -> 0 | P111: 0 | Q111: 0 | R111: 0 | S111: 0 | T111: 0 | W111: 0 | X111: 0 | Y111: 0 | Z111: 0 | AA111: 0 | AD111: 0 | AE111: 0 | AF111: 0 | AG111: 0 | AH111: 0 | AI111: 0 | AJ111: 0 | AK111: 0 | AL111: 0 | AM111: 0
A112: =ROW() -> 112 | D112: FRC | O112: =O454+O575 -> 0 | P112: 0 | Q112: 0 | R112: 0 | S112: 0 | T112: 0 | W112: 0 | X112: 0 | Y112: 0 | Z112: 0 | AA112: 0 | AD112: 0 | AE112: 0 | AF112: 0 | AG112: 0 | AH112: 0 | AI112: 0 | AJ112: 0 | AK112: 0 | AL112: 0 | AM112: 0
